Workbook

Sheet Eingabemaske
AD3: HPSU compact 508 6 kW (biv) | AE3: 2
K4: 0 | AD4: HPSU compact 508 8 kW (biv) | AE4: 3
T5: Ergebnisliste
E6: Auslegungsobjekt: | T6: Altherma 4 H ECH2O 500 10 kW (empfohlen) | AE6: =IFERROR(VLOOKUP(T6,AM100:AN161,2,FALSE),"") -> 2
AO9: 2
AO10: 1
E17: Parameter
E18: Brauchwasserbereitung: | G18: ja
E19: Anzahl Personen: | G19: 4
E20: Vorlauftemperatur [°C]: | G20: 55 | J20: =IF(G20<=60,"","Bitte beachten!") -> 
E21: Temperaturspreizung [K]: | G21: 10
E22: Gebäudetyp: | G22: Altbau
E23: Normaußentemperatur [°C]: | G23: =Leistungsbedarf!H48 -> -8 | J23: PLZ:
E24: Kühlen: | G24: ja
E25: Sperrzeiten [h]: | G25: 0 | H25: x | I25: 0
E27: Warmwassertemperatur [°C]: | G27: 50 | J27: (Standard: 50 °C)
E30: Gerätetyp
E31: =Dropdown!A2 -> Altherma 3 R ECH2O | G31: =Dropdown!A11 -> Altherma 3 M
E32: =Dropdown!A3 -> Altherma 3 R W | G32: =Dropdown!A12 -> Altherma H Hybrid
E33: =Dropdown!A4 -> Altherma 3 R F | G33: =Dropdown!A13 -> Altherma 3 H MT ECH2O
E34: =Dropdown!A5 -> Altherma 3 H HT ECH2O | G34: =Dropdown!A14 -> Altherma 3 H MT F
E35: =Dropdown!A6 -> Altherma 3 H HT W | G35: =Dropdown!A15 -> Altherma 3 H MT W
E36: =Dropdown!A7 -> Altherma 3 H HT F | G36: =Dropdown!A19 -> Altherma 4 H ECH2O
E37: =Dropdown!A16 -> Altherma 3 R MT ECH2O | G37: =Dropdown!A20 -> Altherma 4 H F
E39: =Dropdown!A17 -> Altherma 3 R MT F | G39: =Dropdown!A21 -> Altherma 4 H W
E40: =Dropdown!A18 -> Altherma 3 R MT W
E52: Gebäudeheizlast
E56: beheizte Fläche | I56: m²
E57: spezifischer Wärmebedarf: | I57: W/m²
E59: Gebäudeheizlast: | I59: kW
E61: Bekannter Energiebedarf:
E62: Brennstoff: | K62: =IF(G62="Heizöl","l",IF(G62="Erdgas","m³",IF(G62="Strom","kWh",""))) -> 
E63: Brauchwasserbereitung: | I63: Personen: | K63: 4 | T63: Heizlast: | X63: =Leistungsbedarf!G15 ->  | Y63: kW
E64: Anlagenwirkungsgrad: | L64: % | T64: Leistungsbedarf: | X64: =Berechnung!B9 -> 0 | Y64: kW
E66: Energiepass: | T66: Leistung der WP bei Normaußentemperatur: | X66: =Q86 -> 8.823549524 | Y66: kW
E67: Gebäudenutzfläche (A): | K67: m² | T67: JAZ: | X67: =IF(I84="Altherma R Hybrid 5 kW",N87,IF(I84="Altherma R Hybrid 8 kW",N87,IF(I84="Altherma H Hybrid 4 kW",N87,IF(K87=0,"-",K87)))) -> 4.34 | AF67: Stand: 11.2025_V34
E68: spez. Jahresheizwärmebedarf (q): | K68: kWh/(m²*a) | T68: Bivalenzpunkt: | X68: =IF(L86="","-",L86) -> -8.058399109 | Y68: °C | | Z68: =IF(M86="","-",M86) -> 9.223359644 | AB68: Stromkosten: | AC68: 30 | AD68: ct/kWh
E69: Jahresheizwärmebedarf (Q): | K69: kWh/a | T69: =IF(I84="Altherma R Hybrid 5 kW","Anteil Gasgerät bei Normaußentemperatur:",IF(I84="Altherma R Hybrid 8 kW","Anteil Gasgerät bei Normaußentemperatur:",IF(I84="Altherma H Hybrid","Anteil Gasgerät bei Normaußentemperatur:","Heizstabanteil bei Normaußentemperatur:"))) -> Heizstabanteil bei Normaußentemperatur: | X69: =IF(((Q85-Q86)*100%/Q85*100)<0,0,((Q85-Q86)*100%/Q85*100)) -> 15.15817765 | Y69: % | | Z69: =X64-Q86 -> -8.823549524
T70: =IF(I84="Altherma R Hybrid 5 kW","Anteil Gasgerät am Jahreswärmebedarf:",IF(I84="Altherma R Hybrid 8 kW","Anteil Gasgerät am Jahreswärmebedarf:",IF(I84="Altherma H Hybrid","Anteil Gasgerät am Jahreswärmebedarf:","Heizstabanteil am Jahreswärmebedarf:"))) -> Heizstabanteil am Jahreswärmebedarf: | X70: =IF(Berechnung!F129<1,"<1",Berechnung!F129) -> >13 | Y70: %
T71: Stromkosten / Energiebedarf: | X71: =IF(I84="Altherma R Hybrid 5 kW","-",IF(I84="Altherma R Hybrid 8 kW","-",IF(I84="Altherma H Hybrid 4 kW","-",IF(ISERROR(ROUND(Berechnung!I136,-1)),"-",ROUND(Berechnung!I136,-1))))) -> - | Y71: € * / | Z71: =IF(I84="Altherma R Hybrid 5 kW","-",IF(I84="Altherma R Hybrid 8 kW","-",IF(I84="Altherma H Hybrid 4 kW","-",IF(ISERROR(ROUND(Berechnung!J136,-1)),"-",ROUND(Berechnung!J136,-1))))) -> - | AA71: * | AB71: * Es handelt sich hierbei um Schätzwerte. Individuelle Nutzergewohnheiten
T72: =IF(I84="Altherma H Hybrid 4 kW","Leistungsanteil bei Normaußentemperatur:","Volllaststunden:") -> Volllaststunden: | X72: =IF(I84="Altherma H Hybrid 4 kW",ROUND(X66/X63*100,0),Leistungsbedarf!G49) ->  | Y72: h | AB72: können einen erheblichen Einfluss auf den Energiebedarf / die Stromkosten haben.
I84: Altherma 4 H ECH2O 500 10 kW | K84: 4.57 | L84: 3.54 | P84: Temperatur | Q84: -11 | R84: -10.5 | S84: -10 | T84: -9.5 | U84: -9 | V84: -8.5 | W84: -8 | X84: -7.5 | Y84: -7 | Z84: -6.5 | AA84: -6 | AB84: -5.5 | AC84: -5 | AD84: -4.5 | AE84: -4 | AF84: -3.5 | AG84: -3 | AH84: -2.5 | AI84: -2 | AJ84: -1.5 | AK84: -1 | AL84: -0.5 | AM84: 0 | AN84: 0.5 | AO84: 1 | AP84: 1.5 | AQ84: 2 | AR84: 2.5 | AS84: 3 | AT84: 3.5 | AU84: 4 | AV84: 4.5 | AW84: 5 | AX84: 5.5 | AY84: 6 | AZ84: 6.5 | BA84: 7 | BB84: 7.5 | BC84: 8 | BD84: 8.5 | BE84: 9 | BF84: 9.5 | BG84: 10 | BH84: 10.5 | BI84: 11 | BJ84: 11.5 | BK84: 12 | BL84: 12.5 | BM84: 13 | BN84: 13.5 | BO84: 14 | BP84: 14.5 | BQ84: 15
I85: 7 | J85: 0.1359158276 | K85: 10.31862363 | L85: -8.058399109 | M85: 0 | N85: 0 | O85: 9.223359644 | P85: Heizlast | Q85: 10.4 | R85: 10.2 | S85: 10 | T85: 9.8 | U85: 9.6 | V85: 9.4 | W85: 9.2 | X85: 9 | Y85: 8.8 | Z85: 8.6 | AA85: 8.4 | AB85: 8.2 | AC85: 8 | AD85: 7.8 | AE85: 7.6 | AF85: 7.4 | AG85: 7.2 | AH85: 7 | AI85: 6.8 | AJ85: 6.6 | AK85: 6.4 | AL85: 6.2 | AM85: 6 | AN85: 5.8 | AO85: 5.6 | AP85: 5.4 | AQ85: 5.2 | AR85: 5 | AS85: 4.8 | AT85: 4.6 | AU85: 4.4 | AV85: 4.2 | AW85: 4 | AX85: 3.8 | AY85: 3.6 | AZ85: 3.4 | BA85: 3.2 | BB85: 3 | BC85: 2.8 | BD85: 2.6 | BE85: 2.4 | BF85: 2.2 | BG85: 2 | BH85: 1.8 | BI85: 1.6 | BJ85: 1.4 | BK85: 1.2 | BL85: 1 | BM85: 0.8 | BN85: 0.6 | BO85: 0.4 | BP85: 0.2 | BQ85: 3.830269435e-15
J86: -0.4 | K86: 6 | L86: -8.058399109 | M86: 9.223359644 | N86: -8.058399109 | O86: 9.223359644 | P86: Leistung | Q86: 8.823549524 | R86: 8.891507438 | S86: 8.959465352 | T86: 9.027423266 | U86: 9.095381179 | V86: 9.163339093 | W86: 9.231297007 | X86: 9.299254921 | Y86: 9.367212835 | Z86: 9.264211701 | AA86: 9.161210568 | AB86: 9.058209434 | AC86: 8.955208301 | AD86: 8.852207167 | AE86: 8.749206034 | AF86: 8.646204901 | AG86: 8.543203767 | AH86: 8.440202634 | AI86: 8.3372015 | AJ86: 8.255797921 | AK86: 8.174394341 | AL86: 8.092990762 | AM86: 8.011587182 | AN86: 7.930183603 | AO86: 7.848780023 | AP86: 7.767376444 | AQ86: 7.685972864 | AR86: 7.913334036 | AS86: 8.140695208 | AT86: 8.36805638 | AU86: 8.595417552 | AV86: 8.822778724 | AW86: 9.050139896 | AX86: 9.277501068 | AY86: 9.50486224 | AZ86: 9.732223412 | BA86: 9.959584584 | BB86: 9.713321172 | BC86: 9.467057761 | BD86: 9.220794349 | BE86: 8.974530937 | BF86: 8.728267525 | BG86: 8.482004113 | BH86: 8.235740702 | BI86: 7.98947729 | BJ86: 7.743213878 | BK86: 7.496950466 | BL86: 7.488429185 | BM86: 7.479907904 | BN86: 7.471386623 | BO86: 7.462865342 | BP86: 7.454344061 | BQ86: 7.445822779
J87: empfohlen | K87: 4.34 | L87: 9 | M87: 0,3 | N87: 4.34 | O87: 2.85 | P87: 4.46 | Q87: 4.94 | R87: 0
AM102: Altherma 4 H ECH2O EPSKS 500 7 kW | AN102: 7 | AO102: 0,084
AM103: Altherma 4 H F 230 - EPSKS 7 kW | AN103: 14 | AO103: 0,085
AM104: Altherma 4 H W - EPSKS 7 kW | AN104: 21 | AO104: 0,086
AM105: Altherma 4 H ECH2O EPSKS 500 6 kW | AN105: 6 | AO105: 0,087
AM106: Altherma 4 H F 230 - EPSKS 6 kW | AN106: 13 | AO106: 0,088
AM107: Altherma 4 H W - EPSKS 6 kW | AN107: 20 | AO107: 0,089
AM108: Altherma 4 H ECH2O EPSKS 500 4 kW | AN108: 5 | AO108: 0,091
AM109: Altherma 4 H F 230 - EPSKS 4 kW | AN109: 12 | AO109: 0,092
AM110: Altherma 4 H W - EPSKS 4 kW | AN110: 19 | AO110: 0,093
AM111: Altherma 4 H ECH2O 500 14 kW | AN111: 4 | AO111: 0,1
AM112: Altherma 4 H F 230 14 kW | AN112: 11 | AO112: 0,11
AM113: Altherma 4 H W 14 kW | AN113: 18 | AO113: 0,13
AM114: Altherma 4 H ECH2O 500 12 kW | AN114: 3 | AO114: 0,2
AM115: Altherma 4 H F 230 12 kW | AN115: 10 | AO115: 0,21
AM116: Altherma 4 H W 12 kW | AN116: 17 | AO116: 0,22
AM117: Altherma 4 H ECH2O 500 10 kW (empfohlen) | AN117: 2 | AO117: 0,3
AM118: Altherma 4 H F 230 10 kW (empfohlen) | AN118: 9 | AO118: 0,31
AM119: Altherma 4 H W 10 kW (empfohlen) | AN119: 16 | AO119: 0,32
AM120: Altherma 4 H ECH2O 500 8 kW (empfohlen) | AN120: 1 | AO120: 0,4
AM121: Altherma 4 H F 230 8 kW (empfohlen) | AN121: 8 | AO121: 0,41
AM122: Altherma 4 H W 8 kW (empfohlen) | AN122: 15 | AO122: 0,42

Sheet Anleitung

Sheet Hinweis-Texte (hidden)
B3: 1. | C3: Auslegung? | E3: dropdown!
J4: Thema | K4: Ablauf:
C5: =IF(D3="ja","Annahmen:","") ->  | J5: 1. Auslegung | K5: 1. auf Button "Start" drücken, um alles zu resetten (immer)
K6: 2. auf Button "Übertrag Daten" (sofern eine Auslegung getätigt wurde)
C7: =IF(D3="ja","Heizlast","") ->  | E7: dropdown! | K7: 3. (optional) Weitere Informationen hinzufügen, wie Überdimensioniert oder anzahl Badezimmer
C8: =IFERROR(IF(OR($D$7=Hilfstabelle!$A$7,$D$7=""),"",IF(VLOOKUP($D$7,Hilfstabelle!$A$11:$C$16,2,FALSE)=0,"",VLOOKUP($D$7,Hilfstabelle!$A$11:$C$16,2,FALSE))),"") ->  | K8: 4. (optinal) auf Button "Annahmen in Textfelder einfügen" sofern man die Annahmen in die Hinweis-Textfelder haben möchte
C9: =IFERROR(IF(OR($D$7=Hilfstabelle!$A$7,$D$7=""),"",IF(VLOOKUP($D$7,Hilfstabelle!$A$11:$C$16,3,FALSE)=0,"",VLOOKUP($D$7,Hilfstabelle!$A$11:$C$16,3,FALSE))),"") ->  | J9: 2. Hydraulik | K9: 5. (optional) auf Dropdown "Schema vorhanden" auf "ja" oder "ja in veränderter Form" (sofern eins vorhanden - ansonste n leer lassen)
K10: 6. wenn Hydraulik in "veränderter Form": bitte die Bemekrungen zur Anpassung vermerken
C11: Warmwasser | E11: dropdown! | J11: 3. WWB | K11: 7. (optinal) wenn WWB über unseren Speicher erfolgt, dann auf "Ja" klicken
C12: =IF($D$11="ja","Personen","") ->  | J12: 4. baus. Zub. | K12: 8. (optional) zusätzliches bauseitiges Material kann hier mit Dropdown auf "Ja" hinzugefügt werden (sofern notwendig)
C13: =IF($D$11="ja","Badezimmer - optional","") ->  | J13: 5. weitere Hinweise | K13: 9. (optional) zusätzliche Hinweise können hier mit Dropdown auf "Ja" hinzugefügt werden (sofern notwendig)
C14: =IF($D$11="ja","Wohneinheiten - optional","") ->  | J14: 6. Pumpengruppen | K14: 10. (optional) Hinweisetext zwecks Beachtung der Leistungen unserer Sekundärkreispumpen 156075+77 (sofern notwendig)
J15: 7. Hinweistexte in Zwischenablage kopieren | K15: 11. Hinweistexte fürs Artikellistentool = Button "Artikellistentool" / Hinweistexte fürs CRM = Button "CRM" /
C16: Überdimensioniert/Pufferspeicher | E16: dropdown! | K16: Copy der Annahmen (zB für Mail) = Button "Annahmen in Zwischenablage"
J18: 8. Texte Einfügen | K18: 12. in die entsprechende Stelle klicken (z.B. CRM Notes) und strg + v drücken
B19: 2. | C19: Hydraulik: (optinal)
C21: Schema vorhanden? | E21: dropdown!
C22: =IF(OR(D21="nein",D21=""),"","Schema Nr") -> 
C23: =IF($D$21=Hilfstabelle!$A$24,"1. Anpassungs-Bemerkung","") ->  | H23: <-- komplett ausschreiben. Formatierung kommt später
C24: =IF(D23="","","2. Anpassungs-Bemerkung") ->  | H24: <-- komplett ausschreiben. Formatierung kommt später
C25: =IF(D24="","","3. Anpassungs-Bemerkung") ->  | H25: <-- komplett ausschreiben. Formatierung kommt später
C26: =IF(D25="","","4. Anpassungs-Bemerkung") ->  | H26: <-- komplett ausschreiben. Formatierung kommt später
C27: =IF(D26="","","5. Anpassungs-Bemerkung") ->  | H27: <-- komplett ausschreiben. Formatierung kommt später
C28: =IF(D27="","","6. Anpassungs-Bemerkung") ->  | H28: <-- komplett ausschreiben. Formatierung kommt später
B31: 3. | C31: WWB über unseren Speicher? | E31: dropdown!
B34: 4. | C34: Bauseitiges Zubehör notwendig? | E34: dropdown!
C35: (optional)
C36: =IF(D34="Ja","1. Zubehör","") ->  | G36: <-- komplett ausschreiben. Formatierung kommt später
C37: =IF(AND(D36<>"",D34="Ja"),"2. Zubehör","") ->  | G37: <-- komplett ausschreiben. Formatierung kommt später
C38: =IF(AND(D37<>"",D34="Ja"),"3. Zubehör","") ->  | G38: <-- komplett ausschreiben. Formatierung kommt später
C39: =IF(AND(D38<>"",D34="Ja"),"4. Zubehör","") ->  | G39: <-- komplett ausschreiben. Formatierung kommt später
C40: =IF(AND(D39<>"",D34="Ja"),"5. Zubehör","") ->  | G40: <-- komplett ausschreiben. Formatierung kommt später
B43: 5. | C43: Weitere Hinweis-Texte | E43: dropdown!
C44: (optional)
C45: 1. Überschrift
C46: Text | H46: <-- komplett ausschreiben. Formatierung kommt später
C47: 2. Überschrift
C48: Text | H48: <-- komplett ausschreiben. Formatierung kommt später
C49: 3. Überschrift
C50: Text | H50: <-- komplett ausschreiben. Formatierung kommt später
C51: 4. Überschrift
C52: Text | H52: <-- komplett ausschreiben. Formatierung kommt später
C53: 5. Überschrift
C54: Text | H54: <-- komplett ausschreiben. Formatierung kommt später
C56: Unsere Pumpen-Gruppe(n)? | E56: dropdown!

Sheet Textvorbereitung (hidden)
A1: Auslegung | B1: Angebotsvorlage | C1: CRM | N1: CRM | O1: Angebotsvorlage
C2: 1 | E2: ______________________________________________________________________________________________________________ | N2: =IF(E2<>"",1) -> 1
C3: 2
C4: 3 | E4: Informationen zum Angebot:
B5: =IF(AND(SUM($D$1:D4)=0,D5<>""),1,IF(AND(D5<>"",MAX($B$2:B4)>=1),MAX($B$2:B4)+1,"")) -> 1 | C5: =IF(D5="","",MAX($C$2:C4)+1) -> 4 | D5: =IF(E6="","",1) -> 1
B6: =IF(AND(SUM($D$1:D5)=0,D6<>""),1,IF(AND(D6<>"",MAX($B$2:B5)>=1),MAX($B$2:B5)+1,"")) -> 2 | C6: =IF(D6="","",MAX($C$2:C5)+1) -> 5 | D6: =IF(E6="","",1) -> 1 | E6: =IF('Hinweis-Texte'!D3<>"Ja","1. Annahmen/Auslegung: Dieses Angebot wurde nicht auf Grundlage einer von uns","") -> 1. Annahmen/Auslegung: Dieses Angebot wurde nicht auf Grundlage einer von uns
B7: =IF(AND(SUM($D$1:D6)=0,D7<>""),1,IF(AND(D7<>"",MAX($B$2:B6)>=1),MAX($B$2:B6)+1,"")) -> 3 | C7: =IF(D7="","",MAX($C$2:C6)+1) -> 6 | D7: =IF(E7="","",1) -> 1 | E7: =IF('Hinweis-Texte'!D3<>"Ja"," erstellten Auslegung angeboten, sondern nach Kundenwunsch.","") -> erstellten Auslegung angeboten, sondern nach Kundenwunsch.
B8: =IF(AND(SUM($D$1:D7)=0,D8<>""),1,IF(AND(D8<>"",MAX($B$2:B7)>=1),MAX($B$2:B7)+1,"")) -> 4 | C8: =IF(D8="","",MAX($C$2:C7)+1) -> 7 | D8: =IF(E8="","",1) -> 1 | E8: =IF('Hinweis-Texte'!D3<>"Ja"," Die Dimensionierung der Anlage ist bauseits zu prüfen.","") -> Die Dimensionierung der Anlage ist bauseits zu prüfen.
B9: =IF(AND(SUM($D$1:D8)=0,D9<>""),1,IF(AND(D9<>"",MAX($B$2:B8)>=1),MAX($B$2:B8)+1,"")) ->  | C9: =IF(D9="","",MAX($C$2:C8)+1) ->  | D9: =IF(E10="","",1) -> 
A10: =IF(AND(SUM($D$9:D9)>0,D10<>""),1,IF(AND(D10<>"",MAX($A$2:A9)>=1),MAX($A$2:A9)+1,"")) ->  | B10: =IF(AND(SUM($D$1:D9)=0,D10<>""),1,IF(AND(D10<>"",MAX($B$2:B9)>=1),MAX($B$2:B9)+1,"")) ->  | C10: =IF(D10="","",MAX($C$2:C9)+1) ->  | D10: =IF(E10="","",1) ->  | E10: =IF('Hinweis-Texte'!D3="Ja","1. Annahmen/Auslegung: Folgende Annahmen wurden getroffen:","") -> 
A11: =IF(AND(SUM($D$9:D10)=0,D11<>""),1,IF(AND(D11<>"",MAX($A$2:A10)>=1),MAX($A$2:A10)+1,"")) ->  | B11: =IF(AND(SUM($D$1:D10)=0,D11<>""),1,IF(AND(D11<>"",MAX($B$2:B10)>=1),MAX($B$2:B10)+1,"")) ->  | C11: =IF(D11="","",MAX($C$2:C10)+1) ->  | D11: =IF(E11="","",1) ->  | E11: =IF('Hinweis-Texte'!D3="Ja"," Gebäudeheizlast:","") -> 
A12: =IF(AND(SUM($D$9:D11)=0,D12<>""),1,IF(AND(D12<>"",MAX($A$2:A11)>=1),MAX($A$2:A11)+1,"")) ->  | B12: =IF(AND(SUM($D$1:D11)=0,D12<>""),1,IF(AND(D12<>"",MAX($B$2:B11)>=1),MAX($B$2:B11)+1,"")) ->  | C12: =IF(D12="","",MAX($C$2:C11)+1) ->  | D12: =IF(E12="","",1) ->  | E12: =IF('Hinweis-Texte'!D3="Ja",IFERROR(" - "&VLOOKUP('Hinweis-Texte'!D7,Hilfstabelle!A2:B7,2,FALSE),""),"") -> 
A13: =IF(AND(SUM($D$9:D12)=0,D13<>""),1,IF(AND(D13<>"",MAX($A$2:A12)>=1),MAX($A$2:A12)+1,"")) ->  | B13: =IF(AND(SUM($D$1:D12)=0,D13<>""),1,IF(AND(D13<>"",MAX($B$2:B12)>=1),MAX($B$2:B12)+1,"")) ->  | C13: =IF(D13="","",MAX($C$2:C12)+1) ->  | D13: =IF(OR(E13="",E13=0),"",1) ->  | E13: =IF(AND('Hinweis-Texte'!D7=Hilfstabelle!A3,'Hinweis-Texte'!D3="Ja"),IFERROR(" - "&VLOOKUP('Hinweis-Texte'!D7,Hilfstabelle!A2:C7,3,FALSE),""),"") -> 
A14: =IF(AND(SUM($D$9:D13)=0,D14<>""),1,IF(AND(D14<>"",MAX($A$2:A13)>=1),MAX($A$2:A13)+1,"")) ->  | B14: =IF(AND(SUM($D$1:D13)=0,D14<>""),1,IF(AND(D14<>"",MAX($B$2:B13)>=1),MAX($B$2:B13)+1,"")) ->  | C14: =IF(D14="","",MAX($C$2:C13)+1) ->  | D14: =IF(E14="","",D10) ->  | E14: =IF(AND('Hinweis-Texte'!D3="Ja",'Hinweis-Texte'!D11="Ja")," Warmwasserbedarf:","") -> 
A15: =IF(AND(SUM($D$9:D14)=0,D15<>""),1,IF(AND(D15<>"",MAX($A$2:A14)>=1),MAX($A$2:A14)+1,"")) ->  | B15: =IF(AND(SUM($D$1:D14)=0,D15<>""),1,IF(AND(D15<>"",MAX($B$2:B14)>=1),MAX($B$2:B14)+1,"")) ->  | C15: =IF(D15="","",MAX($C$2:C14)+1) ->  | D15: =IF(E15="","",$D$14) ->  | E15: =IF($E$14="",""," - "&'Hinweis-Texte'!D12&" Personen") -> 
A16: =IF(AND(SUM($D$9:D15)=0,D16<>""),1,IF(AND(D16<>"",MAX($A$2:A15)>=1),MAX($A$2:A15)+1,"")) ->  | B16: =IF(AND(SUM($D$1:D15)=0,D16<>""),1,IF(AND(D16<>"",MAX($B$2:B15)>=1),MAX($B$2:B15)+1,"")) ->  | C16: =IF(D16="","",MAX($C$2:C15)+1) ->  | D16: =IF(E16="","",$D$14) ->  | E16: =IF($E$14="","",IF('Hinweis-Texte'!D13=0,""," - "&'Hinweis-Texte'!D13&" Badezimmer")) -> 
A17: =IF(AND(SUM($D$9:D16)=0,D17<>""),1,IF(AND(D17<>"",MAX($A$2:A16)>=1),MAX($A$2:A16)+1,"")) ->  | B17: =IF(AND(SUM($D$1:D16)=0,D17<>""),1,IF(AND(D17<>"",MAX($B$2:B16)>=1),MAX($B$2:B16)+1,"")) ->  | C17: =IF(D17="","",MAX($C$2:C16)+1) ->  | D17: =IF(E17="","",$D$14) ->  | E17: =IF($E$14="","",IF('Hinweis-Texte'!D14=0,""," - "&'Hinweis-Texte'!D14&" Wohneinheiten")) -> 
A19: =IF(AND(SUM($D$9:D18)=0,D19<>""),1,IF(AND(D19<>"",MAX($A$2:A18)>=1),MAX($A$2:A18)+1,"")) ->  | B19: =IF(AND(SUM($D$1:D18)=0,D19<>""),1,IF(AND(D19<>"",MAX($B$2:B18)>=1),MAX($B$2:B18)+1,"")) ->  | C19: =IF(D19="","",MAX($C$2:C18)+1) ->  | D19: =IF(E19="","",1) ->  | E19: =IF('Hinweis-Texte'!D3="Ja"," Die Angaben sowie die Auslegung sind bauseitig auf Richtigkeit zu prüfen!","") -> 
A20: =IF(AND(SUM($D$9:D19)=0,D20<>""),1,IF(AND(D20<>"",MAX($A$2:A19)>=1),MAX($A$2:A19)+1,"")) ->  | B20: =IF(AND(SUM($D$1:D19)=0,D20<>""),1,IF(AND(D20<>"",MAX($B$2:B19)>=1),MAX($B$2:B19)+1,"")) ->  | C20: =IF(D20="","",MAX($C$2:C19)+1) ->  | D20: =IF(E21="","",1) -> 
A21: =IF(AND(SUM($D$9:D20)=0,D21<>""),1,IF(AND(D21<>"",MAX($A$2:A20)>=1),MAX($A$2:A20)+1,"")) ->  | B21: =IF(AND(SUM($D$1:D20)=0,D21<>""),1,IF(AND(D21<>"",MAX($B$2:B20)>=1),MAX($B$2:B20)+1,"")) ->  | C21: =IF(D21="","",MAX($C$2:C20)+1) ->  | D21: =IF(E21="","",1) ->  | E21: =IF('Hinweis-Texte'!D16="ja"," Aufgrund der geringen Heizlast Ihres Gebäudes, empfehlen wir die Installation","") -> 
A22: =IF(AND(SUM($D$9:D21)=0,D22<>""),1,IF(AND(D22<>"",MAX($A$2:A21)>=1),MAX($A$2:A21)+1,"")) ->  | B22: =IF(AND(SUM($D$1:D21)=0,D22<>""),1,IF(AND(D22<>"",MAX($B$2:B21)>=1),MAX($B$2:B21)+1,"")) ->  | C22: =IF(D22="","",MAX($C$2:C21)+1) ->  | D22: =IF(E22="","",1) ->  | E22: =IF('Hinweis-Texte'!D16="ja"," unseres Minipuffers (Artikel-Nr. DE.PREVM6H100).","") -> 
A23: =IF(AND(SUM($D$9:D22)=0,D23<>""),1,IF(AND(D23<>"",MAX($A$2:A22)>=1),MAX($A$2:A22)+1,"")) ->  | B23: =IF(AND(SUM($D$1:D22)=0,D23<>""),1,IF(AND(D23<>"",MAX($B$2:B22)>=1),MAX($B$2:B22)+1,"")) ->  | C23: =IF(D23="","",MAX($C$2:C22)+1) ->  | D23: =IF(E23="","",1) ->  | E23: =IF('Hinweis-Texte'!D16="ja"," Dadurch kann das Takten bei hohen Außentemperaturen reduziert und die","") -> 
A24: =IF(AND(SUM($D$9:D23)=0,D24<>""),1,IF(AND(D24<>"",MAX($A$2:A23)>=1),MAX($A$2:A23)+1,"")) ->  | B24: =IF(AND(SUM($D$1:D23)=0,D24<>""),1,IF(AND(D24<>"",MAX($B$2:B23)>=1),MAX($B$2:B23)+1,"")) ->  | C24: =IF(D24="","",MAX($C$2:C23)+1) ->  | D24: =IF(E24="","",1) ->  | E24: =IF('Hinweis-Texte'!D16="ja"," Effizienz der Wärmepumpe gesteigert werden.","") -> 
B25: =IF(AND(SUM($D$1:D24)=0,D25<>""),1,IF(AND(D25<>"",MAX($B$2:B24)>=1),MAX($B$2:B24)+1,"")) ->  | C25: =IF(D25="","",MAX($C$2:C24)+1) ->  | D25: =IF(E26="","",D26) -> 
B26: =IF(AND(SUM($D$1:D25)=0,D26<>""),1,IF(AND(D26<>"",MAX($B$2:B25)>=1),MAX($B$2:B25)+1,"")) ->  | C26: =IF(D26="","",MAX($C$2:C25)+1) ->  | D26: =IF(OR('Hinweis-Texte'!D21="",'Hinweis-Texte'!D21="Nein"),"",MAX(D4:D24)+1) ->  | E26: =IFERROR(D26&". "&VLOOKUP('Hinweis-Texte'!D21,Hilfstabelle!A23:B25,2,FALSE),"") -> 
B27: =IF(AND(SUM($D$1:D26)=0,D27<>""),1,IF(AND(D27<>"",MAX($B$2:B26)>=1),MAX($B$2:B26)+1,"")) ->  | C27: =IF(D27="","",MAX($C$2:C26)+1) ->  | D27: =IF(E27="","",$D$26) -> 
B28: =IF(AND(SUM($D$1:D27)=0,D28<>""),1,IF(AND(D28<>"",MAX($B$2:B27)>=1),MAX($B$2:B27)+1,"")) ->  | C28: =IF(D28="","",MAX($C$2:C27)+1) ->  | D28: =IF(E28="","",$D$26) ->  | E28: =IF(Hilfstabelle!C60=0,"",Hilfstabelle!C60) -> 
B29: =IF(AND(SUM($D$1:D28)=0,D29<>""),1,IF(AND(D29<>"",MAX($B$2:B28)>=1),MAX($B$2:B28)+1,"")) ->  | C29: =IF(D29="","",MAX($C$2:C28)+1) ->  | E29: =IF(Hilfstabelle!C61=0,"",Hilfstabelle!C61) -> 
B30: =IF(AND(SUM($D$1:D29)=0,D30<>""),1,IF(AND(D30<>"",MAX($B$2:B29)>=1),MAX($B$2:B29)+1,"")) ->  | C30: =IF(D30="","",MAX($C$2:C29)+1) ->  | E30: =IF(Hilfstabelle!C62=0,"",Hilfstabelle!C62) -> 
B31: =IF(AND(SUM($D$1:D30)=0,D31<>""),1,IF(AND(D31<>"",MAX($B$2:B30)>=1),MAX($B$2:B30)+1,"")) ->  | C31: =IF(D31="","",MAX($C$2:C30)+1) ->  | E31: =IF(Hilfstabelle!C63=0,"",Hilfstabelle!C63) -> 
B32: =IF(AND(SUM($D$1:D31)=0,D32<>""),1,IF(AND(D32<>"",MAX($B$2:B31)>=1),MAX($B$2:B31)+1,"")) ->  | C32: =IF(D32="","",MAX($C$2:C31)+1) ->  | E32: =IF(Hilfstabelle!C64=0,"",Hilfstabelle!C64) -> 
B33: =IF(AND(SUM($D$1:D32)=0,D33<>""),1,IF(AND(D33<>"",MAX($B$2:B32)>=1),MAX($B$2:B32)+1,"")) ->  | C33: =IF(D33="","",MAX($C$2:C32)+1) ->  | E33: =IF(Hilfstabelle!C65=0,"",Hilfstabelle!C65) -> 
B34: =IF(AND(SUM($D$1:D33)=0,D34<>""),1,IF(AND(D34<>"",MAX($B$2:B33)>=1),MAX($B$2:B33)+1,"")) ->  | C34: =IF(D34="","",MAX($C$2:C33)+1) ->  | E34: =IF(Hilfstabelle!C66=0,"",Hilfstabelle!C66) -> 
B35: =IF(AND(SUM($D$1:D34)=0,D35<>""),1,IF(AND(D35<>"",MAX($B$2:B34)>=1),MAX($B$2:B34)+1,"")) ->  | C35: =IF(D35="","",MAX($C$2:C34)+1) ->  | E35: =IF(Hilfstabelle!C67=0,"",Hilfstabelle!C67) -> 
B36: =IF(AND(SUM($D$1:D35)=0,D36<>""),1,IF(AND(D36<>"",MAX($B$2:B35)>=1),MAX($B$2:B35)+1,"")) ->  | C36: =IF(D36="","",MAX($C$2:C35)+1) ->  | E36: =IF(Hilfstabelle!C68=0,"",Hilfstabelle!C68) -> 
B37: =IF(AND(SUM($D$1:D36)=0,D37<>""),1,IF(AND(D37<>"",MAX($B$2:B36)>=1),MAX($B$2:B36)+1,"")) ->  | C37: =IF(D37="","",MAX($C$2:C36)+1) ->  | E37: =IF(Hilfstabelle!C69=0,"",Hilfstabelle!C69) -> 
B38: =IF(AND(SUM($D$1:D37)=0,D38<>""),1,IF(AND(D38<>"",MAX($B$2:B37)>=1),MAX($B$2:B37)+1,"")) ->  | C38: =IF(D38="","",MAX($C$2:C37)+1) ->  | E38: =IF(Hilfstabelle!C70=0,"",Hilfstabelle!C70) -> 
B39: =IF(AND(SUM($D$1:D38)=0,D39<>""),1,IF(AND(D39<>"",MAX($B$2:B38)>=1),MAX($B$2:B38)+1,"")) ->  | C39: =IF(D39="","",MAX($C$2:C38)+1) ->  | E39: =IF(Hilfstabelle!C71=0,"",Hilfstabelle!C71) -> 
B40: =IF(AND(SUM($D$1:D39)=0,D40<>""),1,IF(AND(D40<>"",MAX($B$2:B39)>=1),MAX($B$2:B39)+1,"")) ->  | C40: =IF(D40="","",MAX($C$2:C39)+1) ->  | E40: =IF(Hilfstabelle!C72=0,"",Hilfstabelle!C72) -> 
B41: =IF(AND(SUM($D$1:D40)=0,D41<>""),1,IF(AND(D41<>"",MAX($B$2:B40)>=1),MAX($B$2:B40)+1,"")) ->  | C41: =IF(D41="","",MAX($C$2:C40)+1) ->  | E41: =IF(Hilfstabelle!C73=0,"",Hilfstabelle!C73) -> 
B42: =IF(AND(SUM($D$1:D41)=0,D42<>""),1,IF(AND(D42<>"",MAX($B$2:B41)>=1),MAX($B$2:B41)+1,"")) ->  | C42: =IF(D42="","",MAX($C$2:C41)+1) ->  | E42: =IF(Hilfstabelle!C74=0,"",Hilfstabelle!C74) -> 
B43: =IF(AND(SUM($D$1:D42)=0,D43<>""),1,IF(AND(D43<>"",MAX($B$2:B42)>=1),MAX($B$2:B42)+1,"")) ->  | C43: =IF(D43="","",MAX($C$2:C42)+1) ->  | E43: =IF(Hilfstabelle!C75=0,"",Hilfstabelle!C75) -> 
B44: =IF(AND(SUM($D$1:D43)=0,D44<>""),1,IF(AND(D44<>"",MAX($B$2:B43)>=1),MAX($B$2:B43)+1,"")) ->  | C44: =IF(D44="","",MAX($C$2:C43)+1) ->  | E44: =IF(Hilfstabelle!C76=0,"",Hilfstabelle!C76) -> 
B45: =IF(AND(SUM($D$1:D44)=0,D45<>""),1,IF(AND(D45<>"",MAX($B$2:B44)>=1),MAX($B$2:B44)+1,"")) ->  | C45: =IF(D45="","",MAX($C$2:C44)+1) ->  | E45: =IF(Hilfstabelle!C77=0,"",Hilfstabelle!C77) -> 
B46: =IF(AND(SUM($D$1:D45)=0,D46<>""),1,IF(AND(D46<>"",MAX($B$2:B45)>=1),MAX($B$2:B45)+1,"")) ->  | C46: =IF(D46="","",MAX($C$2:C45)+1) ->  | E46: =IF(Hilfstabelle!C78=0,"",Hilfstabelle!C78) -> 
B47: =IF(AND(SUM($D$1:D46)=0,D47<>""),1,IF(AND(D47<>"",MAX($B$2:B46)>=1),MAX($B$2:B46)+1,"")) ->  | C47: =IF(D47="","",MAX($C$2:C46)+1) ->  | E47: =IF(Hilfstabelle!C79=0,"",Hilfstabelle!C79) -> 
B48: =IF(AND(SUM($D$1:D47)=0,D48<>""),1,IF(AND(D48<>"",MAX($B$2:B47)>=1),MAX($B$2:B47)+1,"")) ->  | C48: =IF(D48="","",MAX($C$2:C47)+1) ->  | E48: =IF(Hilfstabelle!C80=0,"",Hilfstabelle!C80) -> 
B49: =IF(AND(SUM($D$1:D48)=0,D49<>""),1,IF(AND(D49<>"",MAX($B$2:B48)>=1),MAX($B$2:B48)+1,"")) ->  | C49: =IF(D49="","",MAX($C$2:C48)+1) ->  | E49: =IF(Hilfstabelle!C81=0,"",Hilfstabelle!C81) -> 
B50: =IF(AND(SUM($D$1:D49)=0,D50<>""),1,IF(AND(D50<>"",MAX($B$2:B49)>=1),MAX($B$2:B49)+1,"")) ->  | C50: =IF(D50="","",MAX($C$2:C49)+1) ->  | E50: =IF(Hilfstabelle!C82=0,"",Hilfstabelle!C82) -> 
B51: =IF(AND(SUM($D$1:D50)=0,D51<>""),1,IF(AND(D51<>"",MAX($B$2:B50)>=1),MAX($B$2:B50)+1,"")) ->  | C51: =IF(D51="","",MAX($C$2:C50)+1) ->  | E51: =IF(Hilfstabelle!C83=0,"",Hilfstabelle!C83) -> 
B52: =IF(AND(SUM($D$1:D51)=0,D52<>""),1,IF(AND(D52<>"",MAX($B$2:B51)>=1),MAX($B$2:B51)+1,"")) ->  | C52: =IF(D52="","",MAX($C$2:C51)+1) ->  | E52: =IF(Hilfstabelle!C84=0,"",Hilfstabelle!C84) -> 
B53: =IF(AND(SUM($D$1:D52)=0,D53<>""),1,IF(AND(D53<>"",MAX($B$2:B52)>=1),MAX($B$2:B52)+1,"")) ->  | C53: =IF(D53="","",MAX($C$2:C52)+1) ->  | E53: =IF(Hilfstabelle!C85=0,"",Hilfstabelle!C85) -> 
B54: =IF(AND(SUM($D$1:D53)=0,D54<>""),1,IF(AND(D54<>"",MAX($B$2:B53)>=1),MAX($B$2:B53)+1,"")) ->  | C54: =IF(D54="","",MAX($C$2:C53)+1) ->  | E54: =IF(Hilfstabelle!C86=0,"",Hilfstabelle!C86) -> 
B55: =IF(AND(SUM($D$1:D54)=0,D55<>""),1,IF(AND(D55<>"",MAX($B$2:B54)>=1),MAX($B$2:B54)+1,"")) ->  | C55: =IF(D55="","",MAX($C$2:C54)+1) ->  | E55: =IF(Hilfstabelle!C87=0,"",Hilfstabelle!C87) -> 
B56: =IF(AND(SUM($D$1:D55)=0,D56<>""),1,IF(AND(D56<>"",MAX($B$2:B55)>=1),MAX($B$2:B55)+1,"")) ->  | C56: =IF(D56="","",MAX($C$2:C55)+1) ->  | E56: =IF(Hilfstabelle!C88=0,"",Hilfstabelle!C88) -> 
B57: =IF(AND(SUM($D$1:D56)=0,D57<>""),1,IF(AND(D57<>"",MAX($B$2:B56)>=1),MAX($B$2:B56)+1,"")) ->  | C57: =IF(D57="","",MAX($C$2:C56)+1) ->  | E57: =IF(Hilfstabelle!C89=0,"",Hilfstabelle!C89) -> 
B58: =IF(AND(SUM($D$1:D57)=0,D58<>""),1,IF(AND(D58<>"",MAX($B$2:B57)>=1),MAX($B$2:B57)+1,"")) ->  | C58: =IF(D58="","",MAX($C$2:C57)+1) ->  | E58: =IF(Hilfstabelle!C90=0,"",Hilfstabelle!C90) -> 
B60: =IF(AND(SUM($D$1:D59)=0,D60<>""),1,IF(AND(D60<>"",MAX($B$2:B59)>=1),MAX($B$2:B59)+1,"")) ->  | C60: =IF(D60="","",MAX($C$2:C59)+1) ->  | D60: =IF(E60="","",$D$26) ->  | E60: =IF(E26<>""," In Anlehnung an dieses Szenario wurden die Materialien ausgewählt.","") -> 
B61: =IF(AND(SUM($D$1:D60)=0,D61<>""),1,IF(AND(D61<>"",MAX($B$2:B60)>=1),MAX($B$2:B60)+1,"")) ->  | C61: =IF(D61="","",MAX($C$2:C60)+1) ->  | D61: =IF(E61="","",$D$26) ->  | E61: =IF(E26<>""," Bitte prüfen!","") -> 
B62: =IF(AND(SUM($D$1:D61)=0,D62<>""),1,IF(AND(D62<>"",MAX($B$2:B61)>=1),MAX($B$2:B61)+1,"")) -> 5 | C62: =IF(D62="","",MAX($C$2:C61)+1) -> 8 | D62: =IF(E63<>"",D63,"") -> 2
B63: =IF(AND(SUM($D$1:D62)=0,D63<>""),1,IF(AND(D63<>"",MAX($B$2:B62)>=1),MAX($B$2:B62)+1,"")) -> 6 | C63: =IF(D63="","",MAX($C$2:C62)+1) -> 9 | D63: =IF(AND('Hinweis-Texte'!D7=Hilfstabelle!A2,'Hinweis-Texte'!D3="Ja"),"",MAX(D8:D61)+1) -> 2 | E63: =IF(AND('Hinweis-Texte'!D7=Hilfstabelle!A2,'Hinweis-Texte'!D3="Ja"),"",IF('Hinweis-Texte'!D3<>"Ja",D63&". Heizlastberechnung: Es ist dringend zu empfehlen eine Heizlastberechnung zu",D63&". Heizlastberechnung: Die Heizlast in der Auslegung wurde nur pauschal ")) -> 2. Heizlastberechnung: Es ist dringend zu empfehlen eine Heizlastberechnung zu
B64: =IF(AND(SUM($D$1:D63)=0,D64<>""),1,IF(AND(D64<>"",MAX($B$2:B63)>=1),MAX($B$2:B63)+1,"")) -> 7 | C64: =IF(D64="","",MAX($C$2:C63)+1) -> 10 | D64: =IF(E64="","",$D$63) -> 2 | E64: =IF(AND('Hinweis-Texte'!D7=Hilfstabelle!A2,'Hinweis-Texte'!D3="Ja"),"",IF('Hinweis-Texte'!D3<>"Ja"," erstellen und diese mit der Leistung der angebotenen Anlage(n) abzugleichen."," berechnet. Daher ist es dringend zu empfehlen die Auslegung mit einer")) -> erstellen und diese mit der Leistung der angebotenen Anlage(n) abzugleichen.
B65: =IF(AND(SUM($D$1:D64)=0,D65<>""),1,IF(AND(D65<>"",MAX($B$2:B64)>=1),MAX($B$2:B64)+1,"")) -> 8 | C65: =IF(D65="","",MAX($C$2:C64)+1) -> 11 | D65: =IF(E65="","",$D$63) -> 2 | E65: =IF(AND('Hinweis-Texte'!D7=Hilfstabelle!A2,'Hinweis-Texte'!D3="Ja"),"",IF('Hinweis-Texte'!D3<>"Ja"," Eine Heizlastberechnung ist ohnehin für den Hydraulischen Abgleich auch"," Heizlastberechnung abzugleichen. Diese ist ohnehin für den Hydraulischen")) -> Eine Heizlastberechnung ist ohnehin für den Hydraulischen Abgleich auch
B66: =IF(AND(SUM($D$1:D65)=0,D66<>""),1,IF(AND(D66<>"",MAX($B$2:B65)>=1),MAX($B$2:B65)+1,"")) -> 9 | C66: =IF(D66="","",MAX($C$2:C65)+1) -> 12 | D66: =IF(E66="","",$D$63) -> 2 | E66: =IF(AND('Hinweis-Texte'!D7=Hilfstabelle!A2,'Hinweis-Texte'!D3="Ja"),"",IF('Hinweis-Texte'!D3<>"Ja"," erforderlich."," Abgleich erforderlich.")) -> erforderlich.
B67: =IF(AND(SUM($D$1:D66)=0,D67<>""),1,IF(AND(D67<>"",MAX($B$2:B66)>=1),MAX($B$2:B66)+1,"")) -> 10 | C67: =IF(D67="","",MAX($C$2:C66)+1) -> 13 | D67: =MAX(D5:D66)+1 -> 3 | T67: =LEN(S67) -> 0
B68: =IF(AND(SUM($D$1:D67)=0,D68<>""),1,IF(AND(D68<>"",MAX($B$2:B67)>=1),MAX($B$2:B67)+1,"")) -> 11 | C68: =IF(D68="","",MAX($C$2:C67)+1) -> 14 | D68: =MAX(D5:D66)+1 -> 3 | E68: =D68&". Schall: ist bauseitig zu prüfen!" -> 3. Schall: ist bauseitig zu prüfen!
B69: =IF(AND(SUM($D$1:D68)=0,D69<>""),1,IF(AND(D69<>"",MAX($B$2:B68)>=1),MAX($B$2:B68)+1,"")) ->  | C69: =IF(D69="","",MAX($C$2:C68)+1) ->  | D69: =D70 -> 
B70: =IF(AND(SUM($D$1:D69)=0,D70<>""),1,IF(AND(D70<>"",MAX($B$2:B69)>=1),MAX($B$2:B69)+1,"")) ->  | C70: =IF(D70="","",MAX($C$2:C69)+1) ->  | D70: =IF('Hinweis-Texte'!D31="Ja",MAX(Textvorbereitung!D51:D68)+1,"") ->  | E70: =IF('Hinweis-Texte'!D31="Ja",D70&". Zapfleistung: ist bauseitig zu prüfen!","") -> 
B71: =IF(AND(SUM($D$1:D70)=0,D71<>""),1,IF(AND(D71<>"",MAX($B$2:B70)>=1),MAX($B$2:B70)+1,"")) -> 12 | C71: =IF(D71="","",MAX($C$2:C70)+1) -> 15 | D71: =MAX(D67:D70)+1 -> 4
B72: =IF(AND(SUM($D$1:D71)=0,D72<>""),1,IF(AND(D72<>"",MAX($B$2:B71)>=1),MAX($B$2:B71)+1,"")) -> 13 | C72: =IF(D72="","",MAX($C$2:C71)+1) -> 16 | D72: =MAX(D67:D70)+1 -> 4 | E72: =D72&". Aufstellorte: Platzbedarfe und Einhaltung unserer sowie gesetzlicher Vorgaben" -> 4. Aufstellorte: Platzbedarfe und Einhaltung unserer sowie gesetzlicher Vorgaben
B73: =IF(AND(SUM($D$1:D72)=0,D73<>""),1,IF(AND(D73<>"",MAX($B$2:B72)>=1),MAX($B$2:B72)+1,"")) -> 14 | C73: =IF(D73="","",MAX($C$2:C72)+1) -> 17 | D73: =D72 -> 4 | E73: =" sind bauseitig zu prüfen!" -> sind bauseitig zu prüfen!
B74: =IF(AND(SUM($D$1:D73)=0,D74<>""),1,IF(AND(D74<>"",MAX($B$2:B73)>=1),MAX($B$2:B73)+1,"")) ->  | C74: =IF(D74="","",MAX($C$2:C73)+1) ->  | D74: =D75 -> 
B75: =IF(AND(SUM($D$1:D74)=0,D75<>""),1,IF(AND(D75<>"",MAX($B$2:B74)>=1),MAX($B$2:B74)+1,"")) ->  | C75: =IF(D75="","",MAX($C$2:C74)+1) ->  | D75: =IF('Hinweis-Texte'!D56="Ja",MAX(D72:D73)+1,"") ->  | E75: =IF('Hinweis-Texte'!D56="Ja",D75&". Sekundärkreispumpe(n): Bitte prüfen Sie die Leistung unserer Pumpengruppe(n)","") -> 
B76: =IF(AND(SUM($D$1:D75)=0,D76<>""),1,IF(AND(D76<>"",MAX($B$2:B75)>=1),MAX($B$2:B75)+1,"")) ->  | C76: =IF(D76="","",MAX($C$2:C75)+1) ->  | D76: =D75 ->  | E76: =IF('Hinweis-Texte'!D56="Ja"," (156075 oder 156077 = 7m Pumpe)","") -> 
B77: =IF(AND(SUM($D$1:D76)=0,D77<>""),1,IF(AND(D77<>"",MAX($B$2:B76)>=1),MAX($B$2:B76)+1,"")) ->  | C77: =IF(D77="","",MAX($C$2:C76)+1) ->  | D77: =D78 -> 
B78: =IF(AND(SUM($D$1:D77)=0,D78<>""),1,IF(AND(D78<>"",MAX($B$2:B77)>=1),MAX($B$2:B77)+1,"")) ->  | C78: =IF(D78="","",MAX($C$2:C77)+1) ->  | D78: =IF(OR('Hinweis-Texte'!D34="Ja",'Hinweis-Texte'!D21=Hilfstabelle!A23,'Hinweis-Texte'!D21=Hilfstabelle!A24),MAX(D53:D76)+1,"") ->  | E78: =IF(OR('Hinweis-Texte'!D34="Ja",'Hinweis-Texte'!D21=Hilfstabelle!A23,'Hinweis-Texte'!D21=Hilfstabelle!A24),Textvorbereitung!D78&". Bauseitig notwendig:","") -> 
B79: =IF(AND(SUM($D$1:D78)=0,D79<>""),1,IF(AND(D79<>"",MAX($B$2:B78)>=1),MAX($B$2:B78)+1,"")) ->  | C79: =IF(D79="","",MAX($C$2:C78)+1) ->  | D79: =IF(E79="","",$D$78) ->  | E79: =IF(Hilfstabelle!D60<>"",Hilfstabelle!D60,"") -> 
B80: =IF(AND(SUM($D$1:D79)=0,D80<>""),1,IF(AND(D80<>"",MAX($B$2:B79)>=1),MAX($B$2:B79)+1,"")) ->  | C80: =IF(D80="","",MAX($C$2:C79)+1) ->  | E80: =IF(Hilfstabelle!D61<>"",Hilfstabelle!D61,"") -> 
B81: =IF(AND(SUM($D$1:D80)=0,D81<>""),1,IF(AND(D81<>"",MAX($B$2:B80)>=1),MAX($B$2:B80)+1,"")) ->  | C81: =IF(D81="","",MAX($C$2:C80)+1) ->  | E81: =IF(Hilfstabelle!D62<>"",Hilfstabelle!D62,"") -> 
B82: =IF(AND(SUM($D$1:D81)=0,D82<>""),1,IF(AND(D82<>"",MAX($B$2:B81)>=1),MAX($B$2:B81)+1,"")) ->  | C82: =IF(D82="","",MAX($C$2:C81)+1) ->  | E82: =IF(Hilfstabelle!D63<>"",Hilfstabelle!D63,"") -> 
B83: =IF(AND(SUM($D$1:D82)=0,D83<>""),1,IF(AND(D83<>"",MAX($B$2:B82)>=1),MAX($B$2:B82)+1,"")) ->  | C83: =IF(D83="","",MAX($C$2:C82)+1) ->  | E83: =IF(Hilfstabelle!D64<>"",Hilfstabelle!D64,"") -> 
B84: =IF(AND(SUM($D$1:D83)=0,D84<>""),1,IF(AND(D84<>"",MAX($B$2:B83)>=1),MAX($B$2:B83)+1,"")) ->  | C84: =IF(D84="","",MAX($C$2:C83)+1) ->  | E84: =IF(Hilfstabelle!D65<>"",Hilfstabelle!D65,"") -> 
B85: =IF(AND(SUM($D$1:D84)=0,D85<>""),1,IF(AND(D85<>"",MAX($B$2:B84)>=1),MAX($B$2:B84)+1,"")) ->  | C85: =IF(D85="","",MAX($C$2:C84)+1) ->  | E85: =IF(Hilfstabelle!D66<>"",Hilfstabelle!D66,"") -> 
B86: =IF(AND(SUM($D$1:D85)=0,D86<>""),1,IF(AND(D86<>"",MAX($B$2:B85)>=1),MAX($B$2:B85)+1,"")) ->  | C86: =IF(D86="","",MAX($C$2:C85)+1) ->  | E86: =IF(Hilfstabelle!D67<>"",Hilfstabelle!D67,"") -> 
B87: =IF(AND(SUM($D$1:D86)=0,D87<>""),1,IF(AND(D87<>"",MAX($B$2:B86)>=1),MAX($B$2:B86)+1,"")) ->  | C87: =IF(D87="","",MAX($C$2:C86)+1) ->  | E87: =IF(Hilfstabelle!D68<>"",Hilfstabelle!D68,"") -> 
B88: =IF(AND(SUM($D$1:D87)=0,D88<>""),1,IF(AND(D88<>"",MAX($B$2:B87)>=1),MAX($B$2:B87)+1,"")) ->  | C88: =IF(D88="","",MAX($C$2:C87)+1) ->  | E88: =IF(Hilfstabelle!D69<>"",Hilfstabelle!D69,"") -> 
B89: =IF(AND(SUM($D$1:D88)=0,D89<>""),1,IF(AND(D89<>"",MAX($B$2:B88)>=1),MAX($B$2:B88)+1,"")) ->  | C89: =IF(D89="","",MAX($C$2:C88)+1) ->  | E89: =IF(Hilfstabelle!D70<>"",Hilfstabelle!D70,"") -> 
B90: =IF(AND(SUM($D$1:D89)=0,D90<>""),1,IF(AND(D90<>"",MAX($B$2:B89)>=1),MAX($B$2:B89)+1,"")) ->  | C90: =IF(D90="","",MAX($C$2:C89)+1) ->  | E90: =IF(Hilfstabelle!D71<>"",Hilfstabelle!D71,"") -> 
B91: =IF(AND(SUM($D$1:D90)=0,D91<>""),1,IF(AND(D91<>"",MAX($B$2:B90)>=1),MAX($B$2:B90)+1,"")) ->  | C91: =IF(D91="","",MAX($C$2:C90)+1) ->  | E91: =IF(Hilfstabelle!D72<>"",Hilfstabelle!D72,"") -> 
B92: =IF(AND(SUM($D$1:D91)=0,D92<>""),1,IF(AND(D92<>"",MAX($B$2:B91)>=1),MAX($B$2:B91)+1,"")) ->  | C92: =IF(D92="","",MAX($C$2:C91)+1) ->  | E92: =IF(Hilfstabelle!D73<>"",Hilfstabelle!D73,"") -> 
B93: =IF(AND(SUM($D$1:D92)=0,D93<>""),1,IF(AND(D93<>"",MAX($B$2:B92)>=1),MAX($B$2:B92)+1,"")) ->  | C93: =IF(D93="","",MAX($C$2:C92)+1) ->  | E93: =IF(Hilfstabelle!D74<>"",Hilfstabelle!D74,"") -> 
B94: =IF(AND(SUM($D$1:D93)=0,D94<>""),1,IF(AND(D94<>"",MAX($B$2:B93)>=1),MAX($B$2:B93)+1,"")) ->  | C94: =IF(D94="","",MAX($C$2:C93)+1) ->  | E94: =IF(Hilfstabelle!D75<>"",Hilfstabelle!D75,"") -> 
B95: =IF(AND(SUM($D$1:D94)=0,D95<>""),1,IF(AND(D95<>"",MAX($B$2:B94)>=1),MAX($B$2:B94)+1,"")) ->  | C95: =IF(D95="","",MAX($C$2:C94)+1) ->  | E95: =IF(Hilfstabelle!D76<>"",Hilfstabelle!D76,"") -> 
B96: =IF(AND(SUM($D$1:D95)=0,D96<>""),1,IF(AND(D96<>"",MAX($B$2:B95)>=1),MAX($B$2:B95)+1,"")) ->  | C96: =IF(D96="","",MAX($C$2:C95)+1) ->  | E96: =IF(Hilfstabelle!D77<>"",Hilfstabelle!D77,"") -> 
B97: =IF(AND(SUM($D$1:D96)=0,D97<>""),1,IF(AND(D97<>"",MAX($B$2:B96)>=1),MAX($B$2:B96)+1,"")) ->  | C97: =IF(D97="","",MAX($C$2:C96)+1) ->  | E97: =IF(Hilfstabelle!D78<>"",Hilfstabelle!D78,"") -> 
B98: =IF(AND(SUM($D$1:D97)=0,D98<>""),1,IF(AND(D98<>"",MAX($B$2:B97)>=1),MAX($B$2:B97)+1,"")) ->  | C98: =IF(D98="","",MAX($C$2:C97)+1) ->  | D98: =D78 ->  | E98: =IF(AND(OR('Hinweis-Texte'!D21="",'Hinweis-Texte'!D21="Nein"),'Hinweis-Texte'!D35=""),"",IF(AND(OR('Hinweis-Texte'!D21=Hilfstabelle!A23,'Hinweis-Texte'!D21=Hilfstabelle!A24),'Hinweis-Texte'!D36="")," - weiteres notwendiges Installationsmaterial, was nicht mit aufgelistet"," - sowie weiteres notwendiges Installationsmaterial, was nicht mit aufgelistet")) -> 
B99: =IF(AND(SUM($D$1:D98)=0,D99<>""),1,IF(AND(D99<>"",MAX($B$2:B98)>=1),MAX($B$2:B98)+1,"")) ->  | C99: =IF(D99="","",MAX($C$2:C98)+1) ->  | D99: =D78 ->  | E99: =IF(AND(OR('Hinweis-Texte'!D21="",'Hinweis-Texte'!D21="Nein"),'Hinweis-Texte'!D35=""),"",IF('Hinweis-Texte'!D35<>""," wurde (siehe Schema)"," wurde (siehe Schema)")) -> 
B100: =IF(AND(SUM($D$1:D99)=0,D100<>""),1,IF(AND(D100<>"",MAX($B$2:B99)>=1),MAX($B$2:B99)+1,"")) ->  | C100: =IF(D100="","",MAX($C$2:C99)+1) ->  | D100: =D101 -> 
B101: =IF(AND(SUM($D$1:D100)=0,D101<>""),1,IF(AND(D101<>"",MAX($B$2:B100)>=1),MAX($B$2:B100)+1,"")) ->  | C101: =IF(D101="","",MAX($C$2:C100)+1) ->  | D101: =IF(Hilfstabelle!E60="","",MAX(D68:D99)+1) ->  | E101: =IF(Hilfstabelle!E60="","",D101&". "&Hilfstabelle!E60) -> 
B102: =IF(AND(SUM($D$1:D101)=0,D102<>""),1,IF(AND(D102<>"",MAX($B$2:B101)>=1),MAX($B$2:B101)+1,"")) ->  | C102: =IF(D102="","",MAX($C$2:C101)+1) ->  | D102: =IF(E102="","",$D$101) ->  | E102: =IF(Hilfstabelle!E61="","",Hilfstabelle!E61) -> 
B103: =IF(AND(SUM($D$1:D102)=0,D103<>""),1,IF(AND(D103<>"",MAX($B$2:B102)>=1),MAX($B$2:B102)+1,"")) ->  | C103: =IF(D103="","",MAX($C$2:C102)+1) ->  | E103: =IF(Hilfstabelle!E62="","",Hilfstabelle!E62) -> 
B104: =IF(AND(SUM($D$1:D103)=0,D104<>""),1,IF(AND(D104<>"",MAX($B$2:B103)>=1),MAX($B$2:B103)+1,"")) ->  | C104: =IF(D104="","",MAX($C$2:C103)+1) ->  | E104: =IF(Hilfstabelle!E63="","",Hilfstabelle!E63) -> 
B105: =IF(AND(SUM($D$1:D104)=0,D105<>""),1,IF(AND(D105<>"",MAX($B$2:B104)>=1),MAX($B$2:B104)+1,"")) ->  | C105: =IF(D105="","",MAX($C$2:C104)+1) ->  | E105: =IF(Hilfstabelle!E64="","",Hilfstabelle!E64) -> 
B106: =IF(AND(SUM($D$1:D105)=0,D106<>""),1,IF(AND(D106<>"",MAX($B$2:B105)>=1),MAX($B$2:B105)+1,"")) ->  | C106: =IF(D106="","",MAX($C$2:C105)+1) ->  | E106: =IF(Hilfstabelle!E65="","",Hilfstabelle!E65) -> 
B107: =IF(AND(SUM($D$1:D106)=0,D107<>""),1,IF(AND(D107<>"",MAX($B$2:B106)>=1),MAX($B$2:B106)+1,"")) ->  | C107: =IF(D107="","",MAX($C$2:C106)+1) ->  | E107: =IF(Hilfstabelle!E66="","",Hilfstabelle!E66) -> 
A108: =IF(AND(SUM($D$9:D107)=0,D108<>""),1,IF(AND(D108<>"",MAX($A$2:A107)>=1),MAX($A$2:A107)+1,"")) ->  | B108: =IF(AND(SUM($D$1:D107)=0,D108<>""),1,IF(AND(D108<>"",MAX($B$2:B107)>=1),MAX($B$2:B107)+1,"")) ->  | C108: =IF(D108="","",MAX($C$2:C107)+1) ->  | E108: =IF(Hilfstabelle!E67="","",Hilfstabelle!E67) -> 
A109: =IF(AND(SUM($D$9:D108)=0,D109<>""),1,IF(AND(D109<>"",MAX($A$2:A108)>=1),MAX($A$2:A108)+1,"")) ->  | B109: =IF(AND(SUM($D$1:D108)=0,D109<>""),1,IF(AND(D109<>"",MAX($B$2:B108)>=1),MAX($B$2:B108)+1,"")) ->  | C109: =IF(D109="","",MAX($C$2:C108)+1) ->  | D109: =D110 -> 
A110: =IF(AND(SUM($D$9:D109)=0,D110<>""),1,IF(AND(D110<>"",MAX($A$2:A109)>=1),MAX($A$2:A109)+1,"")) ->  | B110: =IF(AND(SUM($D$1:D109)=0,D110<>""),1,IF(AND(D110<>"",MAX($B$2:B109)>=1),MAX($B$2:B109)+1,"")) ->  | C110: =IF(D110="","",MAX($C$2:C109)+1) ->  | D110: =IF(Hilfstabelle!F60="","",MAX(D65:D107)+1) ->  | E110: =IF(Hilfstabelle!F60="","",D110&". "&Hilfstabelle!F60) -> 
A111: =IF(AND(SUM($D$9:D110)=0,D111<>""),1,IF(AND(D111<>"",MAX($A$2:A110)>=1),MAX($A$2:A110)+1,"")) ->  | B111: =IF(AND(SUM($D$1:D110)=0,D111<>""),1,IF(AND(D111<>"",MAX($B$2:B110)>=1),MAX($B$2:B110)+1,"")) ->  | C111: =IF(D111="","",MAX($C$2:C110)+1) ->  | D111: =IF(E111="","",$D$110) ->  | E111: =IF(Hilfstabelle!F61="","",Hilfstabelle!F61) -> 
A112: =IF(AND(SUM($D$9:D111)=0,D112<>""),1,IF(AND(D112<>"",MAX($A$2:A111)>=1),MAX($A$2:A111)+1,"")) ->  | B112: =IF(AND(SUM($D$1:D111)=0,D112<>""),1,IF(AND(D112<>"",MAX($B$2:B111)>=1),MAX($B$2:B111)+1,"")) ->  | C112: =IF(D112="","",MAX($C$2:C111)+1) ->  | E112: =IF(Hilfstabelle!F62="","",Hilfstabelle!F62) -> 
A113: =IF(AND(SUM($D$9:D112)=0,D113<>""),1,IF(AND(D113<>"",MAX($A$2:A112)>=1),MAX($A$2:A112)+1,"")) ->  | B113: =IF(AND(SUM($D$1:D112)=0,D113<>""),1,IF(AND(D113<>"",MAX($B$2:B112)>=1),MAX($B$2:B112)+1,"")) ->  | C113: =IF(D113="","",MAX($C$2:C112)+1) ->  | E113: =IF(Hilfstabelle!F63="","",Hilfstabelle!F63) -> 
A114: =IF(AND(SUM($D$9:D113)=0,D114<>""),1,IF(AND(D114<>"",MAX($A$2:A113)>=1),MAX($A$2:A113)+1,"")) ->  | B114: =IF(AND(SUM($D$1:D113)=0,D114<>""),1,IF(AND(D114<>"",MAX($B$2:B113)>=1),MAX($B$2:B113)+1,"")) ->  | C114: =IF(D114="","",MAX($C$2:C113)+1) ->  | E114: =IF(Hilfstabelle!F64="","",Hilfstabelle!F64) -> 
A115: =IF(AND(SUM($D$9:D114)=0,D115<>""),1,IF(AND(D115<>"",MAX($A$2:A114)>=1),MAX($A$2:A114)+1,"")) ->  | B115: =IF(AND(SUM($D$1:D114)=0,D115<>""),1,IF(AND(D115<>"",MAX($B$2:B114)>=1),MAX($B$2:B114)+1,"")) ->  | C115: =IF(D115="","",MAX($C$2:C114)+1) ->  | E115: =IF(Hilfstabelle!F65="","",Hilfstabelle!F65) -> 
A116: =IF(AND(SUM($D$9:D115)=0,D116<>""),1,IF(AND(D116<>"",MAX($A$2:A115)>=1),MAX($A$2:A115)+1,"")) ->  | B116: =IF(AND(SUM($D$1:D115)=0,D116<>""),1,IF(AND(D116<>"",MAX($B$2:B115)>=1),MAX($B$2:B115)+1,"")) ->  | C116: =IF(D116="","",MAX($C$2:C115)+1) ->  | E116: =IF(Hilfstabelle!F66="","",Hilfstabelle!F66) -> 
A117: =IF(AND(SUM($D$9:D116)=0,D117<>""),1,IF(AND(D117<>"",MAX($A$2:A116)>=1),MAX($A$2:A116)+1,"")) ->  | B117: =IF(AND(SUM($D$1:D116)=0,D117<>""),1,IF(AND(D117<>"",MAX($B$2:B116)>=1),MAX($B$2:B116)+1,"")) ->  | C117: =IF(D117="","",MAX($C$2:C116)+1) ->  | E117: =IF(Hilfstabelle!F67="","",Hilfstabelle!F67) -> 
A118: =IF(AND(SUM($D$9:D117)=0,D118<>""),1,IF(AND(D118<>"",MAX($A$2:A117)>=1),MAX($A$2:A117)+1,"")) ->  | B118: =IF(AND(SUM($D$1:D117)=0,D118<>""),1,IF(AND(D118<>"",MAX($B$2:B117)>=1),MAX($B$2:B117)+1,"")) ->  | C118: =IF(D118="","",MAX($C$2:C117)+1) ->  | D118: =D119 -> 
A119: =IF(AND(SUM($D$9:D118)=0,D119<>""),1,IF(AND(D119<>"",MAX($A$2:A118)>=1),MAX($A$2:A118)+1,"")) ->  | B119: =IF(AND(SUM($D$1:D118)=0,D119<>""),1,IF(AND(D119<>"",MAX($B$2:B118)>=1),MAX($B$2:B118)+1,"")) ->  | C119: =IF(D119="","",MAX($C$2:C118)+1) ->  | D119: =IF(Hilfstabelle!G60="","",MAX(D53:D117)+1) ->  | E119: =IF(Hilfstabelle!G60="","",D118&". "&Hilfstabelle!G60) -> 
A120: =IF(AND(SUM($D$9:D119)=0,D120<>""),1,IF(AND(D120<>"",MAX($A$2:A119)>=1),MAX($A$2:A119)+1,"")) ->  | B120: =IF(AND(SUM($D$1:D119)=0,D120<>""),1,IF(AND(D120<>"",MAX($B$2:B119)>=1),MAX($B$2:B119)+1,"")) ->  | C120: =IF(D120="","",MAX($C$2:C119)+1) ->  | D120: =IF(E120="","",$D$119) ->  | E120: =IF(Hilfstabelle!G61="","",Hilfstabelle!G61) -> 
A121: =IF(AND(SUM($D$9:D120)=0,D121<>""),1,IF(AND(D121<>"",MAX($A$2:A120)>=1),MAX($A$2:A120)+1,"")) ->  | B121: =IF(AND(SUM($D$1:D120)=0,D121<>""),1,IF(AND(D121<>"",MAX($B$2:B120)>=1),MAX($B$2:B120)+1,"")) ->  | C121: =IF(D121="","",MAX($C$2:C120)+1) ->  | E121: =IF(Hilfstabelle!G62="","",Hilfstabelle!G62) -> 
A122: =IF(AND(SUM($D$9:D121)=0,D122<>""),1,IF(AND(D122<>"",MAX($A$2:A121)>=1),MAX($A$2:A121)+1,"")) ->  | B122: =IF(AND(SUM($D$1:D121)=0,D122<>""),1,IF(AND(D122<>"",MAX($B$2:B121)>=1),MAX($B$2:B121)+1,"")) ->  | C122: =IF(D122="","",MAX($C$2:C121)+1) ->  | E122: =IF(Hilfstabelle!G63="","",Hilfstabelle!G63) -> 
A123: =IF(AND(SUM($D$9:D122)=0,D123<>""),1,IF(AND(D123<>"",MAX($A$2:A122)>=1),MAX($A$2:A122)+1,"")) ->  | B123: =IF(AND(SUM($D$1:D122)=0,D123<>""),1,IF(AND(D123<>"",MAX($B$2:B122)>=1),MAX($B$2:B122)+1,"")) ->  | C123: =IF(D123="","",MAX($C$2:C122)+1) ->  | E123: =IF(Hilfstabelle!G64="","",Hilfstabelle!G64) -> 
A124: =IF(AND(SUM($D$9:D123)=0,D124<>""),1,IF(AND(D124<>"",MAX($A$2:A123)>=1),MAX($A$2:A123)+1,"")) ->  | B124: =IF(AND(SUM($D$1:D123)=0,D124<>""),1,IF(AND(D124<>"",MAX($B$2:B123)>=1),MAX($B$2:B123)+1,"")) ->  | C124: =IF(D124="","",MAX($C$2:C123)+1) ->  | E124: =IF(Hilfstabelle!G65="","",Hilfstabelle!G65) -> 
A125: =IF(AND(SUM($D$9:D124)=0,D125<>""),1,IF(AND(D125<>"",MAX($A$2:A124)>=1),MAX($A$2:A124)+1,"")) ->  | B125: =IF(AND(SUM($D$1:D124)=0,D125<>""),1,IF(AND(D125<>"",MAX($B$2:B124)>=1),MAX($B$2:B124)+1,"")) ->  | C125: =IF(D125="","",MAX($C$2:C124)+1) ->  | E125: =IF(Hilfstabelle!G66="","",Hilfstabelle!G66) -> 
A126: =IF(AND(SUM($D$9:D125)=0,D126<>""),1,IF(AND(D126<>"",MAX($A$2:A125)>=1),MAX($A$2:A125)+1,"")) ->  | B126: =IF(AND(SUM($D$1:D125)=0,D126<>""),1,IF(AND(D126<>"",MAX($B$2:B125)>=1),MAX($B$2:B125)+1,"")) ->  | C126: =IF(D126="","",MAX($C$2:C125)+1) ->  | E126: =IF(Hilfstabelle!G67="","",Hilfstabelle!G67) -> 
A127: =IF(AND(SUM($D$9:D126)=0,D127<>""),1,IF(AND(D127<>"",MAX($A$2:A126)>=1),MAX($A$2:A126)+1,"")) ->  | B127: =IF(AND(SUM($D$1:D126)=0,D127<>""),1,IF(AND(D127<>"",MAX($B$2:B126)>=1),MAX($B$2:B126)+1,"")) ->  | C127: =IF(D127="","",MAX($C$2:C126)+1) ->  | D127: =D128 -> 
A128: =IF(AND(SUM($D$9:D127)=0,D128<>""),1,IF(AND(D128<>"",MAX($A$2:A127)>=1),MAX($A$2:A127)+1,"")) ->  | B128: =IF(AND(SUM($D$1:D127)=0,D128<>""),1,IF(AND(D128<>"",MAX($B$2:B127)>=1),MAX($B$2:B127)+1,"")) ->  | C128: =IF(D128="","",MAX($C$2:C127)+1) ->  | D128: =IF(Hilfstabelle!H60="","",MAX(D7:D126)+1) ->  | E128: =IF(Hilfstabelle!H60="","",D128&". "&Hilfstabelle!H60) -> 
A129: =IF(AND(SUM($D$9:D128)=0,D129<>""),1,IF(AND(D129<>"",MAX($A$2:A128)>=1),MAX($A$2:A128)+1,"")) ->  | B129: =IF(AND(SUM($D$1:D128)=0,D129<>""),1,IF(AND(D129<>"",MAX($B$2:B128)>=1),MAX($B$2:B128)+1,"")) ->  | C129: =IF(D129="","",MAX($C$2:C128)+1) ->  | D129: =IF(E129="","",$D$128) ->  | E129: =IF(Hilfstabelle!H61="","",Hilfstabelle!H61) -> 
A130: =IF(AND(SUM($D$9:D129)=0,D130<>""),1,IF(AND(D130<>"",MAX($A$2:A129)>=1),MAX($A$2:A129)+1,"")) ->  | B130: =IF(AND(SUM($D$1:D129)=0,D130<>""),1,IF(AND(D130<>"",MAX($B$2:B129)>=1),MAX($B$2:B129)+1,"")) ->  | C130: =IF(D130="","",MAX($C$2:C129)+1) ->  | E130: =IF(Hilfstabelle!H62="","",Hilfstabelle!H62) -> 
A131: =IF(AND(SUM($D$9:D130)=0,D131<>""),1,IF(AND(D131<>"",MAX($A$2:A130)>=1),MAX($A$2:A130)+1,"")) ->  | B131: =IF(AND(SUM($D$1:D130)=0,D131<>""),1,IF(AND(D131<>"",MAX($B$2:B130)>=1),MAX($B$2:B130)+1,"")) ->  | C131: =IF(D131="","",MAX($C$2:C130)+1) ->  | E131: =IF(Hilfstabelle!H63="","",Hilfstabelle!H63) -> 
A132: =IF(AND(SUM($D$9:D131)=0,D132<>""),1,IF(AND(D132<>"",MAX($A$2:A131)>=1),MAX($A$2:A131)+1,"")) ->  | B132: =IF(AND(SUM($D$1:D131)=0,D132<>""),1,IF(AND(D132<>"",MAX($B$2:B131)>=1),MAX($B$2:B131)+1,"")) ->  | C132: =IF(D132="","",MAX($C$2:C131)+1) ->  | E132: =IF(Hilfstabelle!H64="","",Hilfstabelle!H64) -> 
A133: =IF(AND(SUM($D$9:D132)=0,D133<>""),1,IF(AND(D133<>"",MAX($A$2:A132)>=1),MAX($A$2:A132)+1,"")) ->  | B133: =IF(AND(SUM($D$1:D132)=0,D133<>""),1,IF(AND(D133<>"",MAX($B$2:B132)>=1),MAX($B$2:B132)+1,"")) ->  | C133: =IF(D133="","",MAX($C$2:C132)+1) ->  | E133: =IF(Hilfstabelle!H65="","",Hilfstabelle!H65) -> 
A134: =IF(AND(SUM($D$9:D133)=0,D134<>""),1,IF(AND(D134<>"",MAX($A$2:A133)>=1),MAX($A$2:A133)+1,"")) ->  | B134: =IF(AND(SUM($D$1:D133)=0,D134<>""),1,IF(AND(D134<>"",MAX($B$2:B133)>=1),MAX($B$2:B133)+1,"")) ->  | C134: =IF(D134="","",MAX($C$2:C133)+1) ->  | E134: =IF(Hilfstabelle!H66="","",Hilfstabelle!H66) -> 
A135: =IF(AND(SUM($D$9:D134)=0,D135<>""),1,IF(AND(D135<>"",MAX($A$2:A134)>=1),MAX($A$2:A134)+1,"")) ->  | B135: =IF(AND(SUM($D$1:D134)=0,D135<>""),1,IF(AND(D135<>"",MAX($B$2:B134)>=1),MAX($B$2:B134)+1,"")) ->  | C135: =IF(D135="","",MAX($C$2:C134)+1) ->  | E135: =IF(Hilfstabelle!H67="","",Hilfstabelle!H67) -> 
A136: =IF(AND(SUM($D$9:D135)=0,D136<>""),1,IF(AND(D136<>"",MAX($A$2:A135)>=1),MAX($A$2:A135)+1,"")) ->  | B136: =IF(AND(SUM($D$1:D135)=0,D136<>""),1,IF(AND(D136<>"",MAX($B$2:B135)>=1),MAX($B$2:B135)+1,"")) ->  | C136: =IF(D136="","",MAX($C$2:C135)+1) ->  | D136: =D137 -> 
A137: =IF(AND(SUM($D$9:D136)=0,D137<>""),1,IF(AND(D137<>"",MAX($A$2:A136)>=1),MAX($A$2:A136)+1,"")) ->  | B137: =IF(AND(SUM($D$1:D136)=0,D137<>""),1,IF(AND(D137<>"",MAX($B$2:B136)>=1),MAX($B$2:B136)+1,"")) ->  | C137: =IF(D137="","",MAX($C$2:C136)+1) ->  | D137: =IF(Hilfstabelle!I60="","",MAX(D22:D135)+1) ->  | E137: =IF(Hilfstabelle!I60="","",D137&". "&Hilfstabelle!I60) -> 
A138: =IF(AND(SUM($D$9:D137)=0,D138<>""),1,IF(AND(D138<>"",MAX($A$2:A137)>=1),MAX($A$2:A137)+1,"")) ->  | B138: =IF(AND(SUM($D$1:D137)=0,D138<>""),1,IF(AND(D138<>"",MAX($B$2:B137)>=1),MAX($B$2:B137)+1,"")) ->  | C138: =IF(D138="","",MAX($C$2:C137)+1) ->  | D138: =IF(E138="","",$D$137) ->  | E138: =IF(Hilfstabelle!I61="","",Hilfstabelle!I61) -> 
A139: =IF(AND(SUM($D$9:D138)=0,D139<>""),1,IF(AND(D139<>"",MAX($A$2:A138)>=1),MAX($A$2:A138)+1,"")) ->  | B139: =IF(AND(SUM($D$1:D138)=0,D139<>""),1,IF(AND(D139<>"",MAX($B$2:B138)>=1),MAX($B$2:B138)+1,"")) ->  | C139: =IF(D139="","",MAX($C$2:C138)+1) ->  | E139: =IF(Hilfstabelle!I62="","",Hilfstabelle!I62) -> 
A140: =IF(AND(SUM($D$9:D139)=0,D140<>""),1,IF(AND(D140<>"",MAX($A$2:A139)>=1),MAX($A$2:A139)+1,"")) ->  | B140: =IF(AND(SUM($D$1:D139)=0,D140<>""),1,IF(AND(D140<>"",MAX($B$2:B139)>=1),MAX($B$2:B139)+1,"")) ->  | C140: =IF(D140="","",MAX($C$2:C139)+1) ->  | E140: =IF(Hilfstabelle!I63="","",Hilfstabelle!I63) -> 
A141: =IF(AND(SUM($D$9:D140)=0,D141<>""),1,IF(AND(D141<>"",MAX($A$2:A140)>=1),MAX($A$2:A140)+1,"")) ->  | B141: =IF(AND(SUM($D$1:D140)=0,D141<>""),1,IF(AND(D141<>"",MAX($B$2:B140)>=1),MAX($B$2:B140)+1,"")) ->  | C141: =IF(D141="","",MAX($C$2:C140)+1) ->  | E141: =IF(Hilfstabelle!I64="","",Hilfstabelle!I64) -> 
A142: =IF(AND(SUM($D$9:D141)=0,D142<>""),1,IF(AND(D142<>"",MAX($A$2:A141)>=1),MAX($A$2:A141)+1,"")) ->  | B142: =IF(AND(SUM($D$1:D141)=0,D142<>""),1,IF(AND(D142<>"",MAX($B$2:B141)>=1),MAX($B$2:B141)+1,"")) ->  | C142: =IF(D142="","",MAX($C$2:C141)+1) ->  | E142: =IF(Hilfstabelle!I65="","",Hilfstabelle!I65) -> 
A143: =IF(AND(SUM($D$9:D142)=0,D143<>""),1,IF(AND(D143<>"",MAX($A$2:A142)>=1),MAX($A$2:A142)+1,"")) ->  | B143: =IF(AND(SUM($D$1:D142)=0,D143<>""),1,IF(AND(D143<>"",MAX($B$2:B142)>=1),MAX($B$2:B142)+1,"")) ->  | C143: =IF(D143="","",MAX($C$2:C142)+1) ->  | E143: =IF(Hilfstabelle!I66="","",Hilfstabelle!I66) -> 
A144: =IF(AND(SUM($D$9:D143)=0,D144<>""),1,IF(AND(D144<>"",MAX($A$2:A143)>=1),MAX($A$2:A143)+1,"")) ->  | B144: =IF(AND(SUM($D$1:D143)=0,D144<>""),1,IF(AND(D144<>"",MAX($B$2:B143)>=1),MAX($B$2:B143)+1,"")) ->  | C144: =IF(D144="","",MAX($C$2:C143)+1) ->  | E144: =IF(Hilfstabelle!I67="","",Hilfstabelle!I67) -> 
B145: =IF(AND(SUM($D$1:D144)=0,D145<>""),1,IF(AND(D145<>"",MAX($B$2:B144)>=1),MAX($B$2:B144)+1,"")) -> 15 | C145: =IF(D145="","",MAX($C$2:C144)+1) -> 18 | D145: 1
C146: =IF(D146="","",MAX($C$2:C145)+1) -> 19 | D146: 1 | E146: ______________________________________________________________________________________________________________

Sheet CRM Text (hidden)
A1: 1 | B1: =IFERROR(IF(VLOOKUP(A1,Textvorbereitung!$C$2:$E$360,3,FALSE)=0,"",VLOOKUP(A1,Textvorbereitung!$C$2:$E$360,3,FALSE)),"") -> ______________________________________________________________________________________________________________
A2: 2 | B2: =IFERROR(IF(VLOOKUP(A2,Textvorbereitung!$C$2:$E$360,3,FALSE)=0,"",VLOOKUP(A2,Textvorbereitung!$C$2:$E$360,3,FALSE)),"") -> 
A3: =IFERROR(IF(MAX(Textvorbereitung!C:C)+1>'CRM Text'!A2+1,'CRM Text'!A2+1,""),"") -> 3 | B3: =IFERROR(IF(VLOOKUP(A3,Textvorbereitung!$C$2:$E$360,3,FALSE)=0,"",VLOOKUP(A3,Textvorbereitung!$C$2:$E$360,3,FALSE)),"") -> Informationen zum Angebot:
A4: =IFERROR(IF(MAX(Textvorbereitung!C:C)+1>'CRM Text'!A3+1,'CRM Text'!A3+1,""),"") -> 4 | B4: =IFERROR(IF(VLOOKUP(A4,Textvorbereitung!$C$2:$E$360,3,FALSE)=0,"",VLOOKUP(A4,Textvorbereitung!$C$2:$E$360,3,FALSE)),"") -> 
A5: =IFERROR(IF(MAX(Textvorbereitung!C:C)+1>'CRM Text'!A4+1,'CRM Text'!A4+1,""),"") -> 5 | B5: =IFERROR(IF(VLOOKUP(A5,Textvorbereitung!$C$2:$E$360,3,FALSE)=0,"",VLOOKUP(A5,Textvorbereitung!$C$2:$E$360,3,FALSE)),"") -> 1. Annahmen/Auslegung: Dieses Angebot wurde nicht auf Grundlage einer von uns
A6: =IFERROR(IF(MAX(Textvorbereitung!C:C)+1>'CRM Text'!A5+1,'CRM Text'!A5+1,""),"") -> 6 | B6: =IFERROR(IF(VLOOKUP(A6,Textvorbereitung!$C$2:$E$360,3,FALSE)=0,"",VLOOKUP(A6,Textvorbereitung!$C$2:$E$360,3,FALSE)),"") -> erstellten Auslegung angeboten, sondern nach Kundenwunsch.
A7: =IFERROR(IF(MAX(Textvorbereitung!C:C)+1>'CRM Text'!A6+1,'CRM Text'!A6+1,""),"") -> 7 | B7: =IFERROR(IF(VLOOKUP(A7,Textvorbereitung!$C$2:$E$360,3,FALSE)=0,"",VLOOKUP(A7,Textvorbereitung!$C$2:$E$360,3,FALSE)),"") -> Die Dimensionierung der Anlage ist bauseits zu prüfen.
A8: =IFERROR(IF(MAX(Textvorbereitung!C:C)+1>'CRM Text'!A7+1,'CRM Text'!A7+1,""),"") -> 8 | B8: =IFERROR(IF(VLOOKUP(A8,Textvorbereitung!$C$2:$E$360,3,FALSE)=0,"",VLOOKUP(A8,Textvorbereitung!$C$2:$E$360,3,FALSE)),"") -> 
A9: =IFERROR(IF(MAX(Textvorbereitung!C:C)+1>'CRM Text'!A8+1,'CRM Text'!A8+1,""),"") -> 9 | B9: =IFERROR(IF(VLOOKUP(A9,Textvorbereitung!$C$2:$E$360,3,FALSE)=0,"",VLOOKUP(A9,Textvorbereitung!$C$2:$E$360,3,FALSE)),"") -> 2. Heizlastberechnung: Es ist dringend zu empfehlen eine Heizlastberechnung zu
A10: =IFERROR(IF(MAX(Textvorbereitung!C:C)+1>'CRM Text'!A9+1,'CRM Text'!A9+1,""),"") -> 10 | B10: =IFERROR(IF(VLOOKUP(A10,Textvorbereitung!$C$2:$E$360,3,FALSE)=0,"",VLOOKUP(A10,Textvorbereitung!$C$2:$E$360,3,FALSE)),"") -> erstellen und diese mit der Leistung der angebotenen Anlage(n) abzugleichen.
A11: =IFERROR(IF(MAX(Textvorbereitung!C:C)+1>'CRM Text'!A10+1,'CRM Text'!A10+1,""),"") -> 11 | B11: =IFERROR(IF(VLOOKUP(A11,Textvorbereitung!$C$2:$E$360,3,FALSE)=0,"",VLOOKUP(A11,Textvorbereitung!$C$2:$E$360,3,FALSE)),"") -> Eine Heizlastberechnung ist ohnehin für den Hydraulischen Abgleich auch
A12: =IFERROR(IF(MAX(Textvorbereitung!C:C)+1>'CRM Text'!A11+1,'CRM Text'!A11+1,""),"") -> 12 | B12: =IFERROR(IF(VLOOKUP(A12,Textvorbereitung!$C$2:$E$360,3,FALSE)=0,"",VLOOKUP(A12,Textvorbereitung!$C$2:$E$360,3,FALSE)),"") -> erforderlich.
A13: =IFERROR(IF(MAX(Textvorbereitung!C:C)+1>'CRM Text'!A12+1,'CRM Text'!A12+1,""),"") -> 13 | B13: =IFERROR(IF(VLOOKUP(A13,Textvorbereitung!$C$2:$E$360,3,FALSE)=0,"",VLOOKUP(A13,Textvorbereitung!$C$2:$E$360,3,FALSE)),"") -> 
A14: =IFERROR(IF(MAX(Textvorbereitung!C:C)+1>'CRM Text'!A13+1,'CRM Text'!A13+1,""),"") -> 14 | B14: =IFERROR(IF(VLOOKUP(A14,Textvorbereitung!$C$2:$E$360,3,FALSE)=0,"",VLOOKUP(A14,Textvorbereitung!$C$2:$E$360,3,FALSE)),"") -> 3. Schall: ist bauseitig zu prüfen!
A15: =IFERROR(IF(MAX(Textvorbereitung!C:C)+1>'CRM Text'!A14+1,'CRM Text'!A14+1,""),"") -> 15 | B15: =IFERROR(IF(VLOOKUP(A15,Textvorbereitung!$C$2:$E$360,3,FALSE)=0,"",VLOOKUP(A15,Textvorbereitung!$C$2:$E$360,3,FALSE)),"") -> 
A16: =IFERROR(IF(MAX(Textvorbereitung!C:C)+1>'CRM Text'!A15+1,'CRM Text'!A15+1,""),"") -> 16 | B16: =IFERROR(IF(VLOOKUP(A16,Textvorbereitung!$C$2:$E$360,3,FALSE)=0,"",VLOOKUP(A16,Textvorbereitung!$C$2:$E$360,3,FALSE)),"") -> 4. Aufstellorte: Platzbedarfe und Einhaltung unserer sowie gesetzlicher Vorgaben
A17: =IFERROR(IF(MAX(Textvorbereitung!C:C)+1>'CRM Text'!A16+1,'CRM Text'!A16+1,""),"") -> 17 | B17: =IFERROR(IF(VLOOKUP(A17,Textvorbereitung!$C$2:$E$360,3,FALSE)=0,"",VLOOKUP(A17,Textvorbereitung!$C$2:$E$360,3,FALSE)),"") -> sind bauseitig zu prüfen!
A18: =IFERROR(IF(MAX(Textvorbereitung!C:C)+1>'CRM Text'!A17+1,'CRM Text'!A17+1,""),"") -> 18 | B18: =IFERROR(IF(VLOOKUP(A18,Textvorbereitung!$C$2:$E$360,3,FALSE)=0,"",VLOOKUP(A18,Textvorbereitung!$C$2:$E$360,3,FALSE)),"") -> 
A19: =IFERROR(IF(MAX(Textvorbereitung!C:C)+1>'CRM Text'!A18+1,'CRM Text'!A18+1,""),"") -> 19 | B19: =IFERROR(IF(VLOOKUP(A19,Textvorbereitung!$C$2:$E$360,3,FALSE)=0,"",VLOOKUP(A19,Textvorbereitung!$C$2:$E$360,3,FALSE)),"") -> ______________________________________________________________________________________________________________
A20: =IFERROR(IF(MAX(Textvorbereitung!C:C)+1>'CRM Text'!A19+1,'CRM Text'!A19+1,""),"") ->  | B20: =IFERROR(IF(VLOOKUP(A20,Textvorbereitung!$C$2:$E$360,3,FALSE)=0,"",VLOOKUP(A20,Textvorbereitung!$C$2:$E$360,3,FALSE)),"") -> 
A21: =IFERROR(IF(MAX(Textvorbereitung!C:C)+1>'CRM Text'!A20+1,'CRM Text'!A20+1,""),"") ->  | B21: =IFERROR(IF(VLOOKUP(A21,Textvorbereitung!$C$2:$E$360,3,FALSE)=0,"",VLOOKUP(A21,Textvorbereitung!$C$2:$E$360,3,FALSE)),"") -> 
A22: =IFERROR(IF(MAX(Textvorbereitung!C:C)+1>'CRM Text'!A21+1,'CRM Text'!A21+1,""),"") ->  | B22: =IFERROR(IF(VLOOKUP(A22,Textvorbereitung!$C$2:$E$360,3,FALSE)=0,"",VLOOKUP(A22,Textvorbereitung!$C$2:$E$360,3,FALSE)),"") -> 
A23: =IFERROR(IF(MAX(Textvorbereitung!C:C)+1>'CRM Text'!A22+1,'CRM Text'!A22+1,""),"") ->  | B23: =IFERROR(IF(VLOOKUP(A23,Textvorbereitung!$C$2:$E$360,3,FALSE)=0,"",VLOOKUP(A23,Textvorbereitung!$C$2:$E$360,3,FALSE)),"") -> 
A24: =IFERROR(IF(MAX(Textvorbereitung!C:C)+1>'CRM Text'!A23+1,'CRM Text'!A23+1,""),"") ->  | B24: =IFERROR(IF(VLOOKUP(A24,Textvorbereitung!$C$2:$E$360,3,FALSE)=0,"",VLOOKUP(A24,Textvorbereitung!$C$2:$E$360,3,FALSE)),"") -> 
A25: =IFERROR(IF(MAX(Textvorbereitung!C:C)+1>'CRM Text'!A24+1,'CRM Text'!A24+1,""),"") ->  | B25: =IFERROR(IF(VLOOKUP(A25,Textvorbereitung!$C$2:$E$360,3,FALSE)=0,"",VLOOKUP(A25,Textvorbereitung!$C$2:$E$360,3,FALSE)),"") -> 
A26: =IFERROR(IF(MAX(Textvorbereitung!C:C)+1>'CRM Text'!A25+1,'CRM Text'!A25+1,""),"") ->  | B26: =IFERROR(IF(VLOOKUP(A26,Textvorbereitung!$C$2:$E$360,3,FALSE)=0,"",VLOOKUP(A26,Textvorbereitung!$C$2:$E$360,3,FALSE)),"") -> 
A27: =IFERROR(IF(MAX(Textvorbereitung!C:C)+1>'CRM Text'!A26+1,'CRM Text'!A26+1,""),"") ->  | B27: =IFERROR(IF(VLOOKUP(A27,Textvorbereitung!$C$2:$E$360,3,FALSE)=0,"",VLOOKUP(A27,Textvorbereitung!$C$2:$E$360,3,FALSE)),"") -> 
A28: =IFERROR(IF(MAX(Textvorbereitung!C:C)+1>'CRM Text'!A27+1,'CRM Text'!A27+1,""),"") ->  | B28: =IFERROR(IF(VLOOKUP(A28,Textvorbereitung!$C$2:$E$360,3,FALSE)=0,"",VLOOKUP(A28,Textvorbereitung!$C$2:$E$360,3,FALSE)),"") -> 
A29: =IFERROR(IF(MAX(Textvorbereitung!C:C)+1>'CRM Text'!A28+1,'CRM Text'!A28+1,""),"") ->  | B29: =IFERROR(IF(VLOOKUP(A29,Textvorbereitung!$C$2:$E$360,3,FALSE)=0,"",VLOOKUP(A29,Textvorbereitung!$C$2:$E$360,3,FALSE)),"") -> 
A30: =IFERROR(IF(MAX(Textvorbereitung!C:C)+1>'CRM Text'!A29+1,'CRM Text'!A29+1,""),"") ->  | B30: =IFERROR(IF(VLOOKUP(A30,Textvorbereitung!$C$2:$E$360,3,FALSE)=0,"",VLOOKUP(A30,Textvorbereitung!$C$2:$E$360,3,FALSE)),"") -> 
A31: =IFERROR(IF(MAX(Textvorbereitung!C:C)+1>'CRM Text'!A30+1,'CRM Text'!A30+1,""),"") ->  | B31: =IFERROR(IF(VLOOKUP(A31,Textvorbereitung!$C$2:$E$360,3,FALSE)=0,"",VLOOKUP(A31,Textvorbereitung!$C$2:$E$360,3,FALSE)),"") -> 
A32: =IFERROR(IF(MAX(Textvorbereitung!C:C)+1>'CRM Text'!A31+1,'CRM Text'!A31+1,""),"") ->  | B32: =IFERROR(IF(VLOOKUP(A32,Textvorbereitung!$C$2:$E$360,3,FALSE)=0,"",VLOOKUP(A32,Textvorbereitung!$C$2:$E$360,3,FALSE)),"") -> 
A33: =IFERROR(IF(MAX(Textvorbereitung!C:C)+1>'CRM Text'!A32+1,'CRM Text'!A32+1,""),"") ->  | B33: =IFERROR(IF(VLOOKUP(A33,Textvorbereitung!$C$2:$E$360,3,FALSE)=0,"",VLOOKUP(A33,Textvorbereitung!$C$2:$E$360,3,FALSE)),"") -> 
A34: =IFERROR(IF(MAX(Textvorbereitung!C:C)+1>'CRM Text'!A33+1,'CRM Text'!A33+1,""),"") ->  | B34: =IFERROR(IF(VLOOKUP(A34,Textvorbereitung!$C$2:$E$360,3,FALSE)=0,"",VLOOKUP(A34,Textvorbereitung!$C$2:$E$360,3,FALSE)),"") -> 
A35: =IFERROR(IF(MAX(Textvorbereitung!C:C)+1>'CRM Text'!A34+1,'CRM Text'!A34+1,""),"") ->  | B35: =IFERROR(IF(VLOOKUP(A35,Textvorbereitung!$C$2:$E$360,3,FALSE)=0,"",VLOOKUP(A35,Textvorbereitung!$C$2:$E$360,3,FALSE)),"") -> 
A36: =IFERROR(IF(MAX(Textvorbereitung!C:C)+1>'CRM Text'!A35+1,'CRM Text'!A35+1,""),"") ->  | B36: =IFERROR(IF(VLOOKUP(A36,Textvorbereitung!$C$2:$E$360,3,FALSE)=0,"",VLOOKUP(A36,Textvorbereitung!$C$2:$E$360,3,FALSE)),"") -> 
A37: =IFERROR(IF(MAX(Textvorbereitung!C:C)+1>'CRM Text'!A36+1,'CRM Text'!A36+1,""),"") ->  | B37: =IFERROR(IF(VLOOKUP(A37,Textvorbereitung!$C$2:$E$360,3,FALSE)=0,"",VLOOKUP(A37,Textvorbereitung!$C$2:$E$360,3,FALSE)),"") -> 
A38: =IFERROR(IF(MAX(Textvorbereitung!C:C)+1>'CRM Text'!A37+1,'CRM Text'!A37+1,""),"") ->  | B38: =IFERROR(IF(VLOOKUP(A38,Textvorbereitung!$C$2:$E$360,3,FALSE)=0,"",VLOOKUP(A38,Textvorbereitung!$C$2:$E$360,3,FALSE)),"") -> 
A39: =IFERROR(IF(MAX(Textvorbereitung!C:C)+1>'CRM Text'!A38+1,'CRM Text'!A38+1,""),"") ->  | B39: =IFERROR(IF(VLOOKUP(A39,Textvorbereitung!$C$2:$E$360,3,FALSE)=0,"",VLOOKUP(A39,Textvorbereitung!$C$2:$E$360,3,FALSE)),"") -> 
A40: =IFERROR(IF(MAX(Textvorbereitung!C:C)+1>'CRM Text'!A39+1,'CRM Text'!A39+1,""),"") ->  | B40: =IFERROR(IF(VLOOKUP(A40,Textvorbereitung!$C$2:$E$360,3,FALSE)=0,"",VLOOKUP(A40,Textvorbereitung!$C$2:$E$360,3,FALSE)),"") -> 
A41: =IFERROR(IF(MAX(Textvorbereitung!C:C)+1>'CRM Text'!A40+1,'CRM Text'!A40+1,""),"") ->  | B41: =IFERROR(IF(VLOOKUP(A41,Textvorbereitung!$C$2:$E$360,3,FALSE)=0,"",VLOOKUP(A41,Textvorbereitung!$C$2:$E$360,3,FALSE)),"") -> 
A42: =IFERROR(IF(MAX(Textvorbereitung!C:C)+1>'CRM Text'!A41+1,'CRM Text'!A41+1,""),"") ->  | B42: =IFERROR(IF(VLOOKUP(A42,Textvorbereitung!$C$2:$E$360,3,FALSE)=0,"",VLOOKUP(A42,Textvorbereitung!$C$2:$E$360,3,FALSE)),"") -> 
A43: =IFERROR(IF(MAX(Textvorbereitung!C:C)+1>'CRM Text'!A42+1,'CRM Text'!A42+1,""),"") ->  | B43: =IFERROR(IF(VLOOKUP(A43,Textvorbereitung!$C$2:$E$360,3,FALSE)=0,"",VLOOKUP(A43,Textvorbereitung!$C$2:$E$360,3,FALSE)),"") -> 
A44: =IFERROR(IF(MAX(Textvorbereitung!C:C)+1>'CRM Text'!A43+1,'CRM Text'!A43+1,""),"") ->  | B44: =IFERROR(IF(VLOOKUP(A44,Textvorbereitung!$C$2:$E$360,3,FALSE)=0,"",VLOOKUP(A44,Textvorbereitung!$C$2:$E$360,3,FALSE)),"") -> 
A45: =IFERROR(IF(MAX(Textvorbereitung!C:C)+1>'CRM Text'!A44+1,'CRM Text'!A44+1,""),"") ->  | B45: =IFERROR(IF(VLOOKUP(A45,Textvorbereitung!$C$2:$E$360,3,FALSE)=0,"",VLOOKUP(A45,Textvorbereitung!$C$2:$E$360,3,FALSE)),"") -> 
A46: =IFERROR(IF(MAX(Textvorbereitung!C:C)+1>'CRM Text'!A45+1,'CRM Text'!A45+1,""),"") ->  | B46: =IFERROR(IF(VLOOKUP(A46,Textvorbereitung!$C$2:$E$360,3,FALSE)=0,"",VLOOKUP(A46,Textvorbereitung!$C$2:$E$360,3,FALSE)),"") -> 
A47: =IFERROR(IF(MAX(Textvorbereitung!C:C)+1>'CRM Text'!A46+1,'CRM Text'!A46+1,""),"") ->  | B47: =IFERROR(IF(VLOOKUP(A47,Textvorbereitung!$C$2:$E$360,3,FALSE)=0,"",VLOOKUP(A47,Textvorbereitung!$C$2:$E$360,3,FALSE)),"") -> 
A48: =IFERROR(IF(MAX(Textvorbereitung!C:C)+1>'CRM Text'!A47+1,'CRM Text'!A47+1,""),"") ->  | B48: =IFERROR(IF(VLOOKUP(A48,Textvorbereitung!$C$2:$E$360,3,FALSE)=0,"",VLOOKUP(A48,Textvorbereitung!$C$2:$E$360,3,FALSE)),"") -> 
A49: =IFERROR(IF(MAX(Textvorbereitung!C:C)+1>'CRM Text'!A48+1,'CRM Text'!A48+1,""),"") ->  | B49: =IFERROR(IF(VLOOKUP(A49,Textvorbereitung!$C$2:$E$360,3,FALSE)=0,"",VLOOKUP(A49,Textvorbereitung!$C$2:$E$360,3,FALSE)),"") -> 
A50: =IFERROR(IF(MAX(Textvorbereitung!C:C)+1>'CRM Text'!A49+1,'CRM Text'!A49+1,""),"") ->  | B50: =IFERROR(IF(VLOOKUP(A50,Textvorbereitung!$C$2:$E$360,3,FALSE)=0,"",VLOOKUP(A50,Textvorbereitung!$C$2:$E$360,3,FALSE)),"") -> 
A51: =IFERROR(IF(MAX(Textvorbereitung!C:C)+1>'CRM Text'!A50+1,'CRM Text'!A50+1,""),"") ->  | B51: =IFERROR(IF(VLOOKUP(A51,Textvorbereitung!$C$2:$E$360,3,FALSE)=0,"",VLOOKUP(A51,Textvorbereitung!$C$2:$E$360,3,FALSE)),"") -> 
A52: =IFERROR(IF(MAX(Textvorbereitung!C:C)+1>'CRM Text'!A51+1,'CRM Text'!A51+1,""),"") ->  | B52: =IFERROR(IF(VLOOKUP(A52,Textvorbereitung!$C$2:$E$360,3,FALSE)=0,"",VLOOKUP(A52,Textvorbereitung!$C$2:$E$360,3,FALSE)),"") -> 
A53: =IFERROR(IF(MAX(Textvorbereitung!C:C)+1>'CRM Text'!A52+1,'CRM Text'!A52+1,""),"") ->  | B53: =IFERROR(IF(VLOOKUP(A53,Textvorbereitung!$C$2:$E$360,3,FALSE)=0,"",VLOOKUP(A53,Textvorbereitung!$C$2:$E$360,3,FALSE)),"") -> 
A54: =IFERROR(IF(MAX(Textvorbereitung!C:C)+1>'CRM Text'!A53+1,'CRM Text'!A53+1,""),"") ->  | B54: =IFERROR(IF(VLOOKUP(A54,Textvorbereitung!$C$2:$E$360,3,FALSE)=0,"",VLOOKUP(A54,Textvorbereitung!$C$2:$E$360,3,FALSE)),"") -> 
A55: =IFERROR(IF(MAX(Textvorbereitung!C:C)+1>'CRM Text'!A54+1,'CRM Text'!A54+1,""),"") ->  | B55: =IFERROR(IF(VLOOKUP(A55,Textvorbereitung!$C$2:$E$360,3,FALSE)=0,"",VLOOKUP(A55,Textvorbereitung!$C$2:$E$360,3,FALSE)),"") -> 
A56: =IFERROR(IF(MAX(Textvorbereitung!C:C)+1>'CRM Text'!A55+1,'CRM Text'!A55+1,""),"") ->  | B56: =IFERROR(IF(VLOOKUP(A56,Textvorbereitung!$C$2:$E$360,3,FALSE)=0,"",VLOOKUP(A56,Textvorbereitung!$C$2:$E$360,3,FALSE)),"") -> 
A57: =IFERROR(IF(MAX(Textvorbereitung!C:C)+1>'CRM Text'!A56+1,'CRM Text'!A56+1,""),"") ->  | B57: =IFERROR(IF(VLOOKUP(A57,Textvorbereitung!$C$2:$E$360,3,FALSE)=0,"",VLOOKUP(A57,Textvorbereitung!$C$2:$E$360,3,FALSE)),"") -> 
A58: =IFERROR(IF(MAX(Textvorbereitung!C:C)+1>'CRM Text'!A57+1,'CRM Text'!A57+1,""),"") ->  | B58: =IFERROR(IF(VLOOKUP(A58,Textvorbereitung!$C$2:$E$360,3,FALSE)=0,"",VLOOKUP(A58,Textvorbereitung!$C$2:$E$360,3,FALSE)),"") -> 
A59: =IFERROR(IF(MAX(Textvorbereitung!C:C)+1>'CRM Text'!A58+1,'CRM Text'!A58+1,""),"") ->  | B59: =IFERROR(IF(VLOOKUP(A59,Textvorbereitung!$C$2:$E$360,3,FALSE)=0,"",VLOOKUP(A59,Textvorbereitung!$C$2:$E$360,3,FALSE)),"") -> 
A60: =IFERROR(IF(MAX(Textvorbereitung!C:C)+1>'CRM Text'!A59+1,'CRM Text'!A59+1,""),"") ->  | B60: =IFERROR(IF(VLOOKUP(A60,Textvorbereitung!$C$2:$E$360,3,FALSE)=0,"",VLOOKUP(A60,Textvorbereitung!$C$2:$E$360,3,FALSE)),"") -> 
A61: =IFERROR(IF(MAX(Textvorbereitung!C:C)+1>'CRM Text'!A60+1,'CRM Text'!A60+1,""),"") ->  | B61: =IFERROR(IF(VLOOKUP(A61,Textvorbereitung!$C$2:$E$360,3,FALSE)=0,"",VLOOKUP(A61,Textvorbereitung!$C$2:$E$360,3,FALSE)),"") -> 
A62: =IFERROR(IF(MAX(Textvorbereitung!C:C)+1>'CRM Text'!A61+1,'CRM Text'!A61+1,""),"") ->  | B62: =IFERROR(IF(VLOOKUP(A62,Textvorbereitung!$C$2:$E$360,3,FALSE)=0,"",VLOOKUP(A62,Textvorbereitung!$C$2:$E$360,3,FALSE)),"") -> 
A63: =IFERROR(IF(MAX(Textvorbereitung!C:C)+1>'CRM Text'!A62+1,'CRM Text'!A62+1,""),"") ->  | B63: =IFERROR(IF(VLOOKUP(A63,Textvorbereitung!$C$2:$E$360,3,FALSE)=0,"",VLOOKUP(A63,Textvorbereitung!$C$2:$E$360,3,FALSE)),"") -> 
A64: =IFERROR(IF(MAX(Textvorbereitung!C:C)+1>'CRM Text'!A63+1,'CRM Text'!A63+1,""),"") ->  | B64: =IFERROR(IF(VLOOKUP(A64,Textvorbereitung!$C$2:$E$360,3,FALSE)=0,"",VLOOKUP(A64,Textvorbereitung!$C$2:$E$360,3,FALSE)),"") -> 
A65: =IFERROR(IF(MAX(Textvorbereitung!C:C)+1>'CRM Text'!A64+1,'CRM Text'!A64+1,""),"") ->  | B65: =IFERROR(IF(VLOOKUP(A65,Textvorbereitung!$C$2:$E$360,3,FALSE)=0,"",VLOOKUP(A65,Textvorbereitung!$C$2:$E$360,3,FALSE)),"") -> 
A66: =IFERROR(IF(MAX(Textvorbereitung!C:C)+1>'CRM Text'!A65+1,'CRM Text'!A65+1,""),"") ->  | B66: =IFERROR(IF(VLOOKUP(A66,Textvorbereitung!$C$2:$E$360,3,FALSE)=0,"",VLOOKUP(A66,Textvorbereitung!$C$2:$E$360,3,FALSE)),"") -> 
A67: =IFERROR(IF(MAX(Textvorbereitung!C:C)+1>'CRM Text'!A66+1,'CRM Text'!A66+1,""),"") ->  | B67: =IFERROR(IF(VLOOKUP(A67,Textvorbereitung!$C$2:$E$360,3,FALSE)=0,"",VLOOKUP(A67,Textvorbereitung!$C$2:$E$360,3,FALSE)),"") -> 
A68: =IFERROR(IF(MAX(Textvorbereitung!C:C)+1>'CRM Text'!A67+1,'CRM Text'!A67+1,""),"") ->  | B68: =IFERROR(IF(VLOOKUP(A68,Textvorbereitung!$C$2:$E$360,3,FALSE)=0,"",VLOOKUP(A68,Textvorbereitung!$C$2:$E$360,3,FALSE)),"") -> 
A69: =IFERROR(IF(MAX(Textvorbereitung!C:C)+1>'CRM Text'!A68+1,'CRM Text'!A68+1,""),"") ->  | B69: =IFERROR(IF(VLOOKUP(A69,Textvorbereitung!$C$2:$E$360,3,FALSE)=0,"",VLOOKUP(A69,Textvorbereitung!$C$2:$E$360,3,FALSE)),"") -> 
A70: =IFERROR(IF(MAX(Textvorbereitung!C:C)+1>'CRM Text'!A69+1,'CRM Text'!A69+1,""),"") ->  | B70: =IFERROR(IF(VLOOKUP(A70,Textvorbereitung!$C$2:$E$360,3,FALSE)=0,"",VLOOKUP(A70,Textvorbereitung!$C$2:$E$360,3,FALSE)),"") -> 
A71: =IFERROR(IF(MAX(Textvorbereitung!C:C)+1>'CRM Text'!A70+1,'CRM Text'!A70+1,""),"") ->  | B71: =IFERROR(IF(VLOOKUP(A71,Textvorbereitung!$C$2:$E$360,3,FALSE)=0,"",VLOOKUP(A71,Textvorbereitung!$C$2:$E$360,3,FALSE)),"") -> 
A72: =IFERROR(IF(MAX(Textvorbereitung!C:C)+1>'CRM Text'!A71+1,'CRM Text'!A71+1,""),"") ->  | B72: =IFERROR(IF(VLOOKUP(A72,Textvorbereitung!$C$2:$E$360,3,FALSE)=0,"",VLOOKUP(A72,Textvorbereitung!$C$2:$E$360,3,FALSE)),"") -> 
A73: =IFERROR(IF(MAX(Textvorbereitung!C:C)+1>'CRM Text'!A72+1,'CRM Text'!A72+1,""),"") ->  | B73: =IFERROR(IF(VLOOKUP(A73,Textvorbereitung!$C$2:$E$360,3,FALSE)=0,"",VLOOKUP(A73,Textvorbereitung!$C$2:$E$360,3,FALSE)),"") -> 
A74: =IFERROR(IF(MAX(Textvorbereitung!C:C)+1>'CRM Text'!A73+1,'CRM Text'!A73+1,""),"") ->  | B74: =IFERROR(IF(VLOOKUP(A74,Textvorbereitung!$C$2:$E$360,3,FALSE)=0,"",VLOOKUP(A74,Textvorbereitung!$C$2:$E$360,3,FALSE)),"") -> 
A75: =IFERROR(IF(MAX(Textvorbereitung!C:C)+1>'CRM Text'!A74+1,'CRM Text'!A74+1,""),"") ->  | B75: =IFERROR(IF(VLOOKUP(A75,Textvorbereitung!$C$2:$E$360,3,FALSE)=0,"",VLOOKUP(A75,Textvorbereitung!$C$2:$E$360,3,FALSE)),"") -> 
A76: =IFERROR(IF(MAX(Textvorbereitung!C:C)+1>'CRM Text'!A75+1,'CRM Text'!A75+1,""),"") ->  | B76: =IFERROR(IF(VLOOKUP(A76,Textvorbereitung!$C$2:$E$360,3,FALSE)=0,"",VLOOKUP(A76,Textvorbereitung!$C$2:$E$360,3,FALSE)),"") -> 
A77: =IFERROR(IF(MAX(Textvorbereitung!C:C)+1>'CRM Text'!A76+1,'CRM Text'!A76+1,""),"") ->  | B77: =IFERROR(IF(VLOOKUP(A77,Textvorbereitung!$C$2:$E$360,3,FALSE)=0,"",VLOOKUP(A77,Textvorbereitung!$C$2:$E$360,3,FALSE)),"") -> 
A78: =IFERROR(IF(MAX(Textvorbereitung!C:C)+1>'CRM Text'!A77+1,'CRM Text'!A77+1,""),"") ->  | B78: =IFERROR(IF(VLOOKUP(A78,Textvorbereitung!$C$2:$E$360,3,FALSE)=0,"",VLOOKUP(A78,Textvorbereitung!$C$2:$E$360,3,FALSE)),"") -> 
A79: =IFERROR(IF(MAX(Textvorbereitung!C:C)+1>'CRM Text'!A78+1,'CRM Text'!A78+1,""),"") ->  | B79: =IFERROR(IF(VLOOKUP(A79,Textvorbereitung!$C$2:$E$360,3,FALSE)=0,"",VLOOKUP(A79,Textvorbereitung!$C$2:$E$360,3,FALSE)),"") -> 
A80: =IFERROR(IF(MAX(Textvorbereitung!C:C)+1>'CRM Text'!A79+1,'CRM Text'!A79+1,""),"") ->  | B80: =IFERROR(IF(VLOOKUP(A80,Textvorbereitung!$C$2:$E$360,3,FALSE)=0,"",VLOOKUP(A80,Textvorbereitung!$C$2:$E$360,3,FALSE)),"") -> 
A81: =IFERROR(IF(MAX(Textvorbereitung!C:C)+1>'CRM Text'!A80+1,'CRM Text'!A80+1,""),"") ->  | B81: =IFERROR(IF(VLOOKUP(A81,Textvorbereitung!$C$2:$E$360,3,FALSE)=0,"",VLOOKUP(A81,Textvorbereitung!$C$2:$E$360,3,FALSE)),"") -> 
A82: =IFERROR(IF(MAX(Textvorbereitung!C:C)+1>'CRM Text'!A81+1,'CRM Text'!A81+1,""),"") ->  | B82: =IFERROR(IF(VLOOKUP(A82,Textvorbereitung!$C$2:$E$360,3,FALSE)=0,"",VLOOKUP(A82,Textvorbereitung!$C$2:$E$360,3,FALSE)),"") -> 
A83: =IFERROR(IF(MAX(Textvorbereitung!C:C)+1>'CRM Text'!A82+1,'CRM Text'!A82+1,""),"") ->  | B83: =IFERROR(IF(VLOOKUP(A83,Textvorbereitung!$C$2:$E$360,3,FALSE)=0,"",VLOOKUP(A83,Textvorbereitung!$C$2:$E$360,3,FALSE)),"") -> 
A84: =IFERROR(IF(MAX(Textvorbereitung!C:C)+1>'CRM Text'!A83+1,'CRM Text'!A83+1,""),"") ->  | B84: =IFERROR(IF(VLOOKUP(A84,Textvorbereitung!$C$2:$E$360,3,FALSE)=0,"",VLOOKUP(A84,Textvorbereitung!$C$2:$E$360,3,FALSE)),"") -> 
A85: =IFERROR(IF(MAX(Textvorbereitung!C:C)+1>'CRM Text'!A84+1,'CRM Text'!A84+1,""),"") ->  | B85: =IFERROR(IF(VLOOKUP(A85,Textvorbereitung!$C$2:$E$360,3,FALSE)=0,"",VLOOKUP(A85,Textvorbereitung!$C$2:$E$360,3,FALSE)),"") -> 
A86: =IFERROR(IF(MAX(Textvorbereitung!C:C)+1>'CRM Text'!A85+1,'CRM Text'!A85+1,""),"") ->  | B86: =IFERROR(IF(VLOOKUP(A86,Textvorbereitung!$C$2:$E$360,3,FALSE)=0,"",VLOOKUP(A86,Textvorbereitung!$C$2:$E$360,3,FALSE)),"") -> 
A87: =IFERROR(IF(MAX(Textvorbereitung!C:C)+1>'CRM Text'!A86+1,'CRM Text'!A86+1,""),"") ->  | B87: =IFERROR(IF(VLOOKUP(A87,Textvorbereitung!$C$2:$E$360,3,FALSE)=0,"",VLOOKUP(A87,Textvorbereitung!$C$2:$E$360,3,FALSE)),"") -> 
A88: =IFERROR(IF(MAX(Textvorbereitung!C:C)+1>'CRM Text'!A87+1,'CRM Text'!A87+1,""),"") ->  | B88: =IFERROR(IF(VLOOKUP(A88,Textvorbereitung!$C$2:$E$360,3,FALSE)=0,"",VLOOKUP(A88,Textvorbereitung!$C$2:$E$360,3,FALSE)),"") -> 
A89: =IFERROR(IF(MAX(Textvorbereitung!C:C)+1>'CRM Text'!A88+1,'CRM Text'!A88+1,""),"") ->  | B89: =IFERROR(IF(VLOOKUP(A89,Textvorbereitung!$C$2:$E$360,3,FALSE)=0,"",VLOOKUP(A89,Textvorbereitung!$C$2:$E$360,3,FALSE)),"") -> 
A90: =IFERROR(IF(MAX(Textvorbereitung!C:C)+1>'CRM Text'!A89+1,'CRM Text'!A89+1,""),"") ->  | B90: =IFERROR(IF(VLOOKUP(A90,Textvorbereitung!$C$2:$E$360,3,FALSE)=0,"",VLOOKUP(A90,Textvorbereitung!$C$2:$E$360,3,FALSE)),"") -> 
A91: =IFERROR(IF(MAX(Textvorbereitung!C:C)+1>'CRM Text'!A90+1,'CRM Text'!A90+1,""),"") ->  | B91: =IFERROR(IF(VLOOKUP(A91,Textvorbereitung!$C$2:$E$360,3,FALSE)=0,"",VLOOKUP(A91,Textvorbereitung!$C$2:$E$360,3,FALSE)),"") -> 
A92: =IFERROR(IF(MAX(Textvorbereitung!C:C)+1>'CRM Text'!A91+1,'CRM Text'!A91+1,""),"") ->  | B92: =IFERROR(IF(VLOOKUP(A92,Textvorbereitung!$C$2:$E$360,3,FALSE)=0,"",VLOOKUP(A92,Textvorbereitung!$C$2:$E$360,3,FALSE)),"") -> 
A93: =IFERROR(IF(MAX(Textvorbereitung!C:C)+1>'CRM Text'!A92+1,'CRM Text'!A92+1,""),"") ->  | B93: =IFERROR(IF(VLOOKUP(A93,Textvorbereitung!$C$2:$E$360,3,FALSE)=0,"",VLOOKUP(A93,Textvorbereitung!$C$2:$E$360,3,FALSE)),"") -> 
A94: =IFERROR(IF(MAX(Textvorbereitung!C:C)+1>'CRM Text'!A93+1,'CRM Text'!A93+1,""),"") ->  | B94: =IFERROR(IF(VLOOKUP(A94,Textvorbereitung!$C$2:$E$360,3,FALSE)=0,"",VLOOKUP(A94,Textvorbereitung!$C$2:$E$360,3,FALSE)),"") -> 
A95: =IFERROR(IF(MAX(Textvorbereitung!C:C)+1>'CRM Text'!A94+1,'CRM Text'!A94+1,""),"") ->  | B95: =IFERROR(IF(VLOOKUP(A95,Textvorbereitung!$C$2:$E$360,3,FALSE)=0,"",VLOOKUP(A95,Textvorbereitung!$C$2:$E$360,3,FALSE)),"") -> 
A96: =IFERROR(IF(MAX(Textvorbereitung!C:C)+1>'CRM Text'!A95+1,'CRM Text'!A95+1,""),"") ->  | B96: =IFERROR(IF(VLOOKUP(A96,Textvorbereitung!$C$2:$E$360,3,FALSE)=0,"",VLOOKUP(A96,Textvorbereitung!$C$2:$E$360,3,FALSE)),"") -> 
A97: =IFERROR(IF(MAX(Textvorbereitung!C:C)+1>'CRM Text'!A96+1,'CRM Text'!A96+1,""),"") ->  | B97: =IFERROR(IF(VLOOKUP(A97,Textvorbereitung!$C$2:$E$360,3,FALSE)=0,"",VLOOKUP(A97,Textvorbereitung!$C$2:$E$360,3,FALSE)),"") -> 
A98: =IFERROR(IF(MAX(Textvorbereitung!C:C)+1>'CRM Text'!A97+1,'CRM Text'!A97+1,""),"") ->  | B98: =IFERROR(IF(VLOOKUP(A98,Textvorbereitung!$C$2:$E$360,3,FALSE)=0,"",VLOOKUP(A98,Textvorbereitung!$C$2:$E$360,3,FALSE)),"") -> 
A99: =IFERROR(IF(MAX(Textvorbereitung!C:C)+1>'CRM Text'!A98+1,'CRM Text'!A98+1,""),"") ->  | B99: =IFERROR(IF(VLOOKUP(A99,Textvorbereitung!$C$2:$E$360,3,FALSE)=0,"",VLOOKUP(A99,Textvorbereitung!$C$2:$E$360,3,FALSE)),"") -> 
A100: =IFERROR(IF(MAX(Textvorbereitung!C:C)+1>'CRM Text'!A99+1,'CRM Text'!A99+1,""),"") ->  | B100: =IFERROR(IF(VLOOKUP(A100,Textvorbereitung!$C$2:$E$360,3,FALSE)=0,"",VLOOKUP(A100,Textvorbereitung!$C$2:$E$360,3,FALSE)),"") -> 
A101: =IFERROR(IF(MAX(Textvorbereitung!C:C)+1>'CRM Text'!A100+1,'CRM Text'!A100+1,""),"") ->  | B101: =IFERROR(IF(VLOOKUP(A101,Textvorbereitung!$C$2:$E$360,3,FALSE)=0,"",VLOOKUP(A101,Textvorbereitung!$C$2:$E$360,3,FALSE)),"") -> 
A102: =IFERROR(IF(MAX(Textvorbereitung!C:C)+1>'CRM Text'!A101+1,'CRM Text'!A101+1,""),"") ->  | B102: =IFERROR(IF(VLOOKUP(A102,Textvorbereitung!$C$2:$E$360,3,FALSE)=0,"",VLOOKUP(A102,Textvorbereitung!$C$2:$E$360,3,FALSE)),"") -> 
A103: =IFERROR(IF(MAX(Textvorbereitung!C:C)+1>'CRM Text'!A102+1,'CRM Text'!A102+1,""),"") ->  | B103: =IFERROR(IF(VLOOKUP(A103,Textvorbereitung!$C$2:$E$360,3,FALSE)=0,"",VLOOKUP(A103,Textvorbereitung!$C$2:$E$360,3,FALSE)),"") -> 
A104: =IFERROR(IF(MAX(Textvorbereitung!C:C)+1>'CRM Text'!A103+1,'CRM Text'!A103+1,""),"") ->  | B104: =IFERROR(IF(VLOOKUP(A104,Textvorbereitung!$C$2:$E$360,3,FALSE)=0,"",VLOOKUP(A104,Textvorbereitung!$C$2:$E$360,3,FALSE)),"") -> 
A105: =IFERROR(IF(MAX(Textvorbereitung!C:C)+1>'CRM Text'!A104+1,'CRM Text'!A104+1,""),"") ->  | B105: =IFERROR(IF(VLOOKUP(A105,Textvorbereitung!$C$2:$E$360,3,FALSE)=0,"",VLOOKUP(A105,Textvorbereitung!$C$2:$E$360,3,FALSE)),"") -> 
A106: =IFERROR(IF(MAX(Textvorbereitung!C:C)+1>'CRM Text'!A105+1,'CRM Text'!A105+1,""),"") ->  | B106: =IFERROR(IF(VLOOKUP(A106,Textvorbereitung!$C$2:$E$360,3,FALSE)=0,"",VLOOKUP(A106,Textvorbereitung!$C$2:$E$360,3,FALSE)),"") -> 
A107: =IFERROR(IF(MAX(Textvorbereitung!C:C)+1>'CRM Text'!A106+1,'CRM Text'!A106+1,""),"") ->  | B107: =IFERROR(IF(VLOOKUP(A107,Textvorbereitung!$C$2:$E$360,3,FALSE)=0,"",VLOOKUP(A107,Textvorbereitung!$C$2:$E$360,3,FALSE)),"") -> 
A108: =IFERROR(IF(MAX(Textvorbereitung!C:C)+1>'CRM Text'!A107+1,'CRM Text'!A107+1,""),"") ->  | B108: =IFERROR(IF(VLOOKUP(A108,Textvorbereitung!$C$2:$E$360,3,FALSE)=0,"",VLOOKUP(A108,Textvorbereitung!$C$2:$E$360,3,FALSE)),"") -> 
A109: =IFERROR(IF(MAX(Textvorbereitung!C:C)+1>'CRM Text'!A108+1,'CRM Text'!A108+1,""),"") ->  | B109: =IFERROR(IF(VLOOKUP(A109,Textvorbereitung!$C$2:$E$360,3,FALSE)=0,"",VLOOKUP(A109,Textvorbereitung!$C$2:$E$360,3,FALSE)),"") -> 
A110: =IFERROR(IF(MAX(Textvorbereitung!C:C)+1>'CRM Text'!A109+1,'CRM Text'!A109+1,""),"") ->  | B110: =IFERROR(IF(VLOOKUP(A110,Textvorbereitung!$C$2:$E$360,3,FALSE)=0,"",VLOOKUP(A110,Textvorbereitung!$C$2:$E$360,3,FALSE)),"") -> 
A111: =IFERROR(IF(MAX(Textvorbereitung!C:C)+1>'CRM Text'!A110+1,'CRM Text'!A110+1,""),"") ->  | B111: =IFERROR(IF(VLOOKUP(A111,Textvorbereitung!$C$2:$E$360,3,FALSE)=0,"",VLOOKUP(A111,Textvorbereitung!$C$2:$E$360,3,FALSE)),"") -> 
A112: =IFERROR(IF(MAX(Textvorbereitung!C:C)+1>'CRM Text'!A111+1,'CRM Text'!A111+1,""),"") ->  | B112: =IFERROR(IF(VLOOKUP(A112,Textvorbereitung!$C$2:$E$360,3,FALSE)=0,"",VLOOKUP(A112,Textvorbereitung!$C$2:$E$360,3,FALSE)),"") -> 
A113: =IFERROR(IF(MAX(Textvorbereitung!C:C)+1>'CRM Text'!A112+1,'CRM Text'!A112+1,""),"") ->  | B113: =IFERROR(IF(VLOOKUP(A113,Textvorbereitung!$C$2:$E$360,3,FALSE)=0,"",VLOOKUP(A113,Textvorbereitung!$C$2:$E$360,3,FALSE)),"") -> 
A114: =IFERROR(IF(MAX(Textvorbereitung!C:C)+1>'CRM Text'!A113+1,'CRM Text'!A113+1,""),"") ->  | B114: =IFERROR(IF(VLOOKUP(A114,Textvorbereitung!$C$2:$E$360,3,FALSE)=0,"",VLOOKUP(A114,Textvorbereitung!$C$2:$E$360,3,FALSE)),"") -> 
A115: =IFERROR(IF(MAX(Textvorbereitung!C:C)+1>'CRM Text'!A114+1,'CRM Text'!A114+1,""),"") ->  | B115: =IFERROR(IF(VLOOKUP(A115,Textvorbereitung!$C$2:$E$360,3,FALSE)=0,"",VLOOKUP(A115,Textvorbereitung!$C$2:$E$360,3,FALSE)),"") -> 
A116: =IFERROR(IF(MAX(Textvorbereitung!C:C)+1>'CRM Text'!A115+1,'CRM Text'!A115+1,""),"") ->  | B116: =IFERROR(IF(VLOOKUP(A116,Textvorbereitung!$C$2:$E$360,3,FALSE)=0,"",VLOOKUP(A116,Textvorbereitung!$C$2:$E$360,3,FALSE)),"") -> 
A117: =IFERROR(IF(MAX(Textvorbereitung!C:C)+1>'CRM Text'!A116+1,'CRM Text'!A116+1,""),"") ->  | B117: =IFERROR(IF(VLOOKUP(A117,Textvorbereitung!$C$2:$E$360,3,FALSE)=0,"",VLOOKUP(A117,Textvorbereitung!$C$2:$E$360,3,FALSE)),"") -> 
A118: =IFERROR(IF(MAX(Textvorbereitung!C:C)+1>'CRM Text'!A117+1,'CRM Text'!A117+1,""),"") ->  | B118: =IFERROR(IF(VLOOKUP(A118,Textvorbereitung!$C$2:$E$360,3,FALSE)=0,"",VLOOKUP(A118,Textvorbereitung!$C$2:$E$360,3,FALSE)),"") -> 
A119: =IFERROR(IF(MAX(Textvorbereitung!C:C)+1>'CRM Text'!A118+1,'CRM Text'!A118+1,""),"") ->  | B119: =IFERROR(IF(VLOOKUP(A119,Textvorbereitung!$C$2:$E$360,3,FALSE)=0,"",VLOOKUP(A119,Textvorbereitung!$C$2:$E$360,3,FALSE)),"") -> 
A120: =IFERROR(IF(MAX(Textvorbereitung!C:C)+1>'CRM Text'!A119+1,'CRM Text'!A119+1,""),"") ->  | B120: =IFERROR(IF(VLOOKUP(A120,Textvorbereitung!$C$2:$E$360,3,FALSE)=0,"",VLOOKUP(A120,Textvorbereitung!$C$2:$E$360,3,FALSE)),"") -> 
A121: =IFERROR(IF(MAX(Textvorbereitung!C:C)+1>'CRM Text'!A120+1,'CRM Text'!A120+1,""),"") ->  | B121: =IFERROR(IF(VLOOKUP(A121,Textvorbereitung!$C$2:$E$360,3,FALSE)=0,"",VLOOKUP(A121,Textvorbereitung!$C$2:$E$360,3,FALSE)),"") -> 
A122: =IFERROR(IF(MAX(Textvorbereitung!C:C)+1>'CRM Text'!A121+1,'CRM Text'!A121+1,""),"") ->  | B122: =IFERROR(IF(VLOOKUP(A122,Textvorbereitung!$C$2:$E$360,3,FALSE)=0,"",VLOOKUP(A122,Textvorbereitung!$C$2:$E$360,3,FALSE)),"") -> 
A123: =IFERROR(IF(MAX(Textvorbereitung!C:C)+1>'CRM Text'!A122+1,'CRM Text'!A122+1,""),"") ->  | B123: =IFERROR(IF(VLOOKUP(A123,Textvorbereitung!$C$2:$E$360,3,FALSE)=0,"",VLOOKUP(A123,Textvorbereitung!$C$2:$E$360,3,FALSE)),"") -> 
A124: =IFERROR(IF(MAX(Textvorbereitung!C:C)+1>'CRM Text'!A123+1,'CRM Text'!A123+1,""),"") ->  | B124: =IFERROR(IF(VLOOKUP(A124,Textvorbereitung!$C$2:$E$360,3,FALSE)=0,"",VLOOKUP(A124,Textvorbereitung!$C$2:$E$360,3,FALSE)),"") -> 
A125: =IFERROR(IF(MAX(Textvorbereitung!C:C)+1>'CRM Text'!A124+1,'CRM Text'!A124+1,""),"") ->  | B125: =IFERROR(IF(VLOOKUP(A125,Textvorbereitung!$C$2:$E$360,3,FALSE)=0,"",VLOOKUP(A125,Textvorbereitung!$C$2:$E$360,3,FALSE)),"") -> 
A126: =IFERROR(IF(MAX(Textvorbereitung!C:C)+1>'CRM Text'!A125+1,'CRM Text'!A125+1,""),"") ->  | B126: =IFERROR(IF(VLOOKUP(A126,Textvorbereitung!$C$2:$E$360,3,FALSE)=0,"",VLOOKUP(A126,Textvorbereitung!$C$2:$E$360,3,FALSE)),"") -> 
A127: =IFERROR(IF(MAX(Textvorbereitung!C:C)+1>'CRM Text'!A126+1,'CRM Text'!A126+1,""),"") ->  | B127: =IFERROR(IF(VLOOKUP(A127,Textvorbereitung!$C$2:$E$360,3,FALSE)=0,"",VLOOKUP(A127,Textvorbereitung!$C$2:$E$360,3,FALSE)),"") -> 
A128: =IFERROR(IF(MAX(Textvorbereitung!C:C)+1>'CRM Text'!A127+1,'CRM Text'!A127+1,""),"") ->  | B128: =IFERROR(IF(VLOOKUP(A128,Textvorbereitung!$C$2:$E$360,3,FALSE)=0,"",VLOOKUP(A128,Textvorbereitung!$C$2:$E$360,3,FALSE)),"") -> 
A129: =IFERROR(IF(MAX(Textvorbereitung!C:C)+1>'CRM Text'!A128+1,'CRM Text'!A128+1,""),"") ->  | B129: =IFERROR(IF(VLOOKUP(A129,Textvorbereitung!$C$2:$E$360,3,FALSE)=0,"",VLOOKUP(A129,Textvorbereitung!$C$2:$E$360,3,FALSE)),"") -> 
A130: =IFERROR(IF(MAX(Textvorbereitung!C:C)+1>'CRM Text'!A129+1,'CRM Text'!A129+1,""),"") ->  | B130: =IFERROR(IF(VLOOKUP(A130,Textvorbereitung!$C$2:$E$360,3,FALSE)=0,"",VLOOKUP(A130,Textvorbereitung!$C$2:$E$360,3,FALSE)),"") -> 
A131: =IFERROR(IF(MAX(Textvorbereitung!C:C)+1>'CRM Text'!A130+1,'CRM Text'!A130+1,""),"") ->  | B131: =IFERROR(IF(VLOOKUP(A131,Textvorbereitung!$C$2:$E$360,3,FALSE)=0,"",VLOOKUP(A131,Textvorbereitung!$C$2:$E$360,3,FALSE)),"") -> 
A132: =IFERROR(IF(MAX(Textvorbereitung!C:C)+1>'CRM Text'!A131+1,'CRM Text'!A131+1,""),"") ->  | B132: =IFERROR(IF(VLOOKUP(A132,Textvorbereitung!$C$2:$E$360,3,FALSE)=0,"",VLOOKUP(A132,Textvorbereitung!$C$2:$E$360,3,FALSE)),"") -> 
A133: =IFERROR(IF(MAX(Textvorbereitung!C:C)+1>'CRM Text'!A132+1,'CRM Text'!A132+1,""),"") ->  | B133: =IFERROR(IF(VLOOKUP(A133,Textvorbereitung!$C$2:$E$360,3,FALSE)=0,"",VLOOKUP(A133,Textvorbereitung!$C$2:$E$360,3,FALSE)),"") -> 
A134: =IFERROR(IF(MAX(Textvorbereitung!C:C)+1>'CRM Text'!A133+1,'CRM Text'!A133+1,""),"") ->  | B134: =IFERROR(IF(VLOOKUP(A134,Textvorbereitung!$C$2:$E$360,3,FALSE)=0,"",VLOOKUP(A134,Textvorbereitung!$C$2:$E$360,3,FALSE)),"") -> 
A135: =IFERROR(IF(MAX(Textvorbereitung!C:C)+1>'CRM Text'!A134+1,'CRM Text'!A134+1,""),"") ->  | B135: =IFERROR(IF(VLOOKUP(A135,Textvorbereitung!$C$2:$E$360,3,FALSE)=0,"",VLOOKUP(A135,Textvorbereitung!$C$2:$E$360,3,FALSE)),"") -> 
A136: =IFERROR(IF(MAX(Textvorbereitung!C:C)+1>'CRM Text'!A135+1,'CRM Text'!A135+1,""),"") ->  | B136: =IFERROR(IF(VLOOKUP(A136,Textvorbereitung!$C$2:$E$360,3,FALSE)=0,"",VLOOKUP(A136,Textvorbereitung!$C$2:$E$360,3,FALSE)),"") -> 
A137: =IFERROR(IF(MAX(Textvorbereitung!C:C)+1>'CRM Text'!A136+1,'CRM Text'!A136+1,""),"") ->  | B137: =IFERROR(IF(VLOOKUP(A137,Textvorbereitung!$C$2:$E$360,3,FALSE)=0,"",VLOOKUP(A137,Textvorbereitung!$C$2:$E$360,3,FALSE)),"") -> 
A138: =IFERROR(IF(MAX(Textvorbereitung!C:C)+1>'CRM Text'!A137+1,'CRM Text'!A137+1,""),"") ->  | B138: =IFERROR(IF(VLOOKUP(A138,Textvorbereitung!$C$2:$E$360,3,FALSE)=0,"",VLOOKUP(A138,Textvorbereitung!$C$2:$E$360,3,FALSE)),"") -> 
A139: =IFERROR(IF(MAX(Textvorbereitung!C:C)+1>'CRM Text'!A138+1,'CRM Text'!A138+1,""),"") ->  | B139: =IFERROR(IF(VLOOKUP(A139,Textvorbereitung!$C$2:$E$360,3,FALSE)=0,"",VLOOKUP(A139,Textvorbereitung!$C$2:$E$360,3,FALSE)),"") -> 
A140: =IFERROR(IF(MAX(Textvorbereitung!C:C)+1>'CRM Text'!A139+1,'CRM Text'!A139+1,""),"") ->  | B140: =IFERROR(IF(VLOOKUP(A140,Textvorbereitung!$C$2:$E$360,3,FALSE)=0,"",VLOOKUP(A140,Textvorbereitung!$C$2:$E$360,3,FALSE)),"") -> 
A141: =IFERROR(IF(MAX(Textvorbereitung!C:C)+1>'CRM Text'!A140+1,'CRM Text'!A140+1,""),"") ->  | B141: =IFERROR(IF(VLOOKUP(A141,Textvorbereitung!$C$2:$E$360,3,FALSE)=0,"",VLOOKUP(A141,Textvorbereitung!$C$2:$E$360,3,FALSE)),"") -> 
A142: =IFERROR(IF(MAX(Textvorbereitung!C:C)+1>'CRM Text'!A141+1,'CRM Text'!A141+1,""),"") ->  | B142: =IFERROR(IF(VLOOKUP(A142,Textvorbereitung!$C$2:$E$360,3,FALSE)=0,"",VLOOKUP(A142,Textvorbereitung!$C$2:$E$360,3,FALSE)),"") -> 
A143: =IFERROR(IF(MAX(Textvorbereitung!C:C)+1>'CRM Text'!A142+1,'CRM Text'!A142+1,""),"") ->  | B143: =IFERROR(IF(VLOOKUP(A143,Textvorbereitung!$C$2:$E$360,3,FALSE)=0,"",VLOOKUP(A143,Textvorbereitung!$C$2:$E$360,3,FALSE)),"") -> 
A144: =IFERROR(IF(MAX(Textvorbereitung!C:C)+1>'CRM Text'!A143+1,'CRM Text'!A143+1,""),"") ->  | B144: =IFERROR(IF(VLOOKUP(A144,Textvorbereitung!$C$2:$E$360,3,FALSE)=0,"",VLOOKUP(A144,Textvorbereitung!$C$2:$E$360,3,FALSE)),"") -> 
A145: =IFERROR(IF(MAX(Textvorbereitung!C:C)+1>'CRM Text'!A144+1,'CRM Text'!A144+1,""),"") ->  | B145: =IFERROR(IF(VLOOKUP(A145,Textvorbereitung!$C$2:$E$360,3,FALSE)=0,"",VLOOKUP(A145,Textvorbereitung!$C$2:$E$360,3,FALSE)),"") -> 
A146: =IFERROR(IF(MAX(Textvorbereitung!C:C)+1>'CRM Text'!A145+1,'CRM Text'!A145+1,""),"") ->  | B146: =IFERROR(IF(VLOOKUP(A146,Textvorbereitung!$C$2:$E$360,3,FALSE)=0,"",VLOOKUP(A146,Textvorbereitung!$C$2:$E$360,3,FALSE)),"") -> 
A147: =IFERROR(IF(MAX(Textvorbereitung!C:C)+1>'CRM Text'!A146+1,'CRM Text'!A146+1,""),"") ->  | B147: =IFERROR(IF(VLOOKUP(A147,Textvorbereitung!$C$2:$E$360,3,FALSE)=0,"",VLOOKUP(A147,Textvorbereitung!$C$2:$E$360,3,FALSE)),"") -> 
A148: =IFERROR(IF(MAX(Textvorbereitung!C:C)+1>'CRM Text'!A147+1,'CRM Text'!A147+1,""),"") ->  | B148: =IFERROR(IF(VLOOKUP(A148,Textvorbereitung!$C$2:$E$360,3,FALSE)=0,"",VLOOKUP(A148,Textvorbereitung!$C$2:$E$360,3,FALSE)),"") -> 
A149: =IFERROR(IF(MAX(Textvorbereitung!C:C)+1>'CRM Text'!A148+1,'CRM Text'!A148+1,""),"") ->  | B149: =IFERROR(IF(VLOOKUP(A149,Textvorbereitung!$C$2:$E$360,3,FALSE)=0,"",VLOOKUP(A149,Textvorbereitung!$C$2:$E$360,3,FALSE)),"") -> 
A150: =IFERROR(IF(MAX(Textvorbereitung!C:C)+1>'CRM Text'!A149+1,'CRM Text'!A149+1,""),"") ->  | B150: =IFERROR(IF(VLOOKUP(A150,Textvorbereitung!$C$2:$E$360,3,FALSE)=0,"",VLOOKUP(A150,Textvorbereitung!$C$2:$E$360,3,FALSE)),"") -> 
A151: =IFERROR(IF(MAX(Textvorbereitung!C:C)+1>'CRM Text'!A150+1,'CRM Text'!A150+1,""),"") ->  | B151: =IFERROR(IF(VLOOKUP(A151,Textvorbereitung!$C$2:$E$360,3,FALSE)=0,"",VLOOKUP(A151,Textvorbereitung!$C$2:$E$360,3,FALSE)),"") -> 
A152: =IFERROR(IF(MAX(Textvorbereitung!C:C)+1>'CRM Text'!A151+1,'CRM Text'!A151+1,""),"") ->  | B152: =IFERROR(IF(VLOOKUP(A152,Textvorbereitung!$C$2:$E$360,3,FALSE)=0,"",VLOOKUP(A152,Textvorbereitung!$C$2:$E$360,3,FALSE)),"") -> 
A153: =IFERROR(IF(MAX(Textvorbereitung!C:C)+1>'CRM Text'!A152+1,'CRM Text'!A152+1,""),"") ->  | B153: =IFERROR(IF(VLOOKUP(A153,Textvorbereitung!$C$2:$E$360,3,FALSE)=0,"",VLOOKUP(A153,Textvorbereitung!$C$2:$E$360,3,FALSE)),"") -> 
A154: =IFERROR(IF(MAX(Textvorbereitung!C:C)+1>'CRM Text'!A153+1,'CRM Text'!A153+1,""),"") ->  | B154: =IFERROR(IF(VLOOKUP(A154,Textvorbereitung!$C$2:$E$360,3,FALSE)=0,"",VLOOKUP(A154,Textvorbereitung!$C$2:$E$360,3,FALSE)),"") -> 
A155: =IFERROR(IF(MAX(Textvorbereitung!C:C)+1>'CRM Text'!A154+1,'CRM Text'!A154+1,""),"") ->  | B155: =IFERROR(IF(VLOOKUP(A155,Textvorbereitung!$C$2:$E$360,3,FALSE)=0,"",VLOOKUP(A155,Textvorbereitung!$C$2:$E$360,3,FALSE)),"") -> 
A156: =IFERROR(IF(MAX(Textvorbereitung!C:C)+1>'CRM Text'!A155+1,'CRM Text'!A155+1,""),"") ->  | B156: =IFERROR(IF(VLOOKUP(A156,Textvorbereitung!$C$2:$E$360,3,FALSE)=0,"",VLOOKUP(A156,Textvorbereitung!$C$2:$E$360,3,FALSE)),"") -> 
A157: =IFERROR(IF(MAX(Textvorbereitung!C:C)+1>'CRM Text'!A156+1,'CRM Text'!A156+1,""),"") ->  | B157: =IFERROR(IF(VLOOKUP(A157,Textvorbereitung!$C$2:$E$360,3,FALSE)=0,"",VLOOKUP(A157,Textvorbereitung!$C$2:$E$360,3,FALSE)),"") -> 
A158: =IFERROR(IF(MAX(Textvorbereitung!C:C)+1>'CRM Text'!A157+1,'CRM Text'!A157+1,""),"") ->  | B158: =IFERROR(IF(VLOOKUP(A158,Textvorbereitung!$C$2:$E$360,3,FALSE)=0,"",VLOOKUP(A158,Textvorbereitung!$C$2:$E$360,3,FALSE)),"") -> 
A159: =IFERROR(IF(MAX(Textvorbereitung!C:C)+1>'CRM Text'!A158+1,'CRM Text'!A158+1,""),"") ->  | B159: =IFERROR(IF(VLOOKUP(A159,Textvorbereitung!$C$2:$E$360,3,FALSE)=0,"",VLOOKUP(A159,Textvorbereitung!$C$2:$E$360,3,FALSE)),"") -> 
A160: =IFERROR(IF(MAX(Textvorbereitung!C:C)+1>'CRM Text'!A159+1,'CRM Text'!A159+1,""),"") ->  | B160: =IFERROR(IF(VLOOKUP(A160,Textvorbereitung!$C$2:$E$360,3,FALSE)=0,"",VLOOKUP(A160,Textvorbereitung!$C$2:$E$360,3,FALSE)),"") -> 
A161: =IFERROR(IF(MAX(Textvorbereitung!C:C)+1>'CRM Text'!A160+1,'CRM Text'!A160+1,""),"") ->  | B161: =IFERROR(IF(VLOOKUP(A161,Textvorbereitung!$C$2:$E$360,3,FALSE)=0,"",VLOOKUP(A161,Textvorbereitung!$C$2:$E$360,3,FALSE)),"") -> 
A162: =IFERROR(IF(MAX(Textvorbereitung!C:C)+1>'CRM Text'!A161+1,'CRM Text'!A161+1,""),"") ->  | B162: =IFERROR(IF(VLOOKUP(A162,Textvorbereitung!$C$2:$E$360,3,FALSE)=0,"",VLOOKUP(A162,Textvorbereitung!$C$2:$E$360,3,FALSE)),"") -> 
A163: =IFERROR(IF(MAX(Textvorbereitung!C:C)+1>'CRM Text'!A162+1,'CRM Text'!A162+1,""),"") ->  | B163: =IFERROR(IF(VLOOKUP(A163,Textvorbereitung!$C$2:$E$360,3,FALSE)=0,"",VLOOKUP(A163,Textvorbereitung!$C$2:$E$360,3,FALSE)),"") -> 
A164: =IFERROR(IF(MAX(Textvorbereitung!C:C)+1>'CRM Text'!A163+1,'CRM Text'!A163+1,""),"") ->  | B164: =IFERROR(IF(VLOOKUP(A164,Textvorbereitung!$C$2:$E$360,3,FALSE)=0,"",VLOOKUP(A164,Textvorbereitung!$C$2:$E$360,3,FALSE)),"") -> 
A165: =IFERROR(IF(MAX(Textvorbereitung!C:C)+1>'CRM Text'!A164+1,'CRM Text'!A164+1,""),"") ->  | B165: =IFERROR(IF(VLOOKUP(A165,Textvorbereitung!$C$2:$E$360,3,FALSE)=0,"",VLOOKUP(A165,Textvorbereitung!$C$2:$E$360,3,FALSE)),"") -> 
A166: =IFERROR(IF(MAX(Textvorbereitung!C:C)+1>'CRM Text'!A165+1,'CRM Text'!A165+1,""),"") ->  | B166: =IFERROR(IF(VLOOKUP(A166,Textvorbereitung!$C$2:$E$360,3,FALSE)=0,"",VLOOKUP(A166,Textvorbereitung!$C$2:$E$360,3,FALSE)),"") -> 
A167: =IFERROR(IF(MAX(Textvorbereitung!C:C)+1>'CRM Text'!A166+1,'CRM Text'!A166+1,""),"") ->  | B167: =IFERROR(IF(VLOOKUP(A167,Textvorbereitung!$C$2:$E$360,3,FALSE)=0,"",VLOOKUP(A167,Textvorbereitung!$C$2:$E$360,3,FALSE)),"") -> 
A168: =IFERROR(IF(MAX(Textvorbereitung!C:C)+1>'CRM Text'!A167+1,'CRM Text'!A167+1,""),"") ->  | B168: =IFERROR(IF(VLOOKUP(A168,Textvorbereitung!$C$2:$E$360,3,FALSE)=0,"",VLOOKUP(A168,Textvorbereitung!$C$2:$E$360,3,FALSE)),"") -> 
A169: =IFERROR(IF(MAX(Textvorbereitung!C:C)+1>'CRM Text'!A168+1,'CRM Text'!A168+1,""),"") ->  | B169: =IFERROR(IF(VLOOKUP(A169,Textvorbereitung!$C$2:$E$360,3,FALSE)=0,"",VLOOKUP(A169,Textvorbereitung!$C$2:$E$360,3,FALSE)),"") -> 
A170: =IFERROR(IF(MAX(Textvorbereitung!C:C)+1>'CRM Text'!A169+1,'CRM Text'!A169+1,""),"") ->  | B170: =IFERROR(IF(VLOOKUP(A170,Textvorbereitung!$C$2:$E$360,3,FALSE)=0,"",VLOOKUP(A170,Textvorbereitung!$C$2:$E$360,3,FALSE)),"") -> 
A171: =IFERROR(IF(MAX(Textvorbereitung!C:C)+1>'CRM Text'!A170+1,'CRM Text'!A170+1,""),"") ->  | B171: =IFERROR(IF(VLOOKUP(A171,Textvorbereitung!$C$2:$E$360,3,FALSE)=0,"",VLOOKUP(A171,Textvorbereitung!$C$2:$E$360,3,FALSE)),"") -> 
A172: =IFERROR(IF(MAX(Textvorbereitung!C:C)+1>'CRM Text'!A171+1,'CRM Text'!A171+1,""),"") ->  | B172: =IFERROR(IF(VLOOKUP(A172,Textvorbereitung!$C$2:$E$360,3,FALSE)=0,"",VLOOKUP(A172,Textvorbereitung!$C$2:$E$360,3,FALSE)),"") -> 
A173: =IFERROR(IF(MAX(Textvorbereitung!C:C)+1>'CRM Text'!A172+1,'CRM Text'!A172+1,""),"") ->  | B173: =IFERROR(IF(VLOOKUP(A173,Textvorbereitung!$C$2:$E$360,3,FALSE)=0,"",VLOOKUP(A173,Textvorbereitung!$C$2:$E$360,3,FALSE)),"") -> 
A174: =IFERROR(IF(MAX(Textvorbereitung!C:C)+1>'CRM Text'!A173+1,'CRM Text'!A173+1,""),"") ->  | B174: =IFERROR(IF(VLOOKUP(A174,Textvorbereitung!$C$2:$E$360,3,FALSE)=0,"",VLOOKUP(A174,Textvorbereitung!$C$2:$E$360,3,FALSE)),"") -> 
A175: =IFERROR(IF(MAX(Textvorbereitung!C:C)+1>'CRM Text'!A174+1,'CRM Text'!A174+1,""),"") ->  | B175: =IFERROR(IF(VLOOKUP(A175,Textvorbereitung!$C$2:$E$360,3,FALSE)=0,"",VLOOKUP(A175,Textvorbereitung!$C$2:$E$360,3,FALSE)),"") -> 
A176: =IFERROR(IF(MAX(Textvorbereitung!C:C)+1>'CRM Text'!A175+1,'CRM Text'!A175+1,""),"") ->  | B176: =IFERROR(IF(VLOOKUP(A176,Textvorbereitung!$C$2:$E$360,3,FALSE)=0,"",VLOOKUP(A176,Textvorbereitung!$C$2:$E$360,3,FALSE)),"") -> 
A177: =IFERROR(IF(MAX(Textvorbereitung!C:C)+1>'CRM Text'!A176+1,'CRM Text'!A176+1,""),"") ->  | B177: =IFERROR(IF(VLOOKUP(A177,Textvorbereitung!$C$2:$E$360,3,FALSE)=0,"",VLOOKUP(A177,Textvorbereitung!$C$2:$E$360,3,FALSE)),"") -> 
A178: =IFERROR(IF(MAX(Textvorbereitung!C:C)+1>'CRM Text'!A177+1,'CRM Text'!A177+1,""),"") ->  | B178: =IFERROR(IF(VLOOKUP(A178,Textvorbereitung!$C$2:$E$360,3,FALSE)=0,"",VLOOKUP(A178,Textvorbereitung!$C$2:$E$360,3,FALSE)),"") -> 
A179: =IFERROR(IF(MAX(Textvorbereitung!C:C)+1>'CRM Text'!A178+1,'CRM Text'!A178+1,""),"") ->  | B179: =IFERROR(IF(VLOOKUP(A179,Textvorbereitung!$C$2:$E$360,3,FALSE)=0,"",VLOOKUP(A179,Textvorbereitung!$C$2:$E$360,3,FALSE)),"") -> 
A180: =IFERROR(IF(MAX(Textvorbereitung!C:C)+1>'CRM Text'!A179+1,'CRM Text'!A179+1,""),"") ->  | B180: =IFERROR(IF(VLOOKUP(A180,Textvorbereitung!$C$2:$E$360,3,FALSE)=0,"",VLOOKUP(A180,Textvorbereitung!$C$2:$E$360,3,FALSE)),"") -> 
A181: =IFERROR(IF(MAX(Textvorbereitung!C:C)+1>'CRM Text'!A180+1,'CRM Text'!A180+1,""),"") ->  | B181: =IFERROR(IF(VLOOKUP(A181,Textvorbereitung!$C$2:$E$360,3,FALSE)=0,"",VLOOKUP(A181,Textvorbereitung!$C$2:$E$360,3,FALSE)),"") -> 
A182: =IFERROR(IF(MAX(Textvorbereitung!C:C)+1>'CRM Text'!A181+1,'CRM Text'!A181+1,""),"") ->  | B182: =IFERROR(IF(VLOOKUP(A182,Textvorbereitung!$C$2:$E$360,3,FALSE)=0,"",VLOOKUP(A182,Textvorbereitung!$C$2:$E$360,3,FALSE)),"") -> 
A183: =IFERROR(IF(MAX(Textvorbereitung!C:C)+1>'CRM Text'!A182+1,'CRM Text'!A182+1,""),"") ->  | B183: =IFERROR(IF(VLOOKUP(A183,Textvorbereitung!$C$2:$E$360,3,FALSE)=0,"",VLOOKUP(A183,Textvorbereitung!$C$2:$E$360,3,FALSE)),"") -> 
A184: =IFERROR(IF(MAX(Textvorbereitung!C:C)+1>'CRM Text'!A183+1,'CRM Text'!A183+1,""),"") ->  | B184: =IFERROR(IF(VLOOKUP(A184,Textvorbereitung!$C$2:$E$360,3,FALSE)=0,"",VLOOKUP(A184,Textvorbereitung!$C$2:$E$360,3,FALSE)),"") -> 
A185: =IFERROR(IF(MAX(Textvorbereitung!C:C)+1>'CRM Text'!A184+1,'CRM Text'!A184+1,""),"") ->  | B185: =IFERROR(IF(VLOOKUP(A185,Textvorbereitung!$C$2:$E$360,3,FALSE)=0,"",VLOOKUP(A185,Textvorbereitung!$C$2:$E$360,3,FALSE)),"") -> 
A186: =IFERROR(IF(MAX(Textvorbereitung!C:C)+1>'CRM Text'!A185+1,'CRM Text'!A185+1,""),"") ->  | B186: =IFERROR(IF(VLOOKUP(A186,Textvorbereitung!$C$2:$E$360,3,FALSE)=0,"",VLOOKUP(A186,Textvorbereitung!$C$2:$E$360,3,FALSE)),"") -> 
A187: =IFERROR(IF(MAX(Textvorbereitung!C:C)+1>'CRM Text'!A186+1,'CRM Text'!A186+1,""),"") ->  | B187: =IFERROR(IF(VLOOKUP(A187,Textvorbereitung!$C$2:$E$360,3,FALSE)=0,"",VLOOKUP(A187,Textvorbereitung!$C$2:$E$360,3,FALSE)),"") -> 
A188: =IFERROR(IF(MAX(Textvorbereitung!C:C)+1>'CRM Text'!A187+1,'CRM Text'!A187+1,""),"") ->  | B188: =IFERROR(IF(VLOOKUP(A188,Textvorbereitung!$C$2:$E$360,3,FALSE)=0,"",VLOOKUP(A188,Textvorbereitung!$C$2:$E$360,3,FALSE)),"") -> 
A189: =IFERROR(IF(MAX(Textvorbereitung!C:C)+1>'CRM Text'!A188+1,'CRM Text'!A188+1,""),"") ->  | B189: =IFERROR(IF(VLOOKUP(A189,Textvorbereitung!$C$2:$E$360,3,FALSE)=0,"",VLOOKUP(A189,Textvorbereitung!$C$2:$E$360,3,FALSE)),"") -> 
A190: =IFERROR(IF(MAX(Textvorbereitung!C:C)+1>'CRM Text'!A189+1,'CRM Text'!A189+1,""),"") ->  | B190: =IFERROR(IF(VLOOKUP(A190,Textvorbereitung!$C$2:$E$360,3,FALSE)=0,"",VLOOKUP(A190,Textvorbereitung!$C$2:$E$360,3,FALSE)),"") -> 
A191: =IFERROR(IF(MAX(Textvorbereitung!C:C)+1>'CRM Text'!A190+1,'CRM Text'!A190+1,""),"") ->  | B191: =IFERROR(IF(VLOOKUP(A191,Textvorbereitung!$C$2:$E$360,3,FALSE)=0,"",VLOOKUP(A191,Textvorbereitung!$C$2:$E$360,3,FALSE)),"") -> 
A192: =IFERROR(IF(MAX(Textvorbereitung!C:C)+1>'CRM Text'!A191+1,'CRM Text'!A191+1,""),"") ->  | B192: =IFERROR(IF(VLOOKUP(A192,Textvorbereitung!$C$2:$E$360,3,FALSE)=0,"",VLOOKUP(A192,Textvorbereitung!$C$2:$E$360,3,FALSE)),"") -> 
A193: =IFERROR(IF(MAX(Textvorbereitung!C:C)+1>'CRM Text'!A192+1,'CRM Text'!A192+1,""),"") ->  | B193: =IFERROR(IF(VLOOKUP(A193,Textvorbereitung!$C$2:$E$360,3,FALSE)=0,"",VLOOKUP(A193,Textvorbereitung!$C$2:$E$360,3,FALSE)),"") -> 
A194: =IFERROR(IF(MAX(Textvorbereitung!C:C)+1>'CRM Text'!A193+1,'CRM Text'!A193+1,""),"") ->  | B194: =IFERROR(IF(VLOOKUP(A194,Textvorbereitung!$C$2:$E$360,3,FALSE)=0,"",VLOOKUP(A194,Textvorbereitung!$C$2:$E$360,3,FALSE)),"") -> 
A195: =IFERROR(IF(MAX(Textvorbereitung!C:C)+1>'CRM Text'!A194+1,'CRM Text'!A194+1,""),"") ->  | B195: =IFERROR(IF(VLOOKUP(A195,Textvorbereitung!$C$2:$E$360,3,FALSE)=0,"",VLOOKUP(A195,Textvorbereitung!$C$2:$E$360,3,FALSE)),"") -> 
A196: =IFERROR(IF(MAX(Textvorbereitung!C:C)+1>'CRM Text'!A195+1,'CRM Text'!A195+1,""),"") ->  | B196: =IFERROR(IF(VLOOKUP(A196,Textvorbereitung!$C$2:$E$360,3,FALSE)=0,"",VLOOKUP(A196,Textvorbereitung!$C$2:$E$360,3,FALSE)),"") -> 
A197: =IFERROR(IF(MAX(Textvorbereitung!C:C)+1>'CRM Text'!A196+1,'CRM Text'!A196+1,""),"") ->  | B197: =IFERROR(IF(VLOOKUP(A197,Textvorbereitung!$C$2:$E$360,3,FALSE)=0,"",VLOOKUP(A197,Textvorbereitung!$C$2:$E$360,3,FALSE)),"") -> 
A198: =IFERROR(IF(MAX(Textvorbereitung!C:C)+1>'CRM Text'!A197+1,'CRM Text'!A197+1,""),"") ->  | B198: =IFERROR(IF(VLOOKUP(A198,Textvorbereitung!$C$2:$E$360,3,FALSE)=0,"",VLOOKUP(A198,Textvorbereitung!$C$2:$E$360,3,FALSE)),"") -> 
A199: =IFERROR(IF(MAX(Textvorbereitung!C:C)+1>'CRM Text'!A198+1,'CRM Text'!A198+1,""),"") ->  | B199: =IFERROR(IF(VLOOKUP(A199,Textvorbereitung!$C$2:$E$360,3,FALSE)=0,"",VLOOKUP(A199,Textvorbereitung!$C$2:$E$360,3,FALSE)),"") -> 
A200: =IFERROR(IF(MAX(Textvorbereitung!C:C)+1>'CRM Text'!A199+1,'CRM Text'!A199+1,""),"") ->  | B200: =IFERROR(IF(VLOOKUP(A200,Textvorbereitung!$C$2:$E$360,3,FALSE)=0,"",VLOOKUP(A200,Textvorbereitung!$C$2:$E$360,3,FALSE)),"") -> 
... 147 more rows

Sheet Angebotsvorlage (hidden)
A1: 1 | B1: =IFERROR(IF(VLOOKUP(A1,Textvorbereitung!$B$2:$E$360,4,FALSE)=0,"",VLOOKUP(A1,Textvorbereitung!$B$2:$E$360,4,FALSE)),"") -> 
A2: 2 | B2: =IFERROR(IF(VLOOKUP(A2,Textvorbereitung!$B$2:$E$360,4,FALSE)=0,"",VLOOKUP(A2,Textvorbereitung!$B$2:$E$360,4,FALSE)),"") -> 1. Annahmen/Auslegung: Dieses Angebot wurde nicht auf Grundlage einer von uns
A3: =IFERROR(IF(MAX(Textvorbereitung!B:B)+1>A2+1,A2+1,""),"") -> 3 | B3: =IFERROR(IF(VLOOKUP(A3,Textvorbereitung!$B$2:$E$360,4,FALSE)=0,"",VLOOKUP(A3,Textvorbereitung!$B$2:$E$360,4,FALSE)),"") -> erstellten Auslegung angeboten, sondern nach Kundenwunsch.
A4: =IFERROR(IF(MAX(Textvorbereitung!B:B)+1>A3+1,A3+1,""),"") -> 4 | B4: =IFERROR(IF(VLOOKUP(A4,Textvorbereitung!$B$2:$E$360,4,FALSE)=0,"",VLOOKUP(A4,Textvorbereitung!$B$2:$E$360,4,FALSE)),"") -> Die Dimensionierung der Anlage ist bauseits zu prüfen.
A5: =IFERROR(IF(MAX(Textvorbereitung!B:B)+1>A4+1,A4+1,""),"") -> 5 | B5: =IFERROR(IF(VLOOKUP(A5,Textvorbereitung!$B$2:$E$360,4,FALSE)=0,"",VLOOKUP(A5,Textvorbereitung!$B$2:$E$360,4,FALSE)),"") -> 
A6: =IFERROR(IF(MAX(Textvorbereitung!B:B)+1>A5+1,A5+1,""),"") -> 6 | B6: =IFERROR(IF(VLOOKUP(A6,Textvorbereitung!$B$2:$E$360,4,FALSE)=0,"",VLOOKUP(A6,Textvorbereitung!$B$2:$E$360,4,FALSE)),"") -> 2. Heizlastberechnung: Es ist dringend zu empfehlen eine Heizlastberechnung zu
A7: =IFERROR(IF(MAX(Textvorbereitung!B:B)+1>A6+1,A6+1,""),"") -> 7 | B7: =IFERROR(IF(VLOOKUP(A7,Textvorbereitung!$B$2:$E$360,4,FALSE)=0,"",VLOOKUP(A7,Textvorbereitung!$B$2:$E$360,4,FALSE)),"") -> erstellen und diese mit der Leistung der angebotenen Anlage(n) abzugleichen.
A8: =IFERROR(IF(MAX(Textvorbereitung!B:B)+1>A7+1,A7+1,""),"") -> 8 | B8: =IFERROR(IF(VLOOKUP(A8,Textvorbereitung!$B$2:$E$360,4,FALSE)=0,"",VLOOKUP(A8,Textvorbereitung!$B$2:$E$360,4,FALSE)),"") -> Eine Heizlastberechnung ist ohnehin für den Hydraulischen Abgleich auch
A9: =IFERROR(IF(MAX(Textvorbereitung!B:B)+1>A8+1,A8+1,""),"") -> 9 | B9: =IFERROR(IF(VLOOKUP(A9,Textvorbereitung!$B$2:$E$360,4,FALSE)=0,"",VLOOKUP(A9,Textvorbereitung!$B$2:$E$360,4,FALSE)),"") -> erforderlich.
A10: =IFERROR(IF(MAX(Textvorbereitung!B:B)+1>A9+1,A9+1,""),"") -> 10 | B10: =IFERROR(IF(VLOOKUP(A10,Textvorbereitung!$B$2:$E$360,4,FALSE)=0,"",VLOOKUP(A10,Textvorbereitung!$B$2:$E$360,4,FALSE)),"") -> 
A11: =IFERROR(IF(MAX(Textvorbereitung!B:B)+1>A10+1,A10+1,""),"") -> 11 | B11: =IFERROR(IF(VLOOKUP(A11,Textvorbereitung!$B$2:$E$360,4,FALSE)=0,"",VLOOKUP(A11,Textvorbereitung!$B$2:$E$360,4,FALSE)),"") -> 3. Schall: ist bauseitig zu prüfen!
A12: =IFERROR(IF(MAX(Textvorbereitung!B:B)+1>A11+1,A11+1,""),"") -> 12 | B12: =IFERROR(IF(VLOOKUP(A12,Textvorbereitung!$B$2:$E$360,4,FALSE)=0,"",VLOOKUP(A12,Textvorbereitung!$B$2:$E$360,4,FALSE)),"") -> 
A13: =IFERROR(IF(MAX(Textvorbereitung!B:B)+1>A12+1,A12+1,""),"") -> 13 | B13: =IFERROR(IF(VLOOKUP(A13,Textvorbereitung!$B$2:$E$360,4,FALSE)=0,"",VLOOKUP(A13,Textvorbereitung!$B$2:$E$360,4,FALSE)),"") -> 4. Aufstellorte: Platzbedarfe und Einhaltung unserer sowie gesetzlicher Vorgaben
A14: =IFERROR(IF(MAX(Textvorbereitung!B:B)+1>A13+1,A13+1,""),"") -> 14 | B14: =IFERROR(IF(VLOOKUP(A14,Textvorbereitung!$B$2:$E$360,4,FALSE)=0,"",VLOOKUP(A14,Textvorbereitung!$B$2:$E$360,4,FALSE)),"") -> sind bauseitig zu prüfen!
A15: =IFERROR(IF(MAX(Textvorbereitung!B:B)+1>A14+1,A14+1,""),"") -> 15 | B15: =IFERROR(IF(VLOOKUP(A15,Textvorbereitung!$B$2:$E$360,4,FALSE)=0,"",VLOOKUP(A15,Textvorbereitung!$B$2:$E$360,4,FALSE)),"") -> 
A16: =IFERROR(IF(MAX(Textvorbereitung!B:B)+1>A15+1,A15+1,""),"") ->  | B16: =IFERROR(IF(VLOOKUP(A16,Textvorbereitung!$B$2:$E$360,4,FALSE)=0,"",VLOOKUP(A16,Textvorbereitung!$B$2:$E$360,4,FALSE)),"") -> 
A17: =IFERROR(IF(MAX(Textvorbereitung!B:B)+1>A16+1,A16+1,""),"") ->  | B17: =IFERROR(IF(VLOOKUP(A17,Textvorbereitung!$B$2:$E$360,4,FALSE)=0,"",VLOOKUP(A17,Textvorbereitung!$B$2:$E$360,4,FALSE)),"") -> 
A18: =IFERROR(IF(MAX(Textvorbereitung!B:B)+1>A17+1,A17+1,""),"") ->  | B18: =IFERROR(IF(VLOOKUP(A18,Textvorbereitung!$B$2:$E$360,4,FALSE)=0,"",VLOOKUP(A18,Textvorbereitung!$B$2:$E$360,4,FALSE)),"") -> 
A19: =IFERROR(IF(MAX(Textvorbereitung!B:B)+1>A18+1,A18+1,""),"") ->  | B19: =IFERROR(IF(VLOOKUP(A19,Textvorbereitung!$B$2:$E$360,4,FALSE)=0,"",VLOOKUP(A19,Textvorbereitung!$B$2:$E$360,4,FALSE)),"") -> 
A20: =IFERROR(IF(MAX(Textvorbereitung!B:B)+1>A19+1,A19+1,""),"") ->  | B20: =IFERROR(IF(VLOOKUP(A20,Textvorbereitung!$B$2:$E$360,4,FALSE)=0,"",VLOOKUP(A20,Textvorbereitung!$B$2:$E$360,4,FALSE)),"") -> 
A21: =IFERROR(IF(MAX(Textvorbereitung!B:B)+1>A20+1,A20+1,""),"") ->  | B21: =IFERROR(IF(VLOOKUP(A21,Textvorbereitung!$B$2:$E$360,4,FALSE)=0,"",VLOOKUP(A21,Textvorbereitung!$B$2:$E$360,4,FALSE)),"") -> 
A22: =IFERROR(IF(MAX(Textvorbereitung!B:B)+1>A21+1,A21+1,""),"") ->  | B22: =IFERROR(IF(VLOOKUP(A22,Textvorbereitung!$B$2:$E$360,4,FALSE)=0,"",VLOOKUP(A22,Textvorbereitung!$B$2:$E$360,4,FALSE)),"") -> 
A23: =IFERROR(IF(MAX(Textvorbereitung!B:B)+1>A22+1,A22+1,""),"") ->  | B23: =IFERROR(IF(VLOOKUP(A23,Textvorbereitung!$B$2:$E$360,4,FALSE)=0,"",VLOOKUP(A23,Textvorbereitung!$B$2:$E$360,4,FALSE)),"") -> 
A24: =IFERROR(IF(MAX(Textvorbereitung!B:B)+1>A23+1,A23+1,""),"") ->  | B24: =IFERROR(IF(VLOOKUP(A24,Textvorbereitung!$B$2:$E$360,4,FALSE)=0,"",VLOOKUP(A24,Textvorbereitung!$B$2:$E$360,4,FALSE)),"") -> 
A25: =IFERROR(IF(MAX(Textvorbereitung!B:B)+1>A24+1,A24+1,""),"") ->  | B25: =IFERROR(IF(VLOOKUP(A25,Textvorbereitung!$B$2:$E$360,4,FALSE)=0,"",VLOOKUP(A25,Textvorbereitung!$B$2:$E$360,4,FALSE)),"") -> 
A26: =IFERROR(IF(MAX(Textvorbereitung!B:B)+1>A25+1,A25+1,""),"") ->  | B26: =IFERROR(IF(VLOOKUP(A26,Textvorbereitung!$B$2:$E$360,4,FALSE)=0,"",VLOOKUP(A26,Textvorbereitung!$B$2:$E$360,4,FALSE)),"") -> 
A27: =IFERROR(IF(MAX(Textvorbereitung!B:B)+1>A26+1,A26+1,""),"") ->  | B27: =IFERROR(IF(VLOOKUP(A27,Textvorbereitung!$B$2:$E$360,4,FALSE)=0,"",VLOOKUP(A27,Textvorbereitung!$B$2:$E$360,4,FALSE)),"") -> 
A28: =IFERROR(IF(MAX(Textvorbereitung!B:B)+1>A27+1,A27+1,""),"") ->  | B28: =IFERROR(IF(VLOOKUP(A28,Textvorbereitung!$B$2:$E$360,4,FALSE)=0,"",VLOOKUP(A28,Textvorbereitung!$B$2:$E$360,4,FALSE)),"") -> 
A29: =IFERROR(IF(MAX(Textvorbereitung!B:B)+1>A28+1,A28+1,""),"") ->  | B29: =IFERROR(IF(VLOOKUP(A29,Textvorbereitung!$B$2:$E$360,4,FALSE)=0,"",VLOOKUP(A29,Textvorbereitung!$B$2:$E$360,4,FALSE)),"") -> 
A30: =IFERROR(IF(MAX(Textvorbereitung!B:B)+1>A29+1,A29+1,""),"") ->  | B30: =IFERROR(IF(VLOOKUP(A30,Textvorbereitung!$B$2:$E$360,4,FALSE)=0,"",VLOOKUP(A30,Textvorbereitung!$B$2:$E$360,4,FALSE)),"") -> 
A31: =IFERROR(IF(MAX(Textvorbereitung!B:B)+1>A30+1,A30+1,""),"") ->  | B31: =IFERROR(IF(VLOOKUP(A31,Textvorbereitung!$B$2:$E$360,4,FALSE)=0,"",VLOOKUP(A31,Textvorbereitung!$B$2:$E$360,4,FALSE)),"") -> 
A32: =IFERROR(IF(MAX(Textvorbereitung!B:B)+1>A31+1,A31+1,""),"") ->  | B32: =IFERROR(IF(VLOOKUP(A32,Textvorbereitung!$B$2:$E$360,4,FALSE)=0,"",VLOOKUP(A32,Textvorbereitung!$B$2:$E$360,4,FALSE)),"") -> 
A33: =IFERROR(IF(MAX(Textvorbereitung!B:B)+1>A32+1,A32+1,""),"") ->  | B33: =IFERROR(IF(VLOOKUP(A33,Textvorbereitung!$B$2:$E$360,4,FALSE)=0,"",VLOOKUP(A33,Textvorbereitung!$B$2:$E$360,4,FALSE)),"") -> 
A34: =IFERROR(IF(MAX(Textvorbereitung!B:B)+1>A33+1,A33+1,""),"") ->  | B34: =IFERROR(IF(VLOOKUP(A34,Textvorbereitung!$B$2:$E$360,4,FALSE)=0,"",VLOOKUP(A34,Textvorbereitung!$B$2:$E$360,4,FALSE)),"") -> 
A35: =IFERROR(IF(MAX(Textvorbereitung!B:B)+1>A34+1,A34+1,""),"") ->  | B35: =IFERROR(IF(VLOOKUP(A35,Textvorbereitung!$B$2:$E$360,4,FALSE)=0,"",VLOOKUP(A35,Textvorbereitung!$B$2:$E$360,4,FALSE)),"") -> 
A36: =IFERROR(IF(MAX(Textvorbereitung!B:B)+1>A35+1,A35+1,""),"") ->  | B36: =IFERROR(IF(VLOOKUP(A36,Textvorbereitung!$B$2:$E$360,4,FALSE)=0,"",VLOOKUP(A36,Textvorbereitung!$B$2:$E$360,4,FALSE)),"") -> 
A37: =IFERROR(IF(MAX(Textvorbereitung!B:B)+1>A36+1,A36+1,""),"") ->  | B37: =IFERROR(IF(VLOOKUP(A37,Textvorbereitung!$B$2:$E$360,4,FALSE)=0,"",VLOOKUP(A37,Textvorbereitung!$B$2:$E$360,4,FALSE)),"") -> 
A38: =IFERROR(IF(MAX(Textvorbereitung!B:B)+1>A37+1,A37+1,""),"") ->  | B38: =IFERROR(IF(VLOOKUP(A38,Textvorbereitung!$B$2:$E$360,4,FALSE)=0,"",VLOOKUP(A38,Textvorbereitung!$B$2:$E$360,4,FALSE)),"") -> 
A39: =IFERROR(IF(MAX(Textvorbereitung!B:B)+1>A38+1,A38+1,""),"") ->  | B39: =IFERROR(IF(VLOOKUP(A39,Textvorbereitung!$B$2:$E$360,4,FALSE)=0,"",VLOOKUP(A39,Textvorbereitung!$B$2:$E$360,4,FALSE)),"") -> 
A40: =IFERROR(IF(MAX(Textvorbereitung!B:B)+1>A39+1,A39+1,""),"") ->  | B40: =IFERROR(IF(VLOOKUP(A40,Textvorbereitung!$B$2:$E$360,4,FALSE)=0,"",VLOOKUP(A40,Textvorbereitung!$B$2:$E$360,4,FALSE)),"") -> 
A41: =IFERROR(IF(MAX(Textvorbereitung!B:B)+1>A40+1,A40+1,""),"") ->  | B41: =IFERROR(IF(VLOOKUP(A41,Textvorbereitung!$B$2:$E$360,4,FALSE)=0,"",VLOOKUP(A41,Textvorbereitung!$B$2:$E$360,4,FALSE)),"") -> 
A42: =IFERROR(IF(MAX(Textvorbereitung!B:B)+1>A41+1,A41+1,""),"") ->  | B42: =IFERROR(IF(VLOOKUP(A42,Textvorbereitung!$B$2:$E$360,4,FALSE)=0,"",VLOOKUP(A42,Textvorbereitung!$B$2:$E$360,4,FALSE)),"") -> 
A43: =IFERROR(IF(MAX(Textvorbereitung!B:B)+1>A42+1,A42+1,""),"") ->  | B43: =IFERROR(IF(VLOOKUP(A43,Textvorbereitung!$B$2:$E$360,4,FALSE)=0,"",VLOOKUP(A43,Textvorbereitung!$B$2:$E$360,4,FALSE)),"") -> 
A44: =IFERROR(IF(MAX(Textvorbereitung!B:B)+1>A43+1,A43+1,""),"") ->  | B44: =IFERROR(IF(VLOOKUP(A44,Textvorbereitung!$B$2:$E$360,4,FALSE)=0,"",VLOOKUP(A44,Textvorbereitung!$B$2:$E$360,4,FALSE)),"") -> 
A45: =IFERROR(IF(MAX(Textvorbereitung!B:B)+1>A44+1,A44+1,""),"") ->  | B45: =IFERROR(IF(VLOOKUP(A45,Textvorbereitung!$B$2:$E$360,4,FALSE)=0,"",VLOOKUP(A45,Textvorbereitung!$B$2:$E$360,4,FALSE)),"") -> 
A46: =IFERROR(IF(MAX(Textvorbereitung!B:B)+1>A45+1,A45+1,""),"") ->  | B46: =IFERROR(IF(VLOOKUP(A46,Textvorbereitung!$B$2:$E$360,4,FALSE)=0,"",VLOOKUP(A46,Textvorbereitung!$B$2:$E$360,4,FALSE)),"") -> 
A47: =IFERROR(IF(MAX(Textvorbereitung!B:B)+1>A46+1,A46+1,""),"") ->  | B47: =IFERROR(IF(VLOOKUP(A47,Textvorbereitung!$B$2:$E$360,4,FALSE)=0,"",VLOOKUP(A47,Textvorbereitung!$B$2:$E$360,4,FALSE)),"") -> 
A48: =IFERROR(IF(MAX(Textvorbereitung!B:B)+1>A47+1,A47+1,""),"") ->  | B48: =IFERROR(IF(VLOOKUP(A48,Textvorbereitung!$B$2:$E$360,4,FALSE)=0,"",VLOOKUP(A48,Textvorbereitung!$B$2:$E$360,4,FALSE)),"") -> 
A49: =IFERROR(IF(MAX(Textvorbereitung!B:B)+1>A48+1,A48+1,""),"") ->  | B49: =IFERROR(IF(VLOOKUP(A49,Textvorbereitung!$B$2:$E$360,4,FALSE)=0,"",VLOOKUP(A49,Textvorbereitung!$B$2:$E$360,4,FALSE)),"") -> 
A50: =IFERROR(IF(MAX(Textvorbereitung!B:B)+1>A49+1,A49+1,""),"") ->  | B50: =IFERROR(IF(VLOOKUP(A50,Textvorbereitung!$B$2:$E$360,4,FALSE)=0,"",VLOOKUP(A50,Textvorbereitung!$B$2:$E$360,4,FALSE)),"") -> 
A51: =IFERROR(IF(MAX(Textvorbereitung!B:B)+1>A50+1,A50+1,""),"") ->  | B51: =IFERROR(IF(VLOOKUP(A51,Textvorbereitung!$B$2:$E$360,4,FALSE)=0,"",VLOOKUP(A51,Textvorbereitung!$B$2:$E$360,4,FALSE)),"") -> 
A52: =IFERROR(IF(MAX(Textvorbereitung!B:B)+1>A51+1,A51+1,""),"") ->  | B52: =IFERROR(IF(VLOOKUP(A52,Textvorbereitung!$B$2:$E$360,4,FALSE)=0,"",VLOOKUP(A52,Textvorbereitung!$B$2:$E$360,4,FALSE)),"") -> 
A53: =IFERROR(IF(MAX(Textvorbereitung!B:B)+1>A52+1,A52+1,""),"") ->  | B53: =IFERROR(IF(VLOOKUP(A53,Textvorbereitung!$B$2:$E$360,4,FALSE)=0,"",VLOOKUP(A53,Textvorbereitung!$B$2:$E$360,4,FALSE)),"") -> 
A54: =IFERROR(IF(MAX(Textvorbereitung!B:B)+1>A53+1,A53+1,""),"") ->  | B54: =IFERROR(IF(VLOOKUP(A54,Textvorbereitung!$B$2:$E$360,4,FALSE)=0,"",VLOOKUP(A54,Textvorbereitung!$B$2:$E$360,4,FALSE)),"") -> 
A55: =IFERROR(IF(MAX(Textvorbereitung!B:B)+1>A54+1,A54+1,""),"") ->  | B55: =IFERROR(IF(VLOOKUP(A55,Textvorbereitung!$B$2:$E$360,4,FALSE)=0,"",VLOOKUP(A55,Textvorbereitung!$B$2:$E$360,4,FALSE)),"") -> 
A56: =IFERROR(IF(MAX(Textvorbereitung!B:B)+1>A55+1,A55+1,""),"") ->  | B56: =IFERROR(IF(VLOOKUP(A56,Textvorbereitung!$B$2:$E$360,4,FALSE)=0,"",VLOOKUP(A56,Textvorbereitung!$B$2:$E$360,4,FALSE)),"") -> 
A57: =IFERROR(IF(MAX(Textvorbereitung!B:B)+1>A56+1,A56+1,""),"") ->  | B57: =IFERROR(IF(VLOOKUP(A57,Textvorbereitung!$B$2:$E$360,4,FALSE)=0,"",VLOOKUP(A57,Textvorbereitung!$B$2:$E$360,4,FALSE)),"") -> 
A58: =IFERROR(IF(MAX(Textvorbereitung!B:B)+1>A57+1,A57+1,""),"") ->  | B58: =IFERROR(IF(VLOOKUP(A58,Textvorbereitung!$B$2:$E$360,4,FALSE)=0,"",VLOOKUP(A58,Textvorbereitung!$B$2:$E$360,4,FALSE)),"") -> 
A59: =IFERROR(IF(MAX(Textvorbereitung!B:B)+1>A58+1,A58+1,""),"") ->  | B59: =IFERROR(IF(VLOOKUP(A59,Textvorbereitung!$B$2:$E$360,4,FALSE)=0,"",VLOOKUP(A59,Textvorbereitung!$B$2:$E$360,4,FALSE)),"") -> 
A60: =IFERROR(IF(MAX(Textvorbereitung!B:B)+1>A59+1,A59+1,""),"") ->  | B60: =IFERROR(IF(VLOOKUP(A60,Textvorbereitung!$B$2:$E$360,4,FALSE)=0,"",VLOOKUP(A60,Textvorbereitung!$B$2:$E$360,4,FALSE)),"") -> 
A61: =IFERROR(IF(MAX(Textvorbereitung!B:B)+1>A60+1,A60+1,""),"") ->  | B61: =IFERROR(IF(VLOOKUP(A61,Textvorbereitung!$B$2:$E$360,4,FALSE)=0,"",VLOOKUP(A61,Textvorbereitung!$B$2:$E$360,4,FALSE)),"") -> 
A62: =IFERROR(IF(MAX(Textvorbereitung!B:B)+1>A61+1,A61+1,""),"") ->  | B62: =IFERROR(IF(VLOOKUP(A62,Textvorbereitung!$B$2:$E$360,4,FALSE)=0,"",VLOOKUP(A62,Textvorbereitung!$B$2:$E$360,4,FALSE)),"") -> 
A63: =IFERROR(IF(MAX(Textvorbereitung!B:B)+1>A62+1,A62+1,""),"") ->  | B63: =IFERROR(IF(VLOOKUP(A63,Textvorbereitung!$B$2:$E$360,4,FALSE)=0,"",VLOOKUP(A63,Textvorbereitung!$B$2:$E$360,4,FALSE)),"") -> 
A64: =IFERROR(IF(MAX(Textvorbereitung!B:B)+1>A63+1,A63+1,""),"") ->  | B64: =IFERROR(IF(VLOOKUP(A64,Textvorbereitung!$B$2:$E$360,4,FALSE)=0,"",VLOOKUP(A64,Textvorbereitung!$B$2:$E$360,4,FALSE)),"") -> 
A65: =IFERROR(IF(MAX(Textvorbereitung!B:B)+1>A64+1,A64+1,""),"") ->  | B65: =IFERROR(IF(VLOOKUP(A65,Textvorbereitung!$B$2:$E$360,4,FALSE)=0,"",VLOOKUP(A65,Textvorbereitung!$B$2:$E$360,4,FALSE)),"") -> 
A66: =IFERROR(IF(MAX(Textvorbereitung!B:B)+1>A65+1,A65+1,""),"") ->  | B66: =IFERROR(IF(VLOOKUP(A66,Textvorbereitung!$B$2:$E$360,4,FALSE)=0,"",VLOOKUP(A66,Textvorbereitung!$B$2:$E$360,4,FALSE)),"") -> 
A67: =IFERROR(IF(MAX(Textvorbereitung!B:B)+1>A66+1,A66+1,""),"") ->  | B67: =IFERROR(IF(VLOOKUP(A67,Textvorbereitung!$B$2:$E$360,4,FALSE)=0,"",VLOOKUP(A67,Textvorbereitung!$B$2:$E$360,4,FALSE)),"") -> 
A68: =IFERROR(IF(MAX(Textvorbereitung!B:B)+1>A67+1,A67+1,""),"") ->  | B68: =IFERROR(IF(VLOOKUP(A68,Textvorbereitung!$B$2:$E$360,4,FALSE)=0,"",VLOOKUP(A68,Textvorbereitung!$B$2:$E$360,4,FALSE)),"") -> 
A69: =IFERROR(IF(MAX(Textvorbereitung!B:B)+1>A68+1,A68+1,""),"") ->  | B69: =IFERROR(IF(VLOOKUP(A69,Textvorbereitung!$B$2:$E$360,4,FALSE)=0,"",VLOOKUP(A69,Textvorbereitung!$B$2:$E$360,4,FALSE)),"") -> 
A70: =IFERROR(IF(MAX(Textvorbereitung!B:B)+1>A69+1,A69+1,""),"") ->  | B70: =IFERROR(IF(VLOOKUP(A70,Textvorbereitung!$B$2:$E$360,4,FALSE)=0,"",VLOOKUP(A70,Textvorbereitung!$B$2:$E$360,4,FALSE)),"") -> 
A71: =IFERROR(IF(MAX(Textvorbereitung!B:B)+1>A70+1,A70+1,""),"") ->  | B71: =IFERROR(IF(VLOOKUP(A71,Textvorbereitung!$B$2:$E$360,4,FALSE)=0,"",VLOOKUP(A71,Textvorbereitung!$B$2:$E$360,4,FALSE)),"") -> 
A72: =IFERROR(IF(MAX(Textvorbereitung!B:B)+1>A71+1,A71+1,""),"") ->  | B72: =IFERROR(IF(VLOOKUP(A72,Textvorbereitung!$B$2:$E$360,4,FALSE)=0,"",VLOOKUP(A72,Textvorbereitung!$B$2:$E$360,4,FALSE)),"") -> 
A73: =IFERROR(IF(MAX(Textvorbereitung!B:B)+1>A72+1,A72+1,""),"") ->  | B73: =IFERROR(IF(VLOOKUP(A73,Textvorbereitung!$B$2:$E$360,4,FALSE)=0,"",VLOOKUP(A73,Textvorbereitung!$B$2:$E$360,4,FALSE)),"") -> 
A74: =IFERROR(IF(MAX(Textvorbereitung!B:B)+1>A73+1,A73+1,""),"") ->  | B74: =IFERROR(IF(VLOOKUP(A74,Textvorbereitung!$B$2:$E$360,4,FALSE)=0,"",VLOOKUP(A74,Textvorbereitung!$B$2:$E$360,4,FALSE)),"") -> 
A75: =IFERROR(IF(MAX(Textvorbereitung!B:B)+1>A74+1,A74+1,""),"") ->  | B75: =IFERROR(IF(VLOOKUP(A75,Textvorbereitung!$B$2:$E$360,4,FALSE)=0,"",VLOOKUP(A75,Textvorbereitung!$B$2:$E$360,4,FALSE)),"") -> 
A76: =IFERROR(IF(MAX(Textvorbereitung!B:B)+1>A75+1,A75+1,""),"") ->  | B76: =IFERROR(IF(VLOOKUP(A76,Textvorbereitung!$B$2:$E$360,4,FALSE)=0,"",VLOOKUP(A76,Textvorbereitung!$B$2:$E$360,4,FALSE)),"") -> 
A77: =IFERROR(IF(MAX(Textvorbereitung!B:B)+1>A76+1,A76+1,""),"") ->  | B77: =IFERROR(IF(VLOOKUP(A77,Textvorbereitung!$B$2:$E$360,4,FALSE)=0,"",VLOOKUP(A77,Textvorbereitung!$B$2:$E$360,4,FALSE)),"") -> 
A78: =IFERROR(IF(MAX(Textvorbereitung!B:B)+1>A77+1,A77+1,""),"") ->  | B78: =IFERROR(IF(VLOOKUP(A78,Textvorbereitung!$B$2:$E$360,4,FALSE)=0,"",VLOOKUP(A78,Textvorbereitung!$B$2:$E$360,4,FALSE)),"") -> 
A79: =IFERROR(IF(MAX(Textvorbereitung!B:B)+1>A78+1,A78+1,""),"") ->  | B79: =IFERROR(IF(VLOOKUP(A79,Textvorbereitung!$B$2:$E$360,4,FALSE)=0,"",VLOOKUP(A79,Textvorbereitung!$B$2:$E$360,4,FALSE)),"") -> 
A80: =IFERROR(IF(MAX(Textvorbereitung!B:B)+1>A79+1,A79+1,""),"") ->  | B80: =IFERROR(IF(VLOOKUP(A80,Textvorbereitung!$B$2:$E$360,4,FALSE)=0,"",VLOOKUP(A80,Textvorbereitung!$B$2:$E$360,4,FALSE)),"") -> 
A81: =IFERROR(IF(MAX(Textvorbereitung!B:B)+1>A80+1,A80+1,""),"") ->  | B81: =IFERROR(IF(VLOOKUP(A81,Textvorbereitung!$B$2:$E$360,4,FALSE)=0,"",VLOOKUP(A81,Textvorbereitung!$B$2:$E$360,4,FALSE)),"") -> 
A82: =IFERROR(IF(MAX(Textvorbereitung!B:B)+1>A81+1,A81+1,""),"") ->  | B82: =IFERROR(IF(VLOOKUP(A82,Textvorbereitung!$B$2:$E$360,4,FALSE)=0,"",VLOOKUP(A82,Textvorbereitung!$B$2:$E$360,4,FALSE)),"") -> 
A83: =IFERROR(IF(MAX(Textvorbereitung!B:B)+1>A82+1,A82+1,""),"") ->  | B83: =IFERROR(IF(VLOOKUP(A83,Textvorbereitung!$B$2:$E$360,4,FALSE)=0,"",VLOOKUP(A83,Textvorbereitung!$B$2:$E$360,4,FALSE)),"") -> 
A84: =IFERROR(IF(MAX(Textvorbereitung!B:B)+1>A83+1,A83+1,""),"") ->  | B84: =IFERROR(IF(VLOOKUP(A84,Textvorbereitung!$B$2:$E$360,4,FALSE)=0,"",VLOOKUP(A84,Textvorbereitung!$B$2:$E$360,4,FALSE)),"") -> 
A85: =IFERROR(IF(MAX(Textvorbereitung!B:B)+1>A84+1,A84+1,""),"") ->  | B85: =IFERROR(IF(VLOOKUP(A85,Textvorbereitung!$B$2:$E$360,4,FALSE)=0,"",VLOOKUP(A85,Textvorbereitung!$B$2:$E$360,4,FALSE)),"") -> 
A86: =IFERROR(IF(MAX(Textvorbereitung!B:B)+1>A85+1,A85+1,""),"") ->  | B86: =IFERROR(IF(VLOOKUP(A86,Textvorbereitung!$B$2:$E$360,4,FALSE)=0,"",VLOOKUP(A86,Textvorbereitung!$B$2:$E$360,4,FALSE)),"") -> 
A87: =IFERROR(IF(MAX(Textvorbereitung!B:B)+1>A86+1,A86+1,""),"") ->  | B87: =IFERROR(IF(VLOOKUP(A87,Textvorbereitung!$B$2:$E$360,4,FALSE)=0,"",VLOOKUP(A87,Textvorbereitung!$B$2:$E$360,4,FALSE)),"") -> 
A88: =IFERROR(IF(MAX(Textvorbereitung!B:B)+1>A87+1,A87+1,""),"") ->  | B88: =IFERROR(IF(VLOOKUP(A88,Textvorbereitung!$B$2:$E$360,4,FALSE)=0,"",VLOOKUP(A88,Textvorbereitung!$B$2:$E$360,4,FALSE)),"") -> 
A89: =IFERROR(IF(MAX(Textvorbereitung!B:B)+1>A88+1,A88+1,""),"") ->  | B89: =IFERROR(IF(VLOOKUP(A89,Textvorbereitung!$B$2:$E$360,4,FALSE)=0,"",VLOOKUP(A89,Textvorbereitung!$B$2:$E$360,4,FALSE)),"") -> 
A90: =IFERROR(IF(MAX(Textvorbereitung!B:B)+1>A89+1,A89+1,""),"") ->  | B90: =IFERROR(IF(VLOOKUP(A90,Textvorbereitung!$B$2:$E$360,4,FALSE)=0,"",VLOOKUP(A90,Textvorbereitung!$B$2:$E$360,4,FALSE)),"") -> 
A91: =IFERROR(IF(MAX(Textvorbereitung!B:B)+1>A90+1,A90+1,""),"") ->  | B91: =IFERROR(IF(VLOOKUP(A91,Textvorbereitung!$B$2:$E$360,4,FALSE)=0,"",VLOOKUP(A91,Textvorbereitung!$B$2:$E$360,4,FALSE)),"") -> 
A92: =IFERROR(IF(MAX(Textvorbereitung!B:B)+1>A91+1,A91+1,""),"") ->  | B92: =IFERROR(IF(VLOOKUP(A92,Textvorbereitung!$B$2:$E$360,4,FALSE)=0,"",VLOOKUP(A92,Textvorbereitung!$B$2:$E$360,4,FALSE)),"") -> 
A93: =IFERROR(IF(MAX(Textvorbereitung!B:B)+1>A92+1,A92+1,""),"") ->  | B93: =IFERROR(IF(VLOOKUP(A93,Textvorbereitung!$B$2:$E$360,4,FALSE)=0,"",VLOOKUP(A93,Textvorbereitung!$B$2:$E$360,4,FALSE)),"") -> 
A94: =IFERROR(IF(MAX(Textvorbereitung!B:B)+1>A93+1,A93+1,""),"") ->  | B94: =IFERROR(IF(VLOOKUP(A94,Textvorbereitung!$B$2:$E$360,4,FALSE)=0,"",VLOOKUP(A94,Textvorbereitung!$B$2:$E$360,4,FALSE)),"") -> 
A95: =IFERROR(IF(MAX(Textvorbereitung!B:B)+1>A94+1,A94+1,""),"") ->  | B95: =IFERROR(IF(VLOOKUP(A95,Textvorbereitung!$B$2:$E$360,4,FALSE)=0,"",VLOOKUP(A95,Textvorbereitung!$B$2:$E$360,4,FALSE)),"") -> 
A96: =IFERROR(IF(MAX(Textvorbereitung!B:B)+1>A95+1,A95+1,""),"") ->  | B96: =IFERROR(IF(VLOOKUP(A96,Textvorbereitung!$B$2:$E$360,4,FALSE)=0,"",VLOOKUP(A96,Textvorbereitung!$B$2:$E$360,4,FALSE)),"") -> 
A97: =IFERROR(IF(MAX(Textvorbereitung!B:B)+1>A96+1,A96+1,""),"") ->  | B97: =IFERROR(IF(VLOOKUP(A97,Textvorbereitung!$B$2:$E$360,4,FALSE)=0,"",VLOOKUP(A97,Textvorbereitung!$B$2:$E$360,4,FALSE)),"") -> 
A98: =IFERROR(IF(MAX(Textvorbereitung!B:B)+1>A97+1,A97+1,""),"") ->  | B98: =IFERROR(IF(VLOOKUP(A98,Textvorbereitung!$B$2:$E$360,4,FALSE)=0,"",VLOOKUP(A98,Textvorbereitung!$B$2:$E$360,4,FALSE)),"") -> 
A99: =IFERROR(IF(MAX(Textvorbereitung!B:B)+1>A98+1,A98+1,""),"") ->  | B99: =IFERROR(IF(VLOOKUP(A99,Textvorbereitung!$B$2:$E$360,4,FALSE)=0,"",VLOOKUP(A99,Textvorbereitung!$B$2:$E$360,4,FALSE)),"") -> 
A100: =IFERROR(IF(MAX(Textvorbereitung!B:B)+1>A99+1,A99+1,""),"") ->  | B100: =IFERROR(IF(VLOOKUP(A100,Textvorbereitung!$B$2:$E$360,4,FALSE)=0,"",VLOOKUP(A100,Textvorbereitung!$B$2:$E$360,4,FALSE)),"") -> 
A101: =IFERROR(IF(MAX(Textvorbereitung!B:B)+1>A100+1,A100+1,""),"") ->  | B101: =IFERROR(IF(VLOOKUP(A101,Textvorbereitung!$B$2:$E$360,4,FALSE)=0,"",VLOOKUP(A101,Textvorbereitung!$B$2:$E$360,4,FALSE)),"") -> 
A102: =IFERROR(IF(MAX(Textvorbereitung!B:B)+1>A101+1,A101+1,""),"") ->  | B102: =IFERROR(IF(VLOOKUP(A102,Textvorbereitung!$B$2:$E$360,4,FALSE)=0,"",VLOOKUP(A102,Textvorbereitung!$B$2:$E$360,4,FALSE)),"") -> 
A103: =IFERROR(IF(MAX(Textvorbereitung!B:B)+1>A102+1,A102+1,""),"") ->  | B103: =IFERROR(IF(VLOOKUP(A103,Textvorbereitung!$B$2:$E$360,4,FALSE)=0,"",VLOOKUP(A103,Textvorbereitung!$B$2:$E$360,4,FALSE)),"") -> 
A104: =IFERROR(IF(MAX(Textvorbereitung!B:B)+1>A103+1,A103+1,""),"") ->  | B104: =IFERROR(IF(VLOOKUP(A104,Textvorbereitung!$B$2:$E$360,4,FALSE)=0,"",VLOOKUP(A104,Textvorbereitung!$B$2:$E$360,4,FALSE)),"") -> 
A105: =IFERROR(IF(MAX(Textvorbereitung!B:B)+1>A104+1,A104+1,""),"") ->  | B105: =IFERROR(IF(VLOOKUP(A105,Textvorbereitung!$B$2:$E$360,4,FALSE)=0,"",VLOOKUP(A105,Textvorbereitung!$B$2:$E$360,4,FALSE)),"") -> 
A106: =IFERROR(IF(MAX(Textvorbereitung!B:B)+1>A105+1,A105+1,""),"") ->  | B106: =IFERROR(IF(VLOOKUP(A106,Textvorbereitung!$B$2:$E$360,4,FALSE)=0,"",VLOOKUP(A106,Textvorbereitung!$B$2:$E$360,4,FALSE)),"") -> 
A107: =IFERROR(IF(MAX(Textvorbereitung!B:B)+1>A106+1,A106+1,""),"") ->  | B107: =IFERROR(IF(VLOOKUP(A107,Textvorbereitung!$B$2:$E$360,4,FALSE)=0,"",VLOOKUP(A107,Textvorbereitung!$B$2:$E$360,4,FALSE)),"") -> 
A108: =IFERROR(IF(MAX(Textvorbereitung!B:B)+1>A107+1,A107+1,""),"") ->  | B108: =IFERROR(IF(VLOOKUP(A108,Textvorbereitung!$B$2:$E$360,4,FALSE)=0,"",VLOOKUP(A108,Textvorbereitung!$B$2:$E$360,4,FALSE)),"") -> 
A109: =IFERROR(IF(MAX(Textvorbereitung!B:B)+1>A108+1,A108+1,""),"") ->  | B109: =IFERROR(IF(VLOOKUP(A109,Textvorbereitung!$B$2:$E$360,4,FALSE)=0,"",VLOOKUP(A109,Textvorbereitung!$B$2:$E$360,4,FALSE)),"") -> 
A110: =IFERROR(IF(MAX(Textvorbereitung!B:B)+1>A109+1,A109+1,""),"") ->  | B110: =IFERROR(IF(VLOOKUP(A110,Textvorbereitung!$B$2:$E$360,4,FALSE)=0,"",VLOOKUP(A110,Textvorbereitung!$B$2:$E$360,4,FALSE)),"") -> 
A111: =IFERROR(IF(MAX(Textvorbereitung!B:B)+1>A110+1,A110+1,""),"") ->  | B111: =IFERROR(IF(VLOOKUP(A111,Textvorbereitung!$B$2:$E$360,4,FALSE)=0,"",VLOOKUP(A111,Textvorbereitung!$B$2:$E$360,4,FALSE)),"") -> 
A112: =IFERROR(IF(MAX(Textvorbereitung!B:B)+1>A111+1,A111+1,""),"") ->  | B112: =IFERROR(IF(VLOOKUP(A112,Textvorbereitung!$B$2:$E$360,4,FALSE)=0,"",VLOOKUP(A112,Textvorbereitung!$B$2:$E$360,4,FALSE)),"") -> 
A113: =IFERROR(IF(MAX(Textvorbereitung!B:B)+1>A112+1,A112+1,""),"") ->  | B113: =IFERROR(IF(VLOOKUP(A113,Textvorbereitung!$B$2:$E$360,4,FALSE)=0,"",VLOOKUP(A113,Textvorbereitung!$B$2:$E$360,4,FALSE)),"") -> 
A114: =IFERROR(IF(MAX(Textvorbereitung!B:B)+1>A113+1,A113+1,""),"") ->  | B114: =IFERROR(IF(VLOOKUP(A114,Textvorbereitung!$B$2:$E$360,4,FALSE)=0,"",VLOOKUP(A114,Textvorbereitung!$B$2:$E$360,4,FALSE)),"") -> 
A115: =IFERROR(IF(MAX(Textvorbereitung!B:B)+1>A114+1,A114+1,""),"") ->  | B115: =IFERROR(IF(VLOOKUP(A115,Textvorbereitung!$B$2:$E$360,4,FALSE)=0,"",VLOOKUP(A115,Textvorbereitung!$B$2:$E$360,4,FALSE)),"") -> 
A116: =IFERROR(IF(MAX(Textvorbereitung!B:B)+1>A115+1,A115+1,""),"") ->  | B116: =IFERROR(IF(VLOOKUP(A116,Textvorbereitung!$B$2:$E$360,4,FALSE)=0,"",VLOOKUP(A116,Textvorbereitung!$B$2:$E$360,4,FALSE)),"") -> 
A117: =IFERROR(IF(MAX(Textvorbereitung!B:B)+1>A116+1,A116+1,""),"") ->  | B117: =IFERROR(IF(VLOOKUP(A117,Textvorbereitung!$B$2:$E$360,4,FALSE)=0,"",VLOOKUP(A117,Textvorbereitung!$B$2:$E$360,4,FALSE)),"") -> 
A118: =IFERROR(IF(MAX(Textvorbereitung!B:B)+1>A117+1,A117+1,""),"") ->  | B118: =IFERROR(IF(VLOOKUP(A118,Textvorbereitung!$B$2:$E$360,4,FALSE)=0,"",VLOOKUP(A118,Textvorbereitung!$B$2:$E$360,4,FALSE)),"") -> 
A119: =IFERROR(IF(MAX(Textvorbereitung!B:B)+1>A118+1,A118+1,""),"") ->  | B119: =IFERROR(IF(VLOOKUP(A119,Textvorbereitung!$B$2:$E$360,4,FALSE)=0,"",VLOOKUP(A119,Textvorbereitung!$B$2:$E$360,4,FALSE)),"") -> 
A120: =IFERROR(IF(MAX(Textvorbereitung!B:B)+1>A119+1,A119+1,""),"") ->  | B120: =IFERROR(IF(VLOOKUP(A120,Textvorbereitung!$B$2:$E$360,4,FALSE)=0,"",VLOOKUP(A120,Textvorbereitung!$B$2:$E$360,4,FALSE)),"") -> 
A121: =IFERROR(IF(MAX(Textvorbereitung!B:B)+1>A120+1,A120+1,""),"") ->  | B121: =IFERROR(IF(VLOOKUP(A121,Textvorbereitung!$B$2:$E$360,4,FALSE)=0,"",VLOOKUP(A121,Textvorbereitung!$B$2:$E$360,4,FALSE)),"") -> 
A122: =IFERROR(IF(MAX(Textvorbereitung!B:B)+1>A121+1,A121+1,""),"") ->  | B122: =IFERROR(IF(VLOOKUP(A122,Textvorbereitung!$B$2:$E$360,4,FALSE)=0,"",VLOOKUP(A122,Textvorbereitung!$B$2:$E$360,4,FALSE)),"") -> 
A123: =IFERROR(IF(MAX(Textvorbereitung!B:B)+1>A122+1,A122+1,""),"") ->  | B123: =IFERROR(IF(VLOOKUP(A123,Textvorbereitung!$B$2:$E$360,4,FALSE)=0,"",VLOOKUP(A123,Textvorbereitung!$B$2:$E$360,4,FALSE)),"") -> 
A124: =IFERROR(IF(MAX(Textvorbereitung!B:B)+1>A123+1,A123+1,""),"") ->  | B124: =IFERROR(IF(VLOOKUP(A124,Textvorbereitung!$B$2:$E$360,4,FALSE)=0,"",VLOOKUP(A124,Textvorbereitung!$B$2:$E$360,4,FALSE)),"") -> 
A125: =IFERROR(IF(MAX(Textvorbereitung!B:B)+1>A124+1,A124+1,""),"") ->  | B125: =IFERROR(IF(VLOOKUP(A125,Textvorbereitung!$B$2:$E$360,4,FALSE)=0,"",VLOOKUP(A125,Textvorbereitung!$B$2:$E$360,4,FALSE)),"") -> 
A126: =IFERROR(IF(MAX(Textvorbereitung!B:B)+1>A125+1,A125+1,""),"") ->  | B126: =IFERROR(IF(VLOOKUP(A126,Textvorbereitung!$B$2:$E$360,4,FALSE)=0,"",VLOOKUP(A126,Textvorbereitung!$B$2:$E$360,4,FALSE)),"") -> 
A127: =IFERROR(IF(MAX(Textvorbereitung!B:B)+1>A126+1,A126+1,""),"") ->  | B127: =IFERROR(IF(VLOOKUP(A127,Textvorbereitung!$B$2:$E$360,4,FALSE)=0,"",VLOOKUP(A127,Textvorbereitung!$B$2:$E$360,4,FALSE)),"") -> 
A128: =IFERROR(IF(MAX(Textvorbereitung!B:B)+1>A127+1,A127+1,""),"") ->  | B128: =IFERROR(IF(VLOOKUP(A128,Textvorbereitung!$B$2:$E$360,4,FALSE)=0,"",VLOOKUP(A128,Textvorbereitung!$B$2:$E$360,4,FALSE)),"") -> 
A129: =IFERROR(IF(MAX(Textvorbereitung!B:B)+1>A128+1,A128+1,""),"") ->  | B129: =IFERROR(IF(VLOOKUP(A129,Textvorbereitung!$B$2:$E$360,4,FALSE)=0,"",VLOOKUP(A129,Textvorbereitung!$B$2:$E$360,4,FALSE)),"") -> 
A130: =IFERROR(IF(MAX(Textvorbereitung!B:B)+1>A129+1,A129+1,""),"") ->  | B130: =IFERROR(IF(VLOOKUP(A130,Textvorbereitung!$B$2:$E$360,4,FALSE)=0,"",VLOOKUP(A130,Textvorbereitung!$B$2:$E$360,4,FALSE)),"") -> 
A131: =IFERROR(IF(MAX(Textvorbereitung!B:B)+1>A130+1,A130+1,""),"") ->  | B131: =IFERROR(IF(VLOOKUP(A131,Textvorbereitung!$B$2:$E$360,4,FALSE)=0,"",VLOOKUP(A131,Textvorbereitung!$B$2:$E$360,4,FALSE)),"") -> 
A132: =IFERROR(IF(MAX(Textvorbereitung!B:B)+1>A131+1,A131+1,""),"") ->  | B132: =IFERROR(IF(VLOOKUP(A132,Textvorbereitung!$B$2:$E$360,4,FALSE)=0,"",VLOOKUP(A132,Textvorbereitung!$B$2:$E$360,4,FALSE)),"") -> 
A133: =IFERROR(IF(MAX(Textvorbereitung!B:B)+1>A132+1,A132+1,""),"") ->  | B133: =IFERROR(IF(VLOOKUP(A133,Textvorbereitung!$B$2:$E$360,4,FALSE)=0,"",VLOOKUP(A133,Textvorbereitung!$B$2:$E$360,4,FALSE)),"") -> 
A134: =IFERROR(IF(MAX(Textvorbereitung!B:B)+1>A133+1,A133+1,""),"") ->  | B134: =IFERROR(IF(VLOOKUP(A134,Textvorbereitung!$B$2:$E$360,4,FALSE)=0,"",VLOOKUP(A134,Textvorbereitung!$B$2:$E$360,4,FALSE)),"") -> 
A135: =IFERROR(IF(MAX(Textvorbereitung!B:B)+1>A134+1,A134+1,""),"") ->  | B135: =IFERROR(IF(VLOOKUP(A135,Textvorbereitung!$B$2:$E$360,4,FALSE)=0,"",VLOOKUP(A135,Textvorbereitung!$B$2:$E$360,4,FALSE)),"") -> 
A136: =IFERROR(IF(MAX(Textvorbereitung!B:B)+1>A135+1,A135+1,""),"") ->  | B136: =IFERROR(IF(VLOOKUP(A136,Textvorbereitung!$B$2:$E$360,4,FALSE)=0,"",VLOOKUP(A136,Textvorbereitung!$B$2:$E$360,4,FALSE)),"") -> 
A137: =IFERROR(IF(MAX(Textvorbereitung!B:B)+1>A136+1,A136+1,""),"") ->  | B137: =IFERROR(IF(VLOOKUP(A137,Textvorbereitung!$B$2:$E$360,4,FALSE)=0,"",VLOOKUP(A137,Textvorbereitung!$B$2:$E$360,4,FALSE)),"") -> 
A138: =IFERROR(IF(MAX(Textvorbereitung!B:B)+1>A137+1,A137+1,""),"") ->  | B138: =IFERROR(IF(VLOOKUP(A138,Textvorbereitung!$B$2:$E$360,4,FALSE)=0,"",VLOOKUP(A138,Textvorbereitung!$B$2:$E$360,4,FALSE)),"") -> 
A139: =IFERROR(IF(MAX(Textvorbereitung!B:B)+1>A138+1,A138+1,""),"") ->  | B139: =IFERROR(IF(VLOOKUP(A139,Textvorbereitung!$B$2:$E$360,4,FALSE)=0,"",VLOOKUP(A139,Textvorbereitung!$B$2:$E$360,4,FALSE)),"") -> 
A140: =IFERROR(IF(MAX(Textvorbereitung!B:B)+1>A139+1,A139+1,""),"") ->  | B140: =IFERROR(IF(VLOOKUP(A140,Textvorbereitung!$B$2:$E$360,4,FALSE)=0,"",VLOOKUP(A140,Textvorbereitung!$B$2:$E$360,4,FALSE)),"") -> 
A141: =IFERROR(IF(MAX(Textvorbereitung!B:B)+1>A140+1,A140+1,""),"") ->  | B141: =IFERROR(IF(VLOOKUP(A141,Textvorbereitung!$B$2:$E$360,4,FALSE)=0,"",VLOOKUP(A141,Textvorbereitung!$B$2:$E$360,4,FALSE)),"") -> 
A142: =IFERROR(IF(MAX(Textvorbereitung!B:B)+1>A141+1,A141+1,""),"") ->  | B142: =IFERROR(IF(VLOOKUP(A142,Textvorbereitung!$B$2:$E$360,4,FALSE)=0,"",VLOOKUP(A142,Textvorbereitung!$B$2:$E$360,4,FALSE)),"") -> 
A143: =IFERROR(IF(MAX(Textvorbereitung!B:B)+1>A142+1,A142+1,""),"") ->  | B143: =IFERROR(IF(VLOOKUP(A143,Textvorbereitung!$B$2:$E$360,4,FALSE)=0,"",VLOOKUP(A143,Textvorbereitung!$B$2:$E$360,4,FALSE)),"") -> 
A144: =IFERROR(IF(MAX(Textvorbereitung!B:B)+1>A143+1,A143+1,""),"") ->  | B144: =IFERROR(IF(VLOOKUP(A144,Textvorbereitung!$B$2:$E$360,4,FALSE)=0,"",VLOOKUP(A144,Textvorbereitung!$B$2:$E$360,4,FALSE)),"") -> 
A145: =IFERROR(IF(MAX(Textvorbereitung!B:B)+1>A144+1,A144+1,""),"") ->  | B145: =IFERROR(IF(VLOOKUP(A145,Textvorbereitung!$B$2:$E$360,4,FALSE)=0,"",VLOOKUP(A145,Textvorbereitung!$B$2:$E$360,4,FALSE)),"") -> 
A146: =IFERROR(IF(MAX(Textvorbereitung!B:B)+1>A145+1,A145+1,""),"") ->  | B146: =IFERROR(IF(VLOOKUP(A146,Textvorbereitung!$B$2:$E$360,4,FALSE)=0,"",VLOOKUP(A146,Textvorbereitung!$B$2:$E$360,4,FALSE)),"") -> 
A147: =IFERROR(IF(MAX(Textvorbereitung!B:B)+1>A146+1,A146+1,""),"") ->  | B147: =IFERROR(IF(VLOOKUP(A147,Textvorbereitung!$B$2:$E$360,4,FALSE)=0,"",VLOOKUP(A147,Textvorbereitung!$B$2:$E$360,4,FALSE)),"") -> 
A148: =IFERROR(IF(MAX(Textvorbereitung!B:B)+1>A147+1,A147+1,""),"") ->  | B148: =IFERROR(IF(VLOOKUP(A148,Textvorbereitung!$B$2:$E$360,4,FALSE)=0,"",VLOOKUP(A148,Textvorbereitung!$B$2:$E$360,4,FALSE)),"") -> 
A149: =IFERROR(IF(MAX(Textvorbereitung!B:B)+1>A148+1,A148+1,""),"") ->  | B149: =IFERROR(IF(VLOOKUP(A149,Textvorbereitung!$B$2:$E$360,4,FALSE)=0,"",VLOOKUP(A149,Textvorbereitung!$B$2:$E$360,4,FALSE)),"") -> 
A150: =IFERROR(IF(MAX(Textvorbereitung!B:B)+1>A149+1,A149+1,""),"") ->  | B150: =IFERROR(IF(VLOOKUP(A150,Textvorbereitung!$B$2:$E$360,4,FALSE)=0,"",VLOOKUP(A150,Textvorbereitung!$B$2:$E$360,4,FALSE)),"") -> 
A151: =IFERROR(IF(MAX(Textvorbereitung!B:B)+1>A150+1,A150+1,""),"") ->  | B151: =IFERROR(IF(VLOOKUP(A151,Textvorbereitung!$B$2:$E$360,4,FALSE)=0,"",VLOOKUP(A151,Textvorbereitung!$B$2:$E$360,4,FALSE)),"") -> 
A152: =IFERROR(IF(MAX(Textvorbereitung!B:B)+1>A151+1,A151+1,""),"") ->  | B152: =IFERROR(IF(VLOOKUP(A152,Textvorbereitung!$B$2:$E$360,4,FALSE)=0,"",VLOOKUP(A152,Textvorbereitung!$B$2:$E$360,4,FALSE)),"") -> 
A153: =IFERROR(IF(MAX(Textvorbereitung!B:B)+1>A152+1,A152+1,""),"") ->  | B153: =IFERROR(IF(VLOOKUP(A153,Textvorbereitung!$B$2:$E$360,4,FALSE)=0,"",VLOOKUP(A153,Textvorbereitung!$B$2:$E$360,4,FALSE)),"") -> 
A154: =IFERROR(IF(MAX(Textvorbereitung!B:B)+1>A153+1,A153+1,""),"") ->  | B154: =IFERROR(IF(VLOOKUP(A154,Textvorbereitung!$B$2:$E$360,4,FALSE)=0,"",VLOOKUP(A154,Textvorbereitung!$B$2:$E$360,4,FALSE)),"") -> 
A155: =IFERROR(IF(MAX(Textvorbereitung!B:B)+1>A154+1,A154+1,""),"") ->  | B155: =IFERROR(IF(VLOOKUP(A155,Textvorbereitung!$B$2:$E$360,4,FALSE)=0,"",VLOOKUP(A155,Textvorbereitung!$B$2:$E$360,4,FALSE)),"") -> 
A156: =IFERROR(IF(MAX(Textvorbereitung!B:B)+1>A155+1,A155+1,""),"") ->  | B156: =IFERROR(IF(VLOOKUP(A156,Textvorbereitung!$B$2:$E$360,4,FALSE)=0,"",VLOOKUP(A156,Textvorbereitung!$B$2:$E$360,4,FALSE)),"") -> 
A157: =IFERROR(IF(MAX(Textvorbereitung!B:B)+1>A156+1,A156+1,""),"") ->  | B157: =IFERROR(IF(VLOOKUP(A157,Textvorbereitung!$B$2:$E$360,4,FALSE)=0,"",VLOOKUP(A157,Textvorbereitung!$B$2:$E$360,4,FALSE)),"") -> 
A158: =IFERROR(IF(MAX(Textvorbereitung!B:B)+1>A157+1,A157+1,""),"") ->  | B158: =IFERROR(IF(VLOOKUP(A158,Textvorbereitung!$B$2:$E$360,4,FALSE)=0,"",VLOOKUP(A158,Textvorbereitung!$B$2:$E$360,4,FALSE)),"") -> 
A159: =IFERROR(IF(MAX(Textvorbereitung!B:B)+1>A158+1,A158+1,""),"") ->  | B159: =IFERROR(IF(VLOOKUP(A159,Textvorbereitung!$B$2:$E$360,4,FALSE)=0,"",VLOOKUP(A159,Textvorbereitung!$B$2:$E$360,4,FALSE)),"") -> 
A160: =IFERROR(IF(MAX(Textvorbereitung!B:B)+1>A159+1,A159+1,""),"") ->  | B160: =IFERROR(IF(VLOOKUP(A160,Textvorbereitung!$B$2:$E$360,4,FALSE)=0,"",VLOOKUP(A160,Textvorbereitung!$B$2:$E$360,4,FALSE)),"") -> 
A161: =IFERROR(IF(MAX(Textvorbereitung!B:B)+1>A160+1,A160+1,""),"") ->  | B161: =IFERROR(IF(VLOOKUP(A161,Textvorbereitung!$B$2:$E$360,4,FALSE)=0,"",VLOOKUP(A161,Textvorbereitung!$B$2:$E$360,4,FALSE)),"") -> 
A162: =IFERROR(IF(MAX(Textvorbereitung!B:B)+1>A161+1,A161+1,""),"") ->  | B162: =IFERROR(IF(VLOOKUP(A162,Textvorbereitung!$B$2:$E$360,4,FALSE)=0,"",VLOOKUP(A162,Textvorbereitung!$B$2:$E$360,4,FALSE)),"") -> 
A163: =IFERROR(IF(MAX(Textvorbereitung!B:B)+1>A162+1,A162+1,""),"") ->  | B163: =IFERROR(IF(VLOOKUP(A163,Textvorbereitung!$B$2:$E$360,4,FALSE)=0,"",VLOOKUP(A163,Textvorbereitung!$B$2:$E$360,4,FALSE)),"") -> 
A164: =IFERROR(IF(MAX(Textvorbereitung!B:B)+1>A163+1,A163+1,""),"") ->  | B164: =IFERROR(IF(VLOOKUP(A164,Textvorbereitung!$B$2:$E$360,4,FALSE)=0,"",VLOOKUP(A164,Textvorbereitung!$B$2:$E$360,4,FALSE)),"") -> 
A165: =IFERROR(IF(MAX(Textvorbereitung!B:B)+1>A164+1,A164+1,""),"") ->  | B165: =IFERROR(IF(VLOOKUP(A165,Textvorbereitung!$B$2:$E$360,4,FALSE)=0,"",VLOOKUP(A165,Textvorbereitung!$B$2:$E$360,4,FALSE)),"") -> 
A166: =IFERROR(IF(MAX(Textvorbereitung!B:B)+1>A165+1,A165+1,""),"") ->  | B166: =IFERROR(IF(VLOOKUP(A166,Textvorbereitung!$B$2:$E$360,4,FALSE)=0,"",VLOOKUP(A166,Textvorbereitung!$B$2:$E$360,4,FALSE)),"") -> 
A167: =IFERROR(IF(MAX(Textvorbereitung!B:B)+1>A166+1,A166+1,""),"") ->  | B167: =IFERROR(IF(VLOOKUP(A167,Textvorbereitung!$B$2:$E$360,4,FALSE)=0,"",VLOOKUP(A167,Textvorbereitung!$B$2:$E$360,4,FALSE)),"") -> 
A168: =IFERROR(IF(MAX(Textvorbereitung!B:B)+1>A167+1,A167+1,""),"") ->  | B168: =IFERROR(IF(VLOOKUP(A168,Textvorbereitung!$B$2:$E$360,4,FALSE)=0,"",VLOOKUP(A168,Textvorbereitung!$B$2:$E$360,4,FALSE)),"") -> 
A169: =IFERROR(IF(MAX(Textvorbereitung!B:B)+1>A168+1,A168+1,""),"") ->  | B169: =IFERROR(IF(VLOOKUP(A169,Textvorbereitung!$B$2:$E$360,4,FALSE)=0,"",VLOOKUP(A169,Textvorbereitung!$B$2:$E$360,4,FALSE)),"") -> 
A170: =IFERROR(IF(MAX(Textvorbereitung!B:B)+1>A169+1,A169+1,""),"") ->  | B170: =IFERROR(IF(VLOOKUP(A170,Textvorbereitung!$B$2:$E$360,4,FALSE)=0,"",VLOOKUP(A170,Textvorbereitung!$B$2:$E$360,4,FALSE)),"") -> 
A171: =IFERROR(IF(MAX(Textvorbereitung!B:B)+1>A170+1,A170+1,""),"") ->  | B171: =IFERROR(IF(VLOOKUP(A171,Textvorbereitung!$B$2:$E$360,4,FALSE)=0,"",VLOOKUP(A171,Textvorbereitung!$B$2:$E$360,4,FALSE)),"") -> 
A172: =IFERROR(IF(MAX(Textvorbereitung!B:B)+1>A171+1,A171+1,""),"") ->  | B172: =IFERROR(IF(VLOOKUP(A172,Textvorbereitung!$B$2:$E$360,4,FALSE)=0,"",VLOOKUP(A172,Textvorbereitung!$B$2:$E$360,4,FALSE)),"") -> 
A173: =IFERROR(IF(MAX(Textvorbereitung!B:B)+1>A172+1,A172+1,""),"") ->  | B173: =IFERROR(IF(VLOOKUP(A173,Textvorbereitung!$B$2:$E$360,4,FALSE)=0,"",VLOOKUP(A173,Textvorbereitung!$B$2:$E$360,4,FALSE)),"") -> 
A174: =IFERROR(IF(MAX(Textvorbereitung!B:B)+1>A173+1,A173+1,""),"") ->  | B174: =IFERROR(IF(VLOOKUP(A174,Textvorbereitung!$B$2:$E$360,4,FALSE)=0,"",VLOOKUP(A174,Textvorbereitung!$B$2:$E$360,4,FALSE)),"") -> 
A175: =IFERROR(IF(MAX(Textvorbereitung!B:B)+1>A174+1,A174+1,""),"") ->  | B175: =IFERROR(IF(VLOOKUP(A175,Textvorbereitung!$B$2:$E$360,4,FALSE)=0,"",VLOOKUP(A175,Textvorbereitung!$B$2:$E$360,4,FALSE)),"") -> 
A176: =IFERROR(IF(MAX(Textvorbereitung!B:B)+1>A175+1,A175+1,""),"") ->  | B176: =IFERROR(IF(VLOOKUP(A176,Textvorbereitung!$B$2:$E$360,4,FALSE)=0,"",VLOOKUP(A176,Textvorbereitung!$B$2:$E$360,4,FALSE)),"") -> 
A177: =IFERROR(IF(MAX(Textvorbereitung!B:B)+1>A176+1,A176+1,""),"") ->  | B177: =IFERROR(IF(VLOOKUP(A177,Textvorbereitung!$B$2:$E$360,4,FALSE)=0,"",VLOOKUP(A177,Textvorbereitung!$B$2:$E$360,4,FALSE)),"") -> 
A178: =IFERROR(IF(MAX(Textvorbereitung!B:B)+1>A177+1,A177+1,""),"") ->  | B178: =IFERROR(IF(VLOOKUP(A178,Textvorbereitung!$B$2:$E$360,4,FALSE)=0,"",VLOOKUP(A178,Textvorbereitung!$B$2:$E$360,4,FALSE)),"") -> 
A179: =IFERROR(IF(MAX(Textvorbereitung!B:B)+1>A178+1,A178+1,""),"") ->  | B179: =IFERROR(IF(VLOOKUP(A179,Textvorbereitung!$B$2:$E$360,4,FALSE)=0,"",VLOOKUP(A179,Textvorbereitung!$B$2:$E$360,4,FALSE)),"") -> 
A180: =IFERROR(IF(MAX(Textvorbereitung!B:B)+1>A179+1,A179+1,""),"") ->  | B180: =IFERROR(IF(VLOOKUP(A180,Textvorbereitung!$B$2:$E$360,4,FALSE)=0,"",VLOOKUP(A180,Textvorbereitung!$B$2:$E$360,4,FALSE)),"") -> 
A181: =IFERROR(IF(MAX(Textvorbereitung!B:B)+1>A180+1,A180+1,""),"") ->  | B181: =IFERROR(IF(VLOOKUP(A181,Textvorbereitung!$B$2:$E$360,4,FALSE)=0,"",VLOOKUP(A181,Textvorbereitung!$B$2:$E$360,4,FALSE)),"") -> 
A182: =IFERROR(IF(MAX(Textvorbereitung!B:B)+1>A181+1,A181+1,""),"") ->  | B182: =IFERROR(IF(VLOOKUP(A182,Textvorbereitung!$B$2:$E$360,4,FALSE)=0,"",VLOOKUP(A182,Textvorbereitung!$B$2:$E$360,4,FALSE)),"") -> 
A183: =IFERROR(IF(MAX(Textvorbereitung!B:B)+1>A182+1,A182+1,""),"") ->  | B183: =IFERROR(IF(VLOOKUP(A183,Textvorbereitung!$B$2:$E$360,4,FALSE)=0,"",VLOOKUP(A183,Textvorbereitung!$B$2:$E$360,4,FALSE)),"") -> 
A184: =IFERROR(IF(MAX(Textvorbereitung!B:B)+1>A183+1,A183+1,""),"") ->  | B184: =IFERROR(IF(VLOOKUP(A184,Textvorbereitung!$B$2:$E$360,4,FALSE)=0,"",VLOOKUP(A184,Textvorbereitung!$B$2:$E$360,4,FALSE)),"") -> 
A185: =IFERROR(IF(MAX(Textvorbereitung!B:B)+1>A184+1,A184+1,""),"") ->  | B185: =IFERROR(IF(VLOOKUP(A185,Textvorbereitung!$B$2:$E$360,4,FALSE)=0,"",VLOOKUP(A185,Textvorbereitung!$B$2:$E$360,4,FALSE)),"") -> 
A186: =IFERROR(IF(MAX(Textvorbereitung!B:B)+1>A185+1,A185+1,""),"") ->  | B186: =IFERROR(IF(VLOOKUP(A186,Textvorbereitung!$B$2:$E$360,4,FALSE)=0,"",VLOOKUP(A186,Textvorbereitung!$B$2:$E$360,4,FALSE)),"") -> 
A187: =IFERROR(IF(MAX(Textvorbereitung!B:B)+1>A186+1,A186+1,""),"") ->  | B187: =IFERROR(IF(VLOOKUP(A187,Textvorbereitung!$B$2:$E$360,4,FALSE)=0,"",VLOOKUP(A187,Textvorbereitung!$B$2:$E$360,4,FALSE)),"") -> 
A188: =IFERROR(IF(MAX(Textvorbereitung!B:B)+1>A187+1,A187+1,""),"") ->  | B188: =IFERROR(IF(VLOOKUP(A188,Textvorbereitung!$B$2:$E$360,4,FALSE)=0,"",VLOOKUP(A188,Textvorbereitung!$B$2:$E$360,4,FALSE)),"") -> 
A189: =IFERROR(IF(MAX(Textvorbereitung!B:B)+1>A188+1,A188+1,""),"") ->  | B189: =IFERROR(IF(VLOOKUP(A189,Textvorbereitung!$B$2:$E$360,4,FALSE)=0,"",VLOOKUP(A189,Textvorbereitung!$B$2:$E$360,4,FALSE)),"") -> 
A190: =IFERROR(IF(MAX(Textvorbereitung!B:B)+1>A189+1,A189+1,""),"") ->  | B190: =IFERROR(IF(VLOOKUP(A190,Textvorbereitung!$B$2:$E$360,4,FALSE)=0,"",VLOOKUP(A190,Textvorbereitung!$B$2:$E$360,4,FALSE)),"") -> 
A191: =IFERROR(IF(MAX(Textvorbereitung!B:B)+1>A190+1,A190+1,""),"") ->  | B191: =IFERROR(IF(VLOOKUP(A191,Textvorbereitung!$B$2:$E$360,4,FALSE)=0,"",VLOOKUP(A191,Textvorbereitung!$B$2:$E$360,4,FALSE)),"") -> 
A192: =IFERROR(IF(MAX(Textvorbereitung!B:B)+1>A191+1,A191+1,""),"") ->  | B192: =IFERROR(IF(VLOOKUP(A192,Textvorbereitung!$B$2:$E$360,4,FALSE)=0,"",VLOOKUP(A192,Textvorbereitung!$B$2:$E$360,4,FALSE)),"") -> 
A193: =IFERROR(IF(MAX(Textvorbereitung!B:B)+1>A192+1,A192+1,""),"") ->  | B193: =IFERROR(IF(VLOOKUP(A193,Textvorbereitung!$B$2:$E$360,4,FALSE)=0,"",VLOOKUP(A193,Textvorbereitung!$B$2:$E$360,4,FALSE)),"") -> 
A194: =IFERROR(IF(MAX(Textvorbereitung!B:B)+1>A193+1,A193+1,""),"") ->  | B194: =IFERROR(IF(VLOOKUP(A194,Textvorbereitung!$B$2:$E$360,4,FALSE)=0,"",VLOOKUP(A194,Textvorbereitung!$B$2:$E$360,4,FALSE)),"") -> 
A195: =IFERROR(IF(MAX(Textvorbereitung!B:B)+1>A194+1,A194+1,""),"") ->  | B195: =IFERROR(IF(VLOOKUP(A195,Textvorbereitung!$B$2:$E$360,4,FALSE)=0,"",VLOOKUP(A195,Textvorbereitung!$B$2:$E$360,4,FALSE)),"") -> 
A196: =IFERROR(IF(MAX(Textvorbereitung!B:B)+1>A195+1,A195+1,""),"") ->  | B196: =IFERROR(IF(VLOOKUP(A196,Textvorbereitung!$B$2:$E$360,4,FALSE)=0,"",VLOOKUP(A196,Textvorbereitung!$B$2:$E$360,4,FALSE)),"") -> 
A197: =IFERROR(IF(MAX(Textvorbereitung!B:B)+1>A196+1,A196+1,""),"") ->  | B197: =IFERROR(IF(VLOOKUP(A197,Textvorbereitung!$B$2:$E$360,4,FALSE)=0,"",VLOOKUP(A197,Textvorbereitung!$B$2:$E$360,4,FALSE)),"") -> 
A198: =IFERROR(IF(MAX(Textvorbereitung!B:B)+1>A197+1,A197+1,""),"") ->  | B198: =IFERROR(IF(VLOOKUP(A198,Textvorbereitung!$B$2:$E$360,4,FALSE)=0,"",VLOOKUP(A198,Textvorbereitung!$B$2:$E$360,4,FALSE)),"") -> 
A199: =IFERROR(IF(MAX(Textvorbereitung!B:B)+1>A198+1,A198+1,""),"") ->  | B199: =IFERROR(IF(VLOOKUP(A199,Textvorbereitung!$B$2:$E$360,4,FALSE)=0,"",VLOOKUP(A199,Textvorbereitung!$B$2:$E$360,4,FALSE)),"") -> 
A200: =IFERROR(IF(MAX(Textvorbereitung!B:B)+1>A199+1,A199+1,""),"") ->  | B200: =IFERROR(IF(VLOOKUP(A200,Textvorbereitung!$B$2:$E$360,4,FALSE)=0,"",VLOOKUP(A200,Textvorbereitung!$B$2:$E$360,4,FALSE)),"") -> 
... 222 more rows

Sheet Heating Guru (hidden)
A1: 1 | B1: =IFERROR(IF(VLOOKUP(A1,Textvorbereitung!$A$2:$E$360,5,FALSE)=0,"",MID(VLOOKUP(A1,Textvorbereitung!$A$2:$E$360,5,FALSE),24,999)),"") -> 
A2: 2 | B2: =IFERROR(IF(VLOOKUP(A2,Textvorbereitung!$A$2:$E$360,5,FALSE)=0,"",MID(VLOOKUP(A2,Textvorbereitung!$A$2:$E$360,5,FALSE),6,999)),"") -> 
A3: =IFERROR(IF(MAX(Textvorbereitung!A:A)+1>A2+1,A2+1,""),"") ->  | B3: =IFERROR(IF(VLOOKUP(A3,Textvorbereitung!$A$2:$E$360,5,FALSE)=0,"",MID(VLOOKUP(A3,Textvorbereitung!$A$2:$E$360,5,FALSE),6,999)),"") -> 
A4: =IFERROR(IF(MAX(Textvorbereitung!A:A)+1>A3+1,A3+1,""),"") ->  | B4: =IFERROR(IF(VLOOKUP(A4,Textvorbereitung!$A$2:$E$360,5,FALSE)=0,"",MID(VLOOKUP(A4,Textvorbereitung!$A$2:$E$360,5,FALSE),6,999)),"") -> 
A5: =IFERROR(IF(MAX(Textvorbereitung!A:A)+1>A4+1,A4+1,""),"") ->  | B5: =IFERROR(IF(VLOOKUP(A5,Textvorbereitung!$A$2:$E$360,5,FALSE)=0,"",MID(VLOOKUP(A5,Textvorbereitung!$A$2:$E$360,5,FALSE),6,999)),"") -> 
A6: =IFERROR(IF(MAX(Textvorbereitung!A:A)+1>A5+1,A5+1,""),"") ->  | B6: =IFERROR(IF(VLOOKUP(A6,Textvorbereitung!$A$2:$E$360,5,FALSE)=0,"",MID(VLOOKUP(A6,Textvorbereitung!$A$2:$E$360,5,FALSE),6,999)),"") -> 
A7: =IFERROR(IF(MAX(Textvorbereitung!A:A)+1>A6+1,A6+1,""),"") ->  | B7: =IFERROR(IF(VLOOKUP(A7,Textvorbereitung!$A$2:$E$360,5,FALSE)=0,"",MID(VLOOKUP(A7,Textvorbereitung!$A$2:$E$360,5,FALSE),6,999)),"") -> 
A8: =IFERROR(IF(MAX(Textvorbereitung!A:A)+1>A7+1,A7+1,""),"") ->  | B8: =IFERROR(IF(VLOOKUP(A8,Textvorbereitung!$A$2:$E$360,5,FALSE)=0,"",MID(VLOOKUP(A8,Textvorbereitung!$A$2:$E$360,5,FALSE),6,999)),"") -> 
A9: =IFERROR(IF(MAX(Textvorbereitung!A:A)+1>A8+1,A8+1,""),"") ->  | B9: =IFERROR(IF(VLOOKUP(A9,Textvorbereitung!$A$2:$E$360,5,FALSE)=0,"",MID(VLOOKUP(A9,Textvorbereitung!$A$2:$E$360,5,FALSE),6,999)),"") -> 
A10: =IFERROR(IF(MAX(Textvorbereitung!A:A)+1>A9+1,A9+1,""),"") ->  | B10: =IFERROR(IF(VLOOKUP(A10,Textvorbereitung!$A$2:$E$360,5,FALSE)=0,"",MID(VLOOKUP(A10,Textvorbereitung!$A$2:$E$360,5,FALSE),6,999)),"") -> 
A11: =IFERROR(IF(MAX(Textvorbereitung!A:A)+1>A10+1,A10+1,""),"") ->  | B11: =IFERROR(IF(VLOOKUP(A11,Textvorbereitung!$A$2:$E$360,5,FALSE)=0,"",MID(VLOOKUP(A11,Textvorbereitung!$A$2:$E$360,5,FALSE),6,999)),"") -> 
A12: =IFERROR(IF(MAX(Textvorbereitung!A:A)+1>A11+1,A11+1,""),"") ->  | B12: =IFERROR(IF(VLOOKUP(A12,Textvorbereitung!$A$2:$E$360,5,FALSE)=0,"",MID(VLOOKUP(A12,Textvorbereitung!$A$2:$E$360,5,FALSE),6,999)),"") -> 
A13: =IFERROR(IF(MAX(Textvorbereitung!A:A)+1>A12+1,A12+1,""),"") ->  | B13: =IFERROR(IF(VLOOKUP(A13,Textvorbereitung!$A$2:$E$360,5,FALSE)=0,"",MID(VLOOKUP(A13,Textvorbereitung!$A$2:$E$360,5,FALSE),6,999)),"") -> 
A14: =IFERROR(IF(MAX(Textvorbereitung!A:A)+1>A13+1,A13+1,""),"") ->  | B14: =IFERROR(IF(VLOOKUP(A14,Textvorbereitung!$A$2:$E$360,5,FALSE)=0,"",MID(VLOOKUP(A14,Textvorbereitung!$A$2:$E$360,5,FALSE),6,999)),"") -> 
A15: =IFERROR(IF(MAX(Textvorbereitung!A:A)+1>A14+1,A14+1,""),"") ->  | B15: =IFERROR(IF(VLOOKUP(A15,Textvorbereitung!$A$2:$E$360,5,FALSE)=0,"",MID(VLOOKUP(A15,Textvorbereitung!$A$2:$E$360,5,FALSE),6,999)),"") -> 
A16: =IFERROR(IF(MAX(Textvorbereitung!A:A)+1>A15+1,A15+1,""),"") ->  | B16: =IFERROR(IF(VLOOKUP(A16,Textvorbereitung!$A$2:$E$360,5,FALSE)=0,"",MID(VLOOKUP(A16,Textvorbereitung!$A$2:$E$360,5,FALSE),6,999)),"") -> 
A17: =IFERROR(IF(MAX(Textvorbereitung!A:A)+1>A16+1,A16+1,""),"") ->  | B17: =IFERROR(IF(VLOOKUP(A17,Textvorbereitung!$A$2:$E$360,5,FALSE)=0,"",MID(VLOOKUP(A17,Textvorbereitung!$A$2:$E$360,5,FALSE),6,999)),"") -> 
A18: =IFERROR(IF(MAX(Textvorbereitung!A:A)+1>A17+1,A17+1,""),"") ->  | B18: =IFERROR(IF(VLOOKUP(A18,Textvorbereitung!$A$2:$E$360,5,FALSE)=0,"",MID(VLOOKUP(A18,Textvorbereitung!$A$2:$E$360,5,FALSE),6,999)),"") -> 
A19: =IFERROR(IF(MAX(Textvorbereitung!A:A)+1>A18+1,A18+1,""),"") ->  | B19: =IFERROR(IF(VLOOKUP(A19,Textvorbereitung!$A$2:$E$360,5,FALSE)=0,"",MID(VLOOKUP(A19,Textvorbereitung!$A$2:$E$360,5,FALSE),6,999)),"") -> 
A20: =IFERROR(IF(MAX(Textvorbereitung!A:A)+1>A19+1,A19+1,""),"") ->  | B20: =IFERROR(IF(VLOOKUP(A20,Textvorbereitung!$A$2:$E$360,5,FALSE)=0,"",MID(VLOOKUP(A20,Textvorbereitung!$A$2:$E$360,5,FALSE),6,999)),"") -> 
A21: =IFERROR(IF(MAX(Textvorbereitung!A:A)+1>A20+1,A20+1,""),"") ->  | B21: =IFERROR(IF(VLOOKUP(A21,Textvorbereitung!$A$2:$E$360,5,FALSE)=0,"",MID(VLOOKUP(A21,Textvorbereitung!$A$2:$E$360,5,FALSE),6,999)),"") -> 
A22: =IFERROR(IF(MAX(Textvorbereitung!A:A)+1>A21+1,A21+1,""),"") ->  | B22: =IFERROR(IF(VLOOKUP(A22,Textvorbereitung!$A$2:$E$360,5,FALSE)=0,"",MID(VLOOKUP(A22,Textvorbereitung!$A$2:$E$360,5,FALSE),6,999)),"") -> 
A23: =IFERROR(IF(MAX(Textvorbereitung!A:A)+1>A22+1,A22+1,""),"") -> 
A24: =IFERROR(IF(MAX(Textvorbereitung!A:A)+1>A23+1,A23+1,""),"") -> 
A25: =IFERROR(IF(MAX(Textvorbereitung!A:A)+1>A24+1,A24+1,""),"") -> 
A26: =IFERROR(IF(MAX(Textvorbereitung!A:A)+1>A25+1,A25+1,""),"") -> 
A27: =IFERROR(IF(MAX(Textvorbereitung!A:A)+1>A26+1,A26+1,""),"") -> 
A28: =IFERROR(IF(MAX(Textvorbereitung!A:A)+1>A27+1,A27+1,""),"") -> 
A29: =IFERROR(IF(MAX(Textvorbereitung!A:A)+1>A28+1,A28+1,""),"") -> 
A30: =IFERROR(IF(MAX(Textvorbereitung!A:A)+1>A29+1,A29+1,""),"") -> 
A31: =IFERROR(IF(MAX(Textvorbereitung!A:A)+1>A30+1,A30+1,""),"") -> 
A32: =IFERROR(IF(MAX(Textvorbereitung!A:A)+1>A31+1,A31+1,""),"") -> 
A33: =IFERROR(IF(MAX(Textvorbereitung!A:A)+1>A32+1,A32+1,""),"") -> 
A34: =IFERROR(IF(MAX(Textvorbereitung!A:A)+1>A33+1,A33+1,""),"") -> 
A35: =IFERROR(IF(MAX(Textvorbereitung!A:A)+1>A34+1,A34+1,""),"") -> 
A36: =IFERROR(IF(MAX(Textvorbereitung!A:A)+1>A35+1,A35+1,""),"") -> 
A37: =IFERROR(IF(MAX(Textvorbereitung!A:A)+1>A36+1,A36+1,""),"") -> 
A38: =IFERROR(IF(MAX(Textvorbereitung!A:A)+1>A37+1,A37+1,""),"") -> 

Sheet Hilfstabelle (hidden)
A2: =IF('Hinweis-Texte'!D3="ja","Heizlast","") ->  | B2: ='Hinweis-Texte'!D8&" kW Heizlast" -> kW Heizlast | C2: ="" -> 
A3: =IF('Hinweis-Texte'!D3="ja","W/m²","") ->  | B3: ='Hinweis-Texte'!$D$8&" m² beheizte Fläche" -> m² beheizte Fläche | C3: =ROUND('Hinweis-Texte'!D9,0)&" W/m² spezifischer Wärmebedarf" -> 0 W/m² spezifischer Wärmebedarf
A4: =IF('Hinweis-Texte'!D3="ja","Erdgas","") ->  | B4: ='Hinweis-Texte'!D$8&" m³ Gasverbrauch -> ca. "&ROUND('Hinweis-Texte'!D9,2)&" kW Heizlast" -> m³ Gasverbrauch -> ca. 0 kW Heizlast | C4: ="" -> 
A5: =IF('Hinweis-Texte'!D3="ja","Heizöl","") ->  | B5: ='Hinweis-Texte'!D$8&" Liter Ölverbrauch -> ca. "&ROUND('Hinweis-Texte'!D9,2)&" kW Heizlast" -> Liter Ölverbrauch -> ca. 0 kW Heizlast | C5: ="" -> 
A6: Strom | B6: ='Hinweis-Texte'!D$8&" kWh Strom -> ca. "&ROUND('Hinweis-Texte'!D9,2)&" kW Heizlast" -> kWh Strom -> ca. 0 kW Heizlast
A7: =IF('Hinweis-Texte'!D3="ja","Energieausweis Q","") ->  | B7: ="Jahresheizwärmebedarf gemäß EnEV-/GEG-Nachweis" -> Jahresheizwärmebedarf gemäß EnEV-/GEG-Nachweis | C7: ="" -> 
A8: keine Auslegung | B8: Dieses Angebot wurde nicht auf Grundlage einer von uns erstellten Auslegung angeboten, sondern nach Kundenwunsch. | C8: Die Dimensionierung der Anlage ist bauseits zu prüfen.
A11: =A2 ->  | B11: kW HL
B12: m² | C12: W/m²
B13: m³ | C13: ca. kW Heizlast
B14: Liter | C14: ca. kW Heizlast
A15: Strom | B15: kWh | C15: ca. kW Heizlast
A18: Ja/Nein
A19: Ja
A20: Nein
A22: Hydraulik
A23: ja ganz genau | B23: ="Hydraulik: hier wurde die Hydraulik "&'Hinweis-Texte'!D22&" vermutet." -> Hydraulik: hier wurde die Hydraulik vermutet.
A24: ja in veränderter Form | B24: ="Hydraulik: hier wurde die Hydraulik "&'Hinweis-Texte'!D22&" in veränderter Form vermutet." -> Hydraulik: hier wurde die Hydraulik in veränderter Form vermutet.
A25: nein | B25: ="" -> 

Sheet Leistungsbedarf (hidden)
A1: Heizleistung Brauchwasser pro Person: | B1: 0.2 | C1: kW
A2: Gesamt: | B2: =IF(Eingabemaske!G18="ja",Eingabemaske!G19*Leistungsbedarf!B1,IF(Eingabemaske!G18="nein",0)) -> 0.8 | C2: kW
A4: Sperrzeit: | B4: =Eingabemaske!G25*Eingabemaske!I25 -> 0 | C4: h
A7: Berechnung aus bekanntem Energiebedarf
H8: =Eingabemaske!K64/100 -> 0
A9: Energiegehalt Heizöl: | B9: 11 | C9: kWh/l
A10: Energiegehalt Gas: | B10: 11 | C10: kWh/m³
A11: Energiebedarf WW pro Person: | B11: 500 | C11: kWh/a
A12: Vollbenutzungsstunden: | B12: 1865 | C12: h/a
A14: Energiegehalt gewählter Brennstoff: | B14: =IF(Eingabemaske!G62="Heizöl",Leistungsbedarf!B9,IF(Eingabemaske!G62="Erdgas",Leistungsbedarf!B10,IF(Eingabemaske!G62="Strom",1))) -> FALSE | G14: Heizlast
A15: Energiegehalt Warmwasser | B15: =IF(Eingabemaske!G63="ja",Eingabemaske!K63*Leistungsbedarf!B11,IF(Eingabemaske!G63="nein",0)) -> FALSE | C15: kWh | G15: =IF(B17>0,B17,IF(B26>0,B26,IF(B34>0,B34,IF(B41>0,B41,0)))) ->  | H15: kW
A17: Gebäudeheizlast | B17: =((Eingabemaske!J62*Leistungsbedarf!B14)*(F51/100)-(B15))/B50 ->  | C17: kW
A19: Leistungsbedarf: | B19: =(B17+B2)*(24/(24-B4)) ->  | C19: kW
G23: Hilfstabelle für B9 in Tabelle Berechnung
A24: Direkteingabe | G24: =B17 ->  | H24: =B19 -> 
G25: =B26 -> 0 | H25: =B28 -> 0.8
A26: Heizlast | B26: =Eingabemaske!G59 -> 0 | C26: kW | G26: =B34 ->  | H26: =B36 -> 
G27: =B41 -> 0 | H27: =B43 -> 0.8
A28: Leistungsbedarf: | B28: =(B26+B2)*(24/(24-B4)) -> 0.8 | C28: kW
A32: Energiepass
A34: Heizlast | B34: =(Eingabemaske!J69/B50)*1.2 ->  | C34: kW
A36: Leistungsbedarf: | B36: =(B34+B2)*(24/(24-B4)) ->  | C36: kW
A39: W/m²
A41: Heizlast | B41: =(Eingabemaske!G56*Eingabemaske!G57)/1000 -> 0 | C41: kW
A43: Leistungsbedarf: | B43: =(B41+B2)*(24/(24-B4)) -> 0.8 | C43: kW
A46: Vollbenutzungsstunden: | B46: Neubau: | C46: 1700 | D46: h
B47: Altbau: | C47: =G49 ->  | D47: h | E47: Gradtagszahl | G47: =VLOOKUP(Eingabemaske!K23,Klimadaten!C:P,13) -> 
B48: Passivhaus: | C48: 1500 | D48: h | E48: Normaußentemperatur | G48: =IFERROR(VLOOKUP(Eingabemaske!K23,Klimadaten!C6:L8204,3),"") ->  | H48: =IF(G48<-16,-16,IF(G48>-8,-8,ROUND(G48,0))) -> -8
E49: Vollbenutzungsstunden | G49: =ROUND(G47*24/(15-G48),0) -> 
B50: =IF(Eingabemaske!G22="Neubau",C46,IF(Eingabemaske!G22="Altbau",C47,IF(Eingabemaske!G22="Passivhaus",C48))) -> 
E51: Wirkungsgrad | F51: =IF(Eingabemaske!G64="Brennwert 90 %",90,IF(Eingabemaske!G64="Niedertemperatur 80 %",80,IF(Eingabemaske!G64="Freie Eingabe",Eingabemaske!K64,IF(Eingabemaske!G64="Nachtspeicher 60 %",60,IF(Eingabemaske!G64="Direktheizung 100 %",100))))) -> FALSE

Sheet Berechnung (hidden)
A2: Heizgrenztemperatur | B2: =IF(Eingabemaske!G22="Altbau",Dropdown!N2,IF(Eingabemaske!G22="Neubau",Dropdown!N3,IF(Eingabemaske!G22="Passivhaus",Dropdown!N4))) -> 15 | C2: x-Achse | E2: Mittelwerte: | F2: =(B2-B3)*2 -> 46
A3: Normaußentemperatur | B3: =Eingabemaske!G23 -> -8 | C3: x-Achse
A5: Heizleistung Brauchwasser | B5: =Eingabemaske!G19*Leistungsbedarf!B11 -> 2000 | C5: kW
A6: VLT | B6: =Eingabemaske!G20 -> 55 | C6: °C
B8: 0 | C8: y-Achse
A9: Heizlast | B9: =SUMIFS(Leistungsbedarf!H24:H27,Leistungsbedarf!G24:G27,">0") -> 0 | C9: y-Achse
A11: Altherma 4 H W - EPSKS 7 kW | C11: =IFERROR(ROUND(G60,2),"") -> 4.22 | D11: =IFERROR(ROUND(A41,2),"") -> 3.7 | H11: Temperatur | I11: -11 | J11: -10.5 | K11: -10 | L11: -9.5 | M11: -9 | N11: -8.5 | O11: -8 | P11: -7.5 | Q11: -7 | R11: -6.5 | S11: -6 | T11: -5.5 | U11: -5 | V11: -4.5 | W11: -4 | X11: -3.5 | Y11: -3 | Z11: -2.5 | AA11: -2 | AB11: -1.5 | AC11: -1 | AD11: -0.5 | AE11: 0 | AF11: 0.5 | AG11: 1 | AH11: 1.5 | AI11: 2 | AJ11: 2.5 | AK11: 3 | AL11: 3.5 | AM11: 4 | AN11: 4.5 | AO11: 5 | AP11: 5.5 | AQ11: 6 | AR11: 6.5 | AS11: 7 | AT11: 7.5 | AU11: 8 | AV11: 8.5 | AW11: 9 | AX11: 9.5 | AY11: 10 | AZ11: 10.5 | BA11: 11 | BB11: 11.5 | BC11: 12 | BD11: 12.5 | BE11: 13 | BF11: 13.5 | BG11: 14 | BH11: 14.5 | BI11: 15
A12: =MATCH(TRUE,I13:BW13>=I12:BW12,0) -> 18 | B12: =LINEST(OFFSET(I13:BW13,0,A12-2,,2),OFFSET(I11:BW11,0,A12-2,,2),1) -> -0.1712 | C12: 6.6306 | D12: =D13 -> -2.756118881 | E12: 0 | F12: 0 | G12: =E13 -> 7.102447552 | H12: Heizlast | I12: 10.4 | J12: 10.2 | K12: 10 | L12: 9.8 | M12: 9.6 | N12: 9.4 | O12: 9.2 | P12: 9 | Q12: 8.8 | R12: 8.6 | S12: 8.4 | T12: 8.2 | U12: 8 | V12: 7.8 | W12: 7.6 | X12: 7.4 | Y12: 7.2 | Z12: 7 | AA12: 6.8 | AB12: 6.6 | AC12: 6.4 | AD12: 6.2 | AE12: 6 | AF12: 5.8 | AG12: 5.6 | AH12: 5.4 | AI12: 5.2 | AJ12: 5 | AK12: 4.8 | AL12: 4.6 | AM12: 4.4 | AN12: 4.2 | AO12: 4 | AP12: 3.8 | AQ12: 3.6 | AR12: 3.4 | AS12: 3.2 | AT12: 3 | AU12: 2.8 | AV12: 2.6 | AW12: 2.4 | AX12: 2.2 | AY12: 2 | AZ12: 1.8 | BA12: 1.6 | BB12: 1.4 | BC12: 1.2 | BD12: 1 | BE12: 0.8 | BF12: 0.6 | BG12: 0.4 | BH12: 0.2 | BI12: 3.830269435e-15
B13: =LINEST(OFFSET(I12:BW12,0,A12-2,,2),OFFSET(I11:BW11,0,A12-2,,2),1) -> -0.4 | C13: 6 | D13: =(C13-C12)/(B12-B13) -> -2.756118881 | E13: =D13*B13+C13 -> 7.102447552 | F13: =D13 -> -2.756118881 | G13: =E13 -> 7.102447552 | H13: Leistung | I13: 7.29983238 | J13: 7.365978333 | K13: 7.432124285 | L13: 7.498270238 | M13: 7.56441619 | N13: 7.630562143 | O13: 7.696708095 | P13: 7.762854048 | Q13: 7.829 | R13: 7.7434 | S13: 7.6578 | T13: 7.5722 | U13: 7.4866 | V13: 7.401 | W13: 7.3154 | X13: 7.2298 | Y13: 7.1442 | Z13: 7.0586 | AA13: 6.973 | AB13: 7.007012139 | AC13: 7.041024278 | AD13: 7.075036417 | AE13: 7.109048556 | AF13: 7.143060695 | AG13: 7.177072834 | AH13: 7.211084973 | AI13: 7.245097112 | AJ13: 7.2722874 | AK13: 7.299477689 | AL13: 7.326667978 | AM13: 7.353858267 | AN13: 7.381048556 | AO13: 7.408238845 | AP13: 7.435429133 | AQ13: 7.462619422 | AR13: 7.489809711 | AS13: 7.517 | AT13: 7.536969467 | AU13: 7.556938934 | AV13: 7.576908401 | AW13: 7.596877868 | AX13: 7.616847334 | AY13: 7.636816801 | AZ13: 7.656786268 | BA13: 7.676755735 | BB13: 7.696725202 | BC13: 7.716694669 | BD13: 7.809234694 | BE13: 7.901774719 | BF13: 7.994314745 | BG13: 8.08685477 | BH13: 8.179394795 | BI13: 8.27193482
B14: =IFERROR(IF(B108="empfohlen","empfohlen",""),"") -> empfohlen | C14: =IFERROR(A58,"") -> 4.12 | D14: 4,5 | E14: 0,086 | F14: =IFERROR(B70,"") -> 4.12 | G14: 3.34 | H14: 3.88 | I14: 5.17 | J14: 0
A19: nach VDI 4650 Blatt 1 - Stand 2016
A20: SCOPH:
F21: COP
A22: =(G27/(G28/F23+G29/G23+G30/H23)) -> 4.219650107 | F22: -7 | G22: 2 | H22: 7
F23: 3.34 | G23: 3.88 | H23: 5.17
F27: FΔϑ | G27: =SUMIFS(Korrekturfaktoren!D2:D65,Korrekturfaktoren!B2:B65,Eingabemaske!G21,Korrekturfaktoren!C2:C65,5) -> 1.051
F28: Fϑ 1 | G28: =SUMIFS(Korrekturfaktoren!F69:F2579,Korrekturfaktoren!B69:B2579,B30,Korrekturfaktoren!C69:C2579,Berechnung!B3,Korrekturfaktoren!D69:D2579,F22,Korrekturfaktoren!E69:E2579,Eingabemaske!G20) -> 0.012 | H28: =SUMIFS(Korrekturfaktoren!G69:G2579,Korrekturfaktoren!B69:B2579,B30,Korrekturfaktoren!C69:C2579,Berechnung!B3,Korrekturfaktoren!D69:D2579,F22,Korrekturfaktoren!E69:E2579,Eingabemaske!G20) -> 0
A29: Hilfswerte: | F29: Fϑ 2 | G29: =SUMIFS(Korrekturfaktoren!F69:F2579,Korrekturfaktoren!B69:B2579,B30,Korrekturfaktoren!C69:C2579,Berechnung!B3,Korrekturfaktoren!D69:D2579,G22,Korrekturfaktoren!E69:E2579,Eingabemaske!G20) -> 0.623 | H29: =SUMIFS(Korrekturfaktoren!G69:G2579,Korrekturfaktoren!B69:B2579,B30,Korrekturfaktoren!C69:C2579,Berechnung!B3,Korrekturfaktoren!D69:D2579,G22,Korrekturfaktoren!E69:E2579,Eingabemaske!G20) -> 0
A30: Heizgrenztemperatur: | B30: =IF(Eingabemaske!G22="Neubau",Dropdown!N3,IF(Eingabemaske!G22="Altbau",Dropdown!N2,IF(Eingabemaske!G22="Passivhaus",Dropdown!N4))) -> 15 | C30: °C | F30: Fϑ 3 | G30: =SUMIFS(Korrekturfaktoren!F69:F2579,Korrekturfaktoren!B69:B2579,B30,Korrekturfaktoren!C69:C2579,Berechnung!B3,Korrekturfaktoren!D69:D2579,H22,Korrekturfaktoren!E69:E2579,Eingabemaske!G20) -> 0.439 | H30: =SUMIFS(Korrekturfaktoren!G69:G2579,Korrekturfaktoren!B69:B2579,B30,Korrekturfaktoren!C69:C2579,Berechnung!B3,Korrekturfaktoren!D69:D2579,H22,Korrekturfaktoren!E69:E2579,Eingabemaske!G20) -> 0
H32: =IF(H28=0,0,IF(H28<>0,(G27/(H28/F23+H29/G23+H30/H23)))) -> 0
G34: Mittelwert: | H34: =(A22+H32)/2 -> 2.109825054
A39: SCOPW: | I39: F1 Korrekturfaktor: | J39: 50 | K39: =C48 -> 1
I40: (inkl. Mittelwerte) | J40: 51 | K40: =$K$39-(($K$39-$K$44)/5*1) -> 0.981
A41: =H23*B53*B52*0.716 -> 3.70172 | J41: 52 | K41: =$K$39-(($K$39-$K$44)/5*2) -> 0.962
J42: 53 | K42: =$K$39-(($K$39-$K$44)/5*3) -> 0.943
J43: 54 | K43: =$K$39-(($K$39-$K$44)/5*4) -> 0.924
J44: 55 | K44: =C49 -> 0.905
J45: 56 | K45: =$K$44-(($K$44-$K$49)/5*1) -> 0.8896
J46: 57 | K46: =$K$44-(($K$44-$K$49)/5*2) -> 0.8742
B47: °C | J47: 58 | K47: =$K$44-(($K$44-$K$49)/5*3) -> 0.8588
A48: Korrekturfaktor F1: | B48: 50 | C48: 1 | J48: 59 | K48: =$K$44-(($K$44-$K$49)/5*4) -> 0.8434
B49: 55 | C49: 0.905 | J49: 60 | K49: =C50 -> 0.828
B50: 60 | C50: 0.828
A52: F1: | B52: =SUMIF(J39:K49,Eingabemaske!G27,K39:K49) -> 1
A53: FΔϑ: | B53: 1
A56: JAZ Gesamt:
A58: =ROUND(1/((1-B63)*B66/G60+B63*B66/A41+1-B66),2) -> 4.12 | G58: SCOPH:
F60: Mittelwert | G60: =IF(H32<>0,H34,IF(H32=0,A22)) -> 4.219650107
A63: y | B63: =IF(Eingabemaske!G18="ja",0.18,IF(Eingabemaske!G18="nein",0)) -> 0.18
D65: Deckungsanteil:
A66: α | B66: =MIN(SUMIFS(C133:C933,B133:B933,D66),1) -> 1 | D66: =IFERROR(MIN(ROUND(ROUND(I13,2)/Eingabemaske!X63*100,1),100),100) -> 100
A70: JAZ monoenergetisch für Hybrid | B70: =ROUND(1/((1-B63)*1/G60+B63*1/A41+1-1),2) -> 4.12
A80: Auswalhkriterien für Produktempfehlung:
A82: 1. | B82: Leistungsbedarf bei Normaußentemp. < Leistung WP bei Normaußentemp. + Leistung Heizstab
A84: 2. | B84: Bivalenzpunkt im Bereich nach folgender Tabelle:
B86: Normaußentemp. | C86: Bivalenzbereich | F86: =SUMIFS(Berechnung!C87:C95,Berechnung!B87:B95,B3) -> -2 | G86: =SUMIFS(Berechnung!D87:D95,Berechnung!B87:B95,B3) -> -5.5
B87: -16 | C87: -6 | D87: -12.5
B88: -15 | C88: -5.5 | D88: -11.5
B89: -14 | C89: -5 | D89: -10.5
B90: -13 | C90: -4.5 | D90: -10
B91: -12 | C91: -4 | D91: -9.5
B92: -11 | C92: -3.5 | D92: -8.5
B93: -10 | C93: -3 | D93: -7.5
B94: -9 | C94: -2.5 | D94: -6.5
B95: -8 | C95: -2 | D95: -5.5
A97: 3. | B97: JAZ > 3,5 (nur Heizen) | C97: JAZ > 3,3 (Heizen/WW)
B98: =IF(Eingabemaske!G18="ja",3.3,IF(Eingabemaske!G18="nein",3.5)) -> 3.3
A100: 4. | B100: Compact wird nur empfohlen wenn Personenzahl <= 5
B101: =IF(Eingabemaske!G19>5,1,IF(Eingabemaske!G19<=5,0)) -> 0 | C101: =IF(ISERROR(FIND("ECH2O",A11)>0),IF(ISERROR(FIND(" F ",A11)>0),0,1),1) -> 0
A103: 1. | B103: =IF(A11="Altherma R Hybrid 5 kW","falsch",IF(A11="Altherma R Hybrid 8 kW","falsch",IF(A11="Altherma H Hybrid 4 kW","falsch",IF(Berechnung!B9<Berechnung!I13+D14-1,"Ok")))) -> Ok | F103: =WENN(I84="Altherma R Hybrid 5 kW";N87;WENN(I84="Altherma R Hybrid 8 kW";N87;WENN(I84="Altherma H Hybrid 4 kW";N87;WENN(K87=0;"-";K87))))
A104: 2. | B104: =IF(AND(AND(LEFT(A11,12)="Altherma 3 M",D13<F86),D13>G86-2),"Ok",IF(AND(D13<F86,D13>G86),"Ok")) -> Ok
A105: 3. | B105: =IF(Berechnung!A58>=B98,"Ok") -> Ok
A106: 4. | B106: =IF(AND(B101=1,C101=1),"falsch","OK") -> OK
B108: =IF(AND(B103="Ok",B104="Ok",B105="Ok",B106="OK"),"empfohlen") -> empfohlen
A116: Leistungsanteil WP / Heizstabanteil: | E116: Derzeit ist die untere detailierte Tabelle im Einsatz
B118: 100 | C118: 0 | D118: (1,00 nach Tabelle)
B119: 90 | C119: 1
B120: 80 | C120: 1
B121: 70 | C121: 0.99
B122: 60 | C122: 0.98
B123: 50 | C123: 0.97
B124: 40 | C124: 0.93
B125: 30 | C125: 0.87
B128: =ROUND((100-Eingabemaske!X69),-1) -> 80 | F128: =ROUNDDOWN(B129,2) -> 0
A129: Heizstab Jahreswärmeedarf: | B129: =MIN(SUMIFS(C133:C933,B133:B933,D129),1) -> 0 | D129: =MIN(ROUND(ROUND(Eingabemaske!Q86,2)/Eingabemaske!X63*100,1),100) ->  | F129: =IF(Berechnung!F128=2,0,IF(Berechnung!F128=0,">13",IF(Berechnung!F128<>1,(1-Berechnung!F128)*100,IF(Berechnung!F128=1,"< 1")))) -> >13 | H129: Stromkosten
I130: =MIN(ROUND(Eingabemaske!Q86/Eingabemaske!X64*100,1),100) -> 
I131: =ROUND(MIN(SUMIFS(C133:C933,B133:B933,I130),1),2) -> 0
A132: Hilfszahlen | I132: kWh WP | J132: kWh HS
A133: 1 | B133: 100 | C133: 1 | D133: (wenn 0% angezeigt werden soll, muss in C91 bis C128 "2" eingetragen werden) | I133: =(((Leistungsbedarf!G15*Leistungsbedarf!B50)+Eingabemaske!G19*500)*I131)/Eingabemaske!K87 ->  | J133: =(((Leistungsbedarf!G15*Leistungsbedarf!B50)+Eingabemaske!G19*500)*(1-I131)) -> 
A134: 2 | B134: 99.9 | C134: =($C$133-(($C$133-$C$233)/100*A133)) -> 1 | I134: Stromkosten | J134: Stromkosten (0,31)
A135: 3 | B135: 99.8 | C135: =($C$133-(($C$133-$C$233)/100*A134)) -> 1 | I135: =ROUND(I133*Eingabemaske!AC68/100,0) ->  | J135: =ROUND(J133*0.31,0) -> 
A136: 4 | B136: 99.7 | C136: 1 | H136: Gesamt: | I136: =IF(Eingabemaske!X69=100,"-",I135+J135) ->  | J136: =IF(Eingabemaske!X69=100,"-",I133+J133) -> 
A137: 5 | B137: 99.6 | C137: 1
A138: 6 | B138: 99.5 | C138: 1
A139: 7 | B139: 99.4 | C139: 1
A140: 8 | B140: 99.3 | C140: 1
A141: 9 | B141: 99.2 | C141: 1
A142: 10 | B142: 99.1 | C142: 1
A143: 11 | B143: 99 | C143: 1
A144: 12 | B144: 98.9 | C144: 1
A145: 13 | B145: 98.8 | C145: 1
A146: 14 | B146: 98.7 | C146: 1
A147: 15 | B147: 98.6 | C147: 1
A148: 16 | B148: 98.5 | C148: 1
A149: 17 | B149: 98.4 | C149: 1
A150: 18 | B150: 98.3 | C150: 1
A151: 19 | B151: 98.2 | C151: 1
A152: 20 | B152: 98.1 | C152: 1
A153: 21 | B153: 98 | C153: 1
A154: 22 | B154: 97.9 | C154: 1
A155: 23 | B155: 97.8 | C155: 1
A156: 24 | B156: 97.7 | C156: 1
A157: 25 | B157: 97.6 | C157: 1
A158: 26 | B158: 97.5 | C158: 1
A159: 27 | B159: 97.4 | C159: 1
A160: 28 | B160: 97.3 | C160: 1
A161: 29 | B161: 97.2 | C161: 1
A162: 30 | B162: 97.1 | C162: 1
A163: 31 | B163: 97 | C163: 1
A164: 32 | B164: 96.9 | C164: 1
A165: 33 | B165: 96.8 | C165: 1
A166: 34 | B166: 96.7 | C166: 1
A167: 35 | B167: 96.6 | C167: 1
A168: 36 | B168: 96.5 | C168: 1
A169: 37 | B169: 96.4 | C169: 1
A170: 38 | B170: 96.3 | C170: 1
A171: 39 | B171: 96.2 | C171: 1
A172: 40 | B172: 96.1 | C172: 1
A173: 41 | B173: 96 | C173: 1
A174: 42 | B174: 95.9 | C174: 1
A175: 43 | B175: 95.8 | C175: 1
A176: 44 | B176: 95.7 | C176: 1
A177: 45 | B177: 95.6 | C177: 1
A178: 46 | B178: 95.5 | C178: 1
A179: 47 | B179: 95.4 | C179: 1
A180: 48 | B180: 95.3 | C180: 1
A181: 49 | B181: 95.2 | C181: 1
A182: 50 | B182: 95.1 | C182: 1
A183: 51 | B183: 95 | C183: 1
A184: 52 | B184: 94.9 | C184: 1
A185: 53 | B185: 94.8 | C185: 1
A186: 54 | B186: 94.7 | C186: 1
A187: 55 | B187: 94.6 | C187: 1
A188: 56 | B188: 94.5 | C188: 1
A189: 57 | B189: 94.4 | C189: 1
A190: 58 | B190: 94.3 | C190: 1
A191: 59 | B191: 94.2 | C191: 1
A192: 60 | B192: 94.1 | C192: 1
A193: 61 | B193: 94 | C193: 1
A194: 62 | B194: 93.9 | C194: 1
A195: 63 | B195: 93.8 | C195: 1
A196: 64 | B196: 93.7 | C196: 1
A197: 65 | B197: 93.6 | C197: 1
A198: 66 | B198: 93.5 | C198: 1
A199: 67 | B199: 93.4 | C199: =($C$133-(($C$133-$C$233)/100*A198)) -> 1
A200: 68 | B200: 93.3 | C200: 1
A201: 69 | B201: 93.2 | C201: 1
A202: 70 | B202: 93.1 | C202: 1
A203: 71 | B203: 93 | C203: 1
A204: 72 | B204: 92.9 | C204: 1
A205: 73 | B205: 92.8 | C205: 1
A206: 74 | B206: 92.7 | C206: 1
A207: 75 | B207: 92.6 | C207: 1
A208: 76 | B208: 92.5 | C208: 1
A209: 77 | B209: 92.4 | C209: 1
A210: 78 | B210: 92.3 | C210: 1
A211: 79 | B211: 92.2 | C211: 1
A212: 80 | B212: 92.1 | C212: 1
A213: 81 | B213: 92 | C213: 1
A214: 82 | B214: 91.9 | C214: 1
A215: 83 | B215: 91.8 | C215: 1
A216: 84 | B216: 91.7 | C216: 1
A217: 85 | B217: 91.6 | C217: 1
A218: 86 | B218: 91.5 | C218: 1
A219: 87 | B219: 91.4 | C219: 1
A220: 88 | B220: 91.3 | C220: 1
A221: 89 | B221: 91.2 | C221: 1
A222: 90 | B222: 91.1 | C222: 1
A223: 91 | B223: 91 | C223: 1
A224: 92 | B224: 90.9 | C224: 1
A225: 93 | B225: 90.8 | C225: 1
A226: 94 | B226: 90.7 | C226: 1
A227: 95 | B227: 90.6 | C227: 1
A228: 96 | B228: 90.5 | C228: 1
A229: 97 | B229: 90.4 | C229: 1
A230: 98 | B230: 90.3 | C230: 1
A231: 99 | B231: 90.2 | C231: 1
B232: 90.1 | C232: 1
B233: 90 | C233: 1
B234: 89.9 | C234: =($C$233-(($C$233-$C$333)/100*A133)) -> 1
B235: 89.8 | C235: =($C$233-(($C$233-$C$333)/100*A134)) -> 1
B236: 89.7 | C236: 1
B237: 89.6 | C237: 1
B238: 89.5 | C238: 1
B239: 89.4 | C239: 1
B240: 89.3 | C240: 1
B241: 89.2 | C241: 1
B242: 89.1 | C242: 1
B243: 89 | C243: 1
B244: 88.9 | C244: 1
B245: 88.8 | C245: 1
B246: 88.7 | C246: 1
B247: 88.6 | C247: 1
B248: 88.5 | C248: 1
B249: 88.4 | C249: 1
B250: 88.3 | C250: 1
B251: 88.2 | C251: 1
B252: 88.1 | C252: 1
B253: 88 | C253: 1
B254: 87.9 | C254: 1
... 679 more rows

Sheet Liste Berechnungen (hidden)
A1: 0 | B1: Bezeichnung WP
A2: 0
A3: 0
A4: 0 | B4: Kriterium 1 | C4: Kriterium 2 | D4: JAZ | E4: Heizstab | F4: Priorisierung
A5: 1 | B5: Altherma 4 H ECH2O 500 8 kW | D5: 4.63 | E5: 3.59 | I5: Temperatur | J5: -11 | K5: -10.5 | L5: -10 | M5: -9.5 | N5: -9 | O5: -8.5 | P5: -8 | Q5: -7.5 | R5: -7 | S5: -6.5 | T5: -6 | U5: -5.5 | V5: -5 | W5: -4.5 | X5: -4 | Y5: -3.5 | Z5: -3 | AA5: -2.5 | AB5: -2 | AC5: -1.5 | AD5: -1 | AE5: -0.5 | AF5: 0 | AG5: 0.5 | AH5: 1 | AI5: 1.5 | AJ5: 2 | AK5: 2.5 | AL5: 3 | AM5: 3.5 | AN5: 4 | AO5: 4.5 | AP5: 5 | AQ5: 5.5 | AR5: 6 | AS5: 6.5 | AT5: 7 | AU5: 7.5 | AV5: 8 | AW5: 8.5 | AX5: 9 | AY5: 9.5 | AZ5: 10 | BA5: 10.5 | BB5: 11 | BC5: 11.5 | BD5: 12 | BE5: 12.5 | BF5: 13 | BG5: 13.5 | BH5: 14 | BI5: 14.5 | BJ5: 15
A6: 1 | B6: 15 | C6: -0.1066052695 | D6: 7.2115594 | E6: -4.129451806 | F6: 0 | G6: 0 | H6: 7.651780723 | I6: Heizlast | J6: 10.4 | K6: 10.2 | L6: 10 | M6: 9.8 | N6: 9.6 | O6: 9.4 | P6: 9.2 | Q6: 9 | R6: 8.8 | S6: 8.6 | T6: 8.4 | U6: 8.2 | V6: 8 | W6: 7.8 | X6: 7.6 | Y6: 7.4 | Z6: 7.2 | AA6: 7 | AB6: 6.8 | AC6: 6.6 | AD6: 6.4 | AE6: 6.2 | AF6: 6 | AG6: 5.8 | AH6: 5.6 | AI6: 5.4 | AJ6: 5.2 | AK6: 5 | AL6: 4.8 | AM6: 4.6 | AN6: 4.4 | AO6: 4.2 | AP6: 4 | AQ6: 3.8 | AR6: 3.6 | AS6: 3.4 | AT6: 3.2 | AU6: 3 | AV6: 2.8 | AW6: 2.6 | AX6: 2.4 | AY6: 2.2 | AZ6: 2 | BA6: 1.8 | BB6: 1.6 | BC6: 1.4 | BD6: 1.2 | BE6: 1 | BF6: 0.8 | BG6: 0.6 | BH6: 0.4 | BI6: 0.2 | BJ6: 3.830269435e-15
A7: 1 | C7: -0.4 | D7: 6 | E7: -4.129451806 | F7: 7.651780723 | G7: -4.129451806 | H7: 7.651780723 | I7: Leistung | J7: 7.411409112 | K7: 7.479707508 | L7: 7.548005905 | M7: 7.616304302 | N7: 7.684602699 | O7: 7.752901096 | P7: 7.821199493 | Q7: 7.88949789 | R7: 7.957796286 | S7: 7.904493652 | T7: 7.851191017 | U7: 7.797888382 | V7: 7.744585747 | W7: 7.691283113 | X7: 7.637980478 | Y7: 7.584677843 | Z7: 7.531375208 | AA7: 7.478072574 | AB7: 7.424769939 | AC7: 7.310978978 | AD7: 7.197188018 | AE7: 7.083397058 | AF7: 6.969606097 | AG7: 6.855815137 | AH7: 6.742024177 | AI7: 6.628233216 | AJ7: 6.514442256 | AK7: 6.630716009 | AL7: 6.746989762 | AM7: 6.863263514 | AN7: 6.979537267 | AO7: 7.09581102 | AP7: 7.212084773 | AQ7: 7.328358525 | AR7: 7.444632278 | AS7: 7.560906031 | AT7: 7.677179784 | AU7: 7.483552607 | AV7: 7.28992543 | AW7: 7.096298253 | AX7: 6.902671076 | AY7: 6.709043899 | AZ7: 6.515416722 | BA7: 6.321789545 | BB7: 6.128162369 | BC7: 5.934535192 | BD7: 5.740908015 | BE7: 5.798344718 | BF7: 5.855781421 | BG7: 5.913218124 | BH7: 5.970654827 | BI7: 6.02809153 | BJ7: 6.085528233
A8: 1 | C8: empfohlen | D8: 4.36 | E8: 9 | F8: 0,4 | G8: 4.4 | H8: 3.32 | I8: 4.46 | J8: 5.01 | K8: 0
A9: 1
A10: 2 | B10: Altherma 4 H ECH2O 500 10 kW | D10: 4.57 | E10: 3.54 | I10: Temperatur | J10: -11 | K10: -10.5 | L10: -10 | M10: -9.5 | N10: -9 | O10: -8.5 | P10: -8 | Q10: -7.5 | R10: -7 | S10: -6.5 | T10: -6 | U10: -5.5 | V10: -5 | W10: -4.5 | X10: -4 | Y10: -3.5 | Z10: -3 | AA10: -2.5 | AB10: -2 | AC10: -1.5 | AD10: -1 | AE10: -0.5 | AF10: 0 | AG10: 0.5 | AH10: 1 | AI10: 1.5 | AJ10: 2 | AK10: 2.5 | AL10: 3 | AM10: 3.5 | AN10: 4 | AO10: 4.5 | AP10: 5 | AQ10: 5.5 | AR10: 6 | AS10: 6.5 | AT10: 7 | AU10: 7.5 | AV10: 8 | AW10: 8.5 | AX10: 9 | AY10: 9.5 | AZ10: 10 | BA10: 10.5 | BB10: 11 | BC10: 11.5 | BD10: 12 | BE10: 12.5 | BF10: 13 | BG10: 13.5 | BH10: 14 | BI10: 14.5 | BJ10: 15
A11: 2 | B11: 7 | C11: 0.1359158276 | D11: 10.31862363 | E11: -8.058399109 | F11: 0 | G11: 0 | H11: 9.223359644 | I11: Heizlast | J11: 10.4 | K11: 10.2 | L11: 10 | M11: 9.8 | N11: 9.6 | O11: 9.4 | P11: 9.2 | Q11: 9 | R11: 8.8 | S11: 8.6 | T11: 8.4 | U11: 8.2 | V11: 8 | W11: 7.8 | X11: 7.6 | Y11: 7.4 | Z11: 7.2 | AA11: 7 | AB11: 6.8 | AC11: 6.6 | AD11: 6.4 | AE11: 6.2 | AF11: 6 | AG11: 5.8 | AH11: 5.6 | AI11: 5.4 | AJ11: 5.2 | AK11: 5 | AL11: 4.8 | AM11: 4.6 | AN11: 4.4 | AO11: 4.2 | AP11: 4 | AQ11: 3.8 | AR11: 3.6 | AS11: 3.4 | AT11: 3.2 | AU11: 3 | AV11: 2.8 | AW11: 2.6 | AX11: 2.4 | AY11: 2.2 | AZ11: 2 | BA11: 1.8 | BB11: 1.6 | BC11: 1.4 | BD11: 1.2 | BE11: 1 | BF11: 0.8 | BG11: 0.6 | BH11: 0.4 | BI11: 0.2 | BJ11: 3.830269435e-15
A12: 2 | C12: -0.4 | D12: 6 | E12: -8.058399109 | F12: 9.223359644 | G12: -8.058399109 | H12: 9.223359644 | I12: Leistung | J12: 8.823549524 | K12: 8.891507438 | L12: 8.959465352 | M12: 9.027423266 | N12: 9.095381179 | O12: 9.163339093 | P12: 9.231297007 | Q12: 9.299254921 | R12: 9.367212835 | S12: 9.264211701 | T12: 9.161210568 | U12: 9.058209434 | V12: 8.955208301 | W12: 8.852207167 | X12: 8.749206034 | Y12: 8.646204901 | Z12: 8.543203767 | AA12: 8.440202634 | AB12: 8.3372015 | AC12: 8.255797921 | AD12: 8.174394341 | AE12: 8.092990762 | AF12: 8.011587182 | AG12: 7.930183603 | AH12: 7.848780023 | AI12: 7.767376444 | AJ12: 7.685972864 | AK12: 7.913334036 | AL12: 8.140695208 | AM12: 8.36805638 | AN12: 8.595417552 | AO12: 8.822778724 | AP12: 9.050139896 | AQ12: 9.277501068 | AR12: 9.50486224 | AS12: 9.732223412 | AT12: 9.959584584 | AU12: 9.713321172 | AV12: 9.467057761 | AW12: 9.220794349 | AX12: 8.974530937 | AY12: 8.728267525 | AZ12: 8.482004113 | BA12: 8.235740702 | BB12: 7.98947729 | BC12: 7.743213878 | BD12: 7.496950466 | BE12: 7.488429185 | BF12: 7.479907904 | BG12: 7.471386623 | BH12: 7.462865342 | BI12: 7.454344061 | BJ12: 7.445822779
A13: 2 | C13: empfohlen | D13: 4.34 | E13: 9 | F13: 0,3 | G13: 4.34 | H13: 2.85 | I13: 4.46 | J13: 4.94 | K13: 0
A14: 2
A15: 3 | B15: Altherma 4 H ECH2O 500 12 kW | D15: 4.53 | E15: 3.94 | I15: Temperatur | J15: -11 | K15: -10.5 | L15: -10 | M15: -9.5 | N15: -9 | O15: -8.5 | P15: -8 | Q15: -7.5 | R15: -7 | S15: -6.5 | T15: -6 | U15: -5.5 | V15: -5 | W15: -4.5 | X15: -4 | Y15: -3.5 | Z15: -3 | AA15: -2.5 | AB15: -2 | AC15: -1.5 | AD15: -1 | AE15: -0.5 | AF15: 0 | AG15: 0.5 | AH15: 1 | AI15: 1.5 | AJ15: 2 | AK15: 2.5 | AL15: 3 | AM15: 3.5 | AN15: 4 | AO15: 4.5 | AP15: 5 | AQ15: 5.5 | AR15: 6 | AS15: 6.5 | AT15: 7 | AU15: 7.5 | AV15: 8 | AW15: 8.5 | AX15: 9 | AY15: 9.5 | AZ15: 10 | BA15: 10.5 | BB15: 11 | BC15: 11.5 | BD15: 12 | BE15: 12.5 | BF15: 13 | BG15: 13.5 | BH15: 14 | BI15: 14.5 | BJ15: 15
A16: 3 | B16: 1 | F16: 0 | G16: 0 | I16: Heizlast | J16: 10.4 | K16: 10.2 | L16: 10 | M16: 9.8 | N16: 9.6 | O16: 9.4 | P16: 9.2 | Q16: 9 | R16: 8.8 | S16: 8.6 | T16: 8.4 | U16: 8.2 | V16: 8 | W16: 7.8 | X16: 7.6 | Y16: 7.4 | Z16: 7.2 | AA16: 7 | AB16: 6.8 | AC16: 6.6 | AD16: 6.4 | AE16: 6.2 | AF16: 6 | AG16: 5.8 | AH16: 5.6 | AI16: 5.4 | AJ16: 5.2 | AK16: 5 | AL16: 4.8 | AM16: 4.6 | AN16: 4.4 | AO16: 4.2 | AP16: 4 | AQ16: 3.8 | AR16: 3.6 | AS16: 3.4 | AT16: 3.2 | AU16: 3 | AV16: 2.8 | AW16: 2.6 | AX16: 2.4 | AY16: 2.2 | AZ16: 2 | BA16: 1.8 | BB16: 1.6 | BC16: 1.4 | BD16: 1.2 | BE16: 1 | BF16: 0.8 | BG16: 0.6 | BH16: 0.4 | BI16: 0.2 | BJ16: 3.830269435e-15
A17: 3 | I17: Leistung | J17: 10.64901885 | K17: 10.74127792 | L17: 10.83353698 | M17: 10.92579605 | N17: 11.01805511 | O17: 11.11031418 | P17: 11.20257324 | Q17: 11.2948323 | R17: 11.38709137 | S17: 11.27414029 | T17: 11.16118921 | U17: 11.04823813 | V17: 10.93528705 | W17: 10.82233597 | X17: 10.7093849 | Y17: 10.59643382 | Z17: 10.48348274 | AA17: 10.37053166 | AB17: 10.25758058 | AC17: 10.06044955 | AD17: 9.86331851 | AE17: 9.666187476 | AF17: 9.469056441 | AG17: 9.271925406 | AH17: 9.074794371 | AI17: 8.877663336 | AJ17: 8.680532301 | AK17: 9.025082936 | AL17: 9.36963357 | AM17: 9.714184205 | AN17: 10.05873484 | AO17: 10.40328547 | AP17: 10.74783611 | AQ17: 11.09238674 | AR17: 11.43693738 | AS17: 11.78148801 | AT17: 12.12603865 | AU17: 11.85466569 | AV17: 11.58329274 | AW17: 11.31191978 | AX17: 11.04054682 | AY17: 10.76917387 | AZ17: 10.49780091 | BA17: 10.22642796 | BB17: 9.955055002 | BC17: 9.683682047 | BD17: 9.412309091 | BE17: 9.543437374 | BF17: 9.674565657 | BG17: 9.805693939 | BH17: 9.936822222 | BI17: 10.06795051 | BJ17: 10.19907879
A18: 3 | D18: 4.41 | E18: 9 | F18: 0,2 | G18: 4.41 | H18: 3.49 | I18: 4.06 | J18: 5.5 | K18: 0
A19: 3
A20: 4 | B20: Altherma 4 H ECH2O 500 14 kW | D20: 4.53 | E20: 3.94 | I20: Temperatur | J20: -11 | K20: -10.5 | L20: -10 | M20: -9.5 | N20: -9 | O20: -8.5 | P20: -8 | Q20: -7.5 | R20: -7 | S20: -6.5 | T20: -6 | U20: -5.5 | V20: -5 | W20: -4.5 | X20: -4 | Y20: -3.5 | Z20: -3 | AA20: -2.5 | AB20: -2 | AC20: -1.5 | AD20: -1 | AE20: -0.5 | AF20: 0 | AG20: 0.5 | AH20: 1 | AI20: 1.5 | AJ20: 2 | AK20: 2.5 | AL20: 3 | AM20: 3.5 | AN20: 4 | AO20: 4.5 | AP20: 5 | AQ20: 5.5 | AR20: 6 | AS20: 6.5 | AT20: 7 | AU20: 7.5 | AV20: 8 | AW20: 8.5 | AX20: 9 | AY20: 9.5 | AZ20: 10 | BA20: 10.5 | BB20: 11 | BC20: 11.5 | BD20: 12 | BE20: 12.5 | BF20: 13 | BG20: 13.5 | BH20: 14 | BI20: 14.5 | BJ20: 15
A21: 4 | B21: 1 | F21: 0 | G21: 0 | I21: Heizlast | J21: 10.4 | K21: 10.2 | L21: 10 | M21: 9.8 | N21: 9.6 | O21: 9.4 | P21: 9.2 | Q21: 9 | R21: 8.8 | S21: 8.6 | T21: 8.4 | U21: 8.2 | V21: 8 | W21: 7.8 | X21: 7.6 | Y21: 7.4 | Z21: 7.2 | AA21: 7 | AB21: 6.8 | AC21: 6.6 | AD21: 6.4 | AE21: 6.2 | AF21: 6 | AG21: 5.8 | AH21: 5.6 | AI21: 5.4 | AJ21: 5.2 | AK21: 5 | AL21: 4.8 | AM21: 4.6 | AN21: 4.4 | AO21: 4.2 | AP21: 4 | AQ21: 3.8 | AR21: 3.6 | AS21: 3.4 | AT21: 3.2 | AU21: 3 | AV21: 2.8 | AW21: 2.6 | AX21: 2.4 | AY21: 2.2 | AZ21: 2 | BA21: 1.8 | BB21: 1.6 | BC21: 1.4 | BD21: 1.2 | BE21: 1 | BF21: 0.8 | BG21: 0.6 | BH21: 0.4 | BI21: 0.2 | BJ21: 3.830269435e-15
A22: 4 | I22: Leistung | J22: 13.06900143 | K22: 13.07462661 | L22: 13.08025179 | M22: 13.08587697 | N22: 13.09150215 | O22: 13.09712732 | P22: 13.1027525 | Q22: 13.10837768 | R22: 13.11400286 | S22: 13.12930257 | T22: 13.14460229 | U22: 13.159902 | V22: 13.17520172 | W22: 13.19050143 | X22: 13.20580114 | Y22: 13.22110086 | Z22: 13.23640057 | AA22: 13.25170029 | AB22: 13.267 | AC22: 12.97868747 | AD22: 12.69037493 | AE22: 12.4020624 | AF22: 12.11374986 | AG22: 11.82543733 | AH22: 11.53712479 | AI22: 11.24881226 | AJ22: 10.96049973 | AK22: 11.38571642 | AL22: 11.81093311 | AM22: 12.23614981 | AN22: 12.6613665 | AO22: 13.0865832 | AP22: 13.51179989 | AQ22: 13.93701658 | AR22: 14.36223328 | AS22: 14.78744997 | AT22: 15.21266667 | AU22: 14.8953 | AV22: 14.57793333 | AW22: 14.26056667 | AX22: 13.9432 | AY22: 13.62583333 | AZ22: 13.30846667 | BA22: 12.9911 | BB22: 12.67373333 | BC22: 12.35636667 | BD22: 12.039 | BE22: 12.20672222 | BF22: 12.37444444 | BG22: 12.54216667 | BH22: 12.70988889 | BI22: 12.87761111 | BJ22: 13.04533333
A23: 4 | D23: 4.41 | E23: 9 | F23: 0,1 | G23: 4.41 | H23: 3.49 | I23: 4.06 | J23: 5.5 | K23: 0
A24: 4
A25: 5 | B25: Altherma 4 H ECH2O EPSKS 500 4 kW | D25: 4.31 | E25: 3.7 | I25: Temperatur | J25: -11 | K25: -10.5 | L25: -10 | M25: -9.5 | N25: -9 | O25: -8.5 | P25: -8 | Q25: -7.5 | R25: -7 | S25: -6.5 | T25: -6 | U25: -5.5 | V25: -5 | W25: -4.5 | X25: -4 | Y25: -3.5 | Z25: -3 | AA25: -2.5 | AB25: -2 | AC25: -1.5 | AD25: -1 | AE25: -0.5 | AF25: 0 | AG25: 0.5 | AH25: 1 | AI25: 1.5 | AJ25: 2 | AK25: 2.5 | AL25: 3 | AM25: 3.5 | AN25: 4 | AO25: 4.5 | AP25: 5 | AQ25: 5.5 | AR25: 6 | AS25: 6.5 | AT25: 7 | AU25: 7.5 | AV25: 8 | AW25: 8.5 | AX25: 9 | AY25: 9.5 | AZ25: 10 | BA25: 10.5 | BB25: 11 | BC25: 11.5 | BD25: 12 | BE25: 12.5 | BF25: 13 | BG25: 13.5 | BH25: 14 | BI25: 14.5 | BJ25: 15
A26: 5 | B26: 29 | C26: -0.03750547386 | D26: 4.987509746 | E26: 2.793118741 | F26: 0 | G26: 0 | H26: 4.882752504 | I26: Heizlast | J26: 10.4 | K26: 10.2 | L26: 10 | M26: 9.8 | N26: 9.6 | O26: 9.4 | P26: 9.2 | Q26: 9 | R26: 8.8 | S26: 8.6 | T26: 8.4 | U26: 8.2 | V26: 8 | W26: 7.8 | X26: 7.6 | Y26: 7.4 | Z26: 7.2 | AA26: 7 | AB26: 6.8 | AC26: 6.6 | AD26: 6.4 | AE26: 6.2 | AF26: 6 | AG26: 5.8 | AH26: 5.6 | AI26: 5.4 | AJ26: 5.2 | AK26: 5 | AL26: 4.8 | AM26: 4.6 | AN26: 4.4 | AO26: 4.2 | AP26: 4 | AQ26: 3.8 | AR26: 3.6 | AS26: 3.4 | AT26: 3.2 | AU26: 3 | AV26: 2.8 | AW26: 2.6 | AX26: 2.4 | AY26: 2.2 | AZ26: 2 | BA26: 1.8 | BB26: 1.6 | BC26: 1.4 | BD26: 1.2 | BE26: 1 | BF26: 0.8 | BG26: 0.6 | BH26: 0.4 | BI26: 0.2 | BJ26: 3.830269435e-15
A27: 5 | C27: -0.4 | D27: 6 | E27: 2.793118741 | F27: 4.882752504 | G27: 2.793118741 | H27: 4.882752504 | I27: Leistung | J27: 4.771984242 | K27: 4.829906666 | L27: 4.88782909 | M27: 4.945751515 | N27: 5.003673939 | O27: 5.061596363 | P27: 5.119518788 | Q27: 5.177441212 | R27: 5.235363636 | S27: 5.208034619 | T27: 5.180705602 | U27: 5.153376585 | V27: 5.126047568 | W27: 5.098718551 | X27: 5.071389534 | Y27: 5.044060517 | Z27: 5.0167315 | AA27: 4.989402483 | AB27: 4.962073466 | AC27: 4.955876633 | AD27: 4.949679799 | AE27: 4.943482966 | AF27: 4.937286132 | AG27: 4.931089299 | AH27: 4.924892465 | AI27: 4.918695631 | AJ27: 4.912498798 | AK27: 4.893746061 | AL27: 4.874993324 | AM27: 4.856240587 | AN27: 4.83748785 | AO27: 4.818735113 | AP27: 4.799982376 | AQ27: 4.781229639 | AR27: 4.762476902 | AS27: 4.743724166 | AT27: 4.724971429 | AU27: 4.809088327 | AV27: 4.893205226 | AW27: 4.977322125 | AX27: 5.061439024 | AY27: 5.145555923 | AZ27: 5.229672822 | BA27: 5.31378972 | BB27: 5.397906619 | BC27: 5.482023518 | BD27: 5.566140417 | BE27: 5.632890599 | BF27: 5.699640781 | BG27: 5.766390963 | BH27: 5.833141146 | BI27: 5.899891328 | BJ27: 5.96664151
A28: 5 | D28: 3.81 | E28: 9 | F28: 0,091 | G28: 4.19 | H28: 3.34 | I28: 3.88 | J28: 5.17 | K28: 0
A29: 5
A30: 6 | B30: Altherma 4 H ECH2O EPSKS 500 6 kW | D30: 4.31 | E30: 3.7 | I30: Temperatur | J30: -11 | K30: -10.5 | L30: -10 | M30: -9.5 | N30: -9 | O30: -8.5 | P30: -8 | Q30: -7.5 | R30: -7 | S30: -6.5 | T30: -6 | U30: -5.5 | V30: -5 | W30: -4.5 | X30: -4 | Y30: -3.5 | Z30: -3 | AA30: -2.5 | AB30: -2 | AC30: -1.5 | AD30: -1 | AE30: -0.5 | AF30: 0 | AG30: 0.5 | AH30: 1 | AI30: 1.5 | AJ30: 2 | AK30: 2.5 | AL30: 3 | AM30: 3.5 | AN30: 4 | AO30: 4.5 | AP30: 5 | AQ30: 5.5 | AR30: 6 | AS30: 6.5 | AT30: 7 | AU30: 7.5 | AV30: 8 | AW30: 8.5 | AX30: 9 | AY30: 9.5 | AZ30: 10 | BA30: 10.5 | BB30: 11 | BC30: 11.5 | BD30: 12 | BE30: 12.5 | BF30: 13 | BG30: 13.5 | BH30: 14 | BI30: 14.5 | BJ30: 15
A31: 6 | B31: 23 | C31: -0.01039339914 | D31: 6.001927942 | E31: -0.004948433161 | F31: 0 | G31: 0 | H31: 6.001979373 | I31: Heizlast | J31: 10.4 | K31: 10.2 | L31: 10 | M31: 9.8 | N31: 9.6 | O31: 9.4 | P31: 9.2 | Q31: 9 | R31: 8.8 | S31: 8.6 | T31: 8.4 | U31: 8.2 | V31: 8 | W31: 7.8 | X31: 7.6 | Y31: 7.4 | Z31: 7.2 | AA31: 7 | AB31: 6.8 | AC31: 6.6 | AD31: 6.4 | AE31: 6.2 | AF31: 6 | AG31: 5.8 | AH31: 5.6 | AI31: 5.4 | AJ31: 5.2 | AK31: 5 | AL31: 4.8 | AM31: 4.6 | AN31: 4.4 | AO31: 4.2 | AP31: 4 | AQ31: 3.8 | AR31: 3.6 | AS31: 3.4 | AT31: 3.2 | AU31: 3 | AV31: 2.8 | AW31: 2.6 | AX31: 2.4 | AY31: 2.2 | AZ31: 2 | BA31: 1.8 | BB31: 1.6 | BC31: 1.4 | BD31: 1.2 | BE31: 1 | BF31: 0.8 | BG31: 0.6 | BH31: 0.4 | BI31: 0.2 | BJ31: 3.830269435e-15
A32: 6 | C32: -0.4 | D32: 6 | E32: -0.004948433161 | F32: 6.001979373 | G32: -0.004948433161 | H32: 6.001979373 | I32: Leistung | J32: 5.760466692 | K32: 5.830387333 | L32: 5.900307973 | M32: 5.970228614 | N32: 6.040149255 | O32: 6.110069896 | P32: 6.179990537 | Q32: 6.249911177 | R32: 6.319831818 | S32: 6.29012011 | T32: 6.260408403 | U32: 6.230696695 | V32: 6.200984987 | W32: 6.171273279 | X32: 6.141561572 | Y32: 6.111849864 | Z32: 6.082138156 | AA32: 6.052426448 | AB32: 6.022714741 | AC32: 6.017518041 | AD32: 6.012321341 | AE32: 6.007124642 | AF32: 6.001927942 | AG32: 5.996731243 | AH32: 5.991534543 | AI32: 5.986337844 | AJ32: 5.981141144 | AK32: 6.038079887 | AL32: 6.095018629 | AM32: 6.151957372 | AN32: 6.208896115 | AO32: 6.265834858 | AP32: 6.3227736 | AQ32: 6.379712343 | AR32: 6.436651086 | AS32: 6.493589829 | AT32: 6.550528571 | AU32: 6.515341352 | AV32: 6.480154132 | AW32: 6.444966912 | AX32: 6.409779692 | AY32: 6.374592472 | AZ32: 6.339405253 | BA32: 6.304218033 | BB32: 6.269030813 | BC32: 6.233843593 | BD32: 6.198656373 | BE32: 6.272991804 | BF32: 6.347327234 | BG32: 6.421662664 | BH32: 6.495998094 | BI32: 6.570333524 | BJ32: 6.644668954
A33: 6 | D33: 3.93 | E33: 9 | F33: 0,087 | G33: 4.19 | H33: 3.34 | I33: 3.88 | J33: 5.17 | K33: 0
A34: 6
A35: 7 | B35: Altherma 4 H ECH2O EPSKS 500 7 kW | D35: 4.31 | E35: 3.7 | I35: Temperatur | J35: -11 | K35: -10.5 | L35: -10 | M35: -9.5 | N35: -9 | O35: -8.5 | P35: -8 | Q35: -7.5 | R35: -7 | S35: -6.5 | T35: -6 | U35: -5.5 | V35: -5 | W35: -4.5 | X35: -4 | Y35: -3.5 | Z35: -3 | AA35: -2.5 | AB35: -2 | AC35: -1.5 | AD35: -1 | AE35: -0.5 | AF35: 0 | AG35: 0.5 | AH35: 1 | AI35: 1.5 | AJ35: 2 | AK35: 2.5 | AL35: 3 | AM35: 3.5 | AN35: 4 | AO35: 4.5 | AP35: 5 | AQ35: 5.5 | AR35: 6 | AS35: 6.5 | AT35: 7 | AU35: 7.5 | AV35: 8 | AW35: 8.5 | AX35: 9 | AY35: 9.5 | AZ35: 10 | BA35: 10.5 | BB35: 11 | BC35: 11.5 | BD35: 12 | BE35: 12.5 | BF35: 13 | BG35: 13.5 | BH35: 14 | BI35: 14.5 | BJ35: 15
A36: 7 | B36: 18 | C36: -0.1712 | D36: 6.6306 | E36: -2.756118881 | F36: 0 | G36: 0 | H36: 7.102447552 | I36: Heizlast | J36: 10.4 | K36: 10.2 | L36: 10 | M36: 9.8 | N36: 9.6 | O36: 9.4 | P36: 9.2 | Q36: 9 | R36: 8.8 | S36: 8.6 | T36: 8.4 | U36: 8.2 | V36: 8 | W36: 7.8 | X36: 7.6 | Y36: 7.4 | Z36: 7.2 | AA36: 7 | AB36: 6.8 | AC36: 6.6 | AD36: 6.4 | AE36: 6.2 | AF36: 6 | AG36: 5.8 | AH36: 5.6 | AI36: 5.4 | AJ36: 5.2 | AK36: 5 | AL36: 4.8 | AM36: 4.6 | AN36: 4.4 | AO36: 4.2 | AP36: 4 | AQ36: 3.8 | AR36: 3.6 | AS36: 3.4 | AT36: 3.2 | AU36: 3 | AV36: 2.8 | AW36: 2.6 | AX36: 2.4 | AY36: 2.2 | AZ36: 2 | BA36: 1.8 | BB36: 1.6 | BC36: 1.4 | BD36: 1.2 | BE36: 1 | BF36: 0.8 | BG36: 0.6 | BH36: 0.4 | BI36: 0.2 | BJ36: 3.830269435e-15
A37: 7 | C37: -0.4 | D37: 6 | E37: -2.756118881 | F37: 7.102447552 | G37: -2.756118881 | H37: 7.102447552 | I37: Leistung | J37: 7.29983238 | K37: 7.365978333 | L37: 7.432124285 | M37: 7.498270238 | N37: 7.56441619 | O37: 7.630562143 | P37: 7.696708095 | Q37: 7.762854048 | R37: 7.829 | S37: 7.7434 | T37: 7.6578 | U37: 7.5722 | V37: 7.4866 | W37: 7.401 | X37: 7.3154 | Y37: 7.2298 | Z37: 7.1442 | AA37: 7.0586 | AB37: 6.973 | AC37: 7.007012139 | AD37: 7.041024278 | AE37: 7.075036417 | AF37: 7.109048556 | AG37: 7.143060695 | AH37: 7.177072834 | AI37: 7.211084973 | AJ37: 7.245097112 | AK37: 7.2722874 | AL37: 7.299477689 | AM37: 7.326667978 | AN37: 7.353858267 | AO37: 7.381048556 | AP37: 7.408238845 | AQ37: 7.435429133 | AR37: 7.462619422 | AS37: 7.489809711 | AT37: 7.517 | AU37: 7.536969467 | AV37: 7.556938934 | AW37: 7.576908401 | AX37: 7.596877868 | AY37: 7.616847334 | AZ37: 7.636816801 | BA37: 7.656786268 | BB37: 7.676755735 | BC37: 7.696725202 | BD37: 7.716694669 | BE37: 7.809234694 | BF37: 7.901774719 | BG37: 7.994314745 | BH37: 8.08685477 | BI37: 8.179394795 | BJ37: 8.27193482
A38: 7 | D38: 4.13 | E38: 9 | F38: 0,084 | G38: 4.19 | H38: 3.34 | I38: 3.88 | J38: 5.17 | K38: 0
A39: 7
A40: 8 | B40: Altherma 4 H F 230 8 kW | D40: 4.63 | E40: 3.59 | I40: Temperatur | J40: -11 | K40: -10.5 | L40: -10 | M40: -9.5 | N40: -9 | O40: -8.5 | P40: -8 | Q40: -7.5 | R40: -7 | S40: -6.5 | T40: -6 | U40: -5.5 | V40: -5 | W40: -4.5 | X40: -4 | Y40: -3.5 | Z40: -3 | AA40: -2.5 | AB40: -2 | AC40: -1.5 | AD40: -1 | AE40: -0.5 | AF40: 0 | AG40: 0.5 | AH40: 1 | AI40: 1.5 | AJ40: 2 | AK40: 2.5 | AL40: 3 | AM40: 3.5 | AN40: 4 | AO40: 4.5 | AP40: 5 | AQ40: 5.5 | AR40: 6 | AS40: 6.5 | AT40: 7 | AU40: 7.5 | AV40: 8 | AW40: 8.5 | AX40: 9 | AY40: 9.5 | AZ40: 10 | BA40: 10.5 | BB40: 11 | BC40: 11.5 | BD40: 12 | BE40: 12.5 | BF40: 13 | BG40: 13.5 | BH40: 14 | BI40: 14.5 | BJ40: 15
A41: 8 | B41: 15 | C41: -0.1066052695 | D41: 7.2115594 | E41: -4.129451806 | F41: 0 | G41: 0 | H41: 7.651780723 | I41: Heizlast | J41: 10.4 | K41: 10.2 | L41: 10 | M41: 9.8 | N41: 9.6 | O41: 9.4 | P41: 9.2 | Q41: 9 | R41: 8.8 | S41: 8.6 | T41: 8.4 | U41: 8.2 | V41: 8 | W41: 7.8 | X41: 7.6 | Y41: 7.4 | Z41: 7.2 | AA41: 7 | AB41: 6.8 | AC41: 6.6 | AD41: 6.4 | AE41: 6.2 | AF41: 6 | AG41: 5.8 | AH41: 5.6 | AI41: 5.4 | AJ41: 5.2 | AK41: 5 | AL41: 4.8 | AM41: 4.6 | AN41: 4.4 | AO41: 4.2 | AP41: 4 | AQ41: 3.8 | AR41: 3.6 | AS41: 3.4 | AT41: 3.2 | AU41: 3 | AV41: 2.8 | AW41: 2.6 | AX41: 2.4 | AY41: 2.2 | AZ41: 2 | BA41: 1.8 | BB41: 1.6 | BC41: 1.4 | BD41: 1.2 | BE41: 1 | BF41: 0.8 | BG41: 0.6 | BH41: 0.4 | BI41: 0.2 | BJ41: 3.830269435e-15
A42: 8 | C42: -0.4 | D42: 6 | E42: -4.129451806 | F42: 7.651780723 | G42: -4.129451806 | H42: 7.651780723 | I42: Leistung | J42: 7.411409112 | K42: 7.479707508 | L42: 7.548005905 | M42: 7.616304302 | N42: 7.684602699 | O42: 7.752901096 | P42: 7.821199493 | Q42: 7.88949789 | R42: 7.957796286 | S42: 7.904493652 | T42: 7.851191017 | U42: 7.797888382 | V42: 7.744585747 | W42: 7.691283113 | X42: 7.637980478 | Y42: 7.584677843 | Z42: 7.531375208 | AA42: 7.478072574 | AB42: 7.424769939 | AC42: 7.310978978 | AD42: 7.197188018 | AE42: 7.083397058 | AF42: 6.969606097 | AG42: 6.855815137 | AH42: 6.742024177 | AI42: 6.628233216 | AJ42: 6.514442256 | AK42: 6.630716009 | AL42: 6.746989762 | AM42: 6.863263514 | AN42: 6.979537267 | AO42: 7.09581102 | AP42: 7.212084773 | AQ42: 7.328358525 | AR42: 7.444632278 | AS42: 7.560906031 | AT42: 7.677179784 | AU42: 7.483552607 | AV42: 7.28992543 | AW42: 7.096298253 | AX42: 6.902671076 | AY42: 6.709043899 | AZ42: 6.515416722 | BA42: 6.321789545 | BB42: 6.128162369 | BC42: 5.934535192 | BD42: 5.740908015 | BE42: 5.798344718 | BF42: 5.855781421 | BG42: 5.913218124 | BH42: 5.970654827 | BI42: 6.02809153 | BJ42: 6.085528233
A43: 8 | C43: empfohlen | D43: 4.36 | E43: 9 | F43: 0,41 | G43: 4.4 | H43: 3.32 | I43: 4.46 | J43: 5.01 | K43: 0
A44: 8
A45: 9 | B45: Altherma 4 H F 230 10 kW | D45: 4.57 | E45: 3.54 | I45: Temperatur | J45: -11 | K45: -10.5 | L45: -10 | M45: -9.5 | N45: -9 | O45: -8.5 | P45: -8 | Q45: -7.5 | R45: -7 | S45: -6.5 | T45: -6 | U45: -5.5 | V45: -5 | W45: -4.5 | X45: -4 | Y45: -3.5 | Z45: -3 | AA45: -2.5 | AB45: -2 | AC45: -1.5 | AD45: -1 | AE45: -0.5 | AF45: 0 | AG45: 0.5 | AH45: 1 | AI45: 1.5 | AJ45: 2 | AK45: 2.5 | AL45: 3 | AM45: 3.5 | AN45: 4 | AO45: 4.5 | AP45: 5 | AQ45: 5.5 | AR45: 6 | AS45: 6.5 | AT45: 7 | AU45: 7.5 | AV45: 8 | AW45: 8.5 | AX45: 9 | AY45: 9.5 | AZ45: 10 | BA45: 10.5 | BB45: 11 | BC45: 11.5 | BD45: 12 | BE45: 12.5 | BF45: 13 | BG45: 13.5 | BH45: 14 | BI45: 14.5 | BJ45: 15
A46: 9 | B46: 7 | C46: 0.1359158276 | D46: 10.31862363 | E46: -8.058399109 | F46: 0 | G46: 0 | H46: 9.223359644 | I46: Heizlast | J46: 10.4 | K46: 10.2 | L46: 10 | M46: 9.8 | N46: 9.6 | O46: 9.4 | P46: 9.2 | Q46: 9 | R46: 8.8 | S46: 8.6 | T46: 8.4 | U46: 8.2 | V46: 8 | W46: 7.8 | X46: 7.6 | Y46: 7.4 | Z46: 7.2 | AA46: 7 | AB46: 6.8 | AC46: 6.6 | AD46: 6.4 | AE46: 6.2 | AF46: 6 | AG46: 5.8 | AH46: 5.6 | AI46: 5.4 | AJ46: 5.2 | AK46: 5 | AL46: 4.8 | AM46: 4.6 | AN46: 4.4 | AO46: 4.2 | AP46: 4 | AQ46: 3.8 | AR46: 3.6 | AS46: 3.4 | AT46: 3.2 | AU46: 3 | AV46: 2.8 | AW46: 2.6 | AX46: 2.4 | AY46: 2.2 | AZ46: 2 | BA46: 1.8 | BB46: 1.6 | BC46: 1.4 | BD46: 1.2 | BE46: 1 | BF46: 0.8 | BG46: 0.6 | BH46: 0.4 | BI46: 0.2 | BJ46: 3.830269435e-15
A47: 9 | C47: -0.4 | D47: 6 | E47: -8.058399109 | F47: 9.223359644 | G47: -8.058399109 | H47: 9.223359644 | I47: Leistung | J47: 8.823549524 | K47: 8.891507438 | L47: 8.959465352 | M47: 9.027423266 | N47: 9.095381179 | O47: 9.163339093 | P47: 9.231297007 | Q47: 9.299254921 | R47: 9.367212835 | S47: 9.264211701 | T47: 9.161210568 | U47: 9.058209434 | V47: 8.955208301 | W47: 8.852207167 | X47: 8.749206034 | Y47: 8.646204901 | Z47: 8.543203767 | AA47: 8.440202634 | AB47: 8.3372015 | AC47: 8.255797921 | AD47: 8.174394341 | AE47: 8.092990762 | AF47: 8.011587182 | AG47: 7.930183603 | AH47: 7.848780023 | AI47: 7.767376444 | AJ47: 7.685972864 | AK47: 7.913334036 | AL47: 8.140695208 | AM47: 8.36805638 | AN47: 8.595417552 | AO47: 8.822778724 | AP47: 9.050139896 | AQ47: 9.277501068 | AR47: 9.50486224 | AS47: 9.732223412 | AT47: 9.959584584 | AU47: 9.713321172 | AV47: 9.467057761 | AW47: 9.220794349 | AX47: 8.974530937 | AY47: 8.728267525 | AZ47: 8.482004113 | BA47: 8.235740702 | BB47: 7.98947729 | BC47: 7.743213878 | BD47: 7.496950466 | BE47: 7.488429185 | BF47: 7.479907904 | BG47: 7.471386623 | BH47: 7.462865342 | BI47: 7.454344061 | BJ47: 7.445822779
A48: 9 | C48: empfohlen | D48: 4.34 | E48: 9 | F48: 0,31 | G48: 4.34 | H48: 2.85 | I48: 4.46 | J48: 4.94 | K48: 0
A49: 9
A50: 10 | B50: Altherma 4 H F 230 12 kW | D50: 4.53 | E50: 3.94 | I50: Temperatur | J50: -11 | K50: -10.5 | L50: -10 | M50: -9.5 | N50: -9 | O50: -8.5 | P50: -8 | Q50: -7.5 | R50: -7 | S50: -6.5 | T50: -6 | U50: -5.5 | V50: -5 | W50: -4.5 | X50: -4 | Y50: -3.5 | Z50: -3 | AA50: -2.5 | AB50: -2 | AC50: -1.5 | AD50: -1 | AE50: -0.5 | AF50: 0 | AG50: 0.5 | AH50: 1 | AI50: 1.5 | AJ50: 2 | AK50: 2.5 | AL50: 3 | AM50: 3.5 | AN50: 4 | AO50: 4.5 | AP50: 5 | AQ50: 5.5 | AR50: 6 | AS50: 6.5 | AT50: 7 | AU50: 7.5 | AV50: 8 | AW50: 8.5 | AX50: 9 | AY50: 9.5 | AZ50: 10 | BA50: 10.5 | BB50: 11 | BC50: 11.5 | BD50: 12 | BE50: 12.5 | BF50: 13 | BG50: 13.5 | BH50: 14 | BI50: 14.5 | BJ50: 15
A51: 10 | B51: 1 | F51: 0 | G51: 0 | I51: Heizlast | J51: 10.4 | K51: 10.2 | L51: 10 | M51: 9.8 | N51: 9.6 | O51: 9.4 | P51: 9.2 | Q51: 9 | R51: 8.8 | S51: 8.6 | T51: 8.4 | U51: 8.2 | V51: 8 | W51: 7.8 | X51: 7.6 | Y51: 7.4 | Z51: 7.2 | AA51: 7 | AB51: 6.8 | AC51: 6.6 | AD51: 6.4 | AE51: 6.2 | AF51: 6 | AG51: 5.8 | AH51: 5.6 | AI51: 5.4 | AJ51: 5.2 | AK51: 5 | AL51: 4.8 | AM51: 4.6 | AN51: 4.4 | AO51: 4.2 | AP51: 4 | AQ51: 3.8 | AR51: 3.6 | AS51: 3.4 | AT51: 3.2 | AU51: 3 | AV51: 2.8 | AW51: 2.6 | AX51: 2.4 | AY51: 2.2 | AZ51: 2 | BA51: 1.8 | BB51: 1.6 | BC51: 1.4 | BD51: 1.2 | BE51: 1 | BF51: 0.8 | BG51: 0.6 | BH51: 0.4 | BI51: 0.2 | BJ51: 3.830269435e-15
A52: 10 | I52: Leistung | J52: 10.64901885 | K52: 10.74127792 | L52: 10.83353698 | M52: 10.92579605 | N52: 11.01805511 | O52: 11.11031418 | P52: 11.20257324 | Q52: 11.2948323 | R52: 11.38709137 | S52: 11.27414029 | T52: 11.16118921 | U52: 11.04823813 | V52: 10.93528705 | W52: 10.82233597 | X52: 10.7093849 | Y52: 10.59643382 | Z52: 10.48348274 | AA52: 10.37053166 | AB52: 10.25758058 | AC52: 10.06044955 | AD52: 9.86331851 | AE52: 9.666187476 | AF52: 9.469056441 | AG52: 9.271925406 | AH52: 9.074794371 | AI52: 8.877663336 | AJ52: 8.680532301 | AK52: 9.025082936 | AL52: 9.36963357 | AM52: 9.714184205 | AN52: 10.05873484 | AO52: 10.40328547 | AP52: 10.74783611 | AQ52: 11.09238674 | AR52: 11.43693738 | AS52: 11.78148801 | AT52: 12.12603865 | AU52: 11.85466569 | AV52: 11.58329274 | AW52: 11.31191978 | AX52: 11.04054682 | AY52: 10.76917387 | AZ52: 10.49780091 | BA52: 10.22642796 | BB52: 9.955055002 | BC52: 9.683682047 | BD52: 9.412309091 | BE52: 9.543437374 | BF52: 9.674565657 | BG52: 9.805693939 | BH52: 9.936822222 | BI52: 10.06795051 | BJ52: 10.19907879
A53: 10 | D53: 4.41 | E53: 9 | F53: 0,21 | G53: 4.41 | H53: 3.49 | I53: 4.06 | J53: 5.5 | K53: 0
A54: 10
A55: 11 | B55: Altherma 4 H F 230 14 kW | D55: 4.53 | E55: 3.94 | I55: Temperatur | J55: -11 | K55: -10.5 | L55: -10 | M55: -9.5 | N55: -9 | O55: -8.5 | P55: -8 | Q55: -7.5 | R55: -7 | S55: -6.5 | T55: -6 | U55: -5.5 | V55: -5 | W55: -4.5 | X55: -4 | Y55: -3.5 | Z55: -3 | AA55: -2.5 | AB55: -2 | AC55: -1.5 | AD55: -1 | AE55: -0.5 | AF55: 0 | AG55: 0.5 | AH55: 1 | AI55: 1.5 | AJ55: 2 | AK55: 2.5 | AL55: 3 | AM55: 3.5 | AN55: 4 | AO55: 4.5 | AP55: 5 | AQ55: 5.5 | AR55: 6 | AS55: 6.5 | AT55: 7 | AU55: 7.5 | AV55: 8 | AW55: 8.5 | AX55: 9 | AY55: 9.5 | AZ55: 10 | BA55: 10.5 | BB55: 11 | BC55: 11.5 | BD55: 12 | BE55: 12.5 | BF55: 13 | BG55: 13.5 | BH55: 14 | BI55: 14.5 | BJ55: 15
A56: 11 | B56: 1 | F56: 0 | G56: 0 | I56: Heizlast | J56: 10.4 | K56: 10.2 | L56: 10 | M56: 9.8 | N56: 9.6 | O56: 9.4 | P56: 9.2 | Q56: 9 | R56: 8.8 | S56: 8.6 | T56: 8.4 | U56: 8.2 | V56: 8 | W56: 7.8 | X56: 7.6 | Y56: 7.4 | Z56: 7.2 | AA56: 7 | AB56: 6.8 | AC56: 6.6 | AD56: 6.4 | AE56: 6.2 | AF56: 6 | AG56: 5.8 | AH56: 5.6 | AI56: 5.4 | AJ56: 5.2 | AK56: 5 | AL56: 4.8 | AM56: 4.6 | AN56: 4.4 | AO56: 4.2 | AP56: 4 | AQ56: 3.8 | AR56: 3.6 | AS56: 3.4 | AT56: 3.2 | AU56: 3 | AV56: 2.8 | AW56: 2.6 | AX56: 2.4 | AY56: 2.2 | AZ56: 2 | BA56: 1.8 | BB56: 1.6 | BC56: 1.4 | BD56: 1.2 | BE56: 1 | BF56: 0.8 | BG56: 0.6 | BH56: 0.4 | BI56: 0.2 | BJ56: 3.830269435e-15
A57: 11 | I57: Leistung | J57: 13.06900143 | K57: 13.07462661 | L57: 13.08025179 | M57: 13.08587697 | N57: 13.09150215 | O57: 13.09712732 | P57: 13.1027525 | Q57: 13.10837768 | R57: 13.11400286 | S57: 13.12930257 | T57: 13.14460229 | U57: 13.159902 | V57: 13.17520172 | W57: 13.19050143 | X57: 13.20580114 | Y57: 13.22110086 | Z57: 13.23640057 | AA57: 13.25170029 | AB57: 13.267 | AC57: 12.97868747 | AD57: 12.69037493 | AE57: 12.4020624 | AF57: 12.11374986 | AG57: 11.82543733 | AH57: 11.53712479 | AI57: 11.24881226 | AJ57: 10.96049973 | AK57: 11.38571642 | AL57: 11.81093311 | AM57: 12.23614981 | AN57: 12.6613665 | AO57: 13.0865832 | AP57: 13.51179989 | AQ57: 13.93701658 | AR57: 14.36223328 | AS57: 14.78744997 | AT57: 15.21266667 | AU57: 14.8953 | AV57: 14.57793333 | AW57: 14.26056667 | AX57: 13.9432 | AY57: 13.62583333 | AZ57: 13.30846667 | BA57: 12.9911 | BB57: 12.67373333 | BC57: 12.35636667 | BD57: 12.039 | BE57: 12.20672222 | BF57: 12.37444444 | BG57: 12.54216667 | BH57: 12.70988889 | BI57: 12.87761111 | BJ57: 13.04533333
A58: 11 | D58: 4.41 | E58: 9 | F58: 0,11 | G58: 4.41 | H58: 3.49 | I58: 4.06 | J58: 5.5 | K58: 0
A59: 11
A60: 12 | B60: Altherma 4 H F 230 - EPSKS 4 kW | D60: 4.31 | E60: 3.7 | I60: Temperatur | J60: -11 | K60: -10.5 | L60: -10 | M60: -9.5 | N60: -9 | O60: -8.5 | P60: -8 | Q60: -7.5 | R60: -7 | S60: -6.5 | T60: -6 | U60: -5.5 | V60: -5 | W60: -4.5 | X60: -4 | Y60: -3.5 | Z60: -3 | AA60: -2.5 | AB60: -2 | AC60: -1.5 | AD60: -1 | AE60: -0.5 | AF60: 0 | AG60: 0.5 | AH60: 1 | AI60: 1.5 | AJ60: 2 | AK60: 2.5 | AL60: 3 | AM60: 3.5 | AN60: 4 | AO60: 4.5 | AP60: 5 | AQ60: 5.5 | AR60: 6 | AS60: 6.5 | AT60: 7 | AU60: 7.5 | AV60: 8 | AW60: 8.5 | AX60: 9 | AY60: 9.5 | AZ60: 10 | BA60: 10.5 | BB60: 11 | BC60: 11.5 | BD60: 12 | BE60: 12.5 | BF60: 13 | BG60: 13.5 | BH60: 14 | BI60: 14.5 | BJ60: 15
A61: 12 | B61: 29 | C61: -0.03750547386 | D61: 4.987509746 | E61: 2.793118741 | F61: 0 | G61: 0 | H61: 4.882752504 | I61: Heizlast | J61: 10.4 | K61: 10.2 | L61: 10 | M61: 9.8 | N61: 9.6 | O61: 9.4 | P61: 9.2 | Q61: 9 | R61: 8.8 | S61: 8.6 | T61: 8.4 | U61: 8.2 | V61: 8 | W61: 7.8 | X61: 7.6 | Y61: 7.4 | Z61: 7.2 | AA61: 7 | AB61: 6.8 | AC61: 6.6 | AD61: 6.4 | AE61: 6.2 | AF61: 6 | AG61: 5.8 | AH61: 5.6 | AI61: 5.4 | AJ61: 5.2 | AK61: 5 | AL61: 4.8 | AM61: 4.6 | AN61: 4.4 | AO61: 4.2 | AP61: 4 | AQ61: 3.8 | AR61: 3.6 | AS61: 3.4 | AT61: 3.2 | AU61: 3 | AV61: 2.8 | AW61: 2.6 | AX61: 2.4 | AY61: 2.2 | AZ61: 2 | BA61: 1.8 | BB61: 1.6 | BC61: 1.4 | BD61: 1.2 | BE61: 1 | BF61: 0.8 | BG61: 0.6 | BH61: 0.4 | BI61: 0.2 | BJ61: 3.830269435e-15
A62: 12 | C62: -0.4 | D62: 6 | E62: 2.793118741 | F62: 4.882752504 | G62: 2.793118741 | H62: 4.882752504 | I62: Leistung | J62: 4.771984242 | K62: 4.829906666 | L62: 4.88782909 | M62: 4.945751515 | N62: 5.003673939 | O62: 5.061596363 | P62: 5.119518788 | Q62: 5.177441212 | R62: 5.235363636 | S62: 5.208034619 | T62: 5.180705602 | U62: 5.153376585 | V62: 5.126047568 | W62: 5.098718551 | X62: 5.071389534 | Y62: 5.044060517 | Z62: 5.0167315 | AA62: 4.989402483 | AB62: 4.962073466 | AC62: 4.955876633 | AD62: 4.949679799 | AE62: 4.943482966 | AF62: 4.937286132 | AG62: 4.931089299 | AH62: 4.924892465 | AI62: 4.918695631 | AJ62: 4.912498798 | AK62: 4.893746061 | AL62: 4.874993324 | AM62: 4.856240587 | AN62: 4.83748785 | AO62: 4.818735113 | AP62: 4.799982376 | AQ62: 4.781229639 | AR62: 4.762476902 | AS62: 4.743724166 | AT62: 4.724971429 | AU62: 4.809088327 | AV62: 4.893205226 | AW62: 4.977322125 | AX62: 5.061439024 | AY62: 5.145555923 | AZ62: 5.229672822 | BA62: 5.31378972 | BB62: 5.397906619 | BC62: 5.482023518 | BD62: 5.566140417 | BE62: 5.632890599 | BF62: 5.699640781 | BG62: 5.766390963 | BH62: 5.833141146 | BI62: 5.899891328 | BJ62: 5.96664151
A63: 12 | D63: 3.81 | E63: 9 | F63: 0,092 | G63: 4.19 | H63: 3.34 | I63: 3.88 | J63: 5.17 | K63: 0
A64: 12
A65: 13 | B65: Altherma 4 H F 230 - EPSKS 6 kW | D65: 4.31 | E65: 3.7 | I65: Temperatur | J65: -11 | K65: -10.5 | L65: -10 | M65: -9.5 | N65: -9 | O65: -8.5 | P65: -8 | Q65: -7.5 | R65: -7 | S65: -6.5 | T65: -6 | U65: -5.5 | V65: -5 | W65: -4.5 | X65: -4 | Y65: -3.5 | Z65: -3 | AA65: -2.5 | AB65: -2 | AC65: -1.5 | AD65: -1 | AE65: -0.5 | AF65: 0 | AG65: 0.5 | AH65: 1 | AI65: 1.5 | AJ65: 2 | AK65: 2.5 | AL65: 3 | AM65: 3.5 | AN65: 4 | AO65: 4.5 | AP65: 5 | AQ65: 5.5 | AR65: 6 | AS65: 6.5 | AT65: 7 | AU65: 7.5 | AV65: 8 | AW65: 8.5 | AX65: 9 | AY65: 9.5 | AZ65: 10 | BA65: 10.5 | BB65: 11 | BC65: 11.5 | BD65: 12 | BE65: 12.5 | BF65: 13 | BG65: 13.5 | BH65: 14 | BI65: 14.5 | BJ65: 15
A66: 13 | B66: 23 | C66: -0.01039339914 | D66: 6.001927942 | E66: -0.004948433161 | F66: 0 | G66: 0 | H66: 6.001979373 | I66: Heizlast | J66: 10.4 | K66: 10.2 | L66: 10 | M66: 9.8 | N66: 9.6 | O66: 9.4 | P66: 9.2 | Q66: 9 | R66: 8.8 | S66: 8.6 | T66: 8.4 | U66: 8.2 | V66: 8 | W66: 7.8 | X66: 7.6 | Y66: 7.4 | Z66: 7.2 | AA66: 7 | AB66: 6.8 | AC66: 6.6 | AD66: 6.4 | AE66: 6.2 | AF66: 6 | AG66: 5.8 | AH66: 5.6 | AI66: 5.4 | AJ66: 5.2 | AK66: 5 | AL66: 4.8 | AM66: 4.6 | AN66: 4.4 | AO66: 4.2 | AP66: 4 | AQ66: 3.8 | AR66: 3.6 | AS66: 3.4 | AT66: 3.2 | AU66: 3 | AV66: 2.8 | AW66: 2.6 | AX66: 2.4 | AY66: 2.2 | AZ66: 2 | BA66: 1.8 | BB66: 1.6 | BC66: 1.4 | BD66: 1.2 | BE66: 1 | BF66: 0.8 | BG66: 0.6 | BH66: 0.4 | BI66: 0.2 | BJ66: 3.830269435e-15
A67: 13 | C67: -0.4 | D67: 6 | E67: -0.004948433161 | F67: 6.001979373 | G67: -0.004948433161 | H67: 6.001979373 | I67: Leistung | J67: 5.760466692 | K67: 5.830387333 | L67: 5.900307973 | M67: 5.970228614 | N67: 6.040149255 | O67: 6.110069896 | P67: 6.179990537 | Q67: 6.249911177 | R67: 6.319831818 | S67: 6.29012011 | T67: 6.260408403 | U67: 6.230696695 | V67: 6.200984987 | W67: 6.171273279 | X67: 6.141561572 | Y67: 6.111849864 | Z67: 6.082138156 | AA67: 6.052426448 | AB67: 6.022714741 | AC67: 6.017518041 | AD67: 6.012321341 | AE67: 6.007124642 | AF67: 6.001927942 | AG67: 5.996731243 | AH67: 5.991534543 | AI67: 5.986337844 | AJ67: 5.981141144 | AK67: 6.038079887 | AL67: 6.095018629 | AM67: 6.151957372 | AN67: 6.208896115 | AO67: 6.265834858 | AP67: 6.3227736 | AQ67: 6.379712343 | AR67: 6.436651086 | AS67: 6.493589829 | AT67: 6.550528571 | AU67: 6.515341352 | AV67: 6.480154132 | AW67: 6.444966912 | AX67: 6.409779692 | AY67: 6.374592472 | AZ67: 6.339405253 | BA67: 6.304218033 | BB67: 6.269030813 | BC67: 6.233843593 | BD67: 6.198656373 | BE67: 6.272991804 | BF67: 6.347327234 | BG67: 6.421662664 | BH67: 6.495998094 | BI67: 6.570333524 | BJ67: 6.644668954
A68: 13 | D68: 3.93 | E68: 9 | F68: 0,088 | G68: 4.19 | H68: 3.34 | I68: 3.88 | J68: 5.17 | K68: 0
A69: 13
A70: 14 | B70: Altherma 4 H F 230 - EPSKS 7 kW | D70: 4.31 | E70: 3.7 | I70: Temperatur | J70: -11 | K70: -10.5 | L70: -10 | M70: -9.5 | N70: -9 | O70: -8.5 | P70: -8 | Q70: -7.5 | R70: -7 | S70: -6.5 | T70: -6 | U70: -5.5 | V70: -5 | W70: -4.5 | X70: -4 | Y70: -3.5 | Z70: -3 | AA70: -2.5 | AB70: -2 | AC70: -1.5 | AD70: -1 | AE70: -0.5 | AF70: 0 | AG70: 0.5 | AH70: 1 | AI70: 1.5 | AJ70: 2 | AK70: 2.5 | AL70: 3 | AM70: 3.5 | AN70: 4 | AO70: 4.5 | AP70: 5 | AQ70: 5.5 | AR70: 6 | AS70: 6.5 | AT70: 7 | AU70: 7.5 | AV70: 8 | AW70: 8.5 | AX70: 9 | AY70: 9.5 | AZ70: 10 | BA70: 10.5 | BB70: 11 | BC70: 11.5 | BD70: 12 | BE70: 12.5 | BF70: 13 | BG70: 13.5 | BH70: 14 | BI70: 14.5 | BJ70: 15
A71: 14 | B71: 18 | C71: -0.1712 | D71: 6.6306 | E71: -2.756118881 | F71: 0 | G71: 0 | H71: 7.102447552 | I71: Heizlast | J71: 10.4 | K71: 10.2 | L71: 10 | M71: 9.8 | N71: 9.6 | O71: 9.4 | P71: 9.2 | Q71: 9 | R71: 8.8 | S71: 8.6 | T71: 8.4 | U71: 8.2 | V71: 8 | W71: 7.8 | X71: 7.6 | Y71: 7.4 | Z71: 7.2 | AA71: 7 | AB71: 6.8 | AC71: 6.6 | AD71: 6.4 | AE71: 6.2 | AF71: 6 | AG71: 5.8 | AH71: 5.6 | AI71: 5.4 | AJ71: 5.2 | AK71: 5 | AL71: 4.8 | AM71: 4.6 | AN71: 4.4 | AO71: 4.2 | AP71: 4 | AQ71: 3.8 | AR71: 3.6 | AS71: 3.4 | AT71: 3.2 | AU71: 3 | AV71: 2.8 | AW71: 2.6 | AX71: 2.4 | AY71: 2.2 | AZ71: 2 | BA71: 1.8 | BB71: 1.6 | BC71: 1.4 | BD71: 1.2 | BE71: 1 | BF71: 0.8 | BG71: 0.6 | BH71: 0.4 | BI71: 0.2 | BJ71: 3.830269435e-15
A72: 14 | C72: -0.4 | D72: 6 | E72: -2.756118881 | F72: 7.102447552 | G72: -2.756118881 | H72: 7.102447552 | I72: Leistung | J72: 7.29983238 | K72: 7.365978333 | L72: 7.432124285 | M72: 7.498270238 | N72: 7.56441619 | O72: 7.630562143 | P72: 7.696708095 | Q72: 7.762854048 | R72: 7.829 | S72: 7.7434 | T72: 7.6578 | U72: 7.5722 | V72: 7.4866 | W72: 7.401 | X72: 7.3154 | Y72: 7.2298 | Z72: 7.1442 | AA72: 7.0586 | AB72: 6.973 | AC72: 7.007012139 | AD72: 7.041024278 | AE72: 7.075036417 | AF72: 7.109048556 | AG72: 7.143060695 | AH72: 7.177072834 | AI72: 7.211084973 | AJ72: 7.245097112 | AK72: 7.2722874 | AL72: 7.299477689 | AM72: 7.326667978 | AN72: 7.353858267 | AO72: 7.381048556 | AP72: 7.408238845 | AQ72: 7.435429133 | AR72: 7.462619422 | AS72: 7.489809711 | AT72: 7.517 | AU72: 7.536969467 | AV72: 7.556938934 | AW72: 7.576908401 | AX72: 7.596877868 | AY72: 7.616847334 | AZ72: 7.636816801 | BA72: 7.656786268 | BB72: 7.676755735 | BC72: 7.696725202 | BD72: 7.716694669 | BE72: 7.809234694 | BF72: 7.901774719 | BG72: 7.994314745 | BH72: 8.08685477 | BI72: 8.179394795 | BJ72: 8.27193482
A73: 14 | D73: 4.13 | E73: 9 | F73: 0,085 | G73: 4.19 | H73: 3.34 | I73: 3.88 | J73: 5.17 | K73: 0
A74: 14
A75: 15 | B75: Altherma 4 H W 8 kW | D75: 4.63 | E75: 3.59 | I75: Temperatur | J75: -11 | K75: -10.5 | L75: -10 | M75: -9.5 | N75: -9 | O75: -8.5 | P75: -8 | Q75: -7.5 | R75: -7 | S75: -6.5 | T75: -6 | U75: -5.5 | V75: -5 | W75: -4.5 | X75: -4 | Y75: -3.5 | Z75: -3 | AA75: -2.5 | AB75: -2 | AC75: -1.5 | AD75: -1 | AE75: -0.5 | AF75: 0 | AG75: 0.5 | AH75: 1 | AI75: 1.5 | AJ75: 2 | AK75: 2.5 | AL75: 3 | AM75: 3.5 | AN75: 4 | AO75: 4.5 | AP75: 5 | AQ75: 5.5 | AR75: 6 | AS75: 6.5 | AT75: 7 | AU75: 7.5 | AV75: 8 | AW75: 8.5 | AX75: 9 | AY75: 9.5 | AZ75: 10 | BA75: 10.5 | BB75: 11 | BC75: 11.5 | BD75: 12 | BE75: 12.5 | BF75: 13 | BG75: 13.5 | BH75: 14 | BI75: 14.5 | BJ75: 15
A76: 15 | B76: 15 | C76: -0.1066052695 | D76: 7.2115594 | E76: -4.129451806 | F76: 0 | G76: 0 | H76: 7.651780723 | I76: Heizlast | J76: 10.4 | K76: 10.2 | L76: 10 | M76: 9.8 | N76: 9.6 | O76: 9.4 | P76: 9.2 | Q76: 9 | R76: 8.8 | S76: 8.6 | T76: 8.4 | U76: 8.2 | V76: 8 | W76: 7.8 | X76: 7.6 | Y76: 7.4 | Z76: 7.2 | AA76: 7 | AB76: 6.8 | AC76: 6.6 | AD76: 6.4 | AE76: 6.2 | AF76: 6 | AG76: 5.8 | AH76: 5.6 | AI76: 5.4 | AJ76: 5.2 | AK76: 5 | AL76: 4.8 | AM76: 4.6 | AN76: 4.4 | AO76: 4.2 | AP76: 4 | AQ76: 3.8 | AR76: 3.6 | AS76: 3.4 | AT76: 3.2 | AU76: 3 | AV76: 2.8 | AW76: 2.6 | AX76: 2.4 | AY76: 2.2 | AZ76: 2 | BA76: 1.8 | BB76: 1.6 | BC76: 1.4 | BD76: 1.2 | BE76: 1 | BF76: 0.8 | BG76: 0.6 | BH76: 0.4 | BI76: 0.2 | BJ76: 3.830269435e-15
A77: 15 | C77: -0.4 | D77: 6 | E77: -4.129451806 | F77: 7.651780723 | G77: -4.129451806 | H77: 7.651780723 | I77: Leistung | J77: 7.411409112 | K77: 7.479707508 | L77: 7.548005905 | M77: 7.616304302 | N77: 7.684602699 | O77: 7.752901096 | P77: 7.821199493 | Q77: 7.88949789 | R77: 7.957796286 | S77: 7.904493652 | T77: 7.851191017 | U77: 7.797888382 | V77: 7.744585747 | W77: 7.691283113 | X77: 7.637980478 | Y77: 7.584677843 | Z77: 7.531375208 | AA77: 7.478072574 | AB77: 7.424769939 | AC77: 7.310978978 | AD77: 7.197188018 | AE77: 7.083397058 | AF77: 6.969606097 | AG77: 6.855815137 | AH77: 6.742024177 | AI77: 6.628233216 | AJ77: 6.514442256 | AK77: 6.630716009 | AL77: 6.746989762 | AM77: 6.863263514 | AN77: 6.979537267 | AO77: 7.09581102 | AP77: 7.212084773 | AQ77: 7.328358525 | AR77: 7.444632278 | AS77: 7.560906031 | AT77: 7.677179784 | AU77: 7.483552607 | AV77: 7.28992543 | AW77: 7.096298253 | AX77: 6.902671076 | AY77: 6.709043899 | AZ77: 6.515416722 | BA77: 6.321789545 | BB77: 6.128162369 | BC77: 5.934535192 | BD77: 5.740908015 | BE77: 5.798344718 | BF77: 5.855781421 | BG77: 5.913218124 | BH77: 5.970654827 | BI77: 6.02809153 | BJ77: 6.085528233
A78: 15 | C78: empfohlen | D78: 4.36 | E78: 9 | F78: 0,42 | G78: 4.4 | H78: 3.32 | I78: 4.46 | J78: 5.01 | K78: 0
A79: 15
A80: 16 | B80: Altherma 4 H W 10 kW | D80: 4.57 | E80: 3.54 | I80: Temperatur | J80: -11 | K80: -10.5 | L80: -10 | M80: -9.5 | N80: -9 | O80: -8.5 | P80: -8 | Q80: -7.5 | R80: -7 | S80: -6.5 | T80: -6 | U80: -5.5 | V80: -5 | W80: -4.5 | X80: -4 | Y80: -3.5 | Z80: -3 | AA80: -2.5 | AB80: -2 | AC80: -1.5 | AD80: -1 | AE80: -0.5 | AF80: 0 | AG80: 0.5 | AH80: 1 | AI80: 1.5 | AJ80: 2 | AK80: 2.5 | AL80: 3 | AM80: 3.5 | AN80: 4 | AO80: 4.5 | AP80: 5 | AQ80: 5.5 | AR80: 6 | AS80: 6.5 | AT80: 7 | AU80: 7.5 | AV80: 8 | AW80: 8.5 | AX80: 9 | AY80: 9.5 | AZ80: 10 | BA80: 10.5 | BB80: 11 | BC80: 11.5 | BD80: 12 | BE80: 12.5 | BF80: 13 | BG80: 13.5 | BH80: 14 | BI80: 14.5 | BJ80: 15
A81: 16 | B81: 7 | C81: 0.1359158276 | D81: 10.31862363 | E81: -8.058399109 | F81: 0 | G81: 0 | H81: 9.223359644 | I81: Heizlast | J81: 10.4 | K81: 10.2 | L81: 10 | M81: 9.8 | N81: 9.6 | O81: 9.4 | P81: 9.2 | Q81: 9 | R81: 8.8 | S81: 8.6 | T81: 8.4 | U81: 8.2 | V81: 8 | W81: 7.8 | X81: 7.6 | Y81: 7.4 | Z81: 7.2 | AA81: 7 | AB81: 6.8 | AC81: 6.6 | AD81: 6.4 | AE81: 6.2 | AF81: 6 | AG81: 5.8 | AH81: 5.6 | AI81: 5.4 | AJ81: 5.2 | AK81: 5 | AL81: 4.8 | AM81: 4.6 | AN81: 4.4 | AO81: 4.2 | AP81: 4 | AQ81: 3.8 | AR81: 3.6 | AS81: 3.4 | AT81: 3.2 | AU81: 3 | AV81: 2.8 | AW81: 2.6 | AX81: 2.4 | AY81: 2.2 | AZ81: 2 | BA81: 1.8 | BB81: 1.6 | BC81: 1.4 | BD81: 1.2 | BE81: 1 | BF81: 0.8 | BG81: 0.6 | BH81: 0.4 | BI81: 0.2 | BJ81: 3.830269435e-15
A82: 16 | C82: -0.4 | D82: 6 | E82: -8.058399109 | F82: 9.223359644 | G82: -8.058399109 | H82: 9.223359644 | I82: Leistung | J82: 8.823549524 | K82: 8.891507438 | L82: 8.959465352 | M82: 9.027423266 | N82: 9.095381179 | O82: 9.163339093 | P82: 9.231297007 | Q82: 9.299254921 | R82: 9.367212835 | S82: 9.264211701 | T82: 9.161210568 | U82: 9.058209434 | V82: 8.955208301 | W82: 8.852207167 | X82: 8.749206034 | Y82: 8.646204901 | Z82: 8.543203767 | AA82: 8.440202634 | AB82: 8.3372015 | AC82: 8.255797921 | AD82: 8.174394341 | AE82: 8.092990762 | AF82: 8.011587182 | AG82: 7.930183603 | AH82: 7.848780023 | AI82: 7.767376444 | AJ82: 7.685972864 | AK82: 7.913334036 | AL82: 8.140695208 | AM82: 8.36805638 | AN82: 8.595417552 | AO82: 8.822778724 | AP82: 9.050139896 | AQ82: 9.277501068 | AR82: 9.50486224 | AS82: 9.732223412 | AT82: 9.959584584 | AU82: 9.713321172 | AV82: 9.467057761 | AW82: 9.220794349 | AX82: 8.974530937 | AY82: 8.728267525 | AZ82: 8.482004113 | BA82: 8.235740702 | BB82: 7.98947729 | BC82: 7.743213878 | BD82: 7.496950466 | BE82: 7.488429185 | BF82: 7.479907904 | BG82: 7.471386623 | BH82: 7.462865342 | BI82: 7.454344061 | BJ82: 7.445822779
A83: 16 | C83: empfohlen | D83: 4.34 | E83: 9 | F83: 0,32 | G83: 4.34 | H83: 2.85 | I83: 4.46 | J83: 4.94 | K83: 0
A84: 16
A85: 17 | B85: Altherma 4 H W 12 kW | D85: 4.53 | E85: 3.94 | I85: Temperatur | J85: -11 | K85: -10.5 | L85: -10 | M85: -9.5 | N85: -9 | O85: -8.5 | P85: -8 | Q85: -7.5 | R85: -7 | S85: -6.5 | T85: -6 | U85: -5.5 | V85: -5 | W85: -4.5 | X85: -4 | Y85: -3.5 | Z85: -3 | AA85: -2.5 | AB85: -2 | AC85: -1.5 | AD85: -1 | AE85: -0.5 | AF85: 0 | AG85: 0.5 | AH85: 1 | AI85: 1.5 | AJ85: 2 | AK85: 2.5 | AL85: 3 | AM85: 3.5 | AN85: 4 | AO85: 4.5 | AP85: 5 | AQ85: 5.5 | AR85: 6 | AS85: 6.5 | AT85: 7 | AU85: 7.5 | AV85: 8 | AW85: 8.5 | AX85: 9 | AY85: 9.5 | AZ85: 10 | BA85: 10.5 | BB85: 11 | BC85: 11.5 | BD85: 12 | BE85: 12.5 | BF85: 13 | BG85: 13.5 | BH85: 14 | BI85: 14.5 | BJ85: 15
A86: 17 | B86: 1 | F86: 0 | G86: 0 | I86: Heizlast | J86: 10.4 | K86: 10.2 | L86: 10 | M86: 9.8 | N86: 9.6 | O86: 9.4 | P86: 9.2 | Q86: 9 | R86: 8.8 | S86: 8.6 | T86: 8.4 | U86: 8.2 | V86: 8 | W86: 7.8 | X86: 7.6 | Y86: 7.4 | Z86: 7.2 | AA86: 7 | AB86: 6.8 | AC86: 6.6 | AD86: 6.4 | AE86: 6.2 | AF86: 6 | AG86: 5.8 | AH86: 5.6 | AI86: 5.4 | AJ86: 5.2 | AK86: 5 | AL86: 4.8 | AM86: 4.6 | AN86: 4.4 | AO86: 4.2 | AP86: 4 | AQ86: 3.8 | AR86: 3.6 | AS86: 3.4 | AT86: 3.2 | AU86: 3 | AV86: 2.8 | AW86: 2.6 | AX86: 2.4 | AY86: 2.2 | AZ86: 2 | BA86: 1.8 | BB86: 1.6 | BC86: 1.4 | BD86: 1.2 | BE86: 1 | BF86: 0.8 | BG86: 0.6 | BH86: 0.4 | BI86: 0.2 | BJ86: 3.830269435e-15
A87: 17 | I87: Leistung | J87: 10.64901885 | K87: 10.74127792 | L87: 10.83353698 | M87: 10.92579605 | N87: 11.01805511 | O87: 11.11031418 | P87: 11.20257324 | Q87: 11.2948323 | R87: 11.38709137 | S87: 11.27414029 | T87: 11.16118921 | U87: 11.04823813 | V87: 10.93528705 | W87: 10.82233597 | X87: 10.7093849 | Y87: 10.59643382 | Z87: 10.48348274 | AA87: 10.37053166 | AB87: 10.25758058 | AC87: 10.06044955 | AD87: 9.86331851 | AE87: 9.666187476 | AF87: 9.469056441 | AG87: 9.271925406 | AH87: 9.074794371 | AI87: 8.877663336 | AJ87: 8.680532301 | AK87: 9.025082936 | AL87: 9.36963357 | AM87: 9.714184205 | AN87: 10.05873484 | AO87: 10.40328547 | AP87: 10.74783611 | AQ87: 11.09238674 | AR87: 11.43693738 | AS87: 11.78148801 | AT87: 12.12603865 | AU87: 11.85466569 | AV87: 11.58329274 | AW87: 11.31191978 | AX87: 11.04054682 | AY87: 10.76917387 | AZ87: 10.49780091 | BA87: 10.22642796 | BB87: 9.955055002 | BC87: 9.683682047 | BD87: 9.412309091 | BE87: 9.543437374 | BF87: 9.674565657 | BG87: 9.805693939 | BH87: 9.936822222 | BI87: 10.06795051 | BJ87: 10.19907879
A88: 17 | D88: 4.41 | E88: 9 | F88: 0,22 | G88: 4.41 | H88: 3.49 | I88: 4.06 | J88: 5.5 | K88: 0
A89: 17
A90: 18 | B90: Altherma 4 H W 14 kW | D90: 4.53 | E90: 3.94 | I90: Temperatur | J90: -11 | K90: -10.5 | L90: -10 | M90: -9.5 | N90: -9 | O90: -8.5 | P90: -8 | Q90: -7.5 | R90: -7 | S90: -6.5 | T90: -6 | U90: -5.5 | V90: -5 | W90: -4.5 | X90: -4 | Y90: -3.5 | Z90: -3 | AA90: -2.5 | AB90: -2 | AC90: -1.5 | AD90: -1 | AE90: -0.5 | AF90: 0 | AG90: 0.5 | AH90: 1 | AI90: 1.5 | AJ90: 2 | AK90: 2.5 | AL90: 3 | AM90: 3.5 | AN90: 4 | AO90: 4.5 | AP90: 5 | AQ90: 5.5 | AR90: 6 | AS90: 6.5 | AT90: 7 | AU90: 7.5 | AV90: 8 | AW90: 8.5 | AX90: 9 | AY90: 9.5 | AZ90: 10 | BA90: 10.5 | BB90: 11 | BC90: 11.5 | BD90: 12 | BE90: 12.5 | BF90: 13 | BG90: 13.5 | BH90: 14 | BI90: 14.5 | BJ90: 15
A91: 18 | B91: 1 | F91: 0 | G91: 0 | I91: Heizlast | J91: 10.4 | K91: 10.2 | L91: 10 | M91: 9.8 | N91: 9.6 | O91: 9.4 | P91: 9.2 | Q91: 9 | R91: 8.8 | S91: 8.6 | T91: 8.4 | U91: 8.2 | V91: 8 | W91: 7.8 | X91: 7.6 | Y91: 7.4 | Z91: 7.2 | AA91: 7 | AB91: 6.8 | AC91: 6.6 | AD91: 6.4 | AE91: 6.2 | AF91: 6 | AG91: 5.8 | AH91: 5.6 | AI91: 5.4 | AJ91: 5.2 | AK91: 5 | AL91: 4.8 | AM91: 4.6 | AN91: 4.4 | AO91: 4.2 | AP91: 4 | AQ91: 3.8 | AR91: 3.6 | AS91: 3.4 | AT91: 3.2 | AU91: 3 | AV91: 2.8 | AW91: 2.6 | AX91: 2.4 | AY91: 2.2 | AZ91: 2 | BA91: 1.8 | BB91: 1.6 | BC91: 1.4 | BD91: 1.2 | BE91: 1 | BF91: 0.8 | BG91: 0.6 | BH91: 0.4 | BI91: 0.2 | BJ91: 3.830269435e-15
A92: 18 | I92: Leistung | J92: 13.06900143 | K92: 13.07462661 | L92: 13.08025179 | M92: 13.08587697 | N92: 13.09150215 | O92: 13.09712732 | P92: 13.1027525 | Q92: 13.10837768 | R92: 13.11400286 | S92: 13.12930257 | T92: 13.14460229 | U92: 13.159902 | V92: 13.17520172 | W92: 13.19050143 | X92: 13.20580114 | Y92: 13.22110086 | Z92: 13.23640057 | AA92: 13.25170029 | AB92: 13.267 | AC92: 12.97868747 | AD92: 12.69037493 | AE92: 12.4020624 | AF92: 12.11374986 | AG92: 11.82543733 | AH92: 11.53712479 | AI92: 11.24881226 | AJ92: 10.96049973 | AK92: 11.38571642 | AL92: 11.81093311 | AM92: 12.23614981 | AN92: 12.6613665 | AO92: 13.0865832 | AP92: 13.51179989 | AQ92: 13.93701658 | AR92: 14.36223328 | AS92: 14.78744997 | AT92: 15.21266667 | AU92: 14.8953 | AV92: 14.57793333 | AW92: 14.26056667 | AX92: 13.9432 | AY92: 13.62583333 | AZ92: 13.30846667 | BA92: 12.9911 | BB92: 12.67373333 | BC92: 12.35636667 | BD92: 12.039 | BE92: 12.20672222 | BF92: 12.37444444 | BG92: 12.54216667 | BH92: 12.70988889 | BI92: 12.87761111 | BJ92: 13.04533333
A93: 18 | D93: 4.41 | E93: 9 | F93: 0,13 | G93: 4.41 | H93: 3.49 | I93: 4.06 | J93: 5.5 | K93: 0
A94: 18
A95: 19 | B95: Altherma 4 H W - EPSKS 4 kW | D95: 4.31 | E95: 3.7 | I95: Temperatur | J95: -11 | K95: -10.5 | L95: -10 | M95: -9.5 | N95: -9 | O95: -8.5 | P95: -8 | Q95: -7.5 | R95: -7 | S95: -6.5 | T95: -6 | U95: -5.5 | V95: -5 | W95: -4.5 | X95: -4 | Y95: -3.5 | Z95: -3 | AA95: -2.5 | AB95: -2 | AC95: -1.5 | AD95: -1 | AE95: -0.5 | AF95: 0 | AG95: 0.5 | AH95: 1 | AI95: 1.5 | AJ95: 2 | AK95: 2.5 | AL95: 3 | AM95: 3.5 | AN95: 4 | AO95: 4.5 | AP95: 5 | AQ95: 5.5 | AR95: 6 | AS95: 6.5 | AT95: 7 | AU95: 7.5 | AV95: 8 | AW95: 8.5 | AX95: 9 | AY95: 9.5 | AZ95: 10 | BA95: 10.5 | BB95: 11 | BC95: 11.5 | BD95: 12 | BE95: 12.5 | BF95: 13 | BG95: 13.5 | BH95: 14 | BI95: 14.5 | BJ95: 15
A96: 19 | B96: 29 | C96: -0.03750547386 | D96: 4.987509746 | E96: 2.793118741 | F96: 0 | G96: 0 | H96: 4.882752504 | I96: Heizlast | J96: 10.4 | K96: 10.2 | L96: 10 | M96: 9.8 | N96: 9.6 | O96: 9.4 | P96: 9.2 | Q96: 9 | R96: 8.8 | S96: 8.6 | T96: 8.4 | U96: 8.2 | V96: 8 | W96: 7.8 | X96: 7.6 | Y96: 7.4 | Z96: 7.2 | AA96: 7 | AB96: 6.8 | AC96: 6.6 | AD96: 6.4 | AE96: 6.2 | AF96: 6 | AG96: 5.8 | AH96: 5.6 | AI96: 5.4 | AJ96: 5.2 | AK96: 5 | AL96: 4.8 | AM96: 4.6 | AN96: 4.4 | AO96: 4.2 | AP96: 4 | AQ96: 3.8 | AR96: 3.6 | AS96: 3.4 | AT96: 3.2 | AU96: 3 | AV96: 2.8 | AW96: 2.6 | AX96: 2.4 | AY96: 2.2 | AZ96: 2 | BA96: 1.8 | BB96: 1.6 | BC96: 1.4 | BD96: 1.2 | BE96: 1 | BF96: 0.8 | BG96: 0.6 | BH96: 0.4 | BI96: 0.2 | BJ96: 3.830269435e-15
A97: 19 | C97: -0.4 | D97: 6 | E97: 2.793118741 | F97: 4.882752504 | G97: 2.793118741 | H97: 4.882752504 | I97: Leistung | J97: 4.771984242 | K97: 4.829906666 | L97: 4.88782909 | M97: 4.945751515 | N97: 5.003673939 | O97: 5.061596363 | P97: 5.119518788 | Q97: 5.177441212 | R97: 5.235363636 | S97: 5.208034619 | T97: 5.180705602 | U97: 5.153376585 | V97: 5.126047568 | W97: 5.098718551 | X97: 5.071389534 | Y97: 5.044060517 | Z97: 5.0167315 | AA97: 4.989402483 | AB97: 4.962073466 | AC97: 4.955876633 | AD97: 4.949679799 | AE97: 4.943482966 | AF97: 4.937286132 | AG97: 4.931089299 | AH97: 4.924892465 | AI97: 4.918695631 | AJ97: 4.912498798 | AK97: 4.893746061 | AL97: 4.874993324 | AM97: 4.856240587 | AN97: 4.83748785 | AO97: 4.818735113 | AP97: 4.799982376 | AQ97: 4.781229639 | AR97: 4.762476902 | AS97: 4.743724166 | AT97: 4.724971429 | AU97: 4.809088327 | AV97: 4.893205226 | AW97: 4.977322125 | AX97: 5.061439024 | AY97: 5.145555923 | AZ97: 5.229672822 | BA97: 5.31378972 | BB97: 5.397906619 | BC97: 5.482023518 | BD97: 5.566140417 | BE97: 5.632890599 | BF97: 5.699640781 | BG97: 5.766390963 | BH97: 5.833141146 | BI97: 5.899891328 | BJ97: 5.96664151
A98: 19 | D98: 3.81 | E98: 4,5 | F98: 0,093 | G98: 4.19 | H98: 3.34 | I98: 3.88 | J98: 5.17 | K98: 0
A99: 19
A100: 20 | B100: Altherma 4 H W - EPSKS 6 kW | D100: 4.31 | E100: 3.7 | I100: Temperatur | J100: -11 | K100: -10.5 | L100: -10 | M100: -9.5 | N100: -9 | O100: -8.5 | P100: -8 | Q100: -7.5 | R100: -7 | S100: -6.5 | T100: -6 | U100: -5.5 | V100: -5 | W100: -4.5 | X100: -4 | Y100: -3.5 | Z100: -3 | AA100: -2.5 | AB100: -2 | AC100: -1.5 | AD100: -1 | AE100: -0.5 | AF100: 0 | AG100: 0.5 | AH100: 1 | AI100: 1.5 | AJ100: 2 | AK100: 2.5 | AL100: 3 | AM100: 3.5 | AN100: 4 | AO100: 4.5 | AP100: 5 | AQ100: 5.5 | AR100: 6 | AS100: 6.5 | AT100: 7 | AU100: 7.5 | AV100: 8 | AW100: 8.5 | AX100: 9 | AY100: 9.5 | AZ100: 10 | BA100: 10.5 | BB100: 11 | BC100: 11.5 | BD100: 12 | BE100: 12.5 | BF100: 13 | BG100: 13.5 | BH100: 14 | BI100: 14.5 | BJ100: 15
A101: 20 | B101: 23 | C101: -0.01039339914 | D101: 6.001927942 | E101: -0.004948433161 | F101: 0 | G101: 0 | H101: 6.001979373 | I101: Heizlast | J101: 10.4 | K101: 10.2 | L101: 10 | M101: 9.8 | N101: 9.6 | O101: 9.4 | P101: 9.2 | Q101: 9 | R101: 8.8 | S101: 8.6 | T101: 8.4 | U101: 8.2 | V101: 8 | W101: 7.8 | X101: 7.6 | Y101: 7.4 | Z101: 7.2 | AA101: 7 | AB101: 6.8 | AC101: 6.6 | AD101: 6.4 | AE101: 6.2 | AF101: 6 | AG101: 5.8 | AH101: 5.6 | AI101: 5.4 | AJ101: 5.2 | AK101: 5 | AL101: 4.8 | AM101: 4.6 | AN101: 4.4 | AO101: 4.2 | AP101: 4 | AQ101: 3.8 | AR101: 3.6 | AS101: 3.4 | AT101: 3.2 | AU101: 3 | AV101: 2.8 | AW101: 2.6 | AX101: 2.4 | AY101: 2.2 | AZ101: 2 | BA101: 1.8 | BB101: 1.6 | BC101: 1.4 | BD101: 1.2 | BE101: 1 | BF101: 0.8 | BG101: 0.6 | BH101: 0.4 | BI101: 0.2 | BJ101: 3.830269435e-15
A102: 20 | C102: -0.4 | D102: 6 | E102: -0.004948433161 | F102: 6.001979373 | G102: -0.004948433161 | H102: 6.001979373 | I102: Leistung | J102: 5.760466692 | K102: 5.830387333 | L102: 5.900307973 | M102: 5.970228614 | N102: 6.040149255 | O102: 6.110069896 | P102: 6.179990537 | Q102: 6.249911177 | R102: 6.319831818 | S102: 6.29012011 | T102: 6.260408403 | U102: 6.230696695 | V102: 6.200984987 | W102: 6.171273279 | X102: 6.141561572 | Y102: 6.111849864 | Z102: 6.082138156 | AA102: 6.052426448 | AB102: 6.022714741 | AC102: 6.017518041 | AD102: 6.012321341 | AE102: 6.007124642 | AF102: 6.001927942 | AG102: 5.996731243 | AH102: 5.991534543 | AI102: 5.986337844 | AJ102: 5.981141144 | AK102: 6.038079887 | AL102: 6.095018629 | AM102: 6.151957372 | AN102: 6.208896115 | AO102: 6.265834858 | AP102: 6.3227736 | AQ102: 6.379712343 | AR102: 6.436651086 | AS102: 6.493589829 | AT102: 6.550528571 | AU102: 6.515341352 | AV102: 6.480154132 | AW102: 6.444966912 | AX102: 6.409779692 | AY102: 6.374592472 | AZ102: 6.339405253 | BA102: 6.304218033 | BB102: 6.269030813 | BC102: 6.233843593 | BD102: 6.198656373 | BE102: 6.272991804 | BF102: 6.347327234 | BG102: 6.421662664 | BH102: 6.495998094 | BI102: 6.570333524 | BJ102: 6.644668954
A103: 20 | D103: 3.93 | E103: 4,5 | F103: 0,089 | G103: 4.19 | H103: 3.34 | I103: 3.88 | J103: 5.17 | K103: 0
A104: 20
A105: 21 | B105: Altherma 4 H W - EPSKS 7 kW | D105: 4.31 | E105: 3.7 | I105: Temperatur | J105: -11 | K105: -10.5 | L105: -10 | M105: -9.5 | N105: -9 | O105: -8.5 | P105: -8 | Q105: -7.5 | R105: -7 | S105: -6.5 | T105: -6 | U105: -5.5 | V105: -5 | W105: -4.5 | X105: -4 | Y105: -3.5 | Z105: -3 | AA105: -2.5 | AB105: -2 | AC105: -1.5 | AD105: -1 | AE105: -0.5 | AF105: 0 | AG105: 0.5 | AH105: 1 | AI105: 1.5 | AJ105: 2 | AK105: 2.5 | AL105: 3 | AM105: 3.5 | AN105: 4 | AO105: 4.5 | AP105: 5 | AQ105: 5.5 | AR105: 6 | AS105: 6.5 | AT105: 7 | AU105: 7.5 | AV105: 8 | AW105: 8.5 | AX105: 9 | AY105: 9.5 | AZ105: 10 | BA105: 10.5 | BB105: 11 | BC105: 11.5 | BD105: 12 | BE105: 12.5 | BF105: 13 | BG105: 13.5 | BH105: 14 | BI105: 14.5 | BJ105: 15
A106: 21 | B106: 18 | C106: -0.1712 | D106: 6.6306 | E106: -2.756118881 | F106: 0 | G106: 0 | H106: 7.102447552 | I106: Heizlast | J106: 10.4 | K106: 10.2 | L106: 10 | M106: 9.8 | N106: 9.6 | O106: 9.4 | P106: 9.2 | Q106: 9 | R106: 8.8 | S106: 8.6 | T106: 8.4 | U106: 8.2 | V106: 8 | W106: 7.8 | X106: 7.6 | Y106: 7.4 | Z106: 7.2 | AA106: 7 | AB106: 6.8 | AC106: 6.6 | AD106: 6.4 | AE106: 6.2 | AF106: 6 | AG106: 5.8 | AH106: 5.6 | AI106: 5.4 | AJ106: 5.2 | AK106: 5 | AL106: 4.8 | AM106: 4.6 | AN106: 4.4 | AO106: 4.2 | AP106: 4 | AQ106: 3.8 | AR106: 3.6 | AS106: 3.4 | AT106: 3.2 | AU106: 3 | AV106: 2.8 | AW106: 2.6 | AX106: 2.4 | AY106: 2.2 | AZ106: 2 | BA106: 1.8 | BB106: 1.6 | BC106: 1.4 | BD106: 1.2 | BE106: 1 | BF106: 0.8 | BG106: 0.6 | BH106: 0.4 | BI106: 0.2 | BJ106: 3.830269435e-15
A107: 21 | C107: -0.4 | D107: 6 | E107: -2.756118881 | F107: 7.102447552 | G107: -2.756118881 | H107: 7.102447552 | I107: Leistung | J107: 7.29983238 | K107: 7.365978333 | L107: 7.432124285 | M107: 7.498270238 | N107: 7.56441619 | O107: 7.630562143 | P107: 7.696708095 | Q107: 7.762854048 | R107: 7.829 | S107: 7.7434 | T107: 7.6578 | U107: 7.5722 | V107: 7.4866 | W107: 7.401 | X107: 7.3154 | Y107: 7.2298 | Z107: 7.1442 | AA107: 7.0586 | AB107: 6.973 | AC107: 7.007012139 | AD107: 7.041024278 | AE107: 7.075036417 | AF107: 7.109048556 | AG107: 7.143060695 | AH107: 7.177072834 | AI107: 7.211084973 | AJ107: 7.245097112 | AK107: 7.2722874 | AL107: 7.299477689 | AM107: 7.326667978 | AN107: 7.353858267 | AO107: 7.381048556 | AP107: 7.408238845 | AQ107: 7.435429133 | AR107: 7.462619422 | AS107: 7.489809711 | AT107: 7.517 | AU107: 7.536969467 | AV107: 7.556938934 | AW107: 7.576908401 | AX107: 7.596877868 | AY107: 7.616847334 | AZ107: 7.636816801 | BA107: 7.656786268 | BB107: 7.676755735 | BC107: 7.696725202 | BD107: 7.716694669 | BE107: 7.809234694 | BF107: 7.901774719 | BG107: 7.994314745 | BH107: 8.08685477 | BI107: 8.179394795 | BJ107: 8.27193482
A108: 21 | D108: 4.13 | E108: 4,5 | F108: 0,086 | G108: 4.19 | H108: 3.34 | I108: 3.88 | J108: 5.17 | K108: 0
A109: 21

Sheet VDI 4650 (hidden)
A2: Tabelle 1: Korrekturfaktor FΔϑ für abweichende Temeperaturdifferenzen am Verflüssiger
K3: VDI 4650
B4: Temperaturdifferenz bei der Prüfstandsmessung ΔϑM in K | K4: - Stand 2016
A5: ΔϑB*) in K | B5: 3 | C5: 4 | D5: 5 | E5: 6 | F5: 7 | G5: 8 | H5: 9 | I5: 10
A6: 3 | B6: 1 | C6: 0.99 | D6: 0.98 | E6: 0.969 | F6: 0.959 | G6: 0.949 | H6: 0.939 | I6: 0.928
A7: 4 | B7: 1.01 | C7: 1 | D7: 0.99 | E7: 0.98 | F7: 0.969 | G7: 0.959 | H7: 0.949 | I7: 0.939
A8: 5 | B8: 1.02 | C8: 1.01 | D8: 1 | E8: 0.99 | F8: 0.98 | G8: 0.969 | H8: 0.959 | I8: 0.949
A9: 6 | B9: 1.031 | C9: 1.02 | D9: 1.01 | E9: 1 | F9: 0.99 | G9: 0.98 | H9: 0.969 | I9: 0.959
A10: 7 | B10: 1.041 | C10: 1.031 | D10: 1.02 | E10: 1.01 | F10: 1 | G10: 0.99 | H10: 0.98 | I10: 0.969
A11: 8 | B11: 1.051 | C11: 1.041 | D11: 1.031 | E11: 1.02 | F11: 1.01 | G11: 1 | H11: 0.99 | I11: 0.98
A12: 9 | B12: 1.061 | C12: 1.051 | D12: 1.041 | E12: 1.031 | F12: 1.02 | G12: 1.01 | H12: 1 | I12: 0.99
A13: 10 | B13: 1.072 | C13: 1.061 | D13: 1.051 | E13: 1.041 | F13: 1.031 | G13: 1.02 | H13: 1.01 | I13: 1
A14: *) ΔϑB – Temperaturdifferenz beim Betrieb im Auslegungspunkt der Heizungsanlage
A18: Tabelle 12: Korrekturfaktoren Fϑ1, Fϑ2, Fϑ3 für Luft-Wasser-Wärmepumpen (leistungsgeregelt) bei unterschiedlichen Betriebsbedingungen
A19: (HG = 15 °C)
D20: Maximale Vorlauftemperatur tvorl,max in °C
A21: Normaußentemperatur | B21: Lufttemperatur in °C | C21: Korrekturfaktor | D21: 30 | E21: 35 | F21: 40 | G21: 45 | H21: 50 | I21: 55 | J21: 60
A22: –8°C | B22: –7 | C22: Fϑ 1 | D22: 0.008 | E22: 0.008 | F22: 0.009 | G22: 0.01 | H22: 0.011 | I22: 0.012 | J22: 0.013 | K22: NEU
B23: 2 | C23: Fϑ 2 | D23: 0.458 | E23: 0.483 | F23: 0.512 | G23: 0.544 | H23: 0.581 | I23: 0.623 | J23: 0.665
B24: 7 | C24: Fϑ 3 | D24: 0.353 | E24: 0.368 | F24: 0.383 | G24: 0.4 | H24: 0.419 | I24: 0.439 | J24: 0.46
A25: –10°C | B25: –7 | C25: Fϑ 1 | D25: 0.02 | E25: 0.022 | F25: 0.024 | G25: 0.026 | H25: 0.028 | I25: 0.031 | J25: 0.035
B26: 2 | C26: Fϑ 2 | D26: 0.439 | E26: 0.462 | F26: 0.488 | G26: 0.517 | H26: 0.55 | I26: 0.587 | J26: 0.625
B27: 7 | C27: Fϑ 3 | D27: 0.398 | E27: 0.413 | F27: 0.43 | G27: 0.447 | H27: 0.466 | I27: 0.487 | J27: 0.508
A28: –12°C | B28: –7 | C28: Fϑ 1 | D28: 0.036 | E28: 0.038 | F28: 0.041 | G28: 0.045 | H28: 0.049 | I28: 0.054 | J28: 0.059
B29: 2 | C29: Fϑ 2 | D29: 0.5 | E29: 0.525 | F29: 0.553 | G29: 0.584 | H29: 0.619 | I29: 0.658 | J29: 0.698
B30: 7 | C30: Fϑ 3 | D30: 0.328 | E30: 0.34 | F30: 0.352 | G30: 0.366 | H30: 0.38 | I30: 0.396 | J30: 0.412
A31: –14°C | B31: –7 | C31: Fϑ 1 | D31: 0.089 | E31: 0.095 | F31: 0.102 | G31: 0.11 | H31: 0.119 | I31: 0.131 | J31: 0.142
B32: 2 | C32: Fϑ 2 | D32: 0.521 | E32: 0.547 | F32: 0.575 | G32: 0.606 | H32: 0.64 | I32: 0.679 | J32: 0.718
B33: 7 | C33: Fϑ 3 | D33: 0.264 | E33: 0.272 | F33: 0.282 | G33: 0.292 | H33: 0.303 | I33: 0.315 | J33: 0.326
A34: –16°C | B34: –7 | C34: Fϑ 1 | D34: 0.138 | E34: 0.147 | F34: 0.158 | G34: 0.171 | H34: 0.185 | I34: 0.203 | J34: 0.221
B35: 2 | C35: Fϑ 2 | D35: 0.52 | E35: 0.544 | F35: 0.571 | G35: 0.6 | H35: 0.632 | I35: 0.668 | J35: 0.703
B36: 7 | C36: Fϑ 3 | D36: 0.219 | E36: 0.226 | F36: 0.233 | G36: 0.241 | H36: 0.249 | I36: 0.258 | J36: 0.267
A40: Tabelle 14: Korrekturfaktoren Fϑ1, Fϑ2, Fϑ3 für Luft-Wasser-Wärmepumpen (leistungsgeregelt) bei unterschiedlichen Betriebsbedingungen
A41: (HG = 12 °C)
D42: Maximale Vorlauftemperatur tvorl,max in °C
A43: Normaußentemperatur | B43: Lufttemperatur in °C | C43: Korrekturfaktor | D43: 30 | E43: 35 | F43: 40 | G43: 45 | H43: 50 | I43: 55 | J43: 60
A44: –8°C | B44: –7 | C44: Fϑ 1 | D44: 0.01 | E44: 0.011 | F44: 0.012 | G44: 0.013 | H44: 0.014 | I44: 0.015 | J44: 0.017
B45: 2 | C45: Fϑ 2 | D45: 0.541 | E45: 0.571 | F45: 0.605 | G45: 0.643 | H45: 0.687 | I45: 0.736 | J45: 0.786
B46: 7 | C46: Fϑ 3 | D46: 0.28 | E46: 0.292 | F46: 0.305 | G46: 0.32 | H46: 0.336 | I46: 0.354 | J46: 0.372
A47: –10°C | B47: –7 | C47: Fϑ 1 | D47: 0.026 | E47: 0.028 | F47: 0.031 | G47: 0.034 | H47: 0.037 | I47: 0.041 | J47: 0.045
B48: 2 | C48: Fϑ 2 | D48: 0.523 | E48: 0.551 | F48: 0.582 | G48: 0.617 | H48: 0.657 | I48: 0.702 | J48: 0.747
B49: 7 | C49: Fϑ 3 | D49: 0.329 | E49: 0.342 | F49: 0.356 | G49: 0.371 | H49: 0.388 | I49: 0.406 | J49: 0.425
A50: –12°C | B50: –7 | C50: Fϑ 1 | D50: 0.045 | E50: 0.048 | F50: 0.052 | G50: 0.057 | H50: 0.062 | I50: 0.068 | J50: 0.075
B51: 2 | C51: Fϑ 2 | D51: 0.579 | E51: 0.608 | F51: 0.641 | G51: 0.677 | H51: 0.718 | I51: 0.764 | J51: 0.81
B52: 7 | C52: Fϑ 3 | D52: 0.259 | E52: 0.269 | F52: 0.28 | G52: 0.291 | H52: 0.303 | I52: 0.317 | J52: 0.33
A53: –14°C | B53: –7 | C53: Fϑ 1 | D53: 0.107 | E53: 0.115 | F53: 0.123 | G53: 0.133 | H53: 0.144 | I53: 0.158 | J53: 0.172
B54: 2 | C54: Fϑ 2 | D54: 0.583 | E54: 0.612 | F54: 0.643 | G54: 0.678 | H54: 0.717 | I54: 0.761 | J54: 0.805
B55: 7 | C55: Fϑ 3 | D55: 0.2 | E55: 0.207 | F55: 0.215 | G55: 0.223 | H55: 0.232 | I55: 0.242 | J55: 0.251
A56: –16°C | B56: –7 | C56: Fϑ 1 | D56: 0.164 | E56: 0.175 | F56: 0.188 | G56: 0.203 | H56: 0.221 | I56: 0.242 | J56: 0.264
B57: 2 | C57: Fϑ 2 | D57: 0.57 | E57: 0.596 | F57: 0.625 | G57: 0.657 | H57: 0.692 | I57: 0.731 | J57: 0.771
B58: 7 | C58: Fϑ 3 | D58: 0.16 | E58: 0.165 | F58: 0.171 | G58: 0.177 | H58: 0.183 | I58: 0.191 | J58: 0.198
A62: Tabelle 16: Korrekturfaktoren Fϑ1, Fϑ2, Fϑ3 für Luft-Wasser-Wärmepumpen (leistungsgeregelt) bei unterschiedlichen Betriebsbedingungen
A63: (HG = 10 °C)
D64: Maximale Vorlauftemperatur tvorl,max in °C
A65: Normaußentemperatur | B65: Lufttemperatur in °C | C65: Korrekturfaktor | D65: 30 | E65: 35 | F65: 40 | G65: 45 | H65: 50 | I65: 55 | J65: 60
A66: –8°C | B66: –7 | C66: Fϑ 1 | D66: 0.012 | E66: 0.013 | F66: 0.014 | G66: 0.015 | H66: 0.017 | I66: 0.019 | J66: 0.021
B67: 2 | C67: Fϑ 2 | D67: 0.611 | E67: 0.645 | F67: 0.684 | G67: 0.727 | H67: 0.777 | I67: 0.834 | J67: 0.89
B68: 7 | C68: Fϑ 3 | D68: 0.219 | E68: 0.229 | F68: 0.24 | G68: 0.252 | H68: 0.265 | I68: 0.28 | J68: 0.295
A69: –10°C | B69: –7 | C69: Fϑ 1 | D69: 0.033 | E69: 0.035 | F69: 0.038 | G69: 0.042 | H69: 0.046 | I69: 0.051 | J69: 0.056
B70: 2 | C70: Fϑ 2 | D70: 0.598 | E70: 0.63 | F70: 0.666 | G70: 0.706 | H70: 0.751 | I70: 0.803 | J70: 0.855
B71: 7 | C71: Fϑ 3 | D71: 0.26 | E71: 0.271 | F71: 0.283 | G71: 0.295 | H71: 0.309 | I71: 0.324 | J71: 0.34
A72: –12°C | B72: –7 | C72: Fϑ 1 | D72: 0.054 | E72: 0.058 | F72: 0.063 | G72: 0.068 | H72: 0.074 | I72: 0.082 | J72: 0.089
B73: 2 | C73: Fϑ 2 | D73: 0.64 | E73: 0.673 | F73: 0.709 | G73: 0.749 | H73: 0.795 | I73: 0.846 | J73: 0.897
B74: 7 | C74: Fϑ 3 | D74: 0.2 | E74: 0.208 | F74: 0.217 | G74: 0.226 | H74: 0.236 | I74: 0.246 | J74: 0.257
A75: –14°C | B75: –7 | C75: Fϑ 1 | D75: 0.124 | E75: 0.133 | F75: 0.143 | G75: 0.154 | H75: 0.167 | I75: 0.183 | J75: 0.199
B76: 2 | C76: Fϑ 2 | D76: 0.629 | E76: 0.659 | F76: 0.694 | G76: 0.731 | H76: 0.774 | I76: 0.821 | J76: 0.869
B77: 7 | C77: Fϑ 3 | D77: 0.148 | E77: 0.153 | F77: 0.159 | G77: 0.165 | H77: 0.172 | I77: 0.179 | J77: 0.187
A78: –16°C | B78: –7 | C78: Fϑ 1 | D78: 0.188 | E78: 0.201 | F78: 0.216 | G78: 0.233 | H78: 0.253 | I78: 0.278 | J78: 0.302
B79: 2 | C79: Fϑ 2 | D79: 0.602 | E79: 0.63 | F79: 0.661 | G79: 0.694 | H79: 0.732 | I79: 0.774 | J79: 0.816
B80: 7 | C80: Fϑ 3 | D80: 0.133 | E80: 0.117 | F80: 0.121 | G80: 0.126 | H80: 0.131 | I80: 0.136 | J80: 0.141
A84: Tabelle 28: Deckungsanteil α des Grundlast-Wärmeerzeugers Wärmepumpe für die Wärmequellen „Geothermie“ (Grundwasser/Erdreich) und „Luft“ in Abhängigkeit vom Leistungsanteil ξ bei monoenergetischem oder bivalentem (parallel oder alternativ) (Grundwasser/Erdreich) und „Luft“ in Abhängigkeit vom Leistungsanteil ξ bei monoenergetischem oder bivalentem (parallel oder alternativ)
A86: Quellen | B86: Betriebsweise bivalent oder monoenergetisch | C86: Leistungsanteil ξ der Wärmepumpe bei Normaußentemperatur in %
C87: 1 | D87: 0.9 | E87: 0.8 | F87: 0.7 | G87: 0.6 | H87: 0.5 | I87: 0.4 | J87: 0.3 | K87: 0.2
A88: Sole, Wasser, Direktverdampfer | B88: alternativ | C88: 1 | D88: 0.97 | E88: 0.93 | F88: 0.88 | G88: 0.78 | H88: 0.64 | I88: 0.42 | J88: 0.24 | K88: 0.11
B89: parallel | C89: 1 | D89: 1 | E89: 0.99 | F89: 0.98 | G89: 0.96 | H89: 0.92 | I89: 0.84 | J89: 0.71 | K89: 0.53
A90: Luft | B90: alternativ | C90: 1 | D90: 0.99 | E90: 0.97 | F90: 0.94 | G90: 0.91 | H90: 0.86 | I90: 0.76 | J90: 0.57 | K90: 0.33
B91: parallel | C91: 1 | D91: 1 | E91: 1 | F91: 0.99 | G91: 0.98 | H91: 0.97 | I91: 0.93 | J91: 0.87 | K91: 0.72

Sheet Korrekturfaktoren (hidden)
B1: ΔϑB*) in K | C1: Temperaturdifferenz bei der Prüfstandsmessung ΔϑM in K
B2: 3 | C2: 3 | D2: ='VDI 4650'!B$6 -> 1
B3: 3 | C3: 4 | D3: ='VDI 4650'!C$6 -> 0.99
B4: 3 | C4: 5 | D4: ='VDI 4650'!D$6 -> 0.98
B5: 3 | C5: 6 | D5: ='VDI 4650'!E$6 -> 0.969
B6: 3 | C6: 7 | D6: ='VDI 4650'!F$6 -> 0.959
B7: 3 | C7: 8 | D7: ='VDI 4650'!G$6 -> 0.949
B8: 3 | C8: 9 | D8: ='VDI 4650'!H$6 -> 0.939
B9: 3 | C9: 10 | D9: ='VDI 4650'!I$6 -> 0.928
B10: 4 | C10: 3 | D10: ='VDI 4650'!B$7 -> 1.01
B11: 4 | C11: 4 | D11: ='VDI 4650'!C$7 -> 1
B12: 4 | C12: 5 | D12: ='VDI 4650'!D$7 -> 0.99
B13: 4 | C13: 6 | D13: ='VDI 4650'!E$7 -> 0.98
B14: 4 | C14: 7 | D14: ='VDI 4650'!F$7 -> 0.969
B15: 4 | C15: 8 | D15: ='VDI 4650'!G$7 -> 0.959
B16: 4 | C16: 9 | D16: ='VDI 4650'!H$7 -> 0.949
B17: 4 | C17: 10 | D17: ='VDI 4650'!I$7 -> 0.939
B18: 5 | C18: 3 | D18: ='VDI 4650'!B$8 -> 1.02
B19: 5 | C19: 4 | D19: ='VDI 4650'!C$8 -> 1.01
B20: 5 | C20: 5 | D20: ='VDI 4650'!D$8 -> 1
B21: 5 | C21: 6 | D21: ='VDI 4650'!E$8 -> 0.99
B22: 5 | C22: 7 | D22: ='VDI 4650'!F$8 -> 0.98
B23: 5 | C23: 8 | D23: ='VDI 4650'!G$8 -> 0.969
B24: 5 | C24: 9 | D24: ='VDI 4650'!H$8 -> 0.959
B25: 5 | C25: 10 | D25: ='VDI 4650'!I$8 -> 0.949
B26: 6 | C26: 3 | D26: ='VDI 4650'!B$9 -> 1.031
B27: 6 | C27: 4 | D27: ='VDI 4650'!C$9 -> 1.02
B28: 6 | C28: 5 | D28: ='VDI 4650'!D$9 -> 1.01
B29: 6 | C29: 6 | D29: ='VDI 4650'!E$9 -> 1
B30: 6 | C30: 7 | D30: ='VDI 4650'!F$9 -> 0.99
B31: 6 | C31: 8 | D31: ='VDI 4650'!G$9 -> 0.98
B32: 6 | C32: 9 | D32: ='VDI 4650'!H$9 -> 0.969
B33: 6 | C33: 10 | D33: ='VDI 4650'!I$9 -> 0.959
B34: 7 | C34: 3 | D34: ='VDI 4650'!B$10 -> 1.041
B35: 7 | C35: 4 | D35: ='VDI 4650'!C$10 -> 1.031
B36: 7 | C36: 5 | D36: ='VDI 4650'!D$10 -> 1.02
B37: 7 | C37: 6 | D37: ='VDI 4650'!E$10 -> 1.01
B38: 7 | C38: 7 | D38: ='VDI 4650'!F$10 -> 1
B39: 7 | C39: 8 | D39: ='VDI 4650'!G$10 -> 0.99
B40: 7 | C40: 9 | D40: ='VDI 4650'!H$10 -> 0.98
B41: 7 | C41: 10 | D41: ='VDI 4650'!I$10 -> 0.969
B42: 8 | C42: 3 | D42: ='VDI 4650'!B$11 -> 1.051
B43: 8 | C43: 4 | D43: ='VDI 4650'!C$11 -> 1.041
B44: 8 | C44: 5 | D44: ='VDI 4650'!D$11 -> 1.031
B45: 8 | C45: 6 | D45: ='VDI 4650'!E$11 -> 1.02
B46: 8 | C46: 7 | D46: ='VDI 4650'!F$11 -> 1.01
B47: 8 | C47: 8 | D47: ='VDI 4650'!G$11 -> 1
B48: 8 | C48: 9 | D48: ='VDI 4650'!H$11 -> 0.99
B49: 8 | C49: 10 | D49: ='VDI 4650'!I$11 -> 0.98
B50: 9 | C50: 3 | D50: ='VDI 4650'!B$12 -> 1.061
B51: 9 | C51: 4 | D51: ='VDI 4650'!C$12 -> 1.051
B52: 9 | C52: 5 | D52: ='VDI 4650'!D$12 -> 1.041
B53: 9 | C53: 6 | D53: ='VDI 4650'!E$12 -> 1.031
B54: 9 | C54: 7 | D54: ='VDI 4650'!F$12 -> 1.02
B55: 9 | C55: 8 | D55: ='VDI 4650'!G$12 -> 1.01
B56: 9 | C56: 9 | D56: ='VDI 4650'!H$12 -> 1
B57: 9 | C57: 10 | D57: ='VDI 4650'!I$12 -> 0.99
B58: 10 | C58: 3 | D58: ='VDI 4650'!B$13 -> 1.072
B59: 10 | C59: 4 | D59: ='VDI 4650'!C$13 -> 1.061
B60: 10 | C60: 5 | D60: ='VDI 4650'!D$13 -> 1.051
B61: 10 | C61: 6 | D61: ='VDI 4650'!E$13 -> 1.041
B62: 10 | C62: 7 | D62: ='VDI 4650'!F$13 -> 1.031
B63: 10 | C63: 8 | D63: ='VDI 4650'!G$13 -> 1.02
B64: 10 | C64: 9 | D64: ='VDI 4650'!H$13 -> 1.01
B65: 10 | C65: 10 | D65: ='VDI 4650'!I$13 -> 1
H66: Zwischenwerte (-9,-11 etc.) haben keine Formel hinterlegt
B68: Heizgrenztemperatur | C68: Normaußentemperatur | D68: Lufttemperatur | E68: VLT
B69: 15 | C69: -8 | D69: -7 | E69: 30 | F69: ='VDI 4650'!D22 -> 0.008
B70: 15 | C70: -8 | D70: -7 | E70: 31 | F70: =ROUND($F69-(($F69-$F74)/5*A$256),3) -> 0.008
B71: 15 | C71: -8 | D71: -7 | E71: 32 | F71: =ROUND($F69-(($F69-$F74)/5*A$257),3) -> 0.008
B72: 15 | C72: -8 | D72: -7 | E72: 33 | F72: =ROUND($F69-(($F69-$F74)/5*A$258),3) -> 0.008
B73: 15 | C73: -8 | D73: -7 | E73: 34 | F73: =ROUND($F69-(($F69-$F74)/5*A$259),3) -> 0.008
B74: 15 | C74: -8 | D74: -7 | E74: 35 | F74: ='VDI 4650'!E22 -> 0.008
B75: 15 | C75: -8 | D75: -7 | E75: 36 | F75: =ROUND($F74-(($F74-$F79)/5*A$256),3) -> 0.008
B76: 15 | C76: -8 | D76: -7 | E76: 37 | F76: =ROUND($F74-(($F74-$F79)/5*A$257),3) -> 0.008
B77: 15 | C77: -8 | D77: -7 | E77: 38 | F77: =ROUND($F74-(($F74-$F79)/5*A$258),3) -> 0.009
B78: 15 | C78: -8 | D78: -7 | E78: 39 | F78: =ROUND($F74-(($F74-$F79)/5*A$259),3) -> 0.009
B79: 15 | C79: -8 | D79: -7 | E79: 40 | F79: ='VDI 4650'!F22 -> 0.009
B80: 15 | C80: -8 | D80: -7 | E80: 41 | F80: =ROUND($F79-(($F79-$F84)/5*A$256),3) -> 0.009
B81: 15 | C81: -8 | D81: -7 | E81: 42 | F81: =ROUND($F79-(($F79-$F84)/5*A$257),3) -> 0.009
B82: 15 | C82: -8 | D82: -7 | E82: 43 | F82: =ROUND($F79-(($F79-$F84)/5*A$258),3) -> 0.01
B83: 15 | C83: -8 | D83: -7 | E83: 44 | F83: =ROUND($F79-(($F79-$F84)/5*A$259),3) -> 0.01
B84: 15 | C84: -8 | D84: -7 | E84: 45 | F84: ='VDI 4650'!G22 -> 0.01
B85: 15 | C85: -8 | D85: -7 | E85: 46 | F85: =ROUND($F84-(($F84-$F89)/5*A$256),3) -> 0.01
B86: 15 | C86: -8 | D86: -7 | E86: 47 | F86: =ROUND($F84-(($F84-$F89)/5*A$257),3) -> 0.01
B87: 15 | C87: -8 | D87: -7 | E87: 48 | F87: =ROUND($F84-(($F84-$F89)/5*A$258),3) -> 0.011
B88: 15 | C88: -8 | D88: -7 | E88: 49 | F88: =ROUND($F84-(($F84-$F89)/5*A$259),3) -> 0.011
B89: 15 | C89: -8 | D89: -7 | E89: 50 | F89: ='VDI 4650'!H22 -> 0.011
B90: 15 | C90: -8 | D90: -7 | E90: 51 | F90: =ROUND($F89-(($F89-$F94)/5*A$256),3) -> 0.011
B91: 15 | C91: -8 | D91: -7 | E91: 52 | F91: =ROUND($F89-(($F89-$F94)/5*A$257),3) -> 0.011
B92: 15 | C92: -8 | D92: -7 | E92: 53 | F92: =ROUND($F89-(($F89-$F94)/5*A$258),3) -> 0.012
B93: 15 | C93: -8 | D93: -7 | E93: 54 | F93: =ROUND($F89-(($F89-$F94)/5*A$259),3) -> 0.012
B94: 15 | C94: -8 | D94: -7 | E94: 55 | F94: ='VDI 4650'!I22 -> 0.012
B95: 15 | C95: -8 | D95: -7 | E95: 56 | F95: =ROUND($F94-(($F94-$F99)/5*A$256),3) -> 0.012
B96: 15 | C96: -8 | D96: -7 | E96: 57 | F96: =ROUND($F94-(($F94-$F99)/5*A$257),3) -> 0.012
B97: 15 | C97: -8 | D97: -7 | E97: 58 | F97: =ROUND($F94-(($F94-$F99)/5*A$258),3) -> 0.013
B98: 15 | C98: -8 | D98: -7 | E98: 59 | F98: =ROUND($F94-(($F94-$F99)/5*A$259),3) -> 0.013
B99: 15 | C99: -8 | D99: -7 | E99: 60 | F99: ='VDI 4650'!J22 -> 0.013
B100: 15 | C100: -8 | D100: 2 | E100: 30 | F100: ='VDI 4650'!D23 -> 0.458
B101: 15 | C101: -8 | D101: 2 | E101: 31 | F101: =ROUND($F100-(($F100-$F105)/5*A$256),3) -> 0.463
B102: 15 | C102: -8 | D102: 2 | E102: 32 | F102: =ROUND($F100-(($F100-$F105)/5*A$257),3) -> 0.468
B103: 15 | C103: -8 | D103: 2 | E103: 33 | F103: =ROUND($F100-(($F100-$F105)/5*A$258),3) -> 0.473
B104: 15 | C104: -8 | D104: 2 | E104: 34 | F104: =ROUND($F100-(($F100-$F105)/5*A$259),3) -> 0.478
B105: 15 | C105: -8 | D105: 2 | E105: 35 | F105: ='VDI 4650'!E23 -> 0.483
B106: 15 | C106: -8 | D106: 2 | E106: 36 | F106: =ROUND($F105-(($F105-$F110)/5*A$256),3) -> 0.489
B107: 15 | C107: -8 | D107: 2 | E107: 37 | F107: =ROUND($F105-(($F105-$F110)/5*A$257),3) -> 0.495
B108: 15 | C108: -8 | D108: 2 | E108: 38 | F108: =ROUND($F105-(($F105-$F110)/5*A$258),3) -> 0.5
B109: 15 | C109: -8 | D109: 2 | E109: 39 | F109: =ROUND($F105-(($F105-$F110)/5*A$259),3) -> 0.506
B110: 15 | C110: -8 | D110: 2 | E110: 40 | F110: ='VDI 4650'!F23 -> 0.512
B111: 15 | C111: -8 | D111: 2 | E111: 41 | F111: =ROUND($F110-(($F110-$F115)/5*A$256),3) -> 0.518
B112: 15 | C112: -8 | D112: 2 | E112: 42 | F112: =ROUND($F110-(($F110-$F115)/5*A$257),3) -> 0.525
B113: 15 | C113: -8 | D113: 2 | E113: 43 | F113: =ROUND($F110-(($F110-$F115)/5*A$258),3) -> 0.531
B114: 15 | C114: -8 | D114: 2 | E114: 44 | F114: =ROUND($F110-(($F110-$F115)/5*A$259),3) -> 0.538
B115: 15 | C115: -8 | D115: 2 | E115: 45 | F115: ='VDI 4650'!G23 -> 0.544
B116: 15 | C116: -8 | D116: 2 | E116: 46 | F116: =ROUND($F115-(($F115-$F120)/5*A$256),3) -> 0.551
B117: 15 | C117: -8 | D117: 2 | E117: 47 | F117: =ROUND($F115-(($F115-$F120)/5*A$257),3) -> 0.559
B118: 15 | C118: -8 | D118: 2 | E118: 48 | F118: =ROUND($F115-(($F115-$F120)/5*A$258),3) -> 0.566
B119: 15 | C119: -8 | D119: 2 | E119: 49 | F119: =ROUND($F115-(($F115-$F120)/5*A$259),3) -> 0.574
B120: 15 | C120: -8 | D120: 2 | E120: 50 | F120: ='VDI 4650'!H23 -> 0.581
B121: 15 | C121: -8 | D121: 2 | E121: 51 | F121: =ROUND($F120-(($F120-$F125)/5*A$256),3) -> 0.589
B122: 15 | C122: -8 | D122: 2 | E122: 52 | F122: =ROUND($F120-(($F120-$F125)/5*A$257),3) -> 0.598
B123: 15 | C123: -8 | D123: 2 | E123: 53 | F123: =ROUND($F120-(($F120-$F125)/5*A$258),3) -> 0.606
B124: 15 | C124: -8 | D124: 2 | E124: 54 | F124: =ROUND($F120-(($F120-$F125)/5*A$259),3) -> 0.615
B125: 15 | C125: -8 | D125: 2 | E125: 55 | F125: ='VDI 4650'!I23 -> 0.623
B126: 15 | C126: -8 | D126: 2 | E126: 56 | F126: =ROUND($F125-(($F125-$F130)/5*A$256),3) -> 0.631
B127: 15 | C127: -8 | D127: 2 | E127: 57 | F127: =ROUND($F125-(($F125-$F130)/5*A$257),3) -> 0.64
B128: 15 | C128: -8 | D128: 2 | E128: 58 | F128: =ROUND($F125-(($F125-$F130)/5*A$258),3) -> 0.648
B129: 15 | C129: -8 | D129: 2 | E129: 59 | F129: =ROUND($F125-(($F125-$F130)/5*A$259),3) -> 0.657
B130: 15 | C130: -8 | D130: 2 | E130: 60 | F130: ='VDI 4650'!J23 -> 0.665
B131: 15 | C131: -8 | D131: 7 | E131: 30 | F131: ='VDI 4650'!D24 -> 0.353
B132: 15 | C132: -8 | D132: 7 | E132: 31 | F132: =ROUND($F131-(($F131-$F136)/5*A$256),3) -> 0.356
B133: 15 | C133: -8 | D133: 7 | E133: 32 | F133: =ROUND($F131-(($F131-$F136)/5*A$257),3) -> 0.359
B134: 15 | C134: -8 | D134: 7 | E134: 33 | F134: =ROUND($F131-(($F131-$F136)/5*A$258),3) -> 0.362
B135: 15 | C135: -8 | D135: 7 | E135: 34 | F135: =ROUND($F131-(($F131-$F136)/5*A$259),3) -> 0.365
B136: 15 | C136: -8 | D136: 7 | E136: 35 | F136: ='VDI 4650'!E24 -> 0.368
B137: 15 | C137: -8 | D137: 7 | E137: 36 | F137: =ROUND($F136-(($F136-$F141)/5*A$256),3) -> 0.371
B138: 15 | C138: -8 | D138: 7 | E138: 37 | F138: =ROUND($F136-(($F136-$F141)/5*A$257),3) -> 0.374
B139: 15 | C139: -8 | D139: 7 | E139: 38 | F139: =ROUND($F136-(($F136-$F141)/5*A$258),3) -> 0.377
B140: 15 | C140: -8 | D140: 7 | E140: 39 | F140: =ROUND($F136-(($F136-$F141)/5*A$259),3) -> 0.38
B141: 15 | C141: -8 | D141: 7 | E141: 40 | F141: ='VDI 4650'!F24 -> 0.383
B142: 15 | C142: -8 | D142: 7 | E142: 41 | F142: =ROUND($F141-(($F141-$F146)/5*A$256),3) -> 0.386
B143: 15 | C143: -8 | D143: 7 | E143: 42 | F143: =ROUND($F141-(($F141-$F146)/5*A$257),3) -> 0.39
B144: 15 | C144: -8 | D144: 7 | E144: 43 | F144: =ROUND($F141-(($F141-$F146)/5*A$258),3) -> 0.393
B145: 15 | C145: -8 | D145: 7 | E145: 44 | F145: =ROUND($F141-(($F141-$F146)/5*A$259),3) -> 0.397
B146: 15 | C146: -8 | D146: 7 | E146: 45 | F146: ='VDI 4650'!G24 -> 0.4
B147: 15 | C147: -8 | D147: 7 | E147: 46 | F147: =ROUND($F146-(($F146-$F151)/5*A$256),3) -> 0.404
B148: 15 | C148: -8 | D148: 7 | E148: 47 | F148: =ROUND($F146-(($F146-$F151)/5*A$257),3) -> 0.408
B149: 15 | C149: -8 | D149: 7 | E149: 48 | F149: =ROUND($F146-(($F146-$F151)/5*A$258),3) -> 0.411
B150: 15 | C150: -8 | D150: 7 | E150: 49 | F150: =ROUND($F146-(($F146-$F151)/5*A$259),3) -> 0.415
B151: 15 | C151: -8 | D151: 7 | E151: 50 | F151: ='VDI 4650'!H24 -> 0.419
B152: 15 | C152: -8 | D152: 7 | E152: 51 | F152: =ROUND($F151-(($F151-$F156)/5*A$256),3) -> 0.423
B153: 15 | C153: -8 | D153: 7 | E153: 52 | F153: =ROUND($F151-(($F151-$F156)/5*A$257),3) -> 0.427
B154: 15 | C154: -8 | D154: 7 | E154: 53 | F154: =ROUND($F151-(($F151-$F156)/5*A$258),3) -> 0.431
B155: 15 | C155: -8 | D155: 7 | E155: 54 | F155: =ROUND($F151-(($F151-$F156)/5*A$259),3) -> 0.435
B156: 15 | C156: -8 | D156: 7 | E156: 55 | F156: ='VDI 4650'!I24 -> 0.439
B157: 15 | C157: -8 | D157: 7 | E157: 56 | F157: =ROUND($F156-(($F156-$F161)/5*A$256),3) -> 0.443
B158: 15 | C158: -8 | D158: 7 | E158: 57 | F158: =ROUND($F156-(($F156-$F161)/5*A$257),3) -> 0.447
B159: 15 | C159: -8 | D159: 7 | E159: 58 | F159: =ROUND($F156-(($F156-$F161)/5*A$258),3) -> 0.452
B160: 15 | C160: -8 | D160: 7 | E160: 59 | F160: =ROUND($F156-(($F156-$F161)/5*A$259),3) -> 0.456
B161: 15 | C161: -8 | D161: 7 | E161: 60 | F161: ='VDI 4650'!J24 -> 0.46
B162: 15 | C162: -9 | D162: -7 | E162: 30 | F162: =F69 -> 0.008 | G162: =F255 -> 0.02
B163: 15 | C163: -9 | D163: -7 | E163: 31 | F163: =F70 -> 0.008 | G163: =F256 -> 0.02
B164: 15 | C164: -9 | D164: -7 | E164: 32 | F164: 0.008 | G164: 0.021
B165: 15 | C165: -9 | D165: -7 | E165: 33 | F165: 0.008 | G165: 0.021
B166: 15 | C166: -9 | D166: -7 | E166: 34 | F166: 0.008 | G166: 0.022
B167: 15 | C167: -9 | D167: -7 | E167: 35 | F167: 0.008 | G167: 0.022
B168: 15 | C168: -9 | D168: -7 | E168: 36 | F168: 0.008 | G168: 0.022
B169: 15 | C169: -9 | D169: -7 | E169: 37 | F169: 0.008 | G169: 0.023
B170: 15 | C170: -9 | D170: -7 | E170: 38 | F170: 0.009 | G170: 0.023
B171: 15 | C171: -9 | D171: -7 | E171: 39 | F171: 0.009 | G171: 0.024
B172: 15 | C172: -9 | D172: -7 | E172: 40 | F172: 0.009 | G172: 0.024
B173: 15 | C173: -9 | D173: -7 | E173: 41 | F173: 0.009 | G173: 0.024
B174: 15 | C174: -9 | D174: -7 | E174: 42 | F174: 0.009 | G174: 0.025
B175: 15 | C175: -9 | D175: -7 | E175: 43 | F175: 0.01 | G175: 0.025
B176: 15 | C176: -9 | D176: -7 | E176: 44 | F176: 0.01 | G176: 0.026
B177: 15 | C177: -9 | D177: -7 | E177: 45 | F177: 0.01 | G177: 0.026
B178: 15 | C178: -9 | D178: -7 | E178: 46 | F178: 0.01 | G178: 0.026
B179: 15 | C179: -9 | D179: -7 | E179: 47 | F179: 0.01 | G179: 0.027
B180: 15 | C180: -9 | D180: -7 | E180: 48 | F180: 0.011 | G180: 0.027
B181: 15 | C181: -9 | D181: -7 | E181: 49 | F181: 0.011 | G181: 0.028
B182: 15 | C182: -9 | D182: -7 | E182: 50 | F182: 0.011 | G182: 0.028
B183: 15 | C183: -9 | D183: -7 | E183: 51 | F183: 0.011 | G183: 0.029
B184: 15 | C184: -9 | D184: -7 | E184: 52 | F184: 0.011 | G184: 0.029
B185: 15 | C185: -9 | D185: -7 | E185: 53 | F185: 0.012 | G185: 0.03
B186: 15 | C186: -9 | D186: -7 | E186: 54 | F186: 0.012 | G186: 0.03
B187: 15 | C187: -9 | D187: -7 | E187: 55 | F187: 0.012 | G187: 0.031
B188: 15 | C188: -9 | D188: -7 | E188: 56 | F188: 0.012 | G188: 0.032
B189: 15 | C189: -9 | D189: -7 | E189: 57 | F189: 0.012 | G189: 0.033
B190: 15 | C190: -9 | D190: -7 | E190: 58 | F190: 0.013 | G190: 0.033
B191: 15 | C191: -9 | D191: -7 | E191: 59 | F191: 0.013 | G191: 0.034
B192: 15 | C192: -9 | D192: -7 | E192: 60 | F192: 0.013 | G192: 0.035
B193: 15 | C193: -9 | D193: 2 | E193: 30 | F193: 0.458 | G193: 0.439
B194: 15 | C194: -9 | D194: 2 | E194: 31 | F194: 0.463 | G194: 0.444
B195: 15 | C195: -9 | D195: 2 | E195: 32 | F195: 0.468 | G195: 0.448
B196: 15 | C196: -9 | D196: 2 | E196: 33 | F196: 0.473 | G196: 0.453
B197: 15 | C197: -9 | D197: 2 | E197: 34 | F197: 0.478 | G197: 0.457
B198: 15 | C198: -9 | D198: 2 | E198: 35 | F198: 0.483 | G198: 0.462
B199: 15 | C199: -9 | D199: 2 | E199: 36 | F199: 0.489 | G199: 0.467
B200: 15 | C200: -9 | D200: 2 | E200: 37 | F200: 0.495 | G200: 0.472
B201: 15 | C201: -9 | D201: 2 | E201: 38 | F201: 0.5 | G201: 0.478
... 2395 more rows

Sheet Rotex Leistungsdaten (hidden)
A1: 0 | B1: Produkt | C1: Leistung | D1: COP | G1: VLT | H1: Außentemperatur | M1: 1 | N1: 2 | O1: 3 | P1: 4 | Q1: 5 | R1: 6 | AM1: 1 | AN1: 2 | AO1: 3 | AP1: 4 | AQ1: 5 | AR1: 6 | CK1: Leistung Backup- / Boosterheater [kW]: | CM1: 9
D2: -7 | E2: 2 | F2: 7 | H2: -20 | I2: -19.5 | J2: -19 | K2: -18.5 | L2: -18 | M2: -17.5 | N2: -17 | O2: -16.5 | P2: -16 | Q2: -15.5 | R2: -15 | S2: -14.5 | T2: -14 | U2: -13.5 | V2: -13 | W2: -12.5 | X2: -12 | Y2: -11.5 | Z2: -11 | AA2: -10.5 | AB2: -10 | AC2: -9.5 | AD2: -9 | AE2: -8.5 | AF2: -8 | AG2: -7.5 | AH2: -7 | AI2: -6.5 | AJ2: -6 | AK2: -5.5 | AL2: -5 | AM2: -4.5 | AN2: -4 | AO2: -3.5 | AP2: -3 | AQ2: -2.5 | AR2: -2 | AS2: -1.5 | AT2: -1 | AU2: -0.5 | AV2: 0 | AW2: 0.5 | AX2: 1 | AY2: 1.5 | AZ2: 2 | BA2: 2.5 | BB2: 3 | BC2: 3.5 | BD2: 4 | BE2: 4.5 | BF2: 5 | BG2: 5.5 | BH2: 6 | BI2: 6.5 | BJ2: 7 | BK2: 7.5 | BL2: 8 | BM2: 8.5 | BN2: 9 | BO2: 9.5 | BP2: 10 | BQ2: 10.5 | BR2: 11 | BS2: 11.5 | BT2: 12 | BU2: 12.5 | BV2: 13 | BW2: 13.5 | BX2: 14 | BY2: 14.5 | BZ2: 15 | CA2: 15.5 | CB2: 16 | CC2: 16.5 | CD2: 17 | CE2: 17.5 | CF2: 18 | CG2: 18.5 | CH2: 19 | CI2: 19.5 | CJ2: 20 | CK2: wenn Personenzahl <= 2 dann Spalte OT; wenn >2 dann Spalte OU
I3: 1 | J3: 2 | K3: 3 | L3: 4 | M3: 5 | N3: 6 | O3: 7 | P3: 8 | Q3: 9 | R3: 10 | S3: 1 | T3: 2 | U3: 3 | V3: 4 | W3: 5 | X3: 6 | Y3: 7 | Z3: 8 | AA3: 9 | AB3: 10 | AC3: 11 | AD3: 12 | AE3: 13 | AF3: 14 | AG3: 15 | AH3: 16 | AI3: 1 | AJ3: 2 | AK3: 3 | AL3: 4 | AM3: 5 | AN3: 6 | AO3: 7 | AP3: 8 | AQ3: 9 | AR3: 10 | AS3: 1 | AT3: 2 | AU3: 3 | AV3: 4 | AW3: 5 | AX3: 6 | AY3: 7 | AZ3: 8 | BA3: 1 | BB3: 2 | BC3: 3 | BD3: 4 | BE3: 5 | BF3: 6 | BG3: 7 | BH3: 8 | BI3: 9 | BJ3: 10 | BK3: 1 | BL3: 2 | BM3: 3 | BN3: 4 | BO3: 5 | BP3: 6 | BQ3: 7 | BR3: 8 | BS3: 9 | BT3: 10 | BU3: 1 | BV3: 2 | BW3: 3 | BX3: 4 | BY3: 5 | BZ3: 6 | CA3: 1 | CB3: 2 | CC3: 3 | CD3: 4 | CE3: 5 | CF3: 6 | CG3: 7 | CH3: 8 | CI3: 9 | CJ3: 10 | CK3: Personen | CL3: Produktbezeichnung | CN3: Backupheater | CO3: Priorisierung | CQ3: Heizleistung (A7/W35)
A4: 1 | B4: Altherma 3 R W | C4: 4 | D4: ='Altherma 3 R'!$L$8 -> 3.1 | E4: ='Altherma 3 R'!$L$9 -> 4.1 | F4: ='Altherma 3 R'!$L$10 -> 5.1 | G4: 30 | H4: ='Altherma 3 R'!C7 -> 4.71 | I4: =$H4-(($H4-$R4)/$R$3*I$3) -> 4.758 | J4: 4.806 | K4: 4.854 | L4: 4.902 | M4: 4.95 | N4: 4.998 | O4: 5.046 | P4: 5.094 | Q4: 5.142 | R4: ='Altherma 3 R'!C8 -> 5.19 | S4: =$R4-(($R4-$AH4)/$AH$3*S$3) -> 5.2375 | T4: 5.285 | U4: 5.3325 | V4: 5.38 | W4: 5.4275 | X4: 5.475 | Y4: 5.5225 | Z4: 5.57 | AA4: 5.6175 | AB4: 5.665 | AC4: 5.7125 | AD4: 5.76 | AE4: 5.8075 | AF4: 5.855 | AG4: 5.9025 | AH4: ='Altherma 3 R'!C9 -> 5.95 | AI4: =$AH4-(($AH4-$AL4)/$AL$3*AI$3) -> 6.035 | AJ4: 6.12 | AK4: 6.205 | AL4: ='Altherma 3 R'!C11 -> 6.29 | AM4: =$AL4-(($AL4-$AR4)/$AR$1*AM$1) -> 6.268333333 | AN4: 6.246666667 | AO4: 6.225 | AP4: 6.203333333 | AQ4: 6.181666667 | AR4: ='Altherma 3 R'!C10 -> 6.16 | AS4: =$AR4-(($AR4-$AZ4)/$AZ$3*AS$3) -> 6.21125 | AT4: 6.2625 | AU4: 6.31375 | AV4: 6.365 | AW4: 6.41625 | AX4: 6.4675 | AY4: 6.51875 | AZ4: ='Altherma 3 R'!C12 -> 6.57 | BA4: =$AZ4-(($AZ4-$BJ4)/$BJ$3*BA$3) -> 6.578 | BB4: 6.586 | BC4: 6.594 | BD4: 6.602 | BE4: 6.61 | BF4: 6.618 | BG4: 6.626 | BH4: 6.634 | BI4: 6.642 | BJ4: ='Altherma 3 R'!C13 -> 6.65 | BK4: =$BJ4-(($BJ4-$BT4)/$BT$3*BK$3) -> 6.617 | BL4: 6.584 | BM4: 6.551 | BN4: 6.518 | BO4: 6.485 | BP4: 6.452 | BQ4: 6.419 | BR4: 6.386 | BS4: 6.353 | BT4: ='Altherma 3 R'!C14 -> 6.32 | BU4: =$BT4-(($BT4-$BZ4)/$BZ$3*BU$3) -> 6.273333333 | BV4: 6.226666667 | BW4: 6.18 | BX4: 6.133333333 | BY4: 6.086666667 | BZ4: ='Altherma 3 R'!C15 -> 6.04 | CA4: =$BZ4-(($BZ4-$CJ4)/$CJ$3*CA$3) -> 5.985 | CB4: 5.93 | CC4: 5.875 | CD4: 5.82 | CE4: 5.765 | CF4: 5.71 | CG4: 5.655 | CH4: 5.6 | CI4: 5.545 | CJ4: ='Altherma 3 R'!C16 -> 5.49 | CK4: =Eingabemaske!G$19 -> 4 | CL4: Altherma 3 R W 4 kW | CM4: Altherma 3 R W 4 kW | CN4: 9 | CO4: 3.8 | CQ4: 4.3
A5: 2 | B5: Altherma 3 R W | C5: 4 | D5: ='Altherma 3 R'!$L$8 -> 3.1 | E5: ='Altherma 3 R'!$L$9 -> 4.1 | F5: ='Altherma 3 R'!$L$10 -> 5.1 | G5: 31 | H5: =$H$4-(($H$4-$H$9)/5*A4) -> 4.702 | I5: 4.7492 | J5: 4.7964 | K5: 4.8436 | L5: 4.8908 | M5: 4.938 | N5: 4.9852 | O5: 5.0324 | P5: 5.0796 | Q5: 5.1268 | R5: =$R$4-(($R$4-$R$9)/5*A4) -> 5.174 | S5: 5.220625 | T5: 5.26725 | U5: 5.313875 | V5: 5.3605 | W5: 5.407125 | X5: 5.45375 | Y5: 5.500375 | Z5: 5.547 | AA5: 5.593625 | AB5: 5.64025 | AC5: 5.686875 | AD5: 5.7335 | AE5: 5.780125 | AF5: 5.82675 | AG5: 5.873375 | AH5: =$AH$4-(($AH$4-$AH$9)/5*A4) -> 5.92 | AI5: 6.0045 | AJ5: 6.089 | AK5: 6.1735 | AL5: =$AL$4-(($AL$4-$AL$9)/5*A4) -> 6.258 | AM5: 6.236333333 | AN5: 6.214666667 | AO5: 6.193 | AP5: 6.171333333 | AQ5: 6.149666667 | AR5: =$AR$4-(($AR$4-$AR$9)/5*A4) -> 6.128 | AS5: 6.17875 | AT5: 6.2295 | AU5: 6.28025 | AV5: 6.331 | AW5: 6.38175 | AX5: 6.4325 | AY5: 6.48325 | AZ5: =$AZ$4-(($AZ$4-$AZ$9)/5*A4) -> 6.534 | BA5: 6.5408 | BB5: 6.5476 | BC5: 6.5544 | BD5: 6.5612 | BE5: 6.568 | BF5: 6.5748 | BG5: 6.5816 | BH5: 6.5884 | BI5: 6.5952 | BJ5: =$BJ$4-(($BJ$4-$BJ$9)/5*A4) -> 6.602 | BK5: 6.5688 | BL5: 6.5356 | BM5: 6.5024 | BN5: 6.4692 | BO5: 6.436 | BP5: 6.4028 | BQ5: 6.3696 | BR5: 6.3364 | BS5: 6.3032 | BT5: =$BT$4-(($BT$4-$BT$9)/5*A4) -> 6.27 | BU5: 6.221 | BV5: 6.172 | BW5: 6.123 | BX5: 6.074 | BY5: 6.025 | BZ5: =$BZ$4-(($BZ$4-$BZ$9)/5*A4) -> 5.976 | CA5: 5.9206 | CB5: 5.8652 | CC5: 5.8098 | CD5: 5.7544 | CE5: 5.699 | CF5: 5.6436 | CG5: 5.5882 | CH5: 5.5328 | CI5: 5.4774 | CJ5: =$CJ$4-(($CJ$4-$CJ$9)/5*A4) -> 5.422 | CK5: =Eingabemaske!G$19 -> 4 | CL5: Altherma 3 R W 4 kW | CM5: Altherma 3 R W 4 kW | CN5: 9 | CO5: 3.8 | CQ5: 4.3
A6: 3 | B6: Altherma 3 R W | C6: 4 | D6: ='Altherma 3 R'!$L$8 -> 3.1 | E6: ='Altherma 3 R'!$L$9 -> 4.1 | F6: ='Altherma 3 R'!$L$10 -> 5.1 | G6: 32 | H6: =$H$4-(($H$4-$H$9)/5*A5) -> 4.694 | I6: 4.7404 | J6: 4.7868 | K6: 4.8332 | L6: 4.8796 | M6: 4.926 | N6: 4.9724 | O6: 5.0188 | P6: 5.0652 | Q6: 5.1116 | R6: =$R$4-(($R$4-$R$9)/5*A5) -> 5.158 | S6: 5.20375 | T6: 5.2495 | U6: 5.29525 | V6: 5.341 | W6: 5.38675 | X6: 5.4325 | Y6: 5.47825 | Z6: 5.524 | AA6: 5.56975 | AB6: 5.6155 | AC6: 5.66125 | AD6: 5.707 | AE6: 5.75275 | AF6: 5.7985 | AG6: 5.84425 | AH6: =$AH$4-(($AH$4-$AH$9)/5*A5) -> 5.89 | AI6: 5.974 | AJ6: 6.058 | AK6: 6.142 | AL6: =$AL$4-(($AL$4-$AL$9)/5*A5) -> 6.226 | AM6: 6.204333333 | AN6: 6.182666667 | AO6: 6.161 | AP6: 6.139333333 | AQ6: 6.117666667 | AR6: =$AR$4-(($AR$4-$AR$9)/5*A5) -> 6.096 | AS6: 6.14625 | AT6: 6.1965 | AU6: 6.24675 | AV6: 6.297 | AW6: 6.34725 | AX6: 6.3975 | AY6: 6.44775 | AZ6: =$AZ$4-(($AZ$4-$AZ$9)/5*A5) -> 6.498 | BA6: 6.5036 | BB6: 6.5092 | BC6: 6.5148 | BD6: 6.5204 | BE6: 6.526 | BF6: 6.5316 | BG6: 6.5372 | BH6: 6.5428 | BI6: 6.5484 | BJ6: =$BJ$4-(($BJ$4-$BJ$9)/5*A5) -> 6.554 | BK6: 6.5206 | BL6: 6.4872 | BM6: 6.4538 | BN6: 6.4204 | BO6: 6.387 | BP6: 6.3536 | BQ6: 6.3202 | BR6: 6.2868 | BS6: 6.2534 | BT6: =$BT$4-(($BT$4-$BT$9)/5*A5) -> 6.22 | BU6: 6.168666667 | BV6: 6.117333333 | BW6: 6.066 | BX6: 6.014666667 | BY6: 5.963333333 | BZ6: =$BZ$4-(($BZ$4-$BZ$9)/5*A5) -> 5.912 | CA6: 5.8562 | CB6: 5.8004 | CC6: 5.7446 | CD6: 5.6888 | CE6: 5.633 | CF6: 5.5772 | CG6: 5.5214 | CH6: 5.4656 | CI6: 5.4098 | CJ6: =$CJ$4-(($CJ$4-$CJ$9)/5*A5) -> 5.354 | CK6: =Eingabemaske!G$19 -> 4 | CL6: Altherma 3 R W 4 kW | CM6: Altherma 3 R W 4 kW | CN6: 9 | CO6: 3.8 | CQ6: 4.3
A7: 4 | B7: Altherma 3 R W | C7: 4 | D7: ='Altherma 3 R'!$L$8 -> 3.1 | E7: ='Altherma 3 R'!$L$9 -> 4.1 | F7: ='Altherma 3 R'!$L$10 -> 5.1 | G7: 33 | H7: 4.686 | I7: 4.7316 | J7: 4.7772 | K7: 4.8228 | L7: 4.8684 | M7: 4.914 | N7: 4.9596 | O7: 5.0052 | P7: 5.0508 | Q7: 5.0964 | R7: =$R$4-(($R$4-$R$9)/5*A6) -> 5.142 | S7: 5.186875 | T7: 5.23175 | U7: 5.276625 | V7: 5.3215 | W7: 5.366375 | X7: 5.41125 | Y7: 5.456125 | Z7: 5.501 | AA7: 5.545875 | AB7: 5.59075 | AC7: 5.635625 | AD7: 5.6805 | AE7: 5.725375 | AF7: 5.77025 | AG7: 5.815125 | AH7: =$AH$4-(($AH$4-$AH$9)/5*A6) -> 5.86 | AI7: 5.9435 | AJ7: 6.027 | AK7: 6.1105 | AL7: =$AL$4-(($AL$4-$AL$9)/5*A6) -> 6.194 | AM7: 6.172333333 | AN7: 6.150666667 | AO7: 6.129 | AP7: 6.107333333 | AQ7: 6.085666667 | AR7: =$AR$4-(($AR$4-$AR$9)/5*A6) -> 6.064 | AS7: 6.11375 | AT7: 6.1635 | AU7: 6.21325 | AV7: 6.263 | AW7: 6.31275 | AX7: 6.3625 | AY7: 6.41225 | AZ7: =$AZ$4-(($AZ$4-$AZ$9)/5*A6) -> 6.462 | BA7: 6.4664 | BB7: 6.4708 | BC7: 6.4752 | BD7: 6.4796 | BE7: 6.484 | BF7: 6.4884 | BG7: 6.4928 | BH7: 6.4972 | BI7: 6.5016 | BJ7: =$BJ$4-(($BJ$4-$BJ$9)/5*A6) -> 6.506 | BK7: 6.4724 | BL7: 6.4388 | BM7: 6.4052 | BN7: 6.3716 | BO7: 6.338 | BP7: 6.3044 | BQ7: 6.2708 | BR7: 6.2372 | BS7: 6.2036 | BT7: =$BT$4-(($BT$4-$BT$9)/5*A6) -> 6.17 | BU7: 6.116333333 | BV7: 6.062666667 | BW7: 6.009 | BX7: 5.955333333 | BY7: 5.901666667 | BZ7: =$BZ$4-(($BZ$4-$BZ$9)/5*A6) -> 5.848 | CA7: 5.7918 | CB7: 5.7356 | CC7: 5.6794 | CD7: 5.6232 | CE7: 5.567 | CF7: 5.5108 | CG7: 5.4546 | CH7: 5.3984 | CI7: 5.3422 | CJ7: =$CJ$4-(($CJ$4-$CJ$9)/5*A6) -> 5.286 | CK7: =Eingabemaske!G$19 -> 4 | CL7: Altherma 3 R W 4 kW | CM7: Altherma 3 R W 4 kW | CN7: 9 | CO7: 3.8 | CQ7: 4.3
A8: 5 | B8: Altherma 3 R W | C8: 4 | D8: ='Altherma 3 R'!$L$8 -> 3.1 | E8: ='Altherma 3 R'!$L$9 -> 4.1 | F8: ='Altherma 3 R'!$L$10 -> 5.1 | G8: 34 | H8: 4.678 | I8: 4.7228 | J8: 4.7676 | K8: 4.8124 | L8: 4.8572 | M8: 4.902 | N8: 4.9468 | O8: 4.9916 | P8: 5.0364 | Q8: 5.0812 | R8: =$R$4-(($R$4-$R$9)/5*A7) -> 5.126 | S8: 5.17 | T8: 5.214 | U8: 5.258 | V8: 5.302 | W8: 5.346 | X8: 5.39 | Y8: 5.434 | Z8: 5.478 | AA8: 5.522 | AB8: 5.566 | AC8: 5.61 | AD8: 5.654 | AE8: 5.698 | AF8: 5.742 | AG8: 5.786 | AH8: =$AH$4-(($AH$4-$AH$9)/5*A7) -> 5.83 | AI8: 5.913 | AJ8: 5.996 | AK8: 6.079 | AL8: =$AL$4-(($AL$4-$AL$9)/5*A7) -> 6.162 | AM8: 6.140333333 | AN8: 6.118666667 | AO8: 6.097 | AP8: 6.075333333 | AQ8: 6.053666667 | AR8: =$AR$4-(($AR$4-$AR$9)/5*A7) -> 6.032 | AS8: 6.08125 | AT8: 6.1305 | AU8: 6.17975 | AV8: 6.229 | AW8: 6.27825 | AX8: 6.3275 | AY8: 6.37675 | AZ8: =$AZ$4-(($AZ$4-$AZ$9)/5*A7) -> 6.426 | BA8: 6.4292 | BB8: 6.4324 | BC8: 6.4356 | BD8: 6.4388 | BE8: 6.442 | BF8: 6.4452 | BG8: 6.4484 | BH8: 6.4516 | BI8: 6.4548 | BJ8: =$BJ$4-(($BJ$4-$BJ$9)/5*A7) -> 6.458 | BK8: 6.4242 | BL8: 6.3904 | BM8: 6.3566 | BN8: 6.3228 | BO8: 6.289 | BP8: 6.2552 | BQ8: 6.2214 | BR8: 6.1876 | BS8: 6.1538 | BT8: =$BT$4-(($BT$4-$BT$9)/5*A7) -> 6.12 | BU8: 6.064 | BV8: 6.008 | BW8: 5.952 | BX8: 5.896 | BY8: 5.84 | BZ8: =$BZ$4-(($BZ$4-$BZ$9)/5*A7) -> 5.784 | CA8: 5.7274 | CB8: 5.6708 | CC8: 5.6142 | CD8: 5.5576 | CE8: 5.501 | CF8: 5.4444 | CG8: 5.3878 | CH8: 5.3312 | CI8: 5.2746 | CJ8: =$CJ$4-(($CJ$4-$CJ$9)/5*A7) -> 5.218 | CK8: =Eingabemaske!G$19 -> 4 | CL8: Altherma 3 R W 4 kW | CM8: Altherma 3 R W 4 kW | CN8: 9 | CO8: 3.8 | CQ8: 4.3
A9: 6 | B9: Altherma 3 R W | C9: 4 | D9: ='Altherma 3 R'!$L$8 -> 3.1 | E9: ='Altherma 3 R'!$L$9 -> 4.1 | F9: ='Altherma 3 R'!$L$10 -> 5.1 | G9: 35 | H9: ='Altherma 3 R'!D7 -> 4.67 | I9: 4.714 | J9: 4.758 | K9: 4.802 | L9: 4.846 | M9: 4.89 | N9: 4.934 | O9: 4.978 | P9: 5.022 | Q9: 5.066 | R9: ='Altherma 3 R'!D8 -> 5.11 | S9: 5.153125 | T9: 5.19625 | U9: 5.239375 | V9: 5.2825 | W9: 5.325625 | X9: 5.36875 | Y9: 5.411875 | Z9: 5.455 | AA9: 5.498125 | AB9: 5.54125 | AC9: 5.584375 | AD9: 5.6275 | AE9: 5.670625 | AF9: 5.71375 | AG9: 5.756875 | AH9: ='Altherma 3 R'!D9 -> 5.8 | AI9: 5.8825 | AJ9: 5.965 | AK9: 6.0475 | AL9: ='Altherma 3 R'!D11 -> 6.13 | AM9: 6.108333333 | AN9: 6.086666667 | AO9: 6.065 | AP9: 6.043333333 | AQ9: 6.021666667 | AR9: ='Altherma 3 R'!D10 -> 6 | AS9: 6.04875 | AT9: 6.0975 | AU9: 6.14625 | AV9: 6.195 | AW9: 6.24375 | AX9: 6.2925 | AY9: 6.34125 | AZ9: ='Altherma 3 R'!D12 -> 6.39 | BA9: 6.392 | BB9: 6.394 | BC9: 6.396 | BD9: 6.398 | BE9: 6.4 | BF9: 6.402 | BG9: 6.404 | BH9: 6.406 | BI9: 6.408 | BJ9: ='Altherma 3 R'!D13 -> 6.41 | BK9: 6.376 | BL9: 6.342 | BM9: 6.308 | BN9: 6.274 | BO9: 6.24 | BP9: 6.206 | BQ9: 6.172 | BR9: 6.138 | BS9: 6.104 | BT9: ='Altherma 3 R'!D14 -> 6.07 | BU9: 6.011666667 | BV9: 5.953333333 | BW9: 5.895 | BX9: 5.836666667 | BY9: 5.778333333 | BZ9: ='Altherma 3 R'!D15 -> 5.72 | CA9: 5.663 | CB9: 5.606 | CC9: 5.549 | CD9: 5.492 | CE9: 5.435 | CF9: 5.378 | CG9: 5.321 | CH9: 5.264 | CI9: 5.207 | CJ9: ='Altherma 3 R'!D16 -> 5.15 | CK9: =Eingabemaske!G$19 -> 4 | CL9: Altherma 3 R W 4 kW | CM9: Altherma 3 R W 4 kW | CN9: 9 | CO9: 3.8 | CQ9: 4.3
A10: 7 | B10: Altherma 3 R W | C10: 4 | D10: ='Altherma 3 R'!$L$8 -> 3.1 | E10: ='Altherma 3 R'!$L$9 -> 4.1 | F10: ='Altherma 3 R'!$L$10 -> 5.1 | G10: 36 | H10: =$H$9-(($H$9-$H$14)/5*A4) -> 4.664 | I10: 4.707 | J10: 4.75 | K10: 4.793 | L10: 4.836 | M10: 4.879 | N10: 4.922 | O10: 4.965 | P10: 5.008 | Q10: 5.051 | R10: =$R$9-(($R$9-$R$14)/5*A4) -> 5.094 | S10: 5.13625 | T10: 5.1785 | U10: 5.22075 | V10: 5.263 | W10: 5.30525 | X10: 5.3475 | Y10: 5.38975 | Z10: 5.432 | AA10: 5.47425 | AB10: 5.5165 | AC10: 5.55875 | AD10: 5.601 | AE10: 5.64325 | AF10: 5.6855 | AG10: 5.72775 | AH10: =$AH$9-(($AH$9-$AH$14)/5*A4) -> 5.77 | AI10: 5.8515 | AJ10: 5.933 | AK10: 6.0145 | AL10: =$AL$9-(($AL$9-$AL$14)/5*A4) -> 6.096 | AM10: 6.074666667 | AN10: 6.053333333 | AO10: 6.032 | AP10: 6.010666667 | AQ10: 5.989333333 | AR10: =$AR$9-(($AR$9-$AR$14)/5*A4) -> 5.968 | AS10: 6.01625 | AT10: 6.0645 | AU10: 6.11275 | AV10: 6.161 | AW10: 6.20925 | AX10: 6.2575 | AY10: 6.30575 | AZ10: =$AZ$9-(($AZ$9-$AZ$14)/5*A4) -> 6.354 | BA10: 6.3564 | BB10: 6.3588 | BC10: 6.3612 | BD10: 6.3636 | BE10: 6.366 | BF10: 6.3684 | BG10: 6.3708 | BH10: 6.3732 | BI10: 6.3756 | BJ10: =$BJ$9-(($BJ$9-$BJ$14)/5*A4) -> 6.378 | BK10: 6.341 | BL10: 6.304 | BM10: 6.267 | BN10: 6.23 | BO10: 6.193 | BP10: 6.156 | BQ10: 6.119 | BR10: 6.082 | BS10: 6.045 | BT10: =$BT$9-(($BT$9-$BT$14)/5*A4) -> 6.008 | BU10: 5.949333333 | BV10: 5.890666667 | BW10: 5.832 | BX10: 5.773333333 | BY10: 5.714666667 | BZ10: =$BZ$9-(($BZ$9-$BZ$14)/5*A4) -> 5.656 | CA10: 5.5984 | CB10: 5.5408 | CC10: 5.4832 | CD10: 5.4256 | CE10: 5.368 | CF10: 5.3104 | CG10: 5.2528 | CH10: 5.1952 | CI10: 5.1376 | CJ10: =$CJ$9-(($CJ$9-$CJ$14)/5*A4) -> 5.08 | CK10: =Eingabemaske!G$19 -> 4 | CL10: Altherma 3 R W 4 kW | CM10: Altherma 3 R W 4 kW | CN10: 9 | CO10: 3.8 | CQ10: 4.3
A11: 8 | B11: Altherma 3 R W | C11: 4 | D11: ='Altherma 3 R'!$L$8 -> 3.1 | E11: ='Altherma 3 R'!$L$9 -> 4.1 | F11: ='Altherma 3 R'!$L$10 -> 5.1 | G11: 37 | H11: =$H$9-(($H$9-$H$14)/5*A5) -> 4.658 | I11: 4.7 | J11: 4.742 | K11: 4.784 | L11: 4.826 | M11: 4.868 | N11: 4.91 | O11: 4.952 | P11: 4.994 | Q11: 5.036 | R11: =$R$9-(($R$9-$R$14)/5*A5) -> 5.078 | S11: 5.119375 | T11: 5.16075 | U11: 5.202125 | V11: 5.2435 | W11: 5.284875 | X11: 5.32625 | Y11: 5.367625 | Z11: 5.409 | AA11: 5.450375 | AB11: 5.49175 | AC11: 5.533125 | AD11: 5.5745 | AE11: 5.615875 | AF11: 5.65725 | AG11: 5.698625 | AH11: =$AH$9-(($AH$9-$AH$14)/5*A5) -> 5.74 | AI11: 5.8205 | AJ11: 5.901 | AK11: 5.9815 | AL11: =$AL$9-(($AL$9-$AL$14)/5*A5) -> 6.062 | AM11: 6.041 | AN11: 6.02 | AO11: 5.999 | AP11: 5.978 | AQ11: 5.957 | AR11: =$AR$9-(($AR$9-$AR$14)/5*A5) -> 5.936 | AS11: 5.98375 | AT11: 6.0315 | AU11: 6.07925 | AV11: 6.127 | AW11: 6.17475 | AX11: 6.2225 | AY11: 6.27025 | AZ11: =$AZ$9-(($AZ$9-$AZ$14)/5*A5) -> 6.318 | BA11: 6.3208 | BB11: 6.3236 | BC11: 6.3264 | BD11: 6.3292 | BE11: 6.332 | BF11: 6.3348 | BG11: 6.3376 | BH11: 6.3404 | BI11: 6.3432 | BJ11: =$BJ$9-(($BJ$9-$BJ$14)/5*A5) -> 6.346 | BK11: 6.306 | BL11: 6.266 | BM11: 6.226 | BN11: 6.186 | BO11: 6.146 | BP11: 6.106 | BQ11: 6.066 | BR11: 6.026 | BS11: 5.986 | BT11: =$BT$9-(($BT$9-$BT$14)/5*A5) -> 5.946 | BU11: 5.887 | BV11: 5.828 | BW11: 5.769 | BX11: 5.71 | BY11: 5.651 | BZ11: =$BZ$9-(($BZ$9-$BZ$14)/5*A5) -> 5.592 | CA11: 5.5338 | CB11: 5.4756 | CC11: 5.4174 | CD11: 5.3592 | CE11: 5.301 | CF11: 5.2428 | CG11: 5.1846 | CH11: 5.1264 | CI11: 5.0682 | CJ11: =$CJ$9-(($CJ$9-$CJ$14)/5*A5) -> 5.01 | CK11: =Eingabemaske!G$19 -> 4 | CL11: Altherma 3 R W 4 kW | CM11: Altherma 3 R W 4 kW | CN11: 9 | CO11: 3.8 | CQ11: 4.3
A12: 9 | B12: Altherma 3 R W | C12: 4 | D12: ='Altherma 3 R'!$L$8 -> 3.1 | E12: ='Altherma 3 R'!$L$9 -> 4.1 | F12: ='Altherma 3 R'!$L$10 -> 5.1 | G12: 38 | H12: 4.652 | I12: 4.693 | J12: 4.734 | K12: 4.775 | L12: 4.816 | M12: 4.857 | N12: 4.898 | O12: 4.939 | P12: 4.98 | Q12: 5.021 | R12: =$R$9-(($R$9-$R$14)/5*A6) -> 5.062 | S12: 5.1025 | T12: 5.143 | U12: 5.1835 | V12: 5.224 | W12: 5.2645 | X12: 5.305 | Y12: 5.3455 | Z12: 5.386 | AA12: 5.4265 | AB12: 5.467 | AC12: 5.5075 | AD12: 5.548 | AE12: 5.5885 | AF12: 5.629 | AG12: 5.6695 | AH12: =$AH$9-(($AH$9-$AH$14)/5*A6) -> 5.71 | AI12: 5.7895 | AJ12: 5.869 | AK12: 5.9485 | AL12: =$AL$9-(($AL$9-$AL$14)/5*A6) -> 6.028 | AM12: 6.007333333 | AN12: 5.986666667 | AO12: 5.966 | AP12: 5.945333333 | AQ12: 5.924666667 | AR12: =$AR$9-(($AR$9-$AR$14)/5*A6) -> 5.904 | AS12: 5.95125 | AT12: 5.9985 | AU12: 6.04575 | AV12: 6.093 | AW12: 6.14025 | AX12: 6.1875 | AY12: 6.23475 | AZ12: =$AZ$9-(($AZ$9-$AZ$14)/5*A6) -> 6.282 | BA12: 6.2852 | BB12: 6.2884 | BC12: 6.2916 | BD12: 6.2948 | BE12: 6.298 | BF12: 6.3012 | BG12: 6.3044 | BH12: 6.3076 | BI12: 6.3108 | BJ12: =$BJ$9-(($BJ$9-$BJ$14)/5*A6) -> 6.314 | BK12: 6.271 | BL12: 6.228 | BM12: 6.185 | BN12: 6.142 | BO12: 6.099 | BP12: 6.056 | BQ12: 6.013 | BR12: 5.97 | BS12: 5.927 | BT12: =$BT$9-(($BT$9-$BT$14)/5*A6) -> 5.884 | BU12: 5.824666667 | BV12: 5.765333333 | BW12: 5.706 | BX12: 5.646666667 | BY12: 5.587333333 | BZ12: =$BZ$9-(($BZ$9-$BZ$14)/5*A6) -> 5.528 | CA12: 5.4692 | CB12: 5.4104 | CC12: 5.3516 | CD12: 5.2928 | CE12: 5.234 | CF12: 5.1752 | CG12: 5.1164 | CH12: 5.0576 | CI12: 4.9988 | CJ12: =$CJ$9-(($CJ$9-$CJ$14)/5*A6) -> 4.94 | CK12: =Eingabemaske!G$19 -> 4 | CL12: Altherma 3 R W 4 kW | CM12: Altherma 3 R W 4 kW | CN12: 9 | CO12: 3.8 | CQ12: 4.3
B13: Altherma 3 R W | C13: 4 | D13: ='Altherma 3 R'!$L$8 -> 3.1 | E13: ='Altherma 3 R'!$L$9 -> 4.1 | F13: ='Altherma 3 R'!$L$10 -> 5.1 | G13: 39 | H13: 4.646 | I13: 4.686 | J13: 4.726 | K13: 4.766 | L13: 4.806 | M13: 4.846 | N13: 4.886 | O13: 4.926 | P13: 4.966 | Q13: 5.006 | R13: =$R$9-(($R$9-$R$14)/5*A7) -> 5.046 | S13: 5.085625 | T13: 5.12525 | U13: 5.164875 | V13: 5.2045 | W13: 5.244125 | X13: 5.28375 | Y13: 5.323375 | Z13: 5.363 | AA13: 5.402625 | AB13: 5.44225 | AC13: 5.481875 | AD13: 5.5215 | AE13: 5.561125 | AF13: 5.60075 | AG13: 5.640375 | AH13: =$AH$9-(($AH$9-$AH$14)/5*A7) -> 5.68 | AI13: 5.7585 | AJ13: 5.837 | AK13: 5.9155 | AL13: =$AL$9-(($AL$9-$AL$14)/5*A7) -> 5.994 | AM13: 5.973666667 | AN13: 5.953333333 | AO13: 5.933 | AP13: 5.912666667 | AQ13: 5.892333333 | AR13: =$AR$9-(($AR$9-$AR$14)/5*A7) -> 5.872 | AS13: 5.91875 | AT13: 5.9655 | AU13: 6.01225 | AV13: 6.059 | AW13: 6.10575 | AX13: 6.1525 | AY13: 6.19925 | AZ13: =$AZ$9-(($AZ$9-$AZ$14)/5*A7) -> 6.246 | BA13: 6.2496 | BB13: 6.2532 | BC13: 6.2568 | BD13: 6.2604 | BE13: 6.264 | BF13: 6.2676 | BG13: 6.2712 | BH13: 6.2748 | BI13: 6.2784 | BJ13: =$BJ$9-(($BJ$9-$BJ$14)/5*A7) -> 6.282 | BK13: 6.236 | BL13: 6.19 | BM13: 6.144 | BN13: 6.098 | BO13: 6.052 | BP13: 6.006 | BQ13: 5.96 | BR13: 5.914 | BS13: 5.868 | BT13: =$BT$9-(($BT$9-$BT$14)/5*A7) -> 5.822 | BU13: 5.762333333 | BV13: 5.702666667 | BW13: 5.643 | BX13: 5.583333333 | BY13: 5.523666667 | BZ13: =$BZ$9-(($BZ$9-$BZ$14)/5*A7) -> 5.464 | CA13: 5.4046 | CB13: 5.3452 | CC13: 5.2858 | CD13: 5.2264 | CE13: 5.167 | CF13: 5.1076 | CG13: 5.0482 | CH13: 4.9888 | CI13: 4.9294 | CJ13: =$CJ$9-(($CJ$9-$CJ$14)/5*A7) -> 4.87 | CK13: =Eingabemaske!G$19 -> 4 | CL13: Altherma 3 R W 4 kW | CM13: Altherma 3 R W 4 kW | CN13: 9 | CO13: 3.8 | CQ13: 4.3
B14: Altherma 3 R W | C14: 4 | D14: ='Altherma 3 R'!$L$8 -> 3.1 | E14: ='Altherma 3 R'!$L$9 -> 4.1 | F14: ='Altherma 3 R'!$L$10 -> 5.1 | G14: 40 | H14: ='Altherma 3 R'!E7 -> 4.64 | I14: =$H14-(($H14-$R14)/$R$3*I$3) -> 4.679 | J14: 4.718 | K14: 4.757 | L14: 4.796 | M14: 4.835 | N14: 4.874 | O14: 4.913 | P14: 4.952 | Q14: 4.991 | R14: ='Altherma 3 R'!E8 -> 5.03 | S14: =$R14-(($R14-$AH14)/$AH$3*S$3) -> 5.06875 | T14: 5.1075 | U14: 5.14625 | V14: 5.185 | W14: 5.22375 | X14: 5.2625 | Y14: 5.30125 | Z14: 5.34 | AA14: 5.37875 | AB14: 5.4175 | AC14: 5.45625 | AD14: 5.495 | AE14: 5.53375 | AF14: 5.5725 | AG14: 5.61125 | AH14: ='Altherma 3 R'!E9 -> 5.65 | AI14: 5.7275 | AJ14: 5.805 | AK14: 5.8825 | AL14: ='Altherma 3 R'!E11 -> 5.96 | AM14: =$AL14-(($AL14-$AR14)/$AR$1*AM$1) -> 5.94 | AN14: 5.92 | AO14: 5.9 | AP14: 5.88 | AQ14: 5.86 | AR14: ='Altherma 3 R'!E10 -> 5.84 | AS14: =$AR14-(($AR14-$AZ14)/$AZ$3*AS$3) -> 5.88625 | AT14: 5.9325 | AU14: 5.97875 | AV14: 6.025 | AW14: 6.07125 | AX14: 6.1175 | AY14: 6.16375 | AZ14: ='Altherma 3 R'!E12 -> 6.21 | BA14: =$AZ14-(($AZ14-$BJ14)/$BJ$3*BA$3) -> 6.214 | BB14: 6.218 | BC14: 6.222 | BD14: 6.226 | BE14: 6.23 | BF14: 6.234 | BG14: 6.238 | BH14: 6.242 | BI14: 6.246 | BJ14: ='Altherma 3 R'!E13 -> 6.25 | BK14: =$BJ14-(($BJ14-$BT14)/$BT$3*BK$3) -> 6.201 | BL14: 6.152 | BM14: 6.103 | BN14: 6.054 | BO14: 6.005 | BP14: 5.956 | BQ14: 5.907 | BR14: 5.858 | BS14: 5.809 | BT14: ='Altherma 3 R'!E14 -> 5.76 | BU14: =$BT14-(($BT14-$BZ14)/$BZ$3*BU$3) -> 5.7 | BV14: 5.64 | BW14: 5.58 | BX14: 5.52 | BY14: 5.46 | BZ14: ='Altherma 3 R'!E15 -> 5.4 | CA14: =$BZ14-(($BZ14-$CJ14)/$CJ$3*CA$3) -> 5.34 | CB14: 5.28 | CC14: 5.22 | CD14: 5.16 | CE14: 5.1 | CF14: 5.04 | CG14: 4.98 | CH14: 4.92 | CI14: 4.86 | CJ14: ='Altherma 3 R'!E16 -> 4.8 | CK14: =Eingabemaske!G$19 -> 4 | CL14: Altherma 3 R W 4 kW | CM14: Altherma 3 R W 4 kW | CN14: 9 | CO14: 3.8 | CQ14: 4.3
B15: Altherma 3 R W | C15: 4 | D15: ='Altherma 3 R'!$L$8 -> 3.1 | E15: ='Altherma 3 R'!$L$9 -> 4.1 | F15: ='Altherma 3 R'!$L$10 -> 5.1 | G15: 41 | H15: =$H$14-(($H$14-$H$19)/5*A4) -> 4.634 | I15: 4.672 | J15: 4.71 | K15: 4.748 | L15: 4.786 | M15: 4.824 | N15: 4.862 | O15: 4.9 | P15: 4.938 | Q15: 4.976 | R15: =$R$14-(($R$14-$R$19)/5*A4) -> 5.014 | S15: 5.051875 | T15: 5.08975 | U15: 5.127625 | V15: 5.1655 | W15: 5.203375 | X15: 5.24125 | Y15: 5.279125 | Z15: 5.317 | AA15: 5.354875 | AB15: 5.39275 | AC15: 5.430625 | AD15: 5.4685 | AE15: 5.506375 | AF15: 5.54425 | AG15: 5.582125 | AH15: =$AH$14-(($AH$14-$AH$19)/5*A4) -> 5.62 | AI15: 5.6965 | AJ15: 5.773 | AK15: 5.8495 | AL15: =$AL$14-(($AL$14-$AL$19)/5*A4) -> 5.926 | AM15: 5.906333333 | AN15: 5.886666667 | AO15: 5.867 | AP15: 5.847333333 | AQ15: 5.827666667 | AR15: =$AR$14-(($AR$14-$AR$19)/5*A4) -> 5.808 | AS15: 5.85375 | AT15: 5.8995 | AU15: 5.94525 | AV15: 5.991 | AW15: 6.03675 | AX15: 6.0825 | AY15: 6.12825 | AZ15: =$AZ$14-(($AZ$14-$AZ$19)/5*A4) -> 6.174 | BA15: 6.1782 | BB15: 6.1824 | BC15: 6.1866 | BD15: 6.1908 | BE15: 6.195 | BF15: 6.1992 | BG15: 6.2034 | BH15: 6.2076 | BI15: 6.2118 | BJ15: =$BJ$14-(($BJ$14-$BJ$19)/5*A4) -> 6.216 | BK15: 6.1644 | BL15: 6.1128 | BM15: 6.0612 | BN15: 6.0096 | BO15: 5.958 | BP15: 5.9064 | BQ15: 5.8548 | BR15: 5.8032 | BS15: 5.7516 | BT15: =$BT$14-(($BT$14-$BT$19)/5*A4) -> 5.7 | BU15: 5.639333333 | BV15: 5.578666667 | BW15: 5.518 | BX15: 5.457333333 | BY15: 5.396666667 | BZ15: =$BZ$14-(($BZ$14-$BZ$19)/5*A4) -> 5.336 | CA15: 5.2754 | CB15: 5.2148 | CC15: 5.1542 | CD15: 5.0936 | CE15: 5.033 | CF15: 4.9724 | CG15: 4.9118 | CH15: 4.8512 | CI15: 4.7906 | CJ15: =$CJ$14-(($CJ$14-$CJ$19)/5*A4) -> 4.73 | CK15: =Eingabemaske!G$19 -> 4 | CL15: Altherma 3 R W 4 kW | CM15: Altherma 3 R W 4 kW | CN15: 9 | CO15: 3.8 | CQ15: 4.3
B16: Altherma 3 R W | C16: 4 | D16: ='Altherma 3 R'!$L$8 -> 3.1 | E16: ='Altherma 3 R'!$L$9 -> 4.1 | F16: ='Altherma 3 R'!$L$10 -> 5.1 | G16: 42 | H16: =$H$14-(($H$14-$H$19)/5*A5) -> 4.628 | I16: 4.665 | J16: 4.702 | K16: 4.739 | L16: 4.776 | M16: 4.813 | N16: 4.85 | O16: 4.887 | P16: 4.924 | Q16: 4.961 | R16: =$R$14-(($R$14-$R$19)/5*A5) -> 4.998 | S16: 5.035 | T16: 5.072 | U16: 5.109 | V16: 5.146 | W16: 5.183 | X16: 5.22 | Y16: 5.257 | Z16: 5.294 | AA16: 5.331 | AB16: 5.368 | AC16: 5.405 | AD16: 5.442 | AE16: 5.479 | AF16: 5.516 | AG16: 5.553 | AH16: =$AH$14-(($AH$14-$AH$19)/5*A5) -> 5.59 | AI16: 5.6655 | AJ16: 5.741 | AK16: 5.8165 | AL16: =$AL$14-(($AL$14-$AL$19)/5*A5) -> 5.892 | AM16: 5.872666667 | AN16: 5.853333333 | AO16: 5.834 | AP16: 5.814666667 | AQ16: 5.795333333 | AR16: =$AR$14-(($AR$14-$AR$19)/5*A5) -> 5.776 | AS16: 5.82125 | AT16: 5.8665 | AU16: 5.91175 | AV16: 5.957 | AW16: 6.00225 | AX16: 6.0475 | AY16: 6.09275 | AZ16: =$AZ$14-(($AZ$14-$AZ$19)/5*A5) -> 6.138 | BA16: 6.1424 | BB16: 6.1468 | BC16: 6.1512 | BD16: 6.1556 | BE16: 6.16 | BF16: 6.1644 | BG16: 6.1688 | BH16: 6.1732 | BI16: 6.1776 | BJ16: =$BJ$14-(($BJ$14-$BJ$19)/5*A5) -> 6.182 | BK16: 6.1278 | BL16: 6.0736 | BM16: 6.0194 | BN16: 5.9652 | BO16: 5.911 | BP16: 5.8568 | BQ16: 5.8026 | BR16: 5.7484 | BS16: 5.6942 | BT16: =$BT$14-(($BT$14-$BT$19)/5*A5) -> 5.64 | BU16: 5.578666667 | BV16: 5.517333333 | BW16: 5.456 | BX16: 5.394666667 | BY16: 5.333333333 | BZ16: =$BZ$14-(($BZ$14-$BZ$19)/5*A5) -> 5.272 | CA16: 5.2108 | CB16: 5.1496 | CC16: 5.0884 | CD16: 5.0272 | CE16: 4.966 | CF16: 4.9048 | CG16: 4.8436 | CH16: 4.7824 | CI16: 4.7212 | CJ16: =$CJ$14-(($CJ$14-$CJ$19)/5*A5) -> 4.66 | CK16: =Eingabemaske!G$19 -> 4 | CL16: Altherma 3 R W 4 kW | CM16: Altherma 3 R W 4 kW | CN16: 9 | CO16: 3.8 | CQ16: 4.3
B17: Altherma 3 R W | C17: 4 | D17: ='Altherma 3 R'!$L$8 -> 3.1 | E17: ='Altherma 3 R'!$L$9 -> 4.1 | F17: ='Altherma 3 R'!$L$10 -> 5.1 | G17: 43 | H17: 4.622 | I17: 4.658 | J17: 4.694 | K17: 4.73 | L17: 4.766 | M17: 4.802 | N17: 4.838 | O17: 4.874 | P17: 4.91 | Q17: 4.946 | R17: =$R$14-(($R$14-$R$19)/5*A6) -> 4.982 | S17: 5.018125 | T17: 5.05425 | U17: 5.090375 | V17: 5.1265 | W17: 5.162625 | X17: 5.19875 | Y17: 5.234875 | Z17: 5.271 | AA17: 5.307125 | AB17: 5.34325 | AC17: 5.379375 | AD17: 5.4155 | AE17: 5.451625 | AF17: 5.48775 | AG17: 5.523875 | AH17: =$AH$14-(($AH$14-$AH$19)/5*A6) -> 5.56 | AI17: 5.6345 | AJ17: 5.709 | AK17: 5.7835 | AL17: =$AL$14-(($AL$14-$AL$19)/5*A6) -> 5.858 | AM17: 5.839 | AN17: 5.82 | AO17: 5.801 | AP17: 5.782 | AQ17: 5.763 | AR17: =$AR$14-(($AR$14-$AR$19)/5*A6) -> 5.744 | AS17: 5.78875 | AT17: 5.8335 | AU17: 5.87825 | AV17: 5.923 | AW17: 5.96775 | AX17: 6.0125 | AY17: 6.05725 | AZ17: =$AZ$14-(($AZ$14-$AZ$19)/5*A6) -> 6.102 | BA17: 6.1066 | BB17: 6.1112 | BC17: 6.1158 | BD17: 6.1204 | BE17: 6.125 | BF17: 6.1296 | BG17: 6.1342 | BH17: 6.1388 | BI17: 6.1434 | BJ17: =$BJ$14-(($BJ$14-$BJ$19)/5*A6) -> 6.148 | BK17: 6.0912 | BL17: 6.0344 | BM17: 5.9776 | BN17: 5.9208 | BO17: 5.864 | BP17: 5.8072 | BQ17: 5.7504 | BR17: 5.6936 | BS17: 5.6368 | BT17: =$BT$14-(($BT$14-$BT$19)/5*A6) -> 5.58 | BU17: 5.518 | BV17: 5.456 | BW17: 5.394 | BX17: 5.332 | BY17: 5.27 | BZ17: =$BZ$14-(($BZ$14-$BZ$19)/5*A6) -> 5.208 | CA17: 5.1462 | CB17: 5.0844 | CC17: 5.0226 | CD17: 4.9608 | CE17: 4.899 | CF17: 4.8372 | CG17: 4.7754 | CH17: 4.7136 | CI17: 4.6518 | CJ17: =$CJ$14-(($CJ$14-$CJ$19)/5*A6) -> 4.59 | CK17: =Eingabemaske!G$19 -> 4 | CL17: Altherma 3 R W 4 kW | CM17: Altherma 3 R W 4 kW | CN17: 9 | CO17: 3.8 | CQ17: 4.3
B18: Altherma 3 R W | C18: 4 | D18: ='Altherma 3 R'!$L$8 -> 3.1 | E18: ='Altherma 3 R'!$L$9 -> 4.1 | F18: ='Altherma 3 R'!$L$10 -> 5.1 | G18: 44 | H18: 4.616 | I18: 4.651 | J18: 4.686 | K18: 4.721 | L18: 4.756 | M18: 4.791 | N18: 4.826 | O18: 4.861 | P18: 4.896 | Q18: 4.931 | R18: =$R$14-(($R$14-$R$19)/5*A7) -> 4.966 | S18: 5.00125 | T18: 5.0365 | U18: 5.07175 | V18: 5.107 | W18: 5.14225 | X18: 5.1775 | Y18: 5.21275 | Z18: 5.248 | AA18: 5.28325 | AB18: 5.3185 | AC18: 5.35375 | AD18: 5.389 | AE18: 5.42425 | AF18: 5.4595 | AG18: 5.49475 | AH18: =$AH$14-(($AH$14-$AH$19)/5*A7) -> 5.53 | AI18: 5.6035 | AJ18: 5.677 | AK18: 5.7505 | AL18: =$AL$14-(($AL$14-$AL$19)/5*A7) -> 5.824 | AM18: 5.805333333 | AN18: 5.786666667 | AO18: 5.768 | AP18: 5.749333333 | AQ18: 5.730666667 | AR18: =$AR$14-(($AR$14-$AR$19)/5*A7) -> 5.712 | AS18: 5.75625 | AT18: 5.8005 | AU18: 5.84475 | AV18: 5.889 | AW18: 5.93325 | AX18: 5.9775 | AY18: 6.02175 | AZ18: =$AZ$14-(($AZ$14-$AZ$19)/5*A7) -> 6.066 | BA18: 6.0708 | BB18: 6.0756 | BC18: 6.0804 | BD18: 6.0852 | BE18: 6.09 | BF18: 6.0948 | BG18: 6.0996 | BH18: 6.1044 | BI18: 6.1092 | BJ18: =$BJ$14-(($BJ$14-$BJ$19)/5*A7) -> 6.114 | BK18: 6.0546 | BL18: 5.9952 | BM18: 5.9358 | BN18: 5.8764 | BO18: 5.817 | BP18: 5.7576 | BQ18: 5.6982 | BR18: 5.6388 | BS18: 5.5794 | BT18: =$BT$14-(($BT$14-$BT$19)/5*A7) -> 5.52 | BU18: 5.457333333 | BV18: 5.394666667 | BW18: 5.332 | BX18: 5.269333333 | BY18: 5.206666667 | BZ18: =$BZ$14-(($BZ$14-$BZ$19)/5*A7) -> 5.144 | CA18: 5.0816 | CB18: 5.0192 | CC18: 4.9568 | CD18: 4.8944 | CE18: 4.832 | CF18: 4.7696 | CG18: 4.7072 | CH18: 4.6448 | CI18: 4.5824 | CJ18: =$CJ$14-(($CJ$14-$CJ$19)/5*A7) -> 4.52 | CK18: =Eingabemaske!G$19 -> 4 | CL18: Altherma 3 R W 4 kW | CM18: Altherma 3 R W 4 kW | CN18: 9 | CO18: 3.8 | CQ18: 4.3
B19: Altherma 3 R W | C19: 4 | D19: ='Altherma 3 R'!$L$8 -> 3.1 | E19: ='Altherma 3 R'!$L$9 -> 4.1 | F19: ='Altherma 3 R'!$L$10 -> 5.1 | G19: 45 | H19: ='Altherma 3 R'!F7 -> 4.61 | I19: 4.644 | J19: 4.678 | K19: 4.712 | L19: 4.746 | M19: 4.78 | N19: 4.814 | O19: 4.848 | P19: 4.882 | Q19: 4.916 | R19: ='Altherma 3 R'!F8 -> 4.95 | S19: 4.984375 | T19: 5.01875 | U19: 5.053125 | V19: 5.0875 | W19: 5.121875 | X19: 5.15625 | Y19: 5.190625 | Z19: 5.225 | AA19: 5.259375 | AB19: 5.29375 | AC19: 5.328125 | AD19: 5.3625 | AE19: 5.396875 | AF19: 5.43125 | AG19: 5.465625 | AH19: ='Altherma 3 R'!F9 -> 5.5 | AI19: 5.5725 | AJ19: 5.645 | AK19: 5.7175 | AL19: ='Altherma 3 R'!F11 -> 5.79 | AM19: 5.771666667 | AN19: 5.753333333 | AO19: 5.735 | AP19: 5.716666667 | AQ19: 5.698333333 | AR19: ='Altherma 3 R'!F10 -> 5.68 | AS19: 5.72375 | AT19: 5.7675 | AU19: 5.81125 | AV19: 5.855 | AW19: 5.89875 | AX19: 5.9425 | AY19: 5.98625 | AZ19: ='Altherma 3 R'!F12 -> 6.03 | BA19: 6.035 | BB19: 6.04 | BC19: 6.045 | BD19: 6.05 | BE19: 6.055 | BF19: 6.06 | BG19: 6.065 | BH19: 6.07 | BI19: 6.075 | BJ19: ='Altherma 3 R'!F13 -> 6.08 | BK19: 6.018 | BL19: 5.956 | BM19: 5.894 | BN19: 5.832 | BO19: 5.77 | BP19: 5.708 | BQ19: 5.646 | BR19: 5.584 | BS19: 5.522 | BT19: ='Altherma 3 R'!F14 -> 5.46 | BU19: 5.396666667 | BV19: 5.333333333 | BW19: 5.27 | BX19: 5.206666667 | BY19: 5.143333333 | BZ19: ='Altherma 3 R'!F15 -> 5.08 | CA19: 5.017 | CB19: 4.954 | CC19: 4.891 | CD19: 4.828 | CE19: 4.765 | CF19: 4.702 | CG19: 4.639 | CH19: 4.576 | CI19: 4.513 | CJ19: ='Altherma 3 R'!F16 -> 4.45 | CK19: =Eingabemaske!G$19 -> 4 | CL19: Altherma 3 R W 4 kW | CM19: Altherma 3 R W 4 kW | CN19: 9 | CO19: 3.8 | CQ19: 4.3
B20: Altherma 3 R W | C20: 4 | D20: ='Altherma 3 R'!$L$8 -> 3.1 | E20: ='Altherma 3 R'!$L$9 -> 4.1 | F20: ='Altherma 3 R'!$L$10 -> 5.1 | G20: 46 | H20: =$H$19-(($H$19-$H$24)/5*A4) -> 4.534 | I20: 4.5672 | J20: 4.6004 | K20: 4.6336 | L20: 4.6668 | M20: 4.7 | N20: 4.7332 | O20: 4.7664 | P20: 4.7996 | Q20: 4.8328 | R20: =$R$19-(($R$19-$R$24)/5*A4) -> 4.866 | S20: 4.899125 | T20: 4.93225 | U20: 4.965375 | V20: 4.9985 | W20: 5.031625 | X20: 5.06475 | Y20: 5.097875 | Z20: 5.131 | AA20: 5.164125 | AB20: 5.19725 | AC20: 5.230375 | AD20: 5.2635 | AE20: 5.296625 | AF20: 5.32975 | AG20: 5.362875 | AH20: =$AH$19-(($AH$19-$AH$24)/5*A4) -> 5.396 | AI20: 5.4735 | AJ20: 5.551 | AK20: 5.6285 | AL20: =$AL$19-(($AL$19-$AL$24)/5*A4) -> 5.706 | AM20: 5.686 | AN20: 5.666 | AO20: 5.646 | AP20: 5.626 | AQ20: 5.606 | AR20: =$AR$19-(($AR$19-$AR$24)/5*A4) -> 5.586 | AS20: 5.63275 | AT20: 5.6795 | AU20: 5.72625 | AV20: 5.773 | AW20: 5.81975 | AX20: 5.8665 | AY20: 5.91325 | AZ20: =$AZ$19-(($AZ$19-$AZ$24)/5*A4) -> 5.96 | BA20: 5.9686 | BB20: 5.9772 | BC20: 5.9858 | BD20: 5.9944 | BE20: 6.003 | BF20: 6.0116 | BG20: 6.0202 | BH20: 6.0288 | BI20: 6.0374 | BJ20: =$BJ$19-(($BJ$19-$BJ$24)/5*A4) -> 6.046 | BK20: 5.9828 | BL20: 5.9196 | BM20: 5.8564 | BN20: 5.7932 | BO20: 5.73 | BP20: 5.6668 | BQ20: 5.6036 | BR20: 5.5404 | BS20: 5.4772 | BT20: =$BT$19-(($BT$19-$BT$24)/5*A4) -> 5.414 | BU20: 5.343 | BV20: 5.272 | BW20: 5.201 | BX20: 5.13 | BY20: 5.059 | BZ20: =$BZ$19-(($BZ$19-$BZ$24)/5*A4) -> 4.988 | CA20: 4.9176 | CB20: 4.8472 | CC20: 4.7768 | CD20: 4.7064 | CE20: 4.636 | CF20: 4.5656 | CG20: 4.4952 | CH20: 4.4248 | CI20: 4.3544 | CJ20: =$CJ$19-(($CJ$19-$CJ$24)/5*A4) -> 4.284 | CK20: =Eingabemaske!G$19 -> 4 | CL20: Altherma 3 R W 4 kW | CM20: Altherma 3 R W 4 kW | CN20: 9 | CO20: 3.8 | CQ20: 4.3
B21: Altherma 3 R W | C21: 4 | D21: ='Altherma 3 R'!$L$8 -> 3.1 | E21: ='Altherma 3 R'!$L$9 -> 4.1 | F21: ='Altherma 3 R'!$L$10 -> 5.1 | G21: 47 | H21: =$H$19-(($H$19-$H$24)/5*A5) -> 4.458 | I21: 4.4904 | J21: 4.5228 | K21: 4.5552 | L21: 4.5876 | M21: 4.62 | N21: 4.6524 | O21: 4.6848 | P21: 4.7172 | Q21: 4.7496 | R21: =$R$19-(($R$19-$R$24)/5*A5) -> 4.782 | S21: 4.813875 | T21: 4.84575 | U21: 4.877625 | V21: 4.9095 | W21: 4.941375 | X21: 4.97325 | Y21: 5.005125 | Z21: 5.037 | AA21: 5.068875 | AB21: 5.10075 | AC21: 5.132625 | AD21: 5.1645 | AE21: 5.196375 | AF21: 5.22825 | AG21: 5.260125 | AH21: =$AH$19-(($AH$19-$AH$24)/5*A5) -> 5.292 | AI21: 5.3745 | AJ21: 5.457 | AK21: 5.5395 | AL21: =$AL$19-(($AL$19-$AL$24)/5*A5) -> 5.622 | AM21: 5.600333333 | AN21: 5.578666667 | AO21: 5.557 | AP21: 5.535333333 | AQ21: 5.513666667 | AR21: =$AR$19-(($AR$19-$AR$24)/5*A5) -> 5.492 | AS21: 5.54175 | AT21: 5.5915 | AU21: 5.64125 | AV21: 5.691 | AW21: 5.74075 | AX21: 5.7905 | AY21: 5.84025 | AZ21: =$AZ$19-(($AZ$19-$AZ$24)/5*A5) -> 5.89 | BA21: 5.9022 | BB21: 5.9144 | BC21: 5.9266 | BD21: 5.9388 | BE21: 5.951 | BF21: 5.9632 | BG21: 5.9754 | BH21: 5.9876 | BI21: 5.9998 | BJ21: =$BJ$19-(($BJ$19-$BJ$24)/5*A5) -> 6.012 | BK21: 5.9476 | BL21: 5.8832 | BM21: 5.8188 | BN21: 5.7544 | BO21: 5.69 | BP21: 5.6256 | BQ21: 5.5612 | BR21: 5.4968 | BS21: 5.4324 | BT21: =$BT$19-(($BT$19-$BT$24)/5*A5) -> 5.368 | BU21: 5.289333333 | BV21: 5.210666667 | BW21: 5.132 | BX21: 5.053333333 | BY21: 4.974666667 | BZ21: =$BZ$19-(($BZ$19-$BZ$24)/5*A5) -> 4.896 | CA21: 4.8182 | CB21: 4.7404 | CC21: 4.6626 | CD21: 4.5848 | CE21: 4.507 | CF21: 4.4292 | CG21: 4.3514 | CH21: 4.2736 | CI21: 4.1958 | CJ21: =$CJ$19-(($CJ$19-$CJ$24)/5*A5) -> 4.118 | CK21: =Eingabemaske!G$19 -> 4 | CL21: Altherma 3 R W 4 kW | CM21: Altherma 3 R W 4 kW | CN21: 9 | CO21: 3.8 | CQ21: 4.3
B22: Altherma 3 R W | C22: 4 | D22: ='Altherma 3 R'!$L$8 -> 3.1 | E22: ='Altherma 3 R'!$L$9 -> 4.1 | F22: ='Altherma 3 R'!$L$10 -> 5.1 | G22: 48 | H22: 4.382 | I22: 4.4136 | J22: 4.4452 | K22: 4.4768 | L22: 4.5084 | M22: 4.54 | N22: 4.5716 | O22: 4.6032 | P22: 4.6348 | Q22: 4.6664 | R22: =$R$19-(($R$19-$R$24)/5*A6) -> 4.698 | S22: 4.728625 | T22: 4.75925 | U22: 4.789875 | V22: 4.8205 | W22: 4.851125 | X22: 4.88175 | Y22: 4.912375 | Z22: 4.943 | AA22: 4.973625 | AB22: 5.00425 | AC22: 5.034875 | AD22: 5.0655 | AE22: 5.096125 | AF22: 5.12675 | AG22: 5.157375 | AH22: =$AH$19-(($AH$19-$AH$24)/5*A6) -> 5.188 | AI22: 5.2755 | AJ22: 5.363 | AK22: 5.4505 | AL22: =$AL$19-(($AL$19-$AL$24)/5*A6) -> 5.538 | AM22: 5.514666667 | AN22: 5.491333333 | AO22: 5.468 | AP22: 5.444666667 | AQ22: 5.421333333 | AR22: =$AR$19-(($AR$19-$AR$24)/5*A6) -> 5.398 | AS22: 5.45075 | AT22: 5.5035 | AU22: 5.55625 | AV22: 5.609 | AW22: 5.66175 | AX22: 5.7145 | AY22: 5.76725 | AZ22: =$AZ$19-(($AZ$19-$AZ$24)/5*A6) -> 5.82 | BA22: 5.8358 | BB22: 5.8516 | BC22: 5.8674 | BD22: 5.8832 | BE22: 5.899 | BF22: 5.9148 | BG22: 5.9306 | BH22: 5.9464 | BI22: 5.9622 | BJ22: =$BJ$19-(($BJ$19-$BJ$24)/5*A6) -> 5.978 | BK22: 5.9124 | BL22: 5.8468 | BM22: 5.7812 | BN22: 5.7156 | BO22: 5.65 | BP22: 5.5844 | BQ22: 5.5188 | BR22: 5.4532 | BS22: 5.3876 | BT22: =$BT$19-(($BT$19-$BT$24)/5*A6) -> 5.322 | BU22: 5.235666667 | BV22: 5.149333333 | BW22: 5.063 | BX22: 4.976666667 | BY22: 4.890333333 | BZ22: =$BZ$19-(($BZ$19-$BZ$24)/5*A6) -> 4.804 | CA22: 4.7188 | CB22: 4.6336 | CC22: 4.5484 | CD22: 4.4632 | CE22: 4.378 | CF22: 4.2928 | CG22: 4.2076 | CH22: 4.1224 | CI22: 4.0372 | CJ22: =$CJ$19-(($CJ$19-$CJ$24)/5*A6) -> 3.952 | CK22: =Eingabemaske!G$19 -> 4 | CL22: Altherma 3 R W 4 kW | CM22: Altherma 3 R W 4 kW | CN22: 9 | CO22: 3.8 | CQ22: 4.3
B23: Altherma 3 R W | C23: 4 | D23: ='Altherma 3 R'!$L$8 -> 3.1 | E23: ='Altherma 3 R'!$L$9 -> 4.1 | F23: ='Altherma 3 R'!$L$10 -> 5.1 | G23: 49 | H23: 4.306 | I23: 4.3368 | J23: 4.3676 | K23: 4.3984 | L23: 4.4292 | M23: 4.46 | N23: 4.4908 | O23: 4.5216 | P23: 4.5524 | Q23: 4.5832 | R23: =$R$19-(($R$19-$R$24)/5*A7) -> 4.614 | S23: 4.643375 | T23: 4.67275 | U23: 4.702125 | V23: 4.7315 | W23: 4.760875 | X23: 4.79025 | Y23: 4.819625 | Z23: 4.849 | AA23: 4.878375 | AB23: 4.90775 | AC23: 4.937125 | AD23: 4.9665 | AE23: 4.995875 | AF23: 5.02525 | AG23: 5.054625 | AH23: =$AH$19-(($AH$19-$AH$24)/5*A7) -> 5.084 | AI23: 5.1765 | AJ23: 5.269 | AK23: 5.3615 | AL23: =$AL$19-(($AL$19-$AL$24)/5*A7) -> 5.454 | AM23: 5.429 | AN23: 5.404 | AO23: 5.379 | AP23: 5.354 | AQ23: 5.329 | AR23: =$AR$19-(($AR$19-$AR$24)/5*A7) -> 5.304 | AS23: 5.35975 | AT23: 5.4155 | AU23: 5.47125 | AV23: 5.527 | AW23: 5.58275 | AX23: 5.6385 | AY23: 5.69425 | AZ23: =$AZ$19-(($AZ$19-$AZ$24)/5*A7) -> 5.75 | BA23: 5.7694 | BB23: 5.7888 | BC23: 5.8082 | BD23: 5.8276 | BE23: 5.847 | BF23: 5.8664 | BG23: 5.8858 | BH23: 5.9052 | BI23: 5.9246 | BJ23: =$BJ$19-(($BJ$19-$BJ$24)/5*A7) -> 5.944 | BK23: 5.8772 | BL23: 5.8104 | BM23: 5.7436 | BN23: 5.6768 | BO23: 5.61 | BP23: 5.5432 | BQ23: 5.4764 | BR23: 5.4096 | BS23: 5.3428 | BT23: =$BT$19-(($BT$19-$BT$24)/5*A7) -> 5.276 | BU23: 5.182 | BV23: 5.088 | BW23: 4.994 | BX23: 4.9 | BY23: 4.806 | BZ23: =$BZ$19-(($BZ$19-$BZ$24)/5*A7) -> 4.712 | CA23: 4.6194 | CB23: 4.5268 | CC23: 4.4342 | CD23: 4.3416 | CE23: 4.249 | CF23: 4.1564 | CG23: 4.0638 | CH23: 3.9712 | CI23: 3.8786 | CJ23: =$CJ$19-(($CJ$19-$CJ$24)/5*A7) -> 3.786 | CK23: =Eingabemaske!G$19 -> 4 | CL23: Altherma 3 R W 4 kW | CM23: Altherma 3 R W 4 kW | CN23: 9 | CO23: 3.8 | CQ23: 4.3
B24: Altherma 3 R W | C24: 4 | D24: ='Altherma 3 R'!$L$8 -> 3.1 | E24: ='Altherma 3 R'!$L$9 -> 4.1 | F24: ='Altherma 3 R'!$L$10 -> 5.1 | G24: 50 | H24: ='Altherma 3 R'!G7 -> 4.23 | I24: 4.26 | J24: 4.29 | K24: 4.32 | L24: 4.35 | M24: 4.38 | N24: 4.41 | O24: 4.44 | P24: 4.47 | Q24: 4.5 | R24: ='Altherma 3 R'!G8 -> 4.53 | S24: =$R24-(($R24-$AH24)/$AH$3*S$3) -> 4.558125 | T24: 4.58625 | U24: 4.614375 | V24: 4.6425 | W24: 4.670625 | X24: 4.69875 | Y24: 4.726875 | Z24: 4.755 | AA24: 4.783125 | AB24: 4.81125 | AC24: 4.839375 | AD24: 4.8675 | AE24: 4.895625 | AF24: 4.92375 | AG24: 4.951875 | AH24: ='Altherma 3 R'!G9 -> 4.98 | AI24: 5.0775 | AJ24: 5.175 | AK24: 5.2725 | AL24: ='Altherma 3 R'!G11 -> 5.37 | AM24: =$AL24-(($AL24-$AR24)/$AR$1*AM$1) -> 5.343333333 | AN24: 5.316666667 | AO24: 5.29 | AP24: 5.263333333 | AQ24: 5.236666667 | AR24: ='Altherma 3 R'!G10 -> 5.21 | AS24: =$AR24-(($AR24-$AZ24)/$AZ$3*AS$3) -> 5.26875 | AT24: 5.3275 | AU24: 5.38625 | AV24: 5.445 | AW24: 5.50375 | AX24: 5.5625 | AY24: 5.62125 | AZ24: ='Altherma 3 R'!G12 -> 5.68 | BA24: =$AZ24-(($AZ24-$BJ24)/$BJ$3*BA$3) -> 5.703 | BB24: 5.726 | BC24: 5.749 | BD24: 5.772 | BE24: 5.795 | BF24: 5.818 | BG24: 5.841 | BH24: 5.864 | BI24: 5.887 | BJ24: ='Altherma 3 R'!G13 -> 5.91 | BK24: =$BJ24-(($BJ24-$BT24)/$BT$3*BK$3) -> 5.842 | BL24: 5.774 | BM24: 5.706 | BN24: 5.638 | BO24: 5.57 | BP24: 5.502 | BQ24: 5.434 | BR24: 5.366 | BS24: 5.298 | BT24: ='Altherma 3 R'!G14 -> 5.23 | BU24: =$BT24-(($BT24-$BZ24)/$BZ$3*BU$3) -> 5.128333333 | BV24: 5.026666667 | BW24: 4.925 | BX24: 4.823333333 | BY24: 4.721666667 | BZ24: ='Altherma 3 R'!G15 -> 4.62 | CA24: =$BZ24-(($BZ24-$CJ24)/$CJ$3*CA$3) -> 4.52 | CB24: 4.42 | CC24: 4.32 | CD24: 4.22 | CE24: 4.12 | CF24: 4.02 | CG24: 3.92 | CH24: 3.82 | CI24: 3.72 | CJ24: ='Altherma 3 R'!G16 -> 3.62 | CK24: =Eingabemaske!G$19 -> 4 | CL24: Altherma 3 R W 4 kW | CM24: Altherma 3 R W 4 kW | CN24: 9 | CO24: 3.8 | CQ24: 4.3
B25: Altherma 3 R W | C25: 4 | D25: ='Altherma 3 R'!$L$8 -> 3.1 | E25: ='Altherma 3 R'!$L$9 -> 4.1 | F25: ='Altherma 3 R'!$L$10 -> 5.1 | G25: 51 | R25: =$R$24-(($R$24-$R$29)/5*A4) -> 4.412 | S25: 4.440875 | T25: 4.46975 | U25: 4.498625 | V25: 4.5275 | W25: 4.556375 | X25: 4.58525 | Y25: 4.614125 | Z25: 4.643 | AA25: 4.671875 | AB25: 4.70075 | AC25: 4.729625 | AD25: 4.7585 | AE25: 4.787375 | AF25: 4.81625 | AG25: 4.845125 | AH25: =$AH$24-(($AH$24-$AH$29)/5*A4) -> 4.874 | AI25: 4.9765 | AJ25: 5.079 | AK25: 5.1815 | AL25: =$AL$24-(($AL$24-$AL$29)/5*A4) -> 5.284 | AM25: 5.256333333 | AN25: 5.228666667 | AO25: 5.201 | AP25: 5.173333333 | AQ25: 5.145666667 | AR25: =$AR$24-(($AR$24-$AR$29)/5*A4) -> 5.118 | AS25: 5.1795 | AT25: 5.241 | AU25: 5.3025 | AV25: 5.364 | AW25: 5.4255 | AX25: 5.487 | AY25: 5.5485 | AZ25: =$AZ$24-(($AZ$24-$AZ$29)/5*A4) -> 5.61 | BA25: 5.6364 | BB25: 5.6628 | BC25: 5.6892 | BD25: 5.7156 | BE25: 5.742 | BF25: 5.7684 | BG25: 5.7948 | BH25: 5.8212 | BI25: 5.8476 | BJ25: =$BJ$24-(($BJ$24-$BJ$29)/5*A4) -> 5.874 | BK25: 5.8048 | BL25: 5.7356 | BM25: 5.6664 | BN25: 5.5972 | BO25: 5.528 | BP25: 5.4588 | BQ25: 5.3896 | BR25: 5.3204 | BS25: 5.2512 | BT25: =$BT$24-(($BT$24-$BT$29)/5*A4) -> 5.182 | BU25: 5.073333333 | BV25: 4.964666667 | BW25: 4.856 | BX25: 4.747333333 | BY25: 4.638666667 | BZ25: =$BZ$24-(($BZ$24-$BZ$29)/5*A4) -> 4.53 | CA25: 4.4226 | CB25: 4.3152 | CC25: 4.2078 | CD25: 4.1004 | CE25: 3.993 | CF25: 3.8856 | CG25: 3.7782 | CH25: 3.6708 | CI25: 3.5634 | CJ25: =$CJ$24-(($CJ$24-$CJ$29)/5*A4) -> 3.456 | CK25: =Eingabemaske!G$19 -> 4 | CL25: Altherma 3 R W 4 kW | CM25: Altherma 3 R W 4 kW | CN25: 9 | CO25: 3.8 | CQ25: 4.3
B26: Altherma 3 R W | C26: 4 | D26: ='Altherma 3 R'!$L$8 -> 3.1 | E26: ='Altherma 3 R'!$L$9 -> 4.1 | F26: ='Altherma 3 R'!$L$10 -> 5.1 | G26: 52 | R26: =$R$24-(($R$24-$R$29)/5*A5) -> 4.294 | S26: 4.323625 | T26: 4.35325 | U26: 4.382875 | V26: 4.4125 | W26: 4.442125 | X26: 4.47175 | Y26: 4.501375 | Z26: 4.531 | AA26: 4.560625 | AB26: 4.59025 | AC26: 4.619875 | AD26: 4.6495 | AE26: 4.679125 | AF26: 4.70875 | AG26: 4.738375 | AH26: =$AH$24-(($AH$24-$AH$29)/5*A5) -> 4.768 | AI26: 4.8755 | AJ26: 4.983 | AK26: 5.0905 | AL26: =$AL$24-(($AL$24-$AL$29)/5*A5) -> 5.198 | AM26: 5.169333333 | AN26: 5.140666667 | AO26: 5.112 | AP26: 5.083333333 | AQ26: 5.054666667 | AR26: =$AR$24-(($AR$24-$AR$29)/5*A5) -> 5.026 | AS26: 5.09025 | AT26: 5.1545 | AU26: 5.21875 | AV26: 5.283 | AW26: 5.34725 | AX26: 5.4115 | AY26: 5.47575 | AZ26: =$AZ$24-(($AZ$24-$AZ$29)/5*A5) -> 5.54 | BA26: 5.5698 | BB26: 5.5996 | BC26: 5.6294 | BD26: 5.6592 | BE26: 5.689 | BF26: 5.7188 | BG26: 5.7486 | BH26: 5.7784 | BI26: 5.8082 | BJ26: =$BJ$24-(($BJ$24-$BJ$29)/5*A5) -> 5.838 | BK26: 5.7676 | BL26: 5.6972 | BM26: 5.6268 | BN26: 5.5564 | BO26: 5.486 | BP26: 5.4156 | BQ26: 5.3452 | BR26: 5.2748 | BS26: 5.2044 | BT26: =$BT$24-(($BT$24-$BT$29)/5*A5) -> 5.134 | BU26: 5.018333333 | BV26: 4.902666667 | BW26: 4.787 | BX26: 4.671333333 | BY26: 4.555666667 | BZ26: =$BZ$24-(($BZ$24-$BZ$29)/5*A5) -> 4.44 | CA26: 4.3252 | CB26: 4.2104 | CC26: 4.0956 | CD26: 3.9808 | CE26: 3.866 | CF26: 3.7512 | CG26: 3.6364 | CH26: 3.5216 | CI26: 3.4068 | CJ26: =$CJ$24-(($CJ$24-$CJ$29)/5*A5) -> 3.292 | CK26: =Eingabemaske!G$19 -> 4 | CL26: Altherma 3 R W 4 kW | CM26: Altherma 3 R W 4 kW | CN26: 9 | CO26: 3.8 | CQ26: 4.3
B27: Altherma 3 R W | C27: 4 | D27: ='Altherma 3 R'!$L$8 -> 3.1 | E27: ='Altherma 3 R'!$L$9 -> 4.1 | F27: ='Altherma 3 R'!$L$10 -> 5.1 | G27: 53 | R27: =$R$24-(($R$24-$R$29)/5*A6) -> 4.176 | S27: 4.206375 | T27: 4.23675 | U27: 4.267125 | V27: 4.2975 | W27: 4.327875 | X27: 4.35825 | Y27: 4.388625 | Z27: 4.419 | AA27: 4.449375 | AB27: 4.47975 | AC27: 4.510125 | AD27: 4.5405 | AE27: 4.570875 | AF27: 4.60125 | AG27: 4.631625 | AH27: =$AH$24-(($AH$24-$AH$29)/5*A6) -> 4.662 | AI27: 4.7745 | AJ27: 4.887 | AK27: 4.9995 | AL27: =$AL$24-(($AL$24-$AL$29)/5*A6) -> 5.112 | AM27: 5.082333333 | AN27: 5.052666667 | AO27: 5.023 | AP27: 4.993333333 | AQ27: 4.963666667 | AR27: =$AR$24-(($AR$24-$AR$29)/5*A6) -> 4.934 | AS27: 5.001 | AT27: 5.068 | AU27: 5.135 | AV27: 5.202 | AW27: 5.269 | AX27: 5.336 | AY27: 5.403 | AZ27: =$AZ$24-(($AZ$24-$AZ$29)/5*A6) -> 5.47 | BA27: 5.5032 | BB27: 5.5364 | BC27: 5.5696 | BD27: 5.6028 | BE27: 5.636 | BF27: 5.6692 | BG27: 5.7024 | BH27: 5.7356 | BI27: 5.7688 | BJ27: =$BJ$24-(($BJ$24-$BJ$29)/5*A6) -> 5.802 | BK27: 5.7304 | BL27: 5.6588 | BM27: 5.5872 | BN27: 5.5156 | BO27: 5.444 | BP27: 5.3724 | BQ27: 5.3008 | BR27: 5.2292 | BS27: 5.1576 | BT27: =$BT$24-(($BT$24-$BT$29)/5*A6) -> 5.086 | BU27: 4.963333333 | BV27: 4.840666667 | BW27: 4.718 | BX27: 4.595333333 | BY27: 4.472666667 | BZ27: =$BZ$24-(($BZ$24-$BZ$29)/5*A6) -> 4.35 | CA27: 4.2278 | CB27: 4.1056 | CC27: 3.9834 | CD27: 3.8612 | CE27: 3.739 | CF27: 3.6168 | CG27: 3.4946 | CH27: 3.3724 | CI27: 3.2502 | CJ27: =$CJ$24-(($CJ$24-$CJ$29)/5*A6) -> 3.128 | CK27: =Eingabemaske!G$19 -> 4 | CL27: Altherma 3 R W 4 kW | CM27: Altherma 3 R W 4 kW | CN27: 9 | CO27: 3.8 | CQ27: 4.3
B28: Altherma 3 R W | C28: 4 | D28: ='Altherma 3 R'!$L$8 -> 3.1 | E28: ='Altherma 3 R'!$L$9 -> 4.1 | F28: ='Altherma 3 R'!$L$10 -> 5.1 | G28: 54 | R28: =$R$24-(($R$24-$R$29)/5*A7) -> 4.058 | S28: 4.089125 | T28: 4.12025 | U28: 4.151375 | V28: 4.1825 | W28: 4.213625 | X28: 4.24475 | Y28: 4.275875 | Z28: 4.307 | AA28: 4.338125 | AB28: 4.36925 | AC28: 4.400375 | AD28: 4.4315 | AE28: 4.462625 | AF28: 4.49375 | AG28: 4.524875 | AH28: =$AH$24-(($AH$24-$AH$29)/5*A7) -> 4.556 | AI28: 4.6735 | AJ28: 4.791 | AK28: 4.9085 | AL28: =$AL$24-(($AL$24-$AL$29)/5*A7) -> 5.026 | AM28: 4.995333333 | AN28: 4.964666667 | AO28: 4.934 | AP28: 4.903333333 | AQ28: 4.872666667 | AR28: =$AR$24-(($AR$24-$AR$29)/5*A7) -> 4.842 | AS28: 4.91175 | AT28: 4.9815 | AU28: 5.05125 | AV28: 5.121 | AW28: 5.19075 | AX28: 5.2605 | AY28: 5.33025 | AZ28: =$AZ$24-(($AZ$24-$AZ$29)/5*A7) -> 5.4 | BA28: 5.4366 | BB28: 5.4732 | BC28: 5.5098 | BD28: 5.5464 | BE28: 5.583 | BF28: 5.6196 | BG28: 5.6562 | BH28: 5.6928 | BI28: 5.7294 | BJ28: =$BJ$24-(($BJ$24-$BJ$29)/5*A7) -> 5.766 | BK28: 5.6932 | BL28: 5.6204 | BM28: 5.5476 | BN28: 5.4748 | BO28: 5.402 | BP28: 5.3292 | BQ28: 5.2564 | BR28: 5.1836 | BS28: 5.1108 | BT28: =$BT$24-(($BT$24-$BT$29)/5*A7) -> 5.038 | BU28: 4.908333333 | BV28: 4.778666667 | BW28: 4.649 | BX28: 4.519333333 | BY28: 4.389666667 | BZ28: =$BZ$24-(($BZ$24-$BZ$29)/5*A7) -> 4.26 | CA28: 4.1304 | CB28: 4.0008 | CC28: 3.8712 | CD28: 3.7416 | CE28: 3.612 | CF28: 3.4824 | CG28: 3.3528 | CH28: 3.2232 | CI28: 3.0936 | CJ28: =$CJ$24-(($CJ$24-$CJ$29)/5*A7) -> 2.964 | CK28: =Eingabemaske!G$19 -> 4 | CL28: Altherma 3 R W 4 kW | CM28: Altherma 3 R W 4 kW | CN28: 9 | CO28: 3.8 | CQ28: 4.3
B29: Altherma 3 R W | C29: 4 | D29: ='Altherma 3 R'!$L$8 -> 3.1 | E29: ='Altherma 3 R'!$L$9 -> 4.1 | F29: ='Altherma 3 R'!$L$10 -> 5.1 | G29: 55 | R29: 3.94 | S29: 3.971875 | T29: 4.00375 | U29: 4.035625 | V29: 4.0675 | W29: 4.099375 | X29: 4.13125 | Y29: 4.163125 | Z29: 4.195 | AA29: 4.226875 | AB29: 4.25875 | AC29: 4.290625 | AD29: 4.3225 | AE29: 4.354375 | AF29: 4.38625 | AG29: 4.418125 | AH29: ='Altherma 3 R'!H9 -> 4.45 | AI29: 4.5725 | AJ29: 4.695 | AK29: 4.8175 | AL29: ='Altherma 3 R'!H11 -> 4.94 | AM29: 4.908333333 | AN29: 4.876666667 | AO29: 4.845 | AP29: 4.813333333 | AQ29: 4.781666667 | AR29: ='Altherma 3 R'!H10 -> 4.75 | AS29: 4.8225 | AT29: 4.895 | AU29: 4.9675 | AV29: 5.04 | AW29: 5.1125 | AX29: 5.185 | AY29: 5.2575 | AZ29: ='Altherma 3 R'!H12 -> 5.33 | BA29: 5.37 | BB29: 5.41 | BC29: 5.45 | BD29: 5.49 | BE29: 5.53 | BF29: 5.57 | BG29: 5.61 | BH29: 5.65 | BI29: 5.69 | BJ29: ='Altherma 3 R'!H13 -> 5.73 | BK29: 5.656 | BL29: 5.582 | BM29: 5.508 | BN29: 5.434 | BO29: 5.36 | BP29: 5.286 | BQ29: 5.212 | BR29: 5.138 | BS29: 5.064 | BT29: ='Altherma 3 R'!H14 -> 4.99 | BU29: 4.853333333 | BV29: 4.716666667 | BW29: 4.58 | BX29: 4.443333333 | BY29: 4.306666667 | BZ29: ='Altherma 3 R'!H15 -> 4.17 | CA29: 4.033 | CB29: 3.896 | CC29: 3.759 | CD29: 3.622 | CE29: 3.485 | CF29: 3.348 | CG29: 3.211 | CH29: 3.074 | CI29: 2.937 | CJ29: ='Altherma 3 R'!H16 -> 2.8 | CK29: =Eingabemaske!G$19 -> 4 | CL29: Altherma 3 R W 4 kW | CM29: Altherma 3 R W 4 kW | CN29: 9 | CO29: 3.8 | CQ29: 4.3
B30: Altherma 3 R W | C30: 4 | D30: ='Altherma 3 R'!$L$8 -> 3.1 | E30: ='Altherma 3 R'!$L$9 -> 4.1 | F30: ='Altherma 3 R'!$L$10 -> 5.1 | G30: 56 | AL30: =$AL$29-(($AL$29-$AL$34)/5*A4) -> 4.818 | AM30: 4.783666667 | AN30: 4.749333333 | AO30: 4.715 | AP30: 4.680666667 | AQ30: 4.646333333 | AR30: =$AR$29-(($AR$29-$AR$34)/5*A4) -> 4.612 | AS30: 4.69 | AT30: 4.768 | AU30: 4.846 | AV30: 4.924 | AW30: 5.002 | AX30: 5.08 | AY30: 5.158 | AZ30: =$AZ$29-(($AZ$29-$AZ$34)/5*A4) -> 5.236 | BA30: 5.2824 | BB30: 5.3288 | BC30: 5.3752 | BD30: 5.4216 | BE30: 5.468 | BF30: 5.5144 | BG30: 5.5608 | BH30: 5.6072 | BI30: 5.6536 | BJ30: =$BJ$29-(($BJ$29-$BJ$34)/5*A4) -> 5.7 | BK30: 5.6276 | BL30: 5.5552 | BM30: 5.4828 | BN30: 5.4104 | BO30: 5.338 | BP30: 5.2656 | BQ30: 5.1932 | BR30: 5.1208 | BS30: 5.0484 | BT30: =$BT$29-(($BT$29-$BT$34)/5*A4) -> 4.976 | BU30: 4.824333333 | BV30: 4.672666667 | BW30: 4.521 | BX30: 4.369333333 | BY30: 4.217666667 | BZ30: =$BZ$29-(($BZ$29-$BZ$34)/5*A4) -> 4.066 | CA30: 3.9198 | CB30: 3.7736 | CC30: 3.6274 | CD30: 3.4812 | CE30: 3.335 | CF30: 3.1888 | CG30: 3.0426 | CH30: 2.8964 | CI30: 2.7502 | CJ30: =$CJ$29-(($CJ$29-$CJ$34)/5*A4) -> 2.604 | CK30: =Eingabemaske!G$19 -> 4 | CL30: Altherma 3 R W 4 kW | CM30: Altherma 3 R W 4 kW | CN30: 9 | CO30: 3.8 | CQ30: 4.3
B31: Altherma 3 R W | C31: 4 | D31: ='Altherma 3 R'!$L$8 -> 3.1 | E31: ='Altherma 3 R'!$L$9 -> 4.1 | F31: ='Altherma 3 R'!$L$10 -> 5.1 | G31: 57 | AL31: =$AL$29-(($AL$29-$AL$34)/5*A5) -> 4.696 | AM31: 4.659 | AN31: 4.622 | AO31: 4.585 | AP31: 4.548 | AQ31: 4.511 | AR31: =$AR$29-(($AR$29-$AR$34)/5*A5) -> 4.474 | AS31: 4.5575 | AT31: 4.641 | AU31: 4.7245 | AV31: 4.808 | AW31: 4.8915 | AX31: 4.975 | AY31: 5.0585 | AZ31: =$AZ$29-(($AZ$29-$AZ$34)/5*A5) -> 5.142 | BA31: 5.1948 | BB31: 5.2476 | BC31: 5.3004 | BD31: 5.3532 | BE31: 5.406 | BF31: 5.4588 | BG31: 5.5116 | BH31: 5.5644 | BI31: 5.6172 | BJ31: =$BJ$29-(($BJ$29-$BJ$34)/5*A5) -> 5.67 | BK31: 5.5992 | BL31: 5.5284 | BM31: 5.4576 | BN31: 5.3868 | BO31: 5.316 | BP31: 5.2452 | BQ31: 5.1744 | BR31: 5.1036 | BS31: 5.0328 | BT31: =$BT$29-(($BT$29-$BT$34)/5*A5) -> 4.962 | BU31: 4.795333333 | BV31: 4.628666667 | BW31: 4.462 | BX31: 4.295333333 | BY31: 4.128666667 | BZ31: =$BZ$29-(($BZ$29-$BZ$34)/5*A5) -> 3.962 | CA31: 3.8066 | CB31: 3.6512 | CC31: 3.4958 | CD31: 3.3404 | CE31: 3.185 | CF31: 3.0296 | CG31: 2.8742 | CH31: 2.7188 | CI31: 2.5634 | CJ31: =$CJ$29-(($CJ$29-$CJ$34)/5*A5) -> 2.408 | CK31: =Eingabemaske!G$19 -> 4 | CL31: Altherma 3 R W 4 kW | CM31: Altherma 3 R W 4 kW | CN31: 9 | CO31: 3.8 | CQ31: 4.3
B32: Altherma 3 R W | C32: 4 | D32: ='Altherma 3 R'!$L$8 -> 3.1 | E32: ='Altherma 3 R'!$L$9 -> 4.1 | F32: ='Altherma 3 R'!$L$10 -> 5.1 | G32: 58 | AL32: =$AL$29-(($AL$29-$AL$34)/5*A6) -> 4.574 | AM32: 4.534333333 | AN32: 4.494666667 | AO32: 4.455 | AP32: 4.415333333 | AQ32: 4.375666667 | AR32: =$AR$29-(($AR$29-$AR$34)/5*A6) -> 4.336 | AS32: 4.425 | AT32: 4.514 | AU32: 4.603 | AV32: 4.692 | AW32: 4.781 | AX32: 4.87 | AY32: 4.959 | AZ32: =$AZ$29-(($AZ$29-$AZ$34)/5*A6) -> 5.048 | BA32: 5.1072 | BB32: 5.1664 | BC32: 5.2256 | BD32: 5.2848 | BE32: 5.344 | BF32: 5.4032 | BG32: 5.4624 | BH32: 5.5216 | BI32: 5.5808 | BJ32: =$BJ$29-(($BJ$29-$BJ$34)/5*A6) -> 5.64 | BK32: 5.5708 | BL32: 5.5016 | BM32: 5.4324 | BN32: 5.3632 | BO32: 5.294 | BP32: 5.2248 | BQ32: 5.1556 | BR32: 5.0864 | BS32: 5.0172 | BT32: =$BT$29-(($BT$29-$BT$34)/5*A6) -> 4.948 | BU32: 4.766333333 | BV32: 4.584666667 | BW32: 4.403 | BX32: 4.221333333 | BY32: 4.039666667 | BZ32: =$BZ$29-(($BZ$29-$BZ$34)/5*A6) -> 3.858 | CA32: 3.6934 | CB32: 3.5288 | CC32: 3.3642 | CD32: 3.1996 | CE32: 3.035 | CF32: 2.8704 | CG32: 2.7058 | CH32: 2.5412 | CI32: 2.3766 | CJ32: =$CJ$29-(($CJ$29-$CJ$34)/5*A6) -> 2.212 | CK32: =Eingabemaske!G$19 -> 4 | CL32: Altherma 3 R W 4 kW | CM32: Altherma 3 R W 4 kW | CN32: 9 | CO32: 3.8 | CQ32: 4.3
B33: Altherma 3 R W | C33: 4 | D33: ='Altherma 3 R'!$L$8 -> 3.1 | E33: ='Altherma 3 R'!$L$9 -> 4.1 | F33: ='Altherma 3 R'!$L$10 -> 5.1 | G33: 59 | AL33: =$AL$29-(($AL$29-$AL$34)/5*A7) -> 4.452 | AM33: 4.409666667 | AN33: 4.367333333 | AO33: 4.325 | AP33: 4.282666667 | AQ33: 4.240333333 | AR33: =$AR$29-(($AR$29-$AR$34)/5*A7) -> 4.198 | AS33: 4.2925 | AT33: 4.387 | AU33: 4.4815 | AV33: 4.576 | AW33: 4.6705 | AX33: 4.765 | AY33: 4.8595 | AZ33: =$AZ$29-(($AZ$29-$AZ$34)/5*A7) -> 4.954 | BA33: 5.0196 | BB33: 5.0852 | BC33: 5.1508 | BD33: 5.2164 | BE33: 5.282 | BF33: 5.3476 | BG33: 5.4132 | BH33: 5.4788 | BI33: 5.5444 | BJ33: =$BJ$29-(($BJ$29-$BJ$34)/5*A7) -> 5.61 | BK33: 5.5424 | BL33: 5.4748 | BM33: 5.4072 | BN33: 5.3396 | BO33: 5.272 | BP33: 5.2044 | BQ33: 5.1368 | BR33: 5.0692 | BS33: 5.0016 | BT33: =$BT$29-(($BT$29-$BT$34)/5*A7) -> 4.934 | BU33: 4.737333333 | BV33: 4.540666667 | BW33: 4.344 | BX33: 4.147333333 | BY33: 3.950666667 | BZ33: =$BZ$29-(($BZ$29-$BZ$34)/5*A7) -> 3.754 | CA33: 3.5802 | CB33: 3.4064 | CC33: 3.2326 | CD33: 3.0588 | CE33: 2.885 | CF33: 2.7112 | CG33: 2.5374 | CH33: 2.3636 | CI33: 2.1898 | CJ33: =$CJ$29-(($CJ$29-$CJ$34)/5*A7) -> 2.016 | CK33: =Eingabemaske!G$19 -> 4 | CL33: Altherma 3 R W 4 kW | CM33: Altherma 3 R W 4 kW | CN33: 9 | CO33: 3.8 | CQ33: 4.3
B34: Altherma 3 R W | C34: 4 | D34: ='Altherma 3 R'!$L$8 -> 3.1 | E34: ='Altherma 3 R'!$L$9 -> 4.1 | F34: ='Altherma 3 R'!$L$10 -> 5.1 | G34: 60 | AL34: ='Altherma 3 R'!I11 -> 4.33 | AM34: 4.285 | AN34: 4.24 | AO34: 4.195 | AP34: 4.15 | AQ34: 4.105 | AR34: ='Altherma 3 R'!I10 -> 4.06 | AS34: 4.16 | AT34: 4.26 | AU34: 4.36 | AV34: 4.46 | AW34: 4.56 | AX34: 4.66 | AY34: 4.76 | AZ34: ='Altherma 3 R'!I12 -> 4.86 | BA34: 4.932 | BB34: 5.004 | BC34: 5.076 | BD34: 5.148 | BE34: 5.22 | BF34: 5.292 | BG34: 5.364 | BH34: 5.436 | BI34: 5.508 | BJ34: ='Altherma 3 R'!I13 -> 5.58 | BK34: 5.514 | BL34: 5.448 | BM34: 5.382 | BN34: 5.316 | BO34: 5.25 | BP34: 5.184 | BQ34: 5.118 | BR34: 5.052 | BS34: 4.986 | BT34: ='Altherma 3 R'!I14 -> 4.92 | BU34: 4.708333333 | BV34: 4.496666667 | BW34: 4.285 | BX34: 4.073333333 | BY34: 3.861666667 | BZ34: ='Altherma 3 R'!I15 -> 3.65 | CA34: 3.467 | CB34: 3.284 | CC34: 3.101 | CD34: 2.918 | CE34: 2.735 | CF34: 2.552 | CG34: 2.369 | CH34: 2.186 | CI34: 2.003 | CJ34: ='Altherma 3 R'!I16 -> 1.82 | CK34: =Eingabemaske!G$19 -> 4 | CL34: Altherma 3 R W 4 kW | CM34: Altherma 3 R W 4 kW | CN34: 9 | CO34: 3.8 | CQ34: 4.3
B35: Altherma 3 R W | C35: 4 | D35: ='Altherma 3 R'!$L$8 -> 3.1 | E35: ='Altherma 3 R'!$L$9 -> 4.1 | F35: ='Altherma 3 R'!$L$10 -> 5.1 | G35: 61 | CK35: =Eingabemaske!G$19 -> 4 | CL35: Altherma 3 R W 4 kW | CM35: Altherma 3 R W 4 kW | CN35: 9 | CO35: 3.8 | CQ35: 4.3
B36: Altherma 3 R W | C36: 4 | D36: ='Altherma 3 R'!$L$8 -> 3.1 | E36: ='Altherma 3 R'!$L$9 -> 4.1 | F36: ='Altherma 3 R'!$L$10 -> 5.1 | G36: 62 | CK36: =Eingabemaske!G$19 -> 4 | CL36: Altherma 3 R W 4 kW | CM36: Altherma 3 R W 4 kW | CN36: 9 | CO36: 3.8 | CQ36: 4.3
B37: Altherma 3 R W | C37: 4 | D37: ='Altherma 3 R'!$L$8 -> 3.1 | E37: ='Altherma 3 R'!$L$9 -> 4.1 | F37: ='Altherma 3 R'!$L$10 -> 5.1 | G37: 63 | CK37: =Eingabemaske!G$19 -> 4 | CL37: Altherma 3 R W 4 kW | CM37: Altherma 3 R W 4 kW | CN37: 9 | CO37: 3.8 | CQ37: 4.3
B38: Altherma 3 R W | C38: 4 | D38: ='Altherma 3 R'!$L$8 -> 3.1 | E38: ='Altherma 3 R'!$L$9 -> 4.1 | F38: ='Altherma 3 R'!$L$10 -> 5.1 | G38: 64 | CK38: =Eingabemaske!G$19 -> 4 | CL38: Altherma 3 R W 4 kW | CM38: Altherma 3 R W 4 kW | CN38: 9 | CO38: 3.8 | CQ38: 4.3
B39: Altherma 3 R W | C39: 4 | D39: ='Altherma 3 R'!$L$8 -> 3.1 | E39: ='Altherma 3 R'!$L$9 -> 4.1 | F39: ='Altherma 3 R'!$L$10 -> 5.1 | G39: 65 | CK39: =Eingabemaske!G$19 -> 4 | CL39: Altherma 3 R W 4 kW | CM39: Altherma 3 R W 4 kW | CN39: 9 | CO39: 3.8 | CQ39: 4.3
B40: Altherma 3 R W | C40: 4 | D40: ='Altherma 3 R'!$L$8 -> 3.1 | E40: ='Altherma 3 R'!$L$9 -> 4.1 | F40: ='Altherma 3 R'!$L$10 -> 5.1 | G40: 66 | CK40: =Eingabemaske!G$19 -> 4 | CL40: Altherma 3 R W 4 kW | CM40: Altherma 3 R W 4 kW | CN40: 9 | CO40: 3.8 | CQ40: 4.3
B41: Altherma 3 R W | C41: 4 | D41: ='Altherma 3 R'!$L$8 -> 3.1 | E41: ='Altherma 3 R'!$L$9 -> 4.1 | F41: ='Altherma 3 R'!$L$10 -> 5.1 | G41: 67 | CK41: =Eingabemaske!G$19 -> 4 | CL41: Altherma 3 R W 4 kW | CM41: Altherma 3 R W 4 kW | CN41: 9 | CO41: 3.8 | CQ41: 4.3
B42: Altherma 3 R W | C42: 4 | D42: ='Altherma 3 R'!$L$8 -> 3.1 | E42: ='Altherma 3 R'!$L$9 -> 4.1 | F42: ='Altherma 3 R'!$L$10 -> 5.1 | G42: 68 | CK42: =Eingabemaske!G$19 -> 4 | CL42: Altherma 3 R W 4 kW | CM42: Altherma 3 R W 4 kW | CN42: 9 | CO42: 3.8 | CQ42: 4.3
B43: Altherma 3 R W | C43: 4 | D43: ='Altherma 3 R'!$L$8 -> 3.1 | E43: ='Altherma 3 R'!$L$9 -> 4.1 | F43: ='Altherma 3 R'!$L$10 -> 5.1 | G43: 69 | CK43: =Eingabemaske!G$19 -> 4 | CL43: Altherma 3 R W 4 kW | CM43: Altherma 3 R W 4 kW | CN43: 9 | CO43: 3.8 | CQ43: 4.3
B44: Altherma 3 R W | C44: 4 | D44: ='Altherma 3 R'!$L$8 -> 3.1 | E44: ='Altherma 3 R'!$L$9 -> 4.1 | F44: ='Altherma 3 R'!$L$10 -> 5.1 | G44: 70 | CK44: =Eingabemaske!G$19 -> 4 | CL44: Altherma 3 R W 4 kW | CM44: Altherma 3 R W 4 kW | CN44: 9 | CO44: 3.8 | CQ44: 4.3
B45: Altherma 3 R W | C45: 7 | D45: 3.1 | E45: 4.29 | F45: 5.23 | G45: 30 | H45: =H4 -> 4.71 | I45: =I4 -> 4.758 | J45: 4.806 | K45: 4.854 | L45: 4.902 | M45: 4.95 | N45: 4.998 | O45: 5.046 | P45: 5.094 | Q45: 5.142 | R45: =R4 -> 5.19 | S45: =S4 -> 5.2375 | T45: 5.285 | U45: 5.3325 | V45: 5.38 | W45: 5.4275 | X45: 5.475 | Y45: 5.5225 | Z45: 5.57 | AA45: 5.6175 | AB45: 5.665 | AC45: 5.7125 | AD45: 5.76 | AE45: 5.8075 | AF45: 5.855 | AG45: 5.9025 | AH45: =AH4 -> 5.95 | AI45: 6.035 | AJ45: 6.12 | AK45: 6.205 | AL45: 6.29 | AM45: 6.268333333 | AN45: 6.246666667 | AO45: 6.225 | AP45: 6.203333333 | AQ45: 6.181666667 | AR45: =AR4 -> 6.16 | AS45: 6.21125 | AT45: 6.2625 | AU45: 6.31375 | AV45: 6.365 | AW45: 6.41625 | AX45: 6.4675 | AY45: 6.51875 | AZ45: 6.57 | BA45: 6.578 | BB45: 6.586 | BC45: 6.594 | BD45: 6.602 | BE45: 6.61 | BF45: 6.618 | BG45: 6.626 | BH45: 6.634 | BI45: 6.642 | BJ45: =BJ4 -> 6.65 | BK45: 6.617 | BL45: 6.584 | BM45: 6.551 | BN45: 6.518 | BO45: 6.485 | BP45: 6.452 | BQ45: 6.419 | BR45: 6.386 | BS45: 6.353 | BT45: =BT4 -> 6.32 | BU45: 6.273333333 | BV45: 6.226666667 | BW45: 6.18 | BX45: 6.133333333 | BY45: 6.086666667 | BZ45: 6.04 | CA45: 5.985 | CB45: 5.93 | CC45: 5.875 | CD45: 5.82 | CE45: 5.765 | CF45: 5.71 | CG45: 5.655 | CH45: 5.6 | CI45: 5.545 | CJ45: =CJ4 -> 5.49 | CK45: 4 | CL45: Altherma 3 R W 07 | CM45: Altherma 3 R W 07 | CN45: 9 | CO45: 3.85 | CQ45: 4.36
B46: Altherma 3 R W | C46: 7 | D46: 3.1 | E46: 4.29 | F46: 5.23 | G46: 31 | H46: =H5 -> 4.702 | I46: =I5 -> 4.7492 | J46: 4.7964 | K46: 4.8436 | L46: 4.8908 | M46: 4.938 | N46: 4.9852 | O46: 5.0324 | P46: 5.0796 | Q46: 5.1268 | R46: 5.174 | S46: =S5 -> 5.220625 | T46: 5.26725 | U46: 5.313875 | V46: 5.3605 | W46: 5.407125 | X46: 5.45375 | Y46: 5.500375 | Z46: 5.547 | AA46: 5.593625 | AB46: 5.64025 | AC46: 5.686875 | AD46: 5.7335 | AE46: 5.780125 | AF46: 5.82675 | AG46: 5.873375 | AH46: =AH5 -> 5.92 | AI46: 6.0045 | AJ46: 6.089 | AK46: 6.1735 | AL46: 6.258 | AM46: 6.236333333 | AN46: 6.214666667 | AO46: 6.193 | AP46: 6.171333333 | AQ46: 6.149666667 | AR46: =AR5 -> 6.128 | AS46: 6.17875 | AT46: 6.2295 | AU46: 6.28025 | AV46: 6.331 | AW46: 6.38175 | AX46: 6.4325 | AY46: 6.48325 | AZ46: 6.534 | BA46: 6.5408 | BB46: 6.5476 | BC46: 6.5544 | BD46: 6.5612 | BE46: 6.568 | BF46: 6.5748 | BG46: 6.5816 | BH46: 6.5884 | BI46: 6.5952 | BJ46: =BJ5 -> 6.602 | BK46: 6.5688 | BL46: 6.5356 | BM46: 6.5024 | BN46: 6.4692 | BO46: 6.436 | BP46: 6.4028 | BQ46: 6.3696 | BR46: 6.3364 | BS46: 6.3032 | BT46: =BT5 -> 6.27 | BU46: 6.221 | BV46: 6.172 | BW46: 6.123 | BX46: 6.074 | BY46: 6.025 | BZ46: 5.976 | CA46: 5.9206 | CB46: 5.8652 | CC46: 5.8098 | CD46: 5.7544 | CE46: 5.699 | CF46: 5.6436 | CG46: 5.5882 | CH46: 5.5328 | CI46: 5.4774 | CJ46: =CJ5 -> 5.422 | CK46: 4 | CL46: Altherma 3 R W 07 | CM46: Altherma 3 R W 07 | CN46: 9 | CO46: 3.85 | CQ46: 4.36
